Workbook

Sheet Cognos TB (hidden)
B1: Consolidated Trial balance
B2: April - 2011
B3: Company | C3: Harmony Company (Consolidated) | D3: Harmony Company (Consolidated) GAC | E3: Gold Marketing (Consolidated) | F3: Avgold (Consolidated) | G3: Randfontein operations (Consolidated) | H3: Evander (Consolidation) | I3: Lydenburg Exploration (Consolidated) | J3: West Rand Cons Mines (Consolidated) | K3: ARMgold (Consolidated) | L3: Freegold (Consolidated) | M3: Harmony Gold (Australia) (Pty) Ltd (Consolidated) | N3: Harmony Netherlands | O3: Harmony Isle of Man Company | P3: Harmony Gold Peru | Q3: Musuku Benefication | R3: Management Services | S3: Au-Thentic Beverages | T3: Engineering | U3: Investment Company | V3: La Riveria | W3: Unisel | X3: Virginia Salvage | Y3: HIV Company | Z3: Harmony Pharmacies | AA3: Coreland Management | AB3: Coreland Development | AC3: Coreland Investment | AD3: Kalgold | AE3: Harmony Company | AF3: Avgold (Consolidated) GAC | AG3: Avgold | AH3: Loraine Gold Mines | AI3: Randfontein operations (Consolidated) GAC | AJ3: Harmony Gold (FIS) | AK3: Quarrytown | AL3: Randfontein operations | AM3: Evander (Consolidation) GAC | AN3: Evander Township (Consolidated) | AO3: Evander | AP3: Salt Holdings | AQ3: Evander Stone Holdings | AR3: Bracken | AS3: Leslie | AT3: Winkelhaak | AU3: Freegold | AV3: Ernest Oppenheimer Hospital | AW3: Freegold GAC
C4: C001 | D4: C001GA | E4: C007 | F4: C025 | G4: C030 | H4: C040 | I4: C060 | J4: C070 | K4: C081 | L4: C090 | M4: C501 | N4: E301 | O4: E302 | P4: S003 | Q4: S004 | R4: S005 | S4: S008 | T4: S009 | U4: S010 | V4: S011 | W4: S012 | X4: S013 | Y4: S017 | Z4: S018 | AA4: S055 | AB4: S056 | AC4: S057 | AD4: S080 | AE4: T001 | AF4: C025GA | AG4: S025 | AH4: S027 | AI4: C030GA | AJ4: E037 | AK4: S035 | AL4: T030 | AM4: C040GA | AN4: C042 | AO4: S040 | AP4: S044 | AQ4: S045 | AR4: S046 | AS4: S047 | AT4: S048 | AU4: S090 | AV4: S091 | AW4: T090GA
C5: 3 | D5: 4 | E5: 5 | F5: 6 | G5: 7 | H5: 8 | I5: 9 | J5: 10 | K5: 11 | L5: 12 | M5: 13 | N5: 14 | O5: 15 | P5: 16 | Q5: 17 | R5: 18 | S5: 19 | T5: 20 | U5: 21 | V5: 22 | W5: 23 | X5: 24 | Y5: 25 | Z5: 26 | AA5: 27 | AB5: 28 | AC5: 29 | AD5: 30 | AE5: 31 | AF5: 32 | AG5: 33 | AH5: 34 | AI5: 35 | AJ5: 36 | AK5: 37 | AL5: 38 | AM5: 39 | AN5: 40 | AO5: 41 | AP5: 42 | AQ5: 43 | AR5: 44 | AS5: 45 | AT5: 46 | AU5: 47 | AV5: 48 | AW5: 49
A6: AA000000 | B6: TOTAL ASSETS | C6: 4.100625717e+10 | D6: 116124974.6 | E6: -1572874.19 | F6: 8075599489 | G6: 6417547093 | H6: 1258310943 | I6: 90566288.29 | J6: 1004.66 | K6: 77854017.79 | L6: 1.387894835e+10 | M6: 5799043203 | N6: 0 | O6: 0.08 | P6: 0 | Q6: 498.48 | R6: 0 | S6: 293687.12 | T6: 1903341.46 | U6: 235090064.3 | V6: 794300 | W6: 50628.19 | X6: 0 | Y6: 0 | Z6: 6012317.79 | AA6: 0 | AB6: 0 | AC6: 0 | AD6: 243784021 | AE6: 4805905831 | AF6: 0 | AG6: 3308270231 | AH6: 0 | AI6: 0 | AJ6: 0 | AK6: 1423119.64 | AL6: 5821467356 | AM6: 0 | AN6: -33192653.65 | AO6: 1648587502 | AP6: 268167.63 | AQ6: 0 | AR6: 0 | AS6: 0 | AT6: 0 | AU6: 7738724952 | AV6: 317749348.4 | AW6: 0
A7: AB000000 | B7: Non-current assets | C7: 3.780133867e+10 | D7: 325955477.3 | E7: -2823430 | F7: 7919499807 | G7: 6089046809 | H7: 1219116029 | I7: 2.48 | J7: 953.84 | K7: 55417511.5 | L7: 1.36697622e+10 | M7: 5189707426 | N7: 0 | O7: 0 | P7: 0 | Q7: 0 | R7: 0 | S7: 0 | T7: 0 | U7: 61778528.62 | V7: 794300 | W7: 0 | X7: 0 | Y7: 0 | Z7: 1312591.82 | AA7: 0 | AB7: 0 | AC7: 0 | AD7: 161155885.7 | AE7: 3110614570 | AF7: 0 | AG7: 3152170550 | AH7: 0 | AI7: 0 | AJ7: 0 | AK7: 1406494.64 | AL7: 5492983698 | AM7: 0 | AN7: -33337858.54 | AO7: 1609596993 | AP7: 208967.71 | AQ7: 0 | AR7: 0 | AS7: 0 | AT7: 0 | AU7: 7543493205 | AV7: 303794953.4 | AW7: 0
A8: AB100000 | B8: Property, plant and equipment | C8: 3.077852e+10 | D8: 97919339.62 | E8: -2823430 | F8: 7863975489 | G8: 5844130264 | H8: 1014943135 | I8: 0.28 | J8: 953.84 | K8: -0.11 | L8: 9296859983 | M8: 3833459227 | N8: 0 | O8: 0 | P8: 0 | Q8: 0 | R8: 0 | S8: 0 | T8: 0 | U8: 0 | V8: 794300 | W8: 0 | X8: 0 | Y8: 0 | Z8: 109270.68 | AA8: 0 | AB8: 0 | AC8: 0 | AD8: 129710878.7 | AE8: 2699440589 | AF8: 0 | AG8: 3072840435 | AH8: 0 | AI8: 0 | AJ8: 0 | AK8: 1396041 | AL8: 5844917339 | AM8: 0 | AN8: -36493561.56 | AO8: 1051227729 | AP8: 208967.7 | AQ8: 0 | AR8: 0 | AS8: 0 | AT8: 0 | AU8: 5423335614 | AV8: 0 | AW8: 0
A9: AB110000 | B9: PPE : Cost | C9: 4.515611805e+10 | D9: 136142254.9 | E9: 11023565.96 | F9: 9433514226 | G9: 7223371951 | H9: 3621913651 | I9: 116067059.3 | J9: 9717349.76 | K9: 38860148.53 | L9: 1.246390099e+10 | M9: 5680806077 | N9: 0 | O9: 0 | P9: 0 | Q9: 0 | R9: 0 | S9: 0 | T9: 0 | U9: 753918.35 | V9: 794300 | W9: 0 | X9: 0 | Y9: 0 | Z9: 203550.68 | AA9: 0 | AB9: 0 | AC9: 0 | AD9: 448251470.9 | AE9: 5970797532 | AF9: 0 | AG9: 4642379172 | AH9: 0 | AI9: 0 | AJ9: 0 | AK9: 1396041 | AL9: 7224159026 | AM9: 0 | AN9: -36434686.1 | AO9: 3658139370 | AP9: 208967.7 | AQ9: 0 | AR9: 0 | AS9: 0 | AT9: 0 | AU9: 8590376626 | AV9: 0 | AW9: 0
A10: AB110100 | B10: Cost : Mining assets | C10: 3.354518059e+10 | D10: 136142254.9 | E10: 0 | F10: 4277878506 | G10: 5595176645 | H10: 3524879841 | I10: 1638324.5 | J10: 8418349.94 | K10: 38860148.53 | L10: 1.097248504e+10 | M10: 3100242663 | N10: 0 | O10: 0 | P10: 0 | Q10: 0 | R10: 0 | S10: 0 | T10: 0 | U10: 0 | V10: 0 | W10: 0 | X10: 0 | Y10: 0 | Z10: 0 | AA10: 0 | AB10: 0 | AC10: 0 | AD10: 371944006.8 | AE10: 5517514812 | AF10: 0 | AG10: 4277878506 | AH10: 0 | AI10: 0 | AJ10: 0 | AK10: 0 | AL10: 5597359760 | AM10: 0 | AN10: -40194000 | AO10: 3565073841 | AP10: 0 | AQ10: 0 | AR10: 0 | AS10: 0 | AT10: 0 | AU10: 8286027670 | AV10: 0 | AW10: 0
A11: AB110110 | B11: Cost : Mine assets | C11: 2.515918404e+10 | D11: 136142254.9 | E11: 0 | F11: 3991851899 | G11: 3738238561 | H11: 2491656241 | I11: 1638324.5 | J11: 8418349.94 | K11: 38859166.53 | L11: 8309185103 | M11: 2676123916 | N11: 0 | O11: 0 | P11: 0 | Q11: 0 | R11: 0 | S11: 0 | T11: 0 | U11: 0 | V11: 0 | W11: 0 | X11: 0 | Y11: 0 | Z11: 0 | AA11: 0 | AB11: 0 | AC11: 0 | AD11: 351568716 | AE11: 3415501504 | AF11: 0 | AG11: 3991851899 | AH11: 0 | AI11: 0 | AJ11: 0 | AK11: 0 | AL11: 3740421677 | AM11: 0 | AN11: 0 | AO11: 2491656241 | AP11: 0 | AQ11: 0 | AR11: 0 | AS11: 0 | AT11: 0 | AU11: 5622727734 | AV11: 0 | AW11: 0
A12: AB110120 | B12: Cost : Rehab assets | C12: 692763281.7 | D12: 0 | E12: 0 | F12: 50561221.28 | G12: 27719753.94 | H12: 37609873.44 | I12: 0 | J12: 0 | K12: 982 | L12: 251584366.3 | M12: 98997622.27 | N12: 0 | O12: 0 | P12: 0 | Q12: 0 | R12: 0 | S12: 0 | T12: 0 | U12: 0 | V12: 0 | W12: 0 | X12: 0 | Y12: 0 | Z12: 0 | AA12: 0 | AB12: 0 | AC12: 0 | AD12: 8024098.48 | AE12: 218265364 | AF12: 0 | AG12: 50561221.28 | AH12: 0 | AI12: 0 | AJ12: 0 | AK12: 0 | AL12: 27719753.94 | AM12: 0 | AN12: 0 | AO12: 37609873.44 | AP12: 0 | AQ12: 0 | AR12: 0 | AS12: 0 | AT12: 0 | AU12: 251584366.3 | AV12: 0 | AW12: 0
A13: AB110130 | B13: Cost : Capital development and AE's | C13: 7725412597 | D13: 0 | E13: 0 | F13: 235465385.9 | G13: 1829218329 | H13: 1035807727 | I13: 0 | J13: 0 | K13: 0 | L13: 2411715570 | M13: 317106448.9 | N13: 0 | O13: 0 | P13: 0 | Q13: 0 | R13: 0 | S13: 0 | T13: 0 | U13: 0 | V13: 0 | W13: 0 | X13: 0 | Y13: 0 | Z13: 0 | AA13: 0 | AB13: 0 | AC13: 0 | AD13: 12351192.29 | AE13: 1883747944 | AF13: 0 | AG13: 235465385.9 | AH13: 0 | AI13: 0 | AJ13: 0 | AK13: 0 | AL13: 1829218329 | AM13: 0 | AN13: 0 | AO13: 1035807727 | AP13: 0 | AQ13: 0 | AR13: 0 | AS13: 0 | AT13: 0 | AU13: 2411715570 | AV13: 0 | AW13: 0
A14: AB110190 | B14: Cost : Other | C14: -32179324.13 | D14: 0 | E14: 0 | F14: 0 | G14: 0 | H14: -40194000 | I14: 0 | J14: 0 | K14: 0 | L14: 0 | M14: 8014675.874 | N14: 0 | O14: 0 | P14: 0 | Q14: 0 | R14: 0 | S14: 0 | T14: 0 | U14: 0 | V14: 0 | W14: 0 | X14: 0 | Y14: 0 | Z14: 0 | AA14: 0 | AB14: 0 | AC14: 0 | AD14: 0 | AE14: 0 | AF14: 0 | AG14: 0 | AH14: 0 | AI14: 0 | AJ14: 0 | AK14: 0 | AL14: 0 | AM14: 0 | AN14: -40194000 | AO14: 0 | AP14: 0 | AQ14: 0 | AR14: 0 | AS14: 0 | AT14: 0 | AU14: 0 | AV14: 0 | AW14: 0
A15: AB110200 | B15: Cost : Mining assets under construction | C15: 3221352211 | D15: 0 | E15: 0 | F15: 0 | G15: 598864736.6 | H15: 76291891.17 | I15: 0 | J15: 0 | K15: 0 | L15: 347178423.1 | M15: 2199017160 | N15: 0 | O15: 0 | P15: 0 | Q15: 0 | R15: 0 | S15: 0 | T15: 0 | U15: 0 | V15: 0 | W15: 0 | X15: 0 | Y15: 0 | Z15: 0 | AA15: 0 | AB15: 0 | AC15: 0 | AD15: 0 | AE15: 0 | AF15: 0 | AG15: 0 | AH15: 0 | AI15: 0 | AJ15: 0 | AK15: 0 | AL15: 598864736.6 | AM15: 0 | AN15: 0 | AO15: 76291891.17 | AP15: 0 | AQ15: 0 | AR15: 0 | AS15: 0 | AT15: 0 | AU15: 347178423.1 | AV15: 0 | AW15: 0
A16: AB110300 | B16: Cost : Undeveloped property | C16: 7802091292 | D16: 0 | E16: 0 | F16: 5153188928 | G16: 848104403.8 | H16: 0 | I16: 0 | J16: 0 | K16: 0 | L16: 1136585178 | M16: 276785387 | N16: 0 | O16: 0 | P16: 0 | Q16: 0 | R16: 0 | S16: 0 | T16: 0 | U16: 0 | V16: 0 | W16: 0 | X16: 0 | Y16: 0 | Z16: 0 | AA16: 0 | AB16: 0 | AC16: 0 | AD16: -14045008.53 | AE16: 401472404.2 | AF16: 0 | AG16: 362053874 | AH16: 0 | AI16: 0 | AJ16: 0 | AK16: 0 | AL16: 848104403.8 | AM16: 0 | AN16: 0 | AO16: 0 | AP16: 0 | AQ16: 0 | AR16: 0 | AS16: 0 | AT16: 0 | AU16: -50481822 | AV16: 0 | AW16: 0
A17: AB110400 | B17: Cost : Deferred stripping | C17: 159943336.9 | D17: 0 | E17: 0 | F17: 0 | G17: 0 | H17: 0 | I17: 0 | J17: 0 | K17: 0 | L17: 0 | M17: 95352385.28 | N17: 0 | O17: 0 | P17: 0 | Q17: 0 | R17: 0 | S17: 0 | T17: 0 | U17: 0 | V17: 0 | W17: 0 | X17: 0 | Y17: 0 | Z17: 0 | AA17: 0 | AB17: 0 | AC17: 0 | AD17: 64590951.62 | AE17: 0 | AF17: 0 | AG17: 0 | AH17: 0 | AI17: 0 | AJ17: 0 | AK17: 0 | AL17: 0 | AM17: 0 | AN17: 0 | AO17: 0 | AP17: 0 | AQ17: 0 | AR17: 0 | AS17: 0 | AT17: 0 | AU17: 0 | AV17: 0 | AW17: 0
A18: AB110800 | B18: Cost : Other non-mining | C18: 427550620.2 | D18: 0 | E18: 11023565.96 | F18: 2446792.07 | G18: 181226166.4 | H18: 20741918.93 | I18: 114428734.8 | J18: 1298999.82 | K18: 0 | L18: 7652354.85 | M18: 9408482.043 | N18: 0 | O18: 0 | P18: 0 | Q18: 0 | R18: 0 | S18: 0 | T18: 0 | U18: 753918.35 | V18: 794300 | W18: 0 | X18: 0 | Y18: 0 | Z18: 203550.68 | AA18: 0 | AB18: 0 | AC18: 0 | AD18: 25761521 | AE18: 51810315.27 | AF18: 0 | AG18: 2446792.07 | AH18: 0 | AI18: 0 | AJ18: 0 | AK18: 1396041 | AL18: 179830125.4 | AM18: 0 | AN18: 3759313.9 | AO18: 16773637.33 | AP18: 208967.7 | AQ18: 0 | AR18: 0 | AS18: 0 | AT18: 0 | AU18: 7652354.85 | AV18: 0 | AW18: 0
A19: AB110900 | B19: Clearing accounts | C19: 0 | D19: 0 | E19: 0 | F19: 0 | G19: 0 | H19: 0 | I19: 0 | J19: 0 | K19: 0 | L19: 0 | M19: 0 | N19: 0 | O19: 0 | P19: 0 | Q19: 0 | R19: 0 | S19: 0 | T19: 0 | U19: 0 | V19: 0 | W19: 0 | X19: 0 | Y19: 0 | Z19: 0 | AA19: 0 | AB19: 0 | AC19: 0 | AD19: 0 | AE19: 0 | AF19: 0 | AG19: 0 | AH19: 0 | AI19: 0 | AJ19: 0 | AK19: 0 | AL19: 0 | AM19: 0 | AN19: 0 | AO19: 0 | AP19: 0 | AQ19: 0 | AR19: 0 | AS19: 0 | AT19: 0 | AU19: 0 | AV19: 0 | AW19: 0
A20: AB120000 | B20: PPE : Accumulated depreciation | C20: -1.437759805e+10 | D20: -38222915.3 | E20: -13846995.96 | F20: -1569538738 | G20: -1379241687 | H20: -2606970516 | I20: -116067059 | J20: -9716395.92 | K20: -38860148.64 | L20: -3167041012 | M20: -1847346850 | N20: 0 | O20: 0 | P20: 0 | Q20: 0 | R20: 0 | S20: 0 | T20: 0 | U20: -753918.35 | V20: 0 | W20: 0 | X20: 0 | Y20: 0 | Z20: -94280 | AA20: 0 | AB20: 0 | AC20: 0 | AD20: -318540592.2 | AE20: -3271356943 | AF20: 0 | AG20: -1569538738 | AH20: 0 | AI20: 0 | AJ20: 0 | AK20: 0 | AL20: -1379241687 | AM20: 0 | AN20: -58875.46 | AO20: -2606911641 | AP20: 0 | AQ20: 0 | AR20: 0 | AS20: 0 | AT20: 0 | AU20: -3167041012 | AV20: 0 | AW20: 0
A21: AB120100 | B21: Acc depr : Mining assets | C21: -1.389578609e+10 | D21: -38222915.3 | E21: 0 | F21: -1569217835 | G21: -1211798185 | H21: -2606865761 | I21: -1634449 | J21: -8418349.94 | K21: -38860148.64 | L21: -3130847678 | M21: -1834804863 | N21: 0 | O21: 0 | P21: 0 | Q21: 0 | R21: 0 | S21: 0 | T21: 0 | U21: 0 | V21: 0 | W21: 0 | X21: 0 | Y21: 0 | Z21: 0 | AA21: 0 | AB21: 0 | AC21: 0 | AD21: -228584786.2 | AE21: -3226531123 | AF21: 0 | AG21: -1569217835 | AH21: 0 | AI21: 0 | AJ21: 0 | AK21: 0 | AL21: -1211798185 | AM21: 0 | AN21: 0 | AO21: -2606865761 | AP21: 0 | AQ21: 0 | AR21: 0 | AS21: 0 | AT21: 0 | AU21: -3130847678 | AV21: 0 | AW21: 0
A22: AB120110 | B22: Acc depr : Mine assets | C22: -8326695272 | D22: -38222915.3 | E22: 0 | F22: -1447321237 | G22: -560075347.1 | H22: -1708593162 | I22: -1634449 | J22: -8418349.94 | K22: -38859166.64 | L22: -2025243118 | M22: -323162345.9 | N22: 0 | O22: 0 | P22: 0 | Q22: 0 | R22: 0 | S22: 0 | T22: 0 | U22: 0 | V22: 0 | W22: 0 | X22: 0 | Y22: 0 | Z22: 0 | AA22: 0 | AB22: 0 | AC22: 0 | AD22: -218067091.6 | AE22: -1957098089 | AF22: 0 | AG22: -1447321237 | AH22: 0 | AI22: 0 | AJ22: 0 | AK22: 0 | AL22: -560075347.1 | AM22: 0 | AN22: 0 | AO22: -1708593162 | AP22: 0 | AQ22: 0 | AR22: 0 | AS22: 0 | AT22: 0 | AU22: -2025243118 | AV22: 0 | AW22: 0
A23: AB120120 | B23: Acc depr : Rehab assets | C23: -187374628 | D23: 0 | E23: 0 | F23: -12101875.02 | G23: -10570545.25 | H23: -23452573.17 | I23: 0 | J23: 0 | K23: -982 | L23: -24757858.44 | M23: -8440766.674 | N23: 0 | O23: 0 | P23: 0 | Q23: 0 | R23: 0 | S23: 0 | T23: 0 | U23: 0 | V23: 0 | W23: 0 | X23: 0 | Y23: 0 | Z23: 0 | AA23: 0 | AB23: 0 | AC23: 0 | AD23: -4530126.91 | AE23: -103519900.6 | AF23: 0 | AG23: -12101875.02 | AH23: 0 | AI23: 0 | AJ23: 0 | AK23: 0 | AL23: -10570545.25 | AM23: 0 | AN23: 0 | AO23: -23452573.17 | AP23: 0 | AQ23: 0 | AR23: 0 | AS23: 0 | AT23: 0 | AU23: -24757858.44 | AV23: 0 | AW23: 0
A24: AB120130 | B24: Acc depr : Capital development | C24: -5373712634 | D24: 0 | E24: 0 | F24: -109794723 | G24: -641152292.9 | H24: -874820025.7 | I24: 0 | J24: 0 | K24: 0 | L24: -1080846701 | M24: -1495198190 | N24: 0 | O24: 0 | P24: 0 | Q24: 0 | R24: 0 | S24: 0 | T24: 0 | U24: 0 | V24: 0 | W24: 0 | X24: 0 | Y24: 0 | Z24: 0 | AA24: 0 | AB24: 0 | AC24: 0 | AD24: -5987567.72 | AE24: -1165913133 | AF24: 0 | AG24: -109794723 | AH24: 0 | AI24: 0 | AJ24: 0 | AK24: 0 | AL24: -641152292.9 | AM24: 0 | AN24: 0 | AO24: -874820025.7 | AP24: 0 | AQ24: 0 | AR24: 0 | AS24: 0 | AT24: 0 | AU24: -1080846701 | AV24: 0 | AW24: 0
A25: AB120190 | B25: Acc depr : Other | C25: -8003560.079 | D25: 0 | E25: 0 | F25: 0 | G25: 0 | H25: 0 | I25: 0 | J25: 0 | K25: 0 | L25: 0 | M25: -8003560.079 | N25: 0 | O25: 0 | P25: 0 | Q25: 0 | R25: 0 | S25: 0 | T25: 0 | U25: 0 | V25: 0 | W25: 0 | X25: 0 | Y25: 0 | Z25: 0 | AA25: 0 | AB25: 0 | AC25: 0 | AD25: 0 | AE25: 0 | AF25: 0 | AG25: 0 | AH25: 0 | AI25: 0 | AJ25: 0 | AK25: 0 | AL25: 0 | AM25: 0 | AN25: 0 | AO25: 0 | AP25: 0 | AQ25: 0 | AR25: 0 | AS25: 0 | AT25: 0 | AU25: 0 | AV25: 0 | AW25: 0
A26: AB120200 | B26: Acc depr : Mining assets under construction | C26: -5677748.749 | D26: 0 | E26: 0 | F26: 0 | G26: 0 | H26: 0 | I26: 0 | J26: 0 | K26: 0 | L26: 0 | M26: -5677748.749 | N26: 0 | O26: 0 | P26: 0 | Q26: 0 | R26: 0 | S26: 0 | T26: 0 | U26: 0 | V26: 0 | W26: 0 | X26: 0 | Y26: 0 | Z26: 0 | AA26: 0 | AB26: 0 | AC26: 0 | AD26: 0 | AE26: 0 | AF26: 0 | AG26: 0 | AH26: 0 | AI26: 0 | AJ26: 0 | AK26: 0 | AL26: 0 | AM26: 0 | AN26: 0 | AO26: 0 | AP26: 0 | AQ26: 0 | AR26: 0 | AS26: 0 | AT26: 0 | AU26: 0 | AV26: 0 | AW26: 0
A27: AB120300 | B27: Acc depr : Undeveloped property | C27: -47392921.3 | D27: 0 | E27: 0 | F27: 0 | G27: -14630629.1 | H27: 0 | I27: 0 | J27: 0 | K27: 0 | L27: -32762292.2 | M27: 0 | N27: 0 | O27: 0 | P27: 0 | Q27: 0 | R27: 0 | S27: 0 | T27: 0 | U27: 0 | V27: 0 | W27: 0 | X27: 0 | Y27: 0 | Z27: 0 | AA27: 0 | AB27: 0 | AC27: 0 | AD27: 0 | AE27: 0 | AF27: 0 | AG27: 0 | AH27: 0 | AI27: 0 | AJ27: 0 | AK27: 0 | AL27: -14630629.1 | AM27: 0 | AN27: 0 | AO27: 0 | AP27: 0 | AQ27: 0 | AR27: 0 | AS27: 0 | AT27: 0 | AU27: -32762292.2 | AV27: 0 | AW27: 0
A28: AB120400 | B28: Acc depr : Deferred stripping | C28: -64590951.62 | D28: 0 | E28: 0 | F28: 0 | G28: 0 | H28: 0 | I28: 0 | J28: 0 | K28: 0 | L28: 0 | M28: 0 | N28: 0 | O28: 0 | P28: 0 | Q28: 0 | R28: 0 | S28: 0 | T28: 0 | U28: 0 | V28: 0 | W28: 0 | X28: 0 | Y28: 0 | Z28: 0 | AA28: 0 | AB28: 0 | AC28: 0 | AD28: -64590951.62 | AE28: 0 | AF28: 0 | AG28: 0 | AH28: 0 | AI28: 0 | AJ28: 0 | AK28: 0 | AL28: 0 | AM28: 0 | AN28: 0 | AO28: 0 | AP28: 0 | AQ28: 0 | AR28: 0 | AS28: 0 | AT28: 0 | AU28: 0 | AV28: 0 | AW28: 0
A29: AB120800 | B29: Acc depr : Other non-mining | C29: -364150335.5 | D29: 0 | E29: -13846995.96 | F29: -320902.86 | G29: -152812872.8 | H29: -104755.46 | I29: -114432610 | J29: -1298045.98 | K29: 0 | L29: -3431041.99 | M29: -6864238.252 | N29: 0 | O29: 0 | P29: 0 | Q29: 0 | R29: 0 | S29: 0 | T29: 0 | U29: -753918.35 | V29: 0 | W29: 0 | X29: 0 | Y29: 0 | Z29: -94280 | AA29: 0 | AB29: 0 | AC29: 0 | AD29: -25364854.34 | AE29: -44825819.53 | AF29: 0 | AG29: -320902.86 | AH29: 0 | AI29: 0 | AJ29: 0 | AK29: 0 | AL29: -152812872.8 | AM29: 0 | AN29: -58875.46 | AO29: -45880 | AP29: 0 | AQ29: 0 | AR29: 0 | AS29: 0 | AT29: 0 | AU29: -3431041.99 | AV29: 0 | AW29: 0
A30: AB200000 | B30: Intangible assets | C30: 2184851758 | D30: 0 | E30: 0 | F30: 0 | G30: 0 | H30: 0 | I30: 0 | J30: 0 | K30: 0 | L30: 2162103251 | M30: 0 | N30: 0 | O30: 0 | P30: 0 | Q30: 0 | R30: 0 | S30: 0 | T30: 0 | U30: 0 | V30: 0 | W30: 0 | X30: 0 | Y30: 0 | Z30: 1203321.14 | AA30: 0 | AB30: 0 | AC30: 0 | AD30: 0 | AE30: 21545186.16 | AF30: 0 | AG30: 0 | AH30: 0 | AI30: 0 | AJ30: 0 | AK30: 0 | AL30: 0 | AM30: 0 | AN30: 0 | AO30: 0 | AP30: 0 | AQ30: 0 | AR30: 0 | AS30: 0 | AT30: 0 | AU30: -210102158.1 | AV30: 0 | AW30: 0
A31: AB210000 | B31: Intangible Assets : Cost | C31: 2504232771 | D31: 0 | E31: 0 | F31: 0 | G31: 0 | H31: 0 | I31: 0 | J31: 0 | K31: 0 | L31: 2372205409 | M31: 0 | N31: 0 | O31: 0 | P31: 0 | Q31: 0 | R31: 0 | S31: 0 | T31: 0 | U31: 0 | V31: 0 | W31: 0 | X31: 0 | Y31: 0 | Z31: 1203321.14 | AA31: 0 | AB31: 0 | AC31: 0 | AD31: 0 | AE31: 130824040.8 | AF31: 0 | AG31: 0 | AH31: 0 | AI31: 0 | AJ31: 0 | AK31: 0 | AL31: 0 | AM31: 0 | AN31: 0 | AO31: 0 | AP31: 0 | AQ31: 0 | AR31: 0 | AS31: 0 | AT31: 0 | AU31: 0 | AV31: 0 | AW31: 0
A32: AB210100 | B32: Cost : Goodwill | C32: 2373408730 | D32: 0 | E32: 0 | F32: 0 | G32: 0 | H32: 0 | I32: 0 | J32: 0 | K32: 0 | L32: 2372205409 | M32: 0 | N32: 0 | O32: 0 | P32: 0 | Q32: 0 | R32: 0 | S32: 0 | T32: 0 | U32: 0 | V32: 0 | W32: 0 | X32: 0 | Y32: 0 | Z32: 1203321.14 | AA32: 0 | AB32: 0 | AC32: 0 | AD32: 0 | AE32: 0 | AF32: 0 | AG32: 0 | AH32: 0 | AI32: 0 | AJ32: 0 | AK32: 0 | AL32: 0 | AM32: 0 | AN32: 0 | AO32: 0 | AP32: 0 | AQ32: 0 | AR32: 0 | AS32: 0 | AT32: 0 | AU32: 0 | AV32: 0 | AW32: 0
A33: AB210900 | B33: Cost : Other | C33: 130824040.8 | D33: 0 | E33: 0 | F33: 0 | G33: 0 | H33: 0 | I33: 0 | J33: 0 | K33: 0 | L33: 0 | M33: 0 | N33: 0 | O33: 0 | P33: 0 | Q33: 0 | R33: 0 | S33: 0 | T33: 0 | U33: 0 | V33: 0 | W33: 0 | X33: 0 | Y33: 0 | Z33: 0 | AA33: 0 | AB33: 0 | AC33: 0 | AD33: 0 | AE33: 130824040.8 | AF33: 0 | AG33: 0 | AH33: 0 | AI33: 0 | AJ33: 0 | AK33: 0 | AL33: 0 | AM33: 0 | AN33: 0 | AO33: 0 | AP33: 0 | AQ33: 0 | AR33: 0 | AS33: 0 | AT33: 0 | AU33: 0 | AV33: 0 | AW33: 0
A34: AB220000 | B34: Intangible Assets : Acccumulated depreciation | C34: -319381012.7 | D34: 0 | E34: 0 | F34: 0 | G34: 0 | H34: 0 | I34: 0 | J34: 0 | K34: 0 | L34: -210102158.1 | M34: 0 | N34: 0 | O34: 0 | P34: 0 | Q34: 0 | R34: 0 | S34: 0 | T34: 0 | U34: 0 | V34: 0 | W34: 0 | X34: 0 | Y34: 0 | Z34: 0 | AA34: 0 | AB34: 0 | AC34: 0 | AD34: 0 | AE34: -109278854.6 | AF34: 0 | AG34: 0 | AH34: 0 | AI34: 0 | AJ34: 0 | AK34: 0 | AL34: 0 | AM34: 0 | AN34: 0 | AO34: 0 | AP34: 0 | AQ34: 0 | AR34: 0 | AS34: 0 | AT34: 0 | AU34: -210102158.1 | AV34: 0 | AW34: 0
A35: AB220100 | B35: Acc depr : Goodwill | C35: -210102158.1 | D35: 0 | E35: 0 | F35: 0 | G35: 0 | H35: 0 | I35: 0 | J35: 0 | K35: 0 | L35: -210102158.1 | M35: 0 | N35: 0 | O35: 0 | P35: 0 | Q35: 0 | R35: 0 | S35: 0 | T35: 0 | U35: 0 | V35: 0 | W35: 0 | X35: 0 | Y35: 0 | Z35: 0 | AA35: 0 | AB35: 0 | AC35: 0 | AD35: 0 | AE35: 0 | AF35: 0 | AG35: 0 | AH35: 0 | AI35: 0 | AJ35: 0 | AK35: 0 | AL35: 0 | AM35: 0 | AN35: 0 | AO35: 0 | AP35: 0 | AQ35: 0 | AR35: 0 | AS35: 0 | AT35: 0 | AU35: -210102158.1 | AV35: 0 | AW35: 0
A36: AB220900 | B36: Acc depr : Other | C36: -109278854.6 | D36: 0 | E36: 0 | F36: 0 | G36: 0 | H36: 0 | I36: 0 | J36: 0 | K36: 0 | L36: 0 | M36: 0 | N36: 0 | O36: 0 | P36: 0 | Q36: 0 | R36: 0 | S36: 0 | T36: 0 | U36: 0 | V36: 0 | W36: 0 | X36: 0 | Y36: 0 | Z36: 0 | AA36: 0 | AB36: 0 | AC36: 0 | AD36: 0 | AE36: -109278854.6 | AF36: 0 | AG36: 0 | AH36: 0 | AI36: 0 | AJ36: 0 | AK36: 0 | AL36: 0 | AM36: 0 | AN36: 0 | AO36: 0 | AP36: 0 | AQ36: 0 | AR36: 0 | AS36: 0 | AT36: 0 | AU36: 0 | AV36: 0 | AW36: 0
A37: AB310000 | B37: Restricted cash | C37: 25805438.78 | D37: 0 | E37: 0 | F37: 0 | G37: 0 | H37: 0 | I37: 0 | J37: 0 | K37: 0 | L37: 0 | M37: 3759474.78 | N37: 0 | O37: 0 | P37: 0 | Q37: 0 | R37: 0 | S37: 0 | T37: 0 | U37: 0 | V37: 0 | W37: 0 | X37: 0 | Y37: 0 | Z37: 0 | AA37: 0 | AB37: 0 | AC37: 0 | AD37: 0 | AE37: 22045964 | AF37: 0 | AG37: 0 | AH37: 0 | AI37: 0 | AJ37: 0 | AK37: 0 | AL37: 0 | AM37: 0 | AN37: 0 | AO37: 0 | AP37: 0 | AQ37: 0 | AR37: 0 | AS37: 0 | AT37: 0 | AU37: 0 | AV37: 0 | AW37: 0
A38: AB320000 | B38: Restricted investments | C38: 1897192434 | D38: 0 | E38: 0 | F38: 50725394.32 | G38: 175473821.5 | H38: 173056547.8 | I38: 0 | J38: 0 | K38: 55417510.61 | L38: 1135703080 | M38: 0 | N38: 0 | O38: 0 | P38: 0 | Q38: 0 | R38: 0 | S38: 0 | T38: 0 | U38: 0 | V38: 0 | W38: 0 | X38: 0 | Y38: 0 | Z38: 0 | AA38: 0 | AB38: 0 | AC38: 0 | AD38: 25591316.13 | AE38: 281224763.4 | AF38: 0 | AG38: 50725394.32 | AH38: 0 | AI38: 0 | AJ38: 0 | AK38: 0 | AL38: 175473821.5 | AM38: 0 | AN38: 0 | AO38: 173056547.8 | AP38: 0 | AQ38: 0 | AR38: 0 | AS38: 0 | AT38: 0 | AU38: 1135703080 | AV38: 0 | AW38: 0
A39: AB320100 | B39: Environmental trust | C39: 1862415695 | D39: 0 | E39: 0 | F39: 50725394.32 | G39: 175473821.5 | H39: 173056547.8 | I39: 0 | J39: 0 | K39: 55417510.61 | L39: 1135703080 | M39: 0 | N39: 0 | O39: 0 | P39: 0 | Q39: 0 | R39: 0 | S39: 0 | T39: 0 | U39: 0 | V39: 0 | W39: 0 | X39: 0 | Y39: 0 | Z39: 0 | AA39: 0 | AB39: 0 | AC39: 0 | AD39: 25591316.13 | AE39: 246448024.4 | AF39: 0 | AG39: 50725394.32 | AH39: 0 | AI39: 0 | AJ39: 0 | AK39: 0 | AL39: 175473821.5 | AM39: 0 | AN39: 0 | AO39: 173056547.8 | AP39: 0 | AQ39: 0 | AR39: 0 | AS39: 0 | AT39: 0 | AU39: 1135703080 | AV39: 0 | AW39: 0
A40: AB320900 | B40: Other : Restricted investments | C40: 34776738.98 | D40: 0 | E40: 0 | F40: 0 | G40: 0 | H40: 0 | I40: 0 | J40: 0 | K40: 0 | L40: 0 | M40: 0 | N40: 0 | O40: 0 | P40: 0 | Q40: 0 | R40: 0 | S40: 0 | T40: 0 | U40: 0 | V40: 0 | W40: 0 | X40: 0 | Y40: 0 | Z40: 0 | AA40: 0 | AB40: 0 | AC40: 0 | AD40: 0 | AE40: 34776738.98 | AF40: 0 | AG40: 0 | AH40: 0 | AI40: 0 | AJ40: 0 | AK40: 0 | AL40: 0 | AM40: 0 | AN40: 0 | AO40: 0 | AP40: 0 | AQ40: 0 | AR40: 0 | AS40: 0 | AT40: 0 | AU40: 0 | AV40: 0 | AW40: 0
A41: AB511000 | B41: Investments in financial assets | C41: 243646778.3 | D41: 0 | E41: 0 | F41: 4552881.2 | G41: 370394.2 | H41: 200011.2 | I41: 2 | J41: 0 | K41: 0 | L41: 235886842.6 | M41: 0 | N41: 0 | O41: 0 | P41: 0 | Q41: 0 | R41: 0 | S41: 0 | T41: 0 | U41: 0 | V41: 0 | W41: 0 | X41: 0 | Y41: 0 | Z41: 0 | AA41: 0 | AB41: 0 | AC41: 0 | AD41: 392.8 | AE41: 2636254.35 | AF41: 0 | AG41: 4552881.2 | AH41: 0 | AI41: 0 | AJ41: 0 | AK41: 0 | AL41: 370394.2 | AM41: 0 | AN41: 0 | AO41: 200011.2 | AP41: 0 | AQ41: 0 | AR41: 0 | AS41: 0 | AT41: 0 | AU41: 235886842.6 | AV41: 0 | AW41: 0
A42: AB511100 | B42: Listed investments | C42: 235876856.6 | D42: 0 | E42: 0 | F42: 0 | G42: 0 | H42: 0 | I42: 0 | J42: 0 | K42: 0 | L42: 235876856.6 | M42: 0 | N42: 0 | O42: 0 | P42: 0 | Q42: 0 | R42: 0 | S42: 0 | T42: 0 | U42: 0 | V42: 0 | W42: 0 | X42: 0 | Y42: 0 | Z42: 0 | AA42: 0 | AB42: 0 | AC42: 0 | AD42: 0 | AE42: 0 | AF42: 0 | AG42: 0 | AH42: 0 | AI42: 0 | AJ42: 0 | AK42: 0 | AL42: 0 | AM42: 0 | AN42: 0 | AO42: 0 | AP42: 0 | AQ42: 0 | AR42: 0 | AS42: 0 | AT42: 0 | AU42: 235876856.6 | AV42: 0 | AW42: 0
A43: AB511200 | B43: Unlisted investments | C43: 7769921.75 | D43: 0 | E43: 0 | F43: 4552881.2 | G43: 370394.2 | H43: 200011.2 | I43: 2 | J43: 0 | K43: 0 | L43: 9986 | M43: 0 | N43: 0 | O43: 0 | P43: 0 | Q43: 0 | R43: 0 | S43: 0 | T43: 0 | U43: 0 | V43: 0 | W43: 0 | X43: 0 | Y43: 0 | Z43: 0 | AA43: 0 | AB43: 0 | AC43: 0 | AD43: 392.8 | AE43: 2636254.35 | AF43: 0 | AG43: 4552881.2 | AH43: 0 | AI43: 0 | AJ43: 0 | AK43: 0 | AL43: 370394.2 | AM43: 0 | AN43: 0 | AO43: 200011.2 | AP43: 0 | AQ43: 0 | AR43: 0 | AS43: 0 | AT43: 0 | AU43: 9986 | AV43: 0 | AW43: 0
A44: AB512000 | B44: Investments in associates - other | C44: 9.52 | D44: 0 | E44: 0 | F44: 0 | G44: 0 | H44: 0 | I44: 0 | J44: 0 | K44: 0 | L44: 0 | M44: 0 | N44: 0 | O44: 0 | P44: 0 | Q44: 0 | R44: 0 | S44: 0 | T44: 0 | U44: 9.52 | V44: 0 | W44: 0 | X44: 0 | Y44: 0 | Z44: 0 | AA44: 0 | AB44: 0 | AC44: 0 | AD44: 0 | AE44: 0 | AF44: 0 | AG44: 0 | AH44: 0 | AI44: 0 | AJ44: 0 | AK44: 0 | AL44: 0 | AM44: 0 | AN44: 0 | AO44: 0 | AP44: 0 | AQ44: 0 | AR44: 0 | AS44: 0 | AT44: 0 | AU44: 0 | AV44: 0 | AW44: 0
A45: AB512010 | B45: Rand Uranium | C45: 9.52 | D45: 0 | E45: 0 | F45: 0 | G45: 0 | H45: 0 | I45: 0 | J45: 0 | K45: 0 | L45: 0 | M45: 0 | N45: 0 | O45: 0 | P45: 0 | Q45: 0 | R45: 0 | S45: 0 | T45: 0 | U45: 9.52 | V45: 0 | W45: 0 | X45: 0 | Y45: 0 | Z45: 0 | AA45: 0 | AB45: 0 | AC45: 0 | AD45: 0 | AE45: 0 | AF45: 0 | AG45: 0 | AH45: 0 | AI45: 0 | AJ45: 0 | AK45: 0 | AL45: 0 | AM45: 0 | AN45: 0 | AO45: 0 | AP45: 0 | AQ45: 0 | AR45: 0 | AS45: 0 | AT45: 0 | AU45: 0 | AV45: 0 | AW45: 0
A46: AB512990 | B46: Other : Investment in associates | C46: 0 | D46: 0 | E46: 0 | F46: 0 | G46: 0 | H46: 0 | I46: 0 | J46: 0 | K46: 0 | L46: 0 | M46: 0 | N46: 0 | O46: 0 | P46: 0 | Q46: 0 | R46: 0 | S46: 0 | T46: 0 | U46: 0 | V46: 0 | W46: 0 | X46: 0 | Y46: 0 | Z46: 0 | AA46: 0 | AB46: 0 | AC46: 0 | AD46: 0 | AE46: 0 | AF46: 0 | AG46: 0 | AH46: 0 | AI46: 0 | AJ46: 0 | AK46: 0 | AL46: 0 | AM46: 0 | AN46: 0 | AO46: 0 | AP46: 0 | AQ46: 0 | AR46: 0 | AS46: 0 | AT46: 0 | AU46: 0 | AV46: 0 | AW46: 0
A47: AB513000 | B47: Investments in joint ventures - other | C47: 0 | D47: 0 | E47: 0 | F47: 0 | G47: 0 | H47: 0 | I47: 0 | J47: 0 | K47: 0 | L47: 0 | M47: 0 | N47: 0 | O47: 0 | P47: 0 | Q47: 0 | R47: 0 | S47: 0 | T47: 0 | U47: 0 | V47: 0 | W47: 0 | X47: 0 | Y47: 0 | Z47: 0 | AA47: 0 | AB47: 0 | AC47: 0 | AD47: 0 | AE47: 0 | AF47: 0 | AG47: 0 | AH47: 0 | AI47: 0 | AJ47: 0 | AK47: 0 | AL47: 0 | AM47: 0 | AN47: 0 | AO47: 0 | AP47: 0 | AQ47: 0 | AR47: 0 | AS47: 0 | AT47: 0 | AU47: 0 | AV47: 0 | AW47: 0
A48: AB514000 | B48: Investment in subsidiaries | C48: 53342.135 | D48: 0 | E48: 0 | F48: 0.2 | G48: 0 | H48: 0.2 | I48: 0.2 | J48: 0 | K48: -1 | L48: 0.2 | M48: 53342.135 | N48: 0 | O48: 0 | P48: 0 | Q48: 0 | R48: 0 | S48: 0 | T48: 0 | U48: 0.2 | V48: 0 | W48: 0 | X48: 0 | Y48: 0 | Z48: 0 | AA48: 0 | AB48: 0 | AC48: 0 | AD48: 0 | AE48: 0 | AF48: 0 | AG48: 0.2 | AH48: 0 | AI48: 0 | AJ48: 0 | AK48: 0 | AL48: 0 | AM48: 0 | AN48: 0 | AO48: 0.2 | AP48: 0 | AQ48: 0 | AR48: 0 | AS48: 0 | AT48: 0 | AU48: 0.2 | AV48: 0 | AW48: 0
A49: AB521000 | B49: Loans to subsidiaries | C49: 0 | D49: 0 | E49: 0 | F49: 0 | G49: 0 | H49: 0 | I49: 0 | J49: 0 | K49: 0 | L49: 0 | M49: 0 | N49: 0 | O49: 0 | P49: 0 | Q49: 0 | R49: 0 | S49: 0 | T49: 0 | U49: 0 | V49: 0 | W49: 0 | X49: 0 | Y49: 0 | Z49: 0 | AA49: 0 | AB49: 0 | AC49: 0 | AD49: 0 | AE49: 0 | AF49: 0 | AG49: 23805796.5 | AH49: 0 | AI49: 0 | AJ49: 0 | AK49: 10453.64 | AL49: -596850186.4 | AM49: 0 | AN49: 3155703.02 | AO49: 354196370.2 | AP49: 0.01 | AQ49: 0 | AR49: 0 | AS49: 0 | AT49: 0 | AU49: 119460778.9 | AV49: 303794953.4 | AW49: 0
A50: AB711000 | B50: Deferred income tax | C50: 2375869110 | D50: 0 | E50: 0 | F50: 0 | G50: 69072330.27 | H50: 28161495.27 | I50: 0 | J50: 0 | K50: 2 | L50: 839209047.3 | M50: 1352435382 | N50: 0 | O50: 0 | P50: 0 | Q50: 0 | R50: 0 | S50: 0 | T50: 0 | U50: 0 | V50: 0 | W50: 0 | X50: 0 | Y50: 0 | Z50: 0 | AA50: 0 | AB50: 0 | AC50: 0 | AD50: 5853298 | AE50: 81137555.32 | AF50: 0 | AG50: 0 | AH50: 0 | AI50: 0 | AJ50: 0 | AK50: 0 | AL50: 69072330.27 | AM50: 0 | AN50: 0 | AO50: 28161495.27 | AP50: 0 | AQ50: 0 | AR50: 0 | AS50: 0 | AT50: 0 | AU50: 839209047.3 | AV50: 0 | AW50: 0
A51: AB911000 | B51: Trade and other receivables | C51: 67363658.5 | D51: 0 | E51: 0 | F51: 246042.9 | G51: -1 | H51: 2754839.73 | I51: 0 | J51: 0 | K51: 0 | L51: 0 | M51: 0 | N51: 0 | O51: 0 | P51: 0 | Q51: 0 | R51: 0 | S51: 0 | T51: 0 | U51: 61778518.9 | V51: 0 | W51: 0 | X51: 0 | Y51: 0 | Z51: 0 | AA51: 0 | AB51: 0 | AC51: 0 | AD51: 0 | AE51: 2584257.97 | AF51: 0 | AG51: 246042.9 | AH51: 0 | AI51: 0 | AJ51: 0 | AK51: 0 | AL51: -1 | AM51: 0 | AN51: 0 | AO51: 2754839.73 | AP51: 0 | AQ51: 0 | AR51: 0 | AS51: 0 | AT51: 0 | AU51: 0 | AV51: 0 | AW51: 0
A52: AB911100 | B52: Sub-ordinated loan Rand Uranium | C52: 61778518.9 | D52: 0 | E52: 0 | F52: 0 | G52: 0 | H52: 0 | I52: 0 | J52: 0 | K52: 0 | L52: 0 | M52: 0 | N52: 0 | O52: 0 | P52: 0 | Q52: 0 | R52: 0 | S52: 0 | T52: 0 | U52: 61778518.9 | V52: 0 | W52: 0 | X52: 0 | Y52: 0 | Z52: 0 | AA52: 0 | AB52: 0 | AC52: 0 | AD52: 0 | AE52: 0 | AF52: 0 | AG52: 0 | AH52: 0 | AI52: 0 | AJ52: 0 | AK52: 0 | AL52: 0 | AM52: 0 | AN52: 0 | AO52: 0 | AP52: 0 | AQ52: 0 | AR52: 0 | AS52: 0 | AT52: 0 | AU52: 0 | AV52: 0 | AW52: 0
A53: AB911200 | B53: Provisions for irrecoverable loans | C53: -116345960.8 | D53: 0 | E53: 0 | F53: 0 | G53: 0 | H53: -410391.15 | I53: 0 | J53: 0 | K53: 0 | L53: 0 | M53: 0 | N53: 0 | O53: 0 | P53: 0 | Q53: 0 | R53: 0 | S53: 0 | T53: 0 | U53: 0 | V53: 0 | W53: 0 | X53: 0 | Y53: 0 | Z53: 0 | AA53: 0 | AB53: 0 | AC53: 0 | AD53: 0 | AE53: -115935569.7 | AF53: 0 | AG53: 0 | AH53: 0 | AI53: 0 | AJ53: 0 | AK53: 0 | AL53: 0 | AM53: 0 | AN53: -410391.15 | AO53: 0 | AP53: 0 | AQ53: 0 | AR53: 0 | AS53: 0 | AT53: 0 | AU53: 0 | AV53: 0 | AW53: 0
A54: AB911900 | B54: Other : Trade and receivables | C54: 121931100.4 | D54: 0 | E54: 0 | F54: 246042.9 | G54: -1 | H54: 3165230.88 | I54: 0 | J54: 0 | K54: 0 | L54: 0 | M54: 0 | N54: 0 | O54: 0 | P54: 0 | Q54: 0 | R54: 0 | S54: 0 | T54: 0 | U54: 0 | V54: 0 | W54: 0 | X54: 0 | Y54: 0 | Z54: 0 | AA54: 0 | AB54: 0 | AC54: 0 | AD54: 0 | AE54: 118519827.6 | AF54: 0 | AG54: 246042.9 | AH54: 0 | AI54: 0 | AJ54: 0 | AK54: 0 | AL54: -1 | AM54: 0 | AN54: 410391.15 | AO54: 2754839.73 | AP54: 0 | AQ54: 0 | AR54: 0 | AS54: 0 | AT54: 0 | AU54: 0 | AV54: 0 | AW54: 0
A55: AB921000 | B55: Inventories | C55: 228036137.7 | D55: 228036137.7 | E55: 0 | F55: 0 | G55: 0 | H55: 0 | I55: 0 | J55: 0 | K55: 0 | L55: 0 | M55: 0 | N55: 0 | O55: 0 | P55: 0 | Q55: 0 | R55: 0 | S55: 0 | T55: 0 | U55: 0 | V55: 0 | W55: 0 | X55: 0 | Y55: 0 | Z55: 0 | AA55: 0 | AB55: 0 | AC55: 0 | AD55: 0 | AE55: 0 | AF55: 0 | AG55: 0 | AH55: 0 | AI55: 0 | AJ55: 0 | AK55: 0 | AL55: 0 | AM55: 0 | AN55: 0 | AO55: 0 | AP55: 0 | AQ55: 0 | AR55: 0 | AS55: 0 | AT55: 0 | AU55: 0 | AV55: 0 | AW55: 0
A56: AB921900 | B56: Other : Inventories | C56: 228036137.7 | D56: 228036137.7 | E56: 0 | F56: 0 | G56: 0 | H56: 0 | I56: 0 | J56: 0 | K56: 0 | L56: 0 | M56: 0 | N56: 0 | O56: 0 | P56: 0 | Q56: 0 | R56: 0 | S56: 0 | T56: 0 | U56: 0 | V56: 0 | W56: 0 | X56: 0 | Y56: 0 | Z56: 0 | AA56: 0 | AB56: 0 | AC56: 0 | AD56: 0 | AE56: 0 | AF56: 0 | AG56: 0 | AH56: 0 | AI56: 0 | AJ56: 0 | AK56: 0 | AL56: 0 | AM56: 0 | AN56: 0 | AO56: 0 | AP56: 0 | AQ56: 0 | AR56: 0 | AS56: 0 | AT56: 0 | AU56: 0 | AV56: 0 | AW56: 0
A57: AC000000 | B57: Current assets | C57: 3204918507 | D57: -209830502.7 | E57: 1250555.81 | F57: 156099681.4 | G57: 328500283.8 | H57: 39194914.16 | I57: 90566285.81 | J57: 50.82 | K57: 22436506.29 | L57: 209186141.6 | M57: 609335777.1 | N57: 0 | O57: 0.08 | P57: 0 | Q57: 498.48 | R57: 0 | S57: 293687.12 | T57: 1903341.46 | U57: 173311535.7 | V57: 0 | W57: 50628.19 | X57: 0 | Y57: 0 | Z57: 4699725.97 | AA57: 0 | AB57: 0 | AC57: 0 | AD57: 82628135.36 | AE57: 1695291261 | AF57: 0 | AG57: 156099681.4 | AH57: 0 | AI57: 0 | AJ57: 0 | AK57: 16625 | AL57: 328483658.8 | AM57: 0 | AN57: 145204.89 | AO57: 38990509.35 | AP57: 59199.92 | AQ57: 0 | AR57: 0 | AS57: 0 | AT57: 0 | AU57: 195231746.6 | AV57: 13954394.99 | AW57: 0
A58: AC100000 | B58: Inventories | C58: 905610387.2 | D58: -311256790.7 | E58: 503832.22 | F58: 135731321.3 | G58: 163692971.5 | H58: 99116834.33 | I58: 0 | J58: 0 | K58: 0 | L58: 125826686.8 | M58: 345002659 | N58: 0 | O58: 0 | P58: 0 | Q58: 0 | R58: 0 | S58: 170014.38 | T58: 0 | U58: 0 | V58: 0 | W58: 0 | X58: 0 | Y58: 0 | Z58: 4476469.16 | AA58: 0 | AB58: 0 | AC58: 0 | AD58: 74951886.78 | AE58: 267394502.5 | AF58: 0 | AG58: 135731321.3 | AH58: 0 | AI58: 0 | AJ58: 0 | AK58: 0 | AL58: 163692971.5 | AM58: 0 | AN58: 16500 | AO58: 99100334.33 | AP58: 0 | AQ58: 0 | AR58: 0 | AS58: 0 | AT58: 0 | AU58: 122916190.5 | AV58: 2910496.29 | AW58: 0
A59: AC110000 | B59: Gold stock | C59: 436343462.5 | D59: -311256790.7 | E59: 503832.22 | F59: 95365717.49 | G59: 112829510.8 | H59: 75679220.57 | I59: 0 | J59: 0 | K59: 0 | L59: 122709860.2 | M59: 159185598 | N59: 0 | O59: 0 | P59: 0 | Q59: 0 | R59: 0 | S59: 0 | T59: 0 | U59: 0 | V59: 0 | W59: 0 | X59: 0 | Y59: 0 | Z59: 0 | AA59: 0 | AB59: 0 | AC59: 0 | AD59: 59995834.46 | AE59: 121330679.4 | AF59: 0 | AG59: 95365717.49 | AH59: 0 | AI59: 0 | AJ59: 0 | AK59: 0 | AL59: 112829510.8 | AM59: 0 | AN59: 0 | AO59: 75679220.57 | AP59: 0 | AQ59: 0 | AR59: 0 | AS59: 0 | AT59: 0 | AU59: 122709860.2 | AV59: 0 | AW59: 0
A60: AC110100 | B60: Gold in lockup | C60: -23437813.16 | D60: -228036137.7 | E60: 0 | F60: 103953.6 | G60: 49670168.72 | H60: 64682723.68 | I60: 0 | J60: 0 | K60: 0 | L60: 63399286.86 | M60: 0 | N60: 0 | O60: 0 | P60: 0 | Q60: 0 | R60: 0 | S60: 0 | T60: 0 | U60: 0 | V60: 0 | W60: 0 | X60: 0 | Y60: 0 | Z60: 0 | AA60: 0 | AB60: 0 | AC60: 0 | AD60: 1578385.73 | AE60: 25163805.93 | AF60: 0 | AG60: 103953.6 | AH60: 0 | AI60: 0 | AJ60: 0 | AK60: 0 | AL60: 49670168.72 | AM60: 0 | AN60: 0 | AO60: 64682723.68 | AP60: 0 | AQ60: 0 | AR60: 0 | AS60: 0 | AT60: 0 | AU60: 63399286.86 | AV60: 0 | AW60: 0
A61: AC110200 | B61: Gold in process | C61: 322392938.3 | D61: -83220653 | E61: 503832.22 | F61: 95261763.89 | G61: 63159342.05 | H61: 10996496.89 | I61: 0 | J61: 0 | K61: 0 | L61: 59310573.34 | M61: 21797260.66 | N61: 0 | O61: 0 | P61: 0 | Q61: 0 | R61: 0 | S61: 0 | T61: 0 | U61: 0 | V61: 0 | W61: 0 | X61: 0 | Y61: 0 | Z61: 0 | AA61: 0 | AB61: 0 | AC61: 0 | AD61: 58417448.73 | AE61: 96166873.47 | AF61: 0 | AG61: 95261763.89 | AH61: 0 | AI61: 0 | AJ61: 0 | AK61: 0 | AL61: 63159342.05 | AM61: 0 | AN61: 0 | AO61: 10996496.89 | AP61: 0 | AQ61: 0 | AR61: 0 | AS61: 0 | AT61: 0 | AU61: 59310573.34 | AV61: 0 | AW61: 0
A62: AC110300 | B62: Bullion on hand | C62: 57708726.85 | D62: 0 | E62: 0 | F62: 0 | G62: 0 | H62: 0 | I62: 0 | J62: 0 | K62: 0 | L62: 0 | M62: 57708726.85 | N62: 0 | O62: 0 | P62: 0 | Q62: 0 | R62: 0 | S62: 0 | T62: 0 | U62: 0 | V62: 0 | W62: 0 | X62: 0 | Y62: 0 | Z62: 0 | AA62: 0 | AB62: 0 | AC62: 0 | AD62: 0 | AE62: 0 | AF62: 0 | AG62: 0 | AH62: 0 | AI62: 0 | AJ62: 0 | AK62: 0 | AL62: 0 | AM62: 0 | AN62: 0 | AO62: 0 | AP62: 0 | AQ62: 0 | AR62: 0 | AS62: 0 | AT62: 0 | AU62: 0 | AV62: 0 | AW62: 0
A63: AC120000 | B63: Byproducts stock | C63: 0 | D63: 0 | E63: 0 | F63: 0 | G63: 0 | H63: 0 | I63: 0 | J63: 0 | K63: 0 | L63: 0 | M63: 0 | N63: 0 | O63: 0 | P63: 0 | Q63: 0 | R63: 0 | S63: 0 | T63: 0 | U63: 0 | V63: 0 | W63: 0 | X63: 0 | Y63: 0 | Z63: 0 | AA63: 0 | AB63: 0 | AC63: 0 | AD63: 0 | AE63: 0 | AF63: 0 | AG63: 0 | AH63: 0 | AI63: 0 | AJ63: 0 | AK63: 0 | AL63: 0 | AM63: 0 | AN63: 0 | AO63: 0 | AP63: 0 | AQ63: 0 | AR63: 0 | AS63: 0 | AT63: 0 | AU63: 0 | AV63: 0 | AW63: 0
A64: AC120100 | B64: Silver stock | C64: 0 | D64: 0 | E64: 0 | F64: 0 | G64: 0 | H64: 0 | I64: 0 | J64: 0 | K64: 0 | L64: 0 | M64: 0 | N64: 0 | O64: 0 | P64: 0 | Q64: 0 | R64: 0 | S64: 0 | T64: 0 | U64: 0 | V64: 0 | W64: 0 | X64: 0 | Y64: 0 | Z64: 0 | AA64: 0 | AB64: 0 | AC64: 0 | AD64: 0 | AE64: 0 | AF64: 0 | AG64: 0 | AH64: 0 | AI64: 0 | AJ64: 0 | AK64: 0 | AL64: 0 | AM64: 0 | AN64: 0 | AO64: 0 | AP64: 0 | AQ64: 0 | AR64: 0 | AS64: 0 | AT64: 0 | AU64: 0 | AV64: 0 | AW64: 0
A65: AC120200 | B65: Copper stock | C65: 0 | D65: 0 | E65: 0 | F65: 0 | G65: 0 | H65: 0 | I65: 0 | J65: 0 | K65: 0 | L65: 0 | M65: 0 | N65: 0 | O65: 0 | P65: 0 | Q65: 0 | R65: 0 | S65: 0 | T65: 0 | U65: 0 | V65: 0 | W65: 0 | X65: 0 | Y65: 0 | Z65: 0 | AA65: 0 | AB65: 0 | AC65: 0 | AD65: 0 | AE65: 0 | AF65: 0 | AG65: 0 | AH65: 0 | AI65: 0 | AJ65: 0 | AK65: 0 | AL65: 0 | AM65: 0 | AN65: 0 | AO65: 0 | AP65: 0 | AQ65: 0 | AR65: 0 | AS65: 0 | AT65: 0 | AU65: 0 | AV65: 0 | AW65: 0
A66: AC120300 | B66: Uranium stock | C66: 0 | D66: 0 | E66: 0 | F66: 0 | G66: 0 | H66: 0 | I66: 0 | J66: 0 | K66: 0 | L66: 0 | M66: 0 | N66: 0 | O66: 0 | P66: 0 | Q66: 0 | R66: 0 | S66: 0 | T66: 0 | U66: 0 | V66: 0 | W66: 0 | X66: 0 | Y66: 0 | Z66: 0 | AA66: 0 | AB66: 0 | AC66: 0 | AD66: 0 | AE66: 0 | AF66: 0 | AG66: 0 | AH66: 0 | AI66: 0 | AJ66: 0 | AK66: 0 | AL66: 0 | AM66: 0 | AN66: 0 | AO66: 0 | AP66: 0 | AQ66: 0 | AR66: 0 | AS66: 0 | AT66: 0 | AU66: 0 | AV66: 0 | AW66: 0
A67: AC130000 | B67: Stores | C67: 469266924.8 | D67: 0 | E67: 0 | F67: 40365603.82 | G67: 50863460.75 | H67: 23437613.76 | I67: 0 | J67: 0 | K67: 0 | L67: 3116826.57 | M67: 185817061 | N67: 0 | O67: 0 | P67: 0 | Q67: 0 | R67: 0 | S67: 170014.38 | T67: 0 | U67: 0 | V67: 0 | W67: 0 | X67: 0 | Y67: 0 | Z67: 4476469.16 | AA67: 0 | AB67: 0 | AC67: 0 | AD67: 14956052.32 | AE67: 146063823.1 | AF67: 0 | AG67: 40365603.82 | AH67: 0 | AI67: 0 | AJ67: 0 | AK67: 0 | AL67: 50863460.75 | AM67: 0 | AN67: 16500 | AO67: 23421113.76 | AP67: 0 | AQ67: 0 | AR67: 0 | AS67: 0 | AT67: 0 | AU67: 206330.28 | AV67: 2910496.29 | AW67: 0
A68: AC130100 | B68: Stores : cost | C68: 522016302.4 | D68: 0 | E68: 0 | F68: 62294833.82 | G68: 62804387.75 | H68: 28175628.76 | I68: 0 | J68: 0 | K68: 0 | L68: 3116826.57 | M68: 187531316.2 | N68: 0 | O68: 0 | P68: 0 | Q68: 0 | R68: 0 | S68: 170014.38 | T68: 0 | U68: 0 | V68: 0 | W68: 0 | X68: 0 | Y68: 0 | Z68: 4476469.16 | AA68: 0 | AB68: 0 | AC68: 0 | AD68: 17132625.32 | AE68: 156314200.4 | AF68: 0 | AG68: 62294833.82 | AH68: 0 | AI68: 0 | AJ68: 0 | AK68: 0 | AL68: 62804387.75 | AM68: 0 | AN68: 16500 | AO68: 28159128.76 | AP68: 0 | AQ68: 0 | AR68: 0 | AS68: 0 | AT68: 0 | AU68: 206330.28 | AV68: 2910496.29 | AW68: 0
A69: AC130200 | B69: Provisions of obsolete stock | C69: -52749377.6 | D69: 0 | E69: 0 | F69: -21929230 | G69: -11940927 | H69: -4738015 | I69: 0 | J69: 0 | K69: 0 | L69: 0 | M69: -1714255.234 | N69: 0 | O69: 0 | P69: 0 | Q69: 0 | R69: 0 | S69: 0 | T69: 0 | U69: 0 | V69: 0 | W69: 0 | X69: 0 | Y69: 0 | Z69: 0 | AA69: 0 | AB69: 0 | AC69: 0 | AD69: -2176573 | AE69: -10250377.37 | AF69: 0 | AG69: -21929230 | AH69: 0 | AI69: 0 | AJ69: 0 | AK69: 0 | AL69: -11940927 | AM69: 0 | AN69: 0 | AO69: -4738015 | AP69: 0 | AQ69: 0 | AR69: 0 | AS69: 0 | AT69: 0 | AU69: 0 | AV69: 0 | AW69: 0
A70: AC310000 | B70: Trade and other receivables | C70: 1028611998 | D70: 101426288 | E70: 262.81 | F70: 20355902.67 | G70: 118754839 | H70: -69867647.61 | I70: 399047.05 | J70: 50.82 | K70: 8521921.31 | L70: 68009359.65 | M70: 97912777.75 | N70: 0 | O70: 0.08 | P70: 0 | Q70: 498.48 | R70: 0 | S70: 65800.17 | T70: 0 | U70: 0 | V70: 0 | W70: 0 | X70: 0 | Y70: 0 | Z70: 219926.81 | AA70: 0 | AB70: 0 | AC70: 0 | AD70: 2729109.91 | AE70: 680083861.1 | AF70: 0 | AG70: 20355902.67 | AH70: 0 | AI70: 0 | AJ70: 0 | AK70: 0 | AL70: 118754839 | AM70: 0 | AN70: 560 | AO70: -69868207.61 | AP70: 0 | AQ70: 0 | AR70: 0 | AS70: 0 | AT70: 0 | AU70: 56970955.66 | AV70: 11038403.99 | AW70: 0
A71: AC310100 | B71: Metals | C71: 316990299.5 | D71: 101426288 | E71: 0 | F71: -25876274.59 | G71: 1950663.72 | H71: -324311.99 | I71: 0 | J71: 0 | K71: 0 | L71: -57757003 | M71: 0 | N71: 0 | O71: 0 | P71: 0 | Q71: 0 | R71: 0 | S71: 0 | T71: 0 | U71: 0 | V71: 0 | W71: 0 | X71: 0 | Y71: 0 | Z71: 0 | AA71: 0 | AB71: 0 | AC71: 0 | AD71: -11425300.65 | AE71: 308996238 | AF71: 0 | AG71: -25876274.59 | AH71: 0 | AI71: 0 | AJ71: 0 | AK71: 0 | AL71: 1950663.72 | AM71: 0 | AN71: 0 | AO71: -324311.99 | AP71: 0 | AQ71: 0 | AR71: 0 | AS71: 0 | AT71: 0 | AU71: -57757003 | AV71: 0 | AW71: 0
A72: AC310110 | B72: Gold debtor | C72: 316990299.5 | D72: 101426288 | E72: 0 | F72: -25876274.59 | G72: 1950663.72 | H72: -324311.99 | I72: 0 | J72: 0 | K72: 0 | L72: -57757003 | M72: 0 | N72: 0 | O72: 0 | P72: 0 | Q72: 0 | R72: 0 | S72: 0 | T72: 0 | U72: 0 | V72: 0 | W72: 0 | X72: 0 | Y72: 0 | Z72: 0 | AA72: 0 | AB72: 0 | AC72: 0 | AD72: -11425300.65 | AE72: 308996238 | AF72: 0 | AG72: -25876274.59 | AH72: 0 | AI72: 0 | AJ72: 0 | AK72: 0 | AL72: 1950663.72 | AM72: 0 | AN72: 0 | AO72: -324311.99 | AP72: 0 | AQ72: 0 | AR72: 0 | AS72: 0 | AT72: 0 | AU72: -57757003 | AV72: 0 | AW72: 0
A73: AC310120 | B73: Silver debtor | C73: 0 | D73: 0 | E73: 0 | F73: 0 | G73: 0 | H73: 0 | I73: 0 | J73: 0 | K73: 0 | L73: 0 | M73: 0 | N73: 0 | O73: 0 | P73: 0 | Q73: 0 | R73: 0 | S73: 0 | T73: 0 | U73: 0 | V73: 0 | W73: 0 | X73: 0 | Y73: 0 | Z73: 0 | AA73: 0 | AB73: 0 | AC73: 0 | AD73: 0 | AE73: 0 | AF73: 0 | AG73: 0 | AH73: 0 | AI73: 0 | AJ73: 0 | AK73: 0 | AL73: 0 | AM73: 0 | AN73: 0 | AO73: 0 | AP73: 0 | AQ73: 0 | AR73: 0 | AS73: 0 | AT73: 0 | AU73: 0 | AV73: 0 | AW73: 0
A74: AC310130 | B74: Copper debtor | C74: 0 | D74: 0 | E74: 0 | F74: 0 | G74: 0 | H74: 0 | I74: 0 | J74: 0 | K74: 0 | L74: 0 | M74: 0 | N74: 0 | O74: 0 | P74: 0 | Q74: 0 | R74: 0 | S74: 0 | T74: 0 | U74: 0 | V74: 0 | W74: 0 | X74: 0 | Y74: 0 | Z74: 0 | AA74: 0 | AB74: 0 | AC74: 0 | AD74: 0 | AE74: 0 | AF74: 0 | AG74: 0 | AH74: 0 | AI74: 0 | AJ74: 0 | AK74: 0 | AL74: 0 | AM74: 0 | AN74: 0 | AO74: 0 | AP74: 0 | AQ74: 0 | AR74: 0 | AS74: 0 | AT74: 0 | AU74: 0 | AV74: 0 | AW74: 0
A75: AC310140 | B75: Osmiridium debtors | C75: 0 | D75: 0 | E75: 0 | F75: 0 | G75: 0 | H75: 0 | I75: 0 | J75: 0 | K75: 0 | L75: 0 | M75: 0 | N75: 0 | O75: 0 | P75: 0 | Q75: 0 | R75: 0 | S75: 0 | T75: 0 | U75: 0 | V75: 0 | W75: 0 | X75: 0 | Y75: 0 | Z75: 0 | AA75: 0 | AB75: 0 | AC75: 0 | AD75: 0 | AE75: 0 | AF75: 0 | AG75: 0 | AH75: 0 | AI75: 0 | AJ75: 0 | AK75: 0 | AL75: 0 | AM75: 0 | AN75: 0 | AO75: 0 | AP75: 0 | AQ75: 0 | AR75: 0 | AS75: 0 | AT75: 0 | AU75: 0 | AV75: 0 | AW75: 0
A76: AC310200 | B76: VAT | C76: 213088158.7 | D76: 0 | E76: 262.81 | F76: 30730443.38 | G76: 57611798.74 | H76: 19021027.97 | I76: 399047.05 | J76: 50.82 | K76: 88950.54 | L76: 97791648.73 | M76: 356934.549 | N76: 0 | O76: 0 | P76: 0 | Q76: 498.48 | R76: 0 | S76: 0 | T76: 0 | U76: 0 | V76: 0 | W76: 0 | X76: 0 | Y76: 0 | Z76: 227801.49 | AA76: 0 | AB76: 0 | AC76: 0 | AD76: 6859558.5 | AE76: 135.66 | AF76: 0 | AG76: 30730443.38 | AH76: 0 | AI76: 0 | AJ76: 0 | AK76: 0 | AL76: 57611798.74 | AM76: 0 | AN76: 560 | AO76: 19020467.97 | AP76: 0 | AQ76: 0 | AR76: 0 | AS76: 0 | AT76: 0 | AU76: 96649344.67 | AV76: 1142304.06 | AW76: 0
A77: AC310300 | B77: Other trade | C77: 206728245.9 | D77: 0 | E77: 0 | F77: 1618532.24 | G77: 57073658.55 | H77: 5409554.08 | I77: 0 | J77: 0 | K77: 70921589.46 | L77: 12085971.74 | M77: 26056823.85 | N77: 0 | O77: 0 | P77: 0 | Q77: 0 | R77: 0 | S77: 65800.17 | T77: 0 | U77: 0 | V77: 0 | W77: 0 | X77: 0 | Y77: 0 | Z77: 0 | AA77: 0 | AB77: 0 | AC77: 0 | AD77: 6657438.42 | AE77: 26838877.42 | AF77: 0 | AG77: 1618532.24 | AH77: 0 | AI77: 0 | AJ77: 0 | AK77: 0 | AL77: 57073658.55 | AM77: 0 | AN77: 0 | AO77: 5409554.08 | AP77: 0 | AQ77: 0 | AR77: 0 | AS77: 0 | AT77: 0 | AU77: 12085971.74 | AV77: 0 | AW77: 0
A78: AC310400 | B78: Provision for bad debt | C78: -124315482.9 | D78: 0 | E78: 0 | F78: -287595.75 | G78: -25579986.95 | H78: -1143483.1 | I78: 0 | J78: 0 | K78: -62212763.97 | L78: -10515129.06 | M78: -5180304.288 | N78: 0 | O78: 0 | P78: 0 | Q78: 0 | R78: 0 | S78: 0 | T78: 0 | U78: 0 | V78: 0 | W78: 0 | X78: 0 | Y78: 0 | Z78: -57777.66 | AA78: 0 | AB78: 0 | AC78: 0 | AD78: 0 | AE78: -19338442.13 | AF78: 0 | AG78: -287595.75 | AH78: 0 | AI78: 0 | AJ78: 0 | AK78: 0 | AL78: -25579986.95 | AM78: 0 | AN78: 0 | AO78: -1143483.1 | AP78: 0 | AQ78: 0 | AR78: 0 | AS78: 0 | AT78: 0 | AU78: -8056279.32 | AV78: -2458849.74 | AW78: 0
A79: AC310500 | B79: Prepayments | C79: 52726225.98 | D79: 0 | E79: 0 | F79: 3670315.97 | G79: 1687285.17 | H79: 7300812.4 | I79: 0 | J79: 0 | K79: -14152.2 | L79: 14031594.05 | M79: 16440859.25 | N79: 0 | O79: 0 | P79: 0 | Q79: 0 | R79: 0 | S79: 0 | T79: 0 | U79: 0 | V79: 0 | W79: 0 | X79: 0 | Y79: 0 | Z79: 2211.87 | AA79: 0 | AB79: 0 | AC79: 0 | AD79: 768486.51 | AE79: 8838812.96 | AF79: 0 | AG79: 3670315.97 | AH79: 0 | AI79: 0 | AJ79: 0 | AK79: 0 | AL79: 1687285.17 | AM79: 0 | AN79: 0 | AO79: 7300812.4 | AP79: 0 | AQ79: 0 | AR79: 0 | AS79: 0 | AT79: 0 | AU79: 14031594.05 | AV79: 0 | AW79: 0
A80: AC310600 | B80: Interest receivable | C80: 1506973.13 | D80: 0 | E80: 0 | F80: 0 | G80: 0 | H80: 0 | I80: 0 | J80: 0 | K80: 0 | L80: 0 | M80: 0 | N80: 0 | O80: 0 | P80: 0 | Q80: 0 | R80: 0 | S80: 0 | T80: 0 | U80: 0 | V80: 0 | W80: 0 | X80: 0 | Y80: 0 | Z80: 0 | AA80: 0 | AB80: 0 | AC80: 0 | AD80: 0 | AE80: 1506973.13 | AF80: 0 | AG80: 0 | AH80: 0 | AI80: 0 | AJ80: 0 | AK80: 0 | AL80: 0 | AM80: 0 | AN80: 0 | AO80: 0 | AP80: 0 | AQ80: 0 | AR80: 0 | AS80: 0 | AT80: 0 | AU80: 0 | AV80: 0 | AW80: 0
A81: AC310980 | B81: Other : Trade and other receivables | C81: 361887577.7 | D81: 0 | E81: 0 | F81: 10500481.42 | G81: 26011419.75 | H81: -100131247 | I81: 0 | J81: 0 | K81: -261702.52 | L81: 12372277.19 | M81: 60238464.39 | N81: 0 | O81: 0.08 | P81: 0 | Q81: 0 | R81: 0 | S81: 0 | T81: 0 | U81: 0 | V81: 0 | W81: 0 | X81: 0 | Y81: 0 | Z81: 47691.11 | AA81: 0 | AB81: 0 | AC81: 0 | AD81: -131072.87 | AE81: 353241266.1 | AF81: 0 | AG81: 10500481.42 | AH81: 0 | AI81: 0 | AJ81: 0 | AK81: 0 | AL81: 26011419.75 | AM81: 0 | AN81: 0 | AO81: -100131247 | AP81: 0 | AQ81: 0 | AR81: 0 | AS81: 0 | AT81: 0 | AU81: 17327.52 | AV81: 12354949.67 | AW81: 0
A82: AC310990 | B82: Project controle accounts | C82: 0 | D82: 0 | E82: 0 | F82: 0 | G82: 0 | H82: 0 | I82: 0 | J82: 0 | K82: 0 | L82: 0 | M82: 0 | N82: 0 | O82: 0 | P82: 0 | Q82: 0 | R82: 0 | S82: 0 | T82: 0 | U82: 0 | V82: 0 | W82: 0 | X82: 0 | Y82: 0 | Z82: 0 | AA82: 0 | AB82: 0 | AC82: 0 | AD82: 0 | AE82: 0 | AF82: 0 | AG82: 0 | AH82: 0 | AI82: 0 | AJ82: 0 | AK82: 0 | AL82: 0 | AM82: 0 | AN82: 0 | AO82: 0 | AP82: 0 | AQ82: 0 | AR82: 0 | AS82: 0 | AT82: 0 | AU82: 0 | AV82: 0 | AW82: 0
A83: AC320000 | B83: Income and mining tax | C83: 119525517.8 | D83: 0 | E83: 746460.78 | F83: 0 | G83: 45414025.36 | H83: 9203878.48 | I83: 0 | J83: 0 | K83: 13914584.98 | L83: 15220915.65 | M83: 0 | N83: 0 | O83: 0 | P83: 0 | Q83: 0 | R83: 0 | S83: 57872.57 | T83: 1903341.46 | U83: 0 | V83: 0 | W83: 50628.19 | X83: 0 | Y83: 0 | Z83: 0 | AA83: 0 | AB83: 0 | AC83: 0 | AD83: 4850431.72 | AE83: 28163378.6 | AF83: 0 | AG83: 0 | AH83: 0 | AI83: 0 | AJ83: 0 | AK83: 16625 | AL83: 45397400.36 | AM83: 0 | AN83: 128144.89 | AO83: 9016533.67 | AP83: 59199.92 | AQ83: 0 | AR83: 0 | AS83: 0 | AT83: 0 | AU83: 15220915.65 | AV83: 0 | AW83: 0
A84: AC510000 | B84: Restricted cash | C84: 829827.004 | D84: 0 | E84: 0 | F84: 0 | G84: 0 | H84: 0 | I84: 0 | J84: 0 | K84: 0 | L84: 0 | M84: 829827.004 | N84: 0 | O84: 0 | P84: 0 | Q84: 0 | R84: 0 | S84: 0 | T84: 0 | U84: 0 | V84: 0 | W84: 0 | X84: 0 | Y84: 0 | Z84: 0 | AA84: 0 | AB84: 0 | AC84: 0 | AD84: 0 | AE84: 0 | AF84: 0 | AG84: 0 | AH84: 0 | AI84: 0 | AJ84: 0 | AK84: 0 | AL84: 0 | AM84: 0 | AN84: 0 | AO84: 0 | AP84: 0 | AQ84: 0 | AR84: 0 | AS84: 0 | AT84: 0 | AU84: 0 | AV84: 0 | AW84: 0
A85: AC710000 | B85: Cash and cash equivalents | C85: 977029241.6 | D85: 0 | E85: 0 | F85: 12457.45 | G85: 638447.97 | H85: 741848.96 | I85: 90167238.76 | J85: 0 | K85: 0 | L85: 129179.5 | M85: 165590513.4 | N85: 0 | O85: 0 | P85: 0 | Q85: 0 | R85: 0 | S85: 0 | T85: 0 | U85: 0 | V85: 0 | W85: 0 | X85: 0 | Y85: 0 | Z85: 3330 | AA85: 0 | AB85: 0 | AC85: 0 | AD85: 96706.95 | AE85: 719649518.6 | AF85: 0 | AG85: 12457.45 | AH85: 0 | AI85: 0 | AJ85: 0 | AK85: 0 | AL85: 638447.97 | AM85: 0 | AN85: 0 | AO85: 741848.96 | AP85: 0 | AQ85: 0 | AR85: 0 | AS85: 0 | AT85: 0 | AU85: 123684.79 | AV85: 5494.71 | AW85: 0
A86: AC910000 | B86: Non-current assets classified as held-for-sale | C86: 173311535.7 | D86: 0 | E86: 0 | F86: 0 | G86: 0 | H86: 0 | I86: 0 | J86: 0 | K86: 0 | L86: 0 | M86: 0 | N86: 0 | O86: 0 | P86: 0 | Q86: 0 | R86: 0 | S86: 0 | T86: 0 | U86: 173311535.7 | V86: 0 | W86: 0 | X86: 0 | Y86: 0 | Z86: 0 | AA86: 0 | AB86: 0 | AC86: 0 | AD86: 0 | AE86: 0 | AF86: 0 | AG86: 0 | AH86: 0 | AI86: 0 | AJ86: 0 | AK86: 0 | AL86: 0 | AM86: 0 | AN86: 0 | AO86: 0 | AP86: 0 | AQ86: 0 | AR86: 0 | AS86: 0 | AT86: 0 | AU86: 0 | AV86: 0 | AW86: 0
A87: BA000000 | B87: TOTAL EQUITY AND LIABILITIES | C87: -4.100625717e+10 | D87: -116124974.6 | E87: 1572874.19 | F87: -8075599489 | G87: -6417547093 | H87: -1258310943 | I87: -90566288.29 | J87: -1004.66 | K87: -77854017.79 | L87: -1.387894835e+10 | M87: -5799043203 | N87: 0 | O87: -0.08 | P87: 0 | Q87: -498.48 | R87: 0 | S87: -293687.12 | T87: -1903341.46 | U87: -235090064.3 | V87: -794300 | W87: -50628.19 | X87: 0 | Y87: 0 | Z87: -6012317.79 | AA87: 0 | AB87: 0 | AC87: 0 | AD87: -243784021 | AE87: -4805905831 | AF87: 0 | AG87: -3308270231 | AH87: 0 | AI87: 0 | AJ87: 0 | AK87: -1423119.64 | AL87: -5821467356 | AM87: 0 | AN87: 33192653.65 | AO87: -1648587502 | AP87: -268167.63 | AQ87: 0 | AR87: 0 | AS87: 0 | AT87: 0 | AU87: -7738724952 | AV87: -317749348.4 | AW87: 0
A88: BB000000 | B88: Share capital and reserves | C88: -2.986444379e+10 | D88: -86749173.62 | E88: 2902958.98 | F88: -7822586661 | G88: -5156753862 | H88: -849796274.2 | I88: -89238729.4 | J88: 940081.66 | K88: -5617776.26 | L88: -9601766697 | M88: -4180869292 | N88: 0 | O88: -0.08 | P88: 0 | Q88: -498.48 | R88: 19048.57 | S88: -134626.98 | T88: -1903341.46 | U88: -234771075.8 | V88: -794300 | W88: -50628.19 | X88: 0 | Y88: 0 | Z88: -491939.089 | AA88: 0 | AB88: 0 | AC88: 0 | AD88: -183033970.5 | AE88: -1653747030 | AF88: 0 | AG88: -2065010659 | AH88: 0 | AI88: 0 | AJ88: 0 | AK88: -1417306.74 | AL88: -3049511091 | AM88: 0 | AN88: 33229614.69 | AO88: -983884496.4 | AP88: -46742.01 | AQ88: 52.63 | AR88: 0 | AS88: 0 | AT88: 0 | AU88: -3065294607 | AV88: 36733101.24 | AW88: 0
A89: BB100000 | B89: Share capital | C89: -2.83002251e+10 | D89: 0 | E89: 0 | F89: 0 | G89: -0.2 | H89: 0 | I89: 0 | J89: 0 | K89: 0 | L89: 0 | M89: 81.759001 | N89: 0 | O89: 0 | P89: 0 | Q89: 0 | R89: 0 | S89: 0 | T89: 0 | U89: 0 | V89: 0 | W89: 0 | X89: 0 | Y89: 0 | Z89: 0 | AA89: 0 | AB89: 0 | AC89: 0 | AD89: 0 | AE89: -2.830022518e+10 | AF89: 0 | AG89: -2253944192 | AH89: 0 | AI89: 0 | AJ89: 0 | AK89: 0 | AL89: -590871001.6 | AM89: 0 | AN89: 0 | AO89: -869616215.6 | AP89: 0 | AQ89: 0 | AR89: 0 | AS89: 0 | AT89: 0 | AU89: -20000 | AV89: 0 | AW89: 0
A90: BB110000 | B90: Share capital | C90: -215014721.9 | D90: 0 | E90: 0 | F90: 0 | G90: -0.2 | H90: 0 | I90: 0 | J90: 0 | K90: 0 | L90: 0 | M90: 81.759001 | N90: 0 | O90: 0 | P90: 0 | Q90: 0 | R90: 0 | S90: 0 | T90: 0 | U90: 0 | V90: 0 | W90: 0 | X90: 0 | Y90: 0 | Z90: 0 | AA90: 0 | AB90: 0 | AC90: 0 | AD90: 0 | AE90: -215014803.5 | AF90: 0 | AG90: -6827343.87 | AH90: 0 | AI90: 0 | AJ90: 0 | AK90: 0 | AL90: -19882246.8 | AM90: 0 | AN90: 0 | AO90: -39271599 | AP90: 0 | AQ90: 0 | AR90: 0 | AS90: 0 | AT90: 0 | AU90: -20000 | AV90: 0 | AW90: 0
A91: BB150000 | B91: Share premium | C91: -2.808521037e+10 | D91: 0 | E91: 0 | F91: 0 | G91: 0 | H91: 0 | I91: 0 | J91: 0 | K91: 0 | L91: 0 | M91: 0 | N91: 0 | O91: 0 | P91: 0 | Q91: 0 | R91: 0 | S91: 0 | T91: 0 | U91: 0 | V91: 0 | W91: 0 | X91: 0 | Y91: 0 | Z91: 0 | AA91: 0 | AB91: 0 | AC91: 0 | AD91: 0 | AE91: -2.808521037e+10 | AF91: 0 | AG91: -2247116848 | AH91: 0 | AI91: 0 | AJ91: 0 | AK91: 0 | AL91: -570988754.8 | AM91: 0 | AN91: 0 | AO91: -830344616.6 | AP91: 0 | AQ91: 0 | AR91: 0 | AS91: 0 | AT91: 0 | AU91: 0 | AV91: 0 | AW91: 0
A92: BB210000 | B92: Other reserves | C92: -428903020.6 | D92: -364761281.8 | E92: -55781200.42 | F92: -7926753554 | G92: -3400580895 | H92: -500287327.5 | I92: -110621937.4 | J92: -46258283.91 | K92: -862911846 | L92: -6683925297 | M92: -5604217370 | N92: -0.01 | O92: -0.08 | P92: 0 | Q92: -25133435.46 | R92: -109088.36 | S92: -58642.22 | T92: -191388.78 | U92: -1305460625 | V92: 25591.72 | W92: -182407.22 | X92: -3296 | Y92: -9720979.93 | Z92: -1157657.602 | AA92: -2230617.35 | AB92: 0 | AC92: 0 | AD92: 208928577.2 | AE92: 2.626248994e+10 | AF92: 0 | AG92: -36143538.83 | AH92: 0 | AI92: 0 | AJ92: 0 | AK92: 71270 | AL92: -455501698.8 | AM92: 0 | AN92: 112273170.8 | AO92: -173964309.1 | AP92: 5445456.84 | AQ92: -19822.36 | AR92: 0 | AS92: 0 | AT92: 0 | AU92: -147433206.7 | AV92: 36733101.24 | AW92: 0
A93: BB210100 | B93: Translation reserve | C93: 71952911.15 | D93: -236509505.3 | E93: 0 | F93: 0 | G93: 0 | H93: 0 | I93: 0 | J93: 0 | K93: 0 | L93: 0 | M93: 308462416.4 | N93: -0.01 | O93: -0.01 | P93: 0 | Q93: 0 | R93: 0 | S93: 0 | T93: 0 | U93: 0 | V93: 0 | W93: 0 | X93: 0 | Y93: 0 | Z93: 0 | AA93: 0 | AB93: 0 | AC93: 0 | AD93: 0 | AE93: 0 | AF93: 0 | AG93: 0 | AH93: 0 | AI93: 0 | AJ93: 0 | AK93: 0 | AL93: 0 | AM93: 0 | AN93: 0 | AO93: 0 | AP93: 0 | AQ93: 0 | AR93: 0 | AS93: 0 | AT93: 0 | AU93: 0 | AV93: 0 | AW93: 0
A94: BB210200 | B94: Mark to market reserve | C94: 34130454.28 | D94: 0 | E94: 0 | F94: -14.2 | G94: 17404.8 | H94: 14939.8 | I94: 76828.28 | J94: 0 | K94: 0 | L94: 39125017.4 | M94: 0 | N94: 0 | O94: 0 | P94: 0 | Q94: 0 | R94: 0 | S94: 0 | T94: 0 | U94: 0 | V94: 0 | W94: 0 | X94: 0 | Y94: 0 | Z94: 0 | AA94: 0 | AB94: 0 | AC94: 0 | AD94: -32.8 | AE94: -5103689 | AF94: 0 | AG94: -14.2 | AH94: 0 | AI94: 0 | AJ94: 0 | AK94: 0 | AL94: 17404.8 | AM94: 0 | AN94: 0 | AO94: 14939.8 | AP94: 0 | AQ94: 0 | AR94: 0 | AS94: 0 | AT94: 0 | AU94: 39125017.4 | AV94: 0 | AW94: 0
A95: BB210300 | B95: Equity portion of bond | C95: -276502780 | D95: 0 | E95: 0 | F95: 0 | G95: 0 | H95: 0 | I95: 0 | J95: 0 | K95: 0 | L95: 0 | M95: 0 | N95: 0 | O95: 0 | P95: 0 | Q95: 0 | R95: 0 | S95: 0 | T95: 0 | U95: 0 | V95: 0 | W95: 0 | X95: 0 | Y95: 0 | Z95: 0 | AA95: 0 | AB95: 0 | AC95: 0 | AD95: 0 | AE95: -276502780 | AF95: 0 | AG95: 0 | AH95: 0 | AI95: 0 | AJ95: 0 | AK95: 0 | AL95: 0 | AM95: 0 | AN95: 0 | AO95: 0 | AP95: 0 | AQ95: 0 | AR95: 0 | AS95: 0 | AT95: 0 | AU95: 0 | AV95: 0 | AW95: 0
A96: BB210400 | B96: Revaluation reserve | C96: 381324000 | D96: 0 | E96: 0 | F96: 0 | G96: 0 | H96: 0 | I96: 0 | J96: 0 | K96: 0 | L96: 0 | M96: 381324000 | N96: 0 | O96: 0 | P96: 0 | Q96: 0 | R96: 0 | S96: 0 | T96: 0 | U96: 0 | V96: 0 | W96: 0 | X96: 0 | Y96: 0 | Z96: 0 | AA96: 0 | AB96: 0 | AC96: 0 | AD96: 0 | AE96: 0 | AF96: 0 | AG96: 0 | AH96: 0 | AI96: 0 | AJ96: 0 | AK96: 0 | AL96: 0 | AM96: 0 | AN96: 0 | AO96: 0 | AP96: 0 | AQ96: 0 | AR96: 0 | AS96: 0 | AT96: 0 | AU96: 0 | AV96: 0 | AW96: 0
A97: BB210500 | B97: Deferred share based compensation reserve | C97: -639010106 | D97: 0 | E97: 0 | F97: -36143524.63 | G97: -111838735.2 | H97: -56280443.56 | I97: 0 | J97: -231640.24 | K97: -7197822.63 | L97: -149825122.9 | M97: -55775483.34 | N97: 0 | O97: 0 | P97: 0 | Q97: 0 | R97: 0 | S97: 0 | T97: 0 | U97: 0 | V97: 0 | W97: 0 | X97: 0 | Y97: 0 | Z97: 0 | AA97: 0 | AB97: 0 | AC97: 0 | AD97: -12893633.45 | AE97: -208823700.2 | AF97: 0 | AG97: -36143524.63 | AH97: 0 | AI97: 0 | AJ97: 0 | AK97: 0 | AL97: -111838735.2 | AM97: 0 | AN97: 0 | AO97: -56280443.56 | AP97: 0 | AQ97: 0 | AR97: 0 | AS97: 0 | AT97: 0 | AU97: -149825122.9 | AV97: 0 | AW97: 0
A98: BB210600 | B98: Captalisation issue reserve | C98: 0.09 | D98: 0 | E98: 0 | F98: 0 | G98: 0 | H98: 0 | I98: 0 | J98: 0.09 | K98: 0 | L98: 0 | M98: 0 | N98: 0 | O98: 0 | P98: 0 | Q98: 0 | R98: 0 | S98: 0 | T98: 0 | U98: 0 | V98: 0 | W98: 0 | X98: 0 | Y98: 0 | Z98: 0 | AA98: 0 | AB98: 0 | AC98: 0 | AD98: 0 | AE98: 0 | AF98: 0 | AG98: 0 | AH98: 0 | AI98: 0 | AJ98: 0 | AK98: 0 | AL98: 0 | AM98: 0 | AN98: 0 | AO98: 0 | AP98: 0 | AQ98: 0 | AR98: 0 | AS98: 0 | AT98: 0 | AU98: 0 | AV98: 0 | AW98: 0
A99: BB210900 | B99: Other fair value reserves | C99: -797512.577 | D99: -128251776.6 | E99: 0 | F99: 0 | G99: 130485901.5 | H99: 0 | I99: 0 | J99: 0 | K99: 0 | L99: 0 | M99: -1.937 | N99: 0 | O99: 0 | P99: 0 | Q99: 0 | R99: 0 | S99: 0 | T99: 0 | U99: 0 | V99: 0 | W99: 0 | X99: 0 | Y99: 0 | Z99: 0 | AA99: 0 | AB99: 0 | AC99: 0 | AD99: 0 | AE99: -3031635.62 | AF99: 0 | AG99: 0 | AH99: 0 | AI99: 0 | AJ99: 0 | AK99: 0 | AL99: -343609098.5 | AM99: 0 | AN99: 0 | AO99: 0 | AP99: 0 | AQ99: 0 | AR99: 0 | AS99: 0 | AT99: 0 | AU99: 0 | AV99: 0 | AW99: 0
A100: BB210999 | B100: Offset account - Acquisition Logic | C100: 4.922003 | D100: 0 | E100: -100 | F100: -6924169067 | G100: -1311236886 | H100: -544927120.6 | I100: -204051875 | J100: -88530312.24 | K100: -1990154238 | L100: -5108026778 | M100: -6018238637 | N100: 0 | O100: -0.07 | P100: 0 | Q100: -1 | R100: -1000 | S100: -1 | T100: -2773145 | U100: -753920.35 | V100: -11400 | W100: -89393704 | X100: -2000 | Y100: -1 | Z100: -100.012 | AA100: -1 | AB100: -1 | AC100: -1 | AD100: -232209253.6 | AE100: 2.251447955e+10 | AF100: 0 | AG100: 7 | AH100: -7 | AI100: 0 | AJ100: 0 | AK100: -1 | AL100: 1 | AM100: 0 | AN100: -2272532.5 | AO100: 2676086.75 | AP100: -402951.7 | AQ100: -600 | AR100: -0.9 | AS100: -0.65 | AT100: -1 | AU100: 0 | AV100: 0 | AW100: 0
A101: BB500000 | B101: Retained earnings/(accumulated loss) | C101: -1135315669 | D101: 278012108.2 | E101: 58684159.4 | F101: 104166893.1 | G101: -1756172968 | H101: -349508946.7 | I101: 21383207.97 | J101: 47198365.57 | K101: 857294069.7 | L101: -2917841400 | M101: 1423347996 | N101: 0.01 | O101: 0 | P101: 0 | Q101: 25132936.98 | R101: 128136.93 | S101: -75984.76 | T101: -1711952.68 | U101: 1070689549 | V101: -819891.72 | W101: 131779.03 | X101: 3296 | Y101: 9720979.93 | Z101: 665718.513 | AA101: 2230617.35 | AB101: 0 | AC101: 0 | AD101: -391962547.8 | AE101: 383988209.1 | AF101: 0 | AG101: 225077071.1 | AH101: 0 | AI101: 0 | AJ101: 0 | AK101: -1488576.74 | AL101: -2003138391 | AM101: 0 | AN101: -79043556.15 | AO101: 59696028.37 | AP101: -5492198.85 | AQ101: 19874.99 | AR101: 0 | AS101: 0 | AT101: 0 | AU101: -2917841400 | AV101: 0 | AW101: 0
A102: BB510000 | B102: Opening retained earnings - Total | C102: -690939349.3 | D102: 146337905.2 | E102: 58855713.39 | F102: 90362182.74 | G102: -1557970329 | H102: -440094646.3 | I102: 33979199.17 | J102: 47237084.79 | K102: 842553119.5 | L102: -2149048501 | M102: 1392873875 | N102: 0.01 | O102: 0 | P102: 0 | Q102: 25105126.6 | R102: 128136.93 | S102: -68192.95 | T102: -1711952.68 | U102: 863304559.9 | V102: -819891.72 | W102: 131779.03 | X102: 3296 | Y102: 9720979.93 | Z102: 1.19 | AA102: 2230617.35 | AB102: 0 | AC102: 0 | AD102: -368324153.9 | AE102: 314274741.2 | AF102: 0 | AG102: 211272360.7 | AH102: 0 | AI102: 0 | AJ102: 0 | AK102: -1488576.74 | AL102: -1804935752 | AM102: 0 | AN102: -79043556.15 | AO102: -30887073.4 | AP102: -5494796.67 | AQ102: 19874.99 | AR102: 0 | AS102: 0 | AT102: 0 | AU102: -2149048501 | AV102: 0 | AW102: 0
A103: BB510100 | B103: Opening retained earnings from repo and g/journals | C103: -313712760.8 | D103: 146337905.2 | E103: 58855713.39 | F103: 211272360.7 | G103: -1806424329 | H103: -155400055.4 | I103: 60912431.17 | J103: -18786273.21 | K103: 47419119.49 | L103: -2149048501 | M103: 2500641697 | N103: 0.01 | O103: 0 | P103: 0 | Q103: 25105126.6 | R103: 128136.93 | S103: -68192.95 | T103: -4485096.68 | U103: 863304559.9 | V103: -819891.72 | W103: -66125924.97 | X103: 3296 | Y103: 9720979.93 | Z103: 1.19 | AA103: 2230617.35 | AB103: 0 | AC103: 0 | AD103: -352761182.9 | AE103: 314274741.2 | AF103: 0 | AG103: 211272360.7 | AH103: 0 | AI103: 0 | AJ103: 0 | AK103: -1488576.74 | AL103: -1804935752 | AM103: 0 | AN103: -119011313.7 | AO103: -30887073.4 | AP103: -5521543.37 | AQ103: 19874.99 | AR103: 0 | AS103: 0 | AT103: 0 | AU103: -2149048501 | AV103: 0 | AW103: 0
A104: BB510200 | B104: Opening retained earnings from acquisition jnls | C104: -346037733.3 | D104: 0 | E104: 0 | F104: -120910178 | G104: 248454000 | H104: -284694590.8 | I104: -26933232 | J104: 66023358 | K104: 795134000 | L104: 0 | M104: -1076578967 | N104: 0 | O104: 0 | P104: 0 | Q104: 0 | R104: 0 | S104: 0 | T104: 2773144 | U104: 0 | V104: 0 | W104: 66257704 | X104: 0 | Y104: 0 | Z104: 0 | AA104: 0 | AB104: 0 | AC104: 0 | AD104: -15562971 | AE104: 0 | AF104: 0 | AG104: 0 | AH104: 0 | AI104: 0 | AJ104: 0 | AK104: 0 | AL104: 0 | AM104: 0 | AN104: 39967757.5 | AO104: 0 | AP104: 26746.7 | AQ104: 0 | AR104: 0 | AS104: 0 | AT104: 0 | AU104: 0 | AV104: 0 | AW104: 0
A105: BB510300 | B105: Opening retained earnings - prior year adjustment | C105: -31188855.18 | D105: 0 | E105: 0 | F105: 0 | G105: 0 | H105: 0 | I105: 0 | J105: 0 | K105: 0 | L105: 0 | M105: -31188855.18 | N105: 0 | O105: 0 | P105: 0 | Q105: 0 | R105: 0 | S105: 0 | T105: 0 | U105: 0 | V105: 0 | W105: 0 | X105: 0 | Y105: 0 | Z105: 0 | AA105: 0 | AB105: 0 | AC105: 0 | AD105: 0 | AE105: 0 | AF105: 0 | AG105: 0 | AH105: 0 | AI105: 0 | AJ105: 0 | AK105: 0 | AL105: 0 | AM105: 0 | AN105: 0 | AO105: 0 | AP105: 0 | AQ105: 0 | AR105: 0 | AS105: 0 | AT105: 0 | AU105: 0 | AV105: 0 | AW105: 0
A106: BB530000 | B106: Current year retained earnings | C106: -658794707.6 | D106: 131674203 | E106: -171553.99 | F106: 13804710.33 | G106: -198202638.9 | H106: 90585699.59 | I106: -12595991.2 | J106: -38719.22 | K106: 14740950.21 | L106: -768792899.7 | M106: 30474121.66 | N106: 0 | O106: 0 | P106: 0 | Q106: 27810.38 | R106: 0 | S106: -7791.81 | T106: 0 | U106: 207384988.9 | V106: 0 | W106: 0 | X106: 0 | Y106: 0 | Z106: 665717.323 | AA106: 0 | AB106: 0 | AC106: 0 | AD106: -23638393.85 | AE106: -144704920.3 | AF106: 0 | AG106: 13804710.33 | AH106: 0 | AI106: 0 | AJ106: 0 | AK106: 0 | AL106: -198202638.9 | AM106: 0 | AN106: 0 | AO106: 90583101.77 | AP106: 2597.82 | AQ106: 0 | AR106: 0 | AS106: 0 | AT106: 0 | AU106: -768792899.7 | AV106: 0 | AW106: 0
A107: BB550000 | B107: Dividends declared and paid | C107: 214418388.3 | D107: 0 | E107: 0 | F107: 0 | G107: 0 | H107: 0 | I107: 0 | J107: 0 | K107: 0 | L107: 0 | M107: 0 | N107: 0 | O107: 0 | P107: 0 | Q107: 0 | R107: 0 | S107: 0 | T107: 0 | U107: 0 | V107: 0 | W107: 0 | X107: 0 | Y107: 0 | Z107: 0 | AA107: 0 | AB107: 0 | AC107: 0 | AD107: 0 | AE107: 214418388.3 | AF107: 0 | AG107: 0 | AH107: 0 | AI107: 0 | AJ107: 0 | AK107: 0 | AL107: 0 | AM107: 0 | AN107: 0 | AO107: 0 | AP107: 0 | AQ107: 0 | AR107: 0 | AS107: 0 | AT107: 0 | AU107: 0 | AV107: 0 | AW107: 0
A108: BC100000 | B108: Minority Interest | C108: 6724.429 | D108: 0 | E108: 0 | F108: 0 | G108: 0 | H108: 0 | I108: 0 | J108: 0 | K108: 0 | L108: 0 | M108: 0 | N108: 0 | O108: 0 | P108: 0 | Q108: 0 | R108: 0 | S108: 0 | T108: 0 | U108: 0 | V108: 0 | W108: 0 | X108: 0 | Y108: 0 | Z108: 6724.429 | AA108: 0 | AB108: 0 | AC108: 0 | AD108: 0 | AE108: 0 | AF108: 0 | AG108: 0 | AH108: 0 | AI108: 0 | AJ108: 0 | AK108: 0 | AL108: 0 | AM108: 0 | AN108: 0 | AO108: 0 | AP108: 0 | AQ108: 0 | AR108: 0 | AS108: 0 | AT108: 0 | AU108: 0 | AV108: 0 | AW108: 0
A109: BD000000 | B109: Non-current liabilities | C109: -9154052251 | D109: -29375801 | E109: 0 | F109: -107822937.2 | G109: -953613531.7 | H109: -315366875.5 | I109: -115891 | J109: 0 | K109: -72030573.41 | L109: -3903477348 | M109: -1310924940 | N109: 0 | O109: 0 | P109: 0 | Q109: 0 | R109: 0 | S109: 0 | T109: 0 | U109: 0 | V109: 0 | W109: 0 | X109: 0 | Y109: 0 | Z109: 0 | AA109: 0 | AB109: 0 | AC109: 0 | AD109: -33213163.88 | AE109: -2428111189 | AF109: 0 | AG109: -107822937.2 | AH109: 0 | AI109: 0 | AJ109: 0 | AK109: 0 | AL109: -953613531.7 | AM109: 0 | AN109: 0 | AO109: -315366875.5 | AP109: 0 | AQ109: 0 | AR109: 0 | AS109: 0 | AT109: 0 | AU109: -2765754348 | AV109: 0 | AW109: 0
A110: BD100000 | B110: Borrowings | C110: -1484768085 | D110: 0 | E110: 0 | F110: 0 | G110: 0.01 | H110: 0 | I110: 100 | J110: 0 | K110: 0 | L110: 0 | M110: -26580033.31 | N110: 0 | O110: 0 | P110: 0 | Q110: 0 | R110: 0 | S110: 0 | T110: 0 | U110: 0 | V110: 0 | W110: 0 | X110: 0 | Y110: 0 | Z110: 0 | AA110: 0 | AB110: 0 | AC110: 0 | AD110: 0 | AE110: -1458188152 | AF110: 0 | AG110: 0 | AH110: 0 | AI110: 0 | AJ110: 0 | AK110: 0 | AL110: 0.01 | AM110: 0 | AN110: 0 | AO110: 0 | AP110: 0 | AQ110: 0 | AR110: 0 | AS110: 0 | AT110: 0 | AU110: 0 | AV110: 0 | AW110: 0
A111: BD101000 | B111: Secured loans | C111: -1484768185 | D111: 0 | E111: 0 | F111: 0 | G111: 0.01 | H111: 0 | I111: 0 | J111: 0 | K111: 0 | L111: 0 | M111: -26580033.31 | N111: 0 | O111: 0 | P111: 0 | Q111: 0 | R111: 0 | S111: 0 | T111: 0 | U111: 0 | V111: 0 | W111: 0 | X111: 0 | Y111: 0 | Z111: 0 | AA111: 0 | AB111: 0 | AC111: 0 | AD111: 0 | AE111: -1458188152 | AF111: 0 | AG111: 0 | AH111: 0 | AI111: 0 | AJ111: 0 | AK111: 0 | AL111: 0.01 | AM111: 0 | AN111: 0 | AO111: 0 | AP111: 0 | AQ111: 0 | AR111: 0 | AS111: 0 | AT111: 0 | AU111: 0 | AV111: 0 | AW111: 0
A112: BD101010 | B112: Secured loans : Westpack | C112: -26580033.34 | D112: 0 | E112: 0 | F112: 0 | G112: 0 | H112: 0 | I112: 0 | J112: 0 | K112: 0 | L112: 0 | M112: -26580033.34 | N112: 0 | O112: 0 | P112: 0 | Q112: 0 | R112: 0 | S112: 0 | T112: 0 | U112: 0 | V112: 0 | W112: 0 | X112: 0 | Y112: 0 | Z112: 0 | AA112: 0 | AB112: 0 | AC112: 0 | AD112: 0 | AE112: 0 | AF112: 0 | AG112: 0 | AH112: 0 | AI112: 0 | AJ112: 0 | AK112: 0 | AL112: 0 | AM112: 0 | AN112: 0 | AO112: 0 | AP112: 0 | AQ112: 0 | AR112: 0 | AS112: 0 | AT112: 0 | AU112: 0 | AV112: 0 | AW112: 0
A113: BD101990 | B113: Secured loans : Other | C113: -1458188152 | D113: 0 | E113: 0 | F113: 0 | G113: 0.01 | H113: 0 | I113: 0 | J113: 0 | K113: 0 | L113: 0 | M113: 0.027 | N113: 0 | O113: 0 | P113: 0 | Q113: 0 | R113: 0 | S113: 0 | T113: 0 | U113: 0 | V113: 0 | W113: 0 | X113: 0 | Y113: 0 | Z113: 0 | AA113: 0 | AB113: 0 | AC113: 0 | AD113: 0 | AE113: -1458188152 | AF113: 0 | AG113: 0 | AH113: 0 | AI113: 0 | AJ113: 0 | AK113: 0 | AL113: 0.01 | AM113: 0 | AN113: 0 | AO113: 0 | AP113: 0 | AQ113: 0 | AR113: 0 | AS113: 0 | AT113: 0 | AU113: 0 | AV113: 0 | AW113: 0
A114: BD102000 | B114: Unsecured loans | C114: 100 | D114: 0 | E114: 0 | F114: 0 | G114: 0 | H114: 0 | I114: 100 | J114: 0 | K114: 0 | L114: 0 | M114: 0 | N114: 0 | O114: 0 | P114: 0 | Q114: 0 | R114: 0 | S114: 0 | T114: 0 | U114: 0 | V114: 0 | W114: 0 | X114: 0 | Y114: 0 | Z114: 0 | AA114: 0 | AB114: 0 | AC114: 0 | AD114: 0 | AE114: 0 | AF114: 0 | AG114: 0 | AH114: 0 | AI114: 0 | AJ114: 0 | AK114: 0 | AL114: 0 | AM114: 0 | AN114: 0 | AO114: 0 | AP114: 0 | AQ114: 0 | AR114: 0 | AS114: 0 | AT114: 0 | AU114: 0 | AV114: 0 | AW114: 0
A115: BD102990 | B115: Unsecured Loans : Other | C115: 100 | D115: 0 | E115: 0 | F115: 0 | G115: 0 | H115: 0 | I115: 100 | J115: 0 | K115: 0 | L115: 0 | M115: 0 | N115: 0 | O115: 0 | P115: 0 | Q115: 0 | R115: 0 | S115: 0 | T115: 0 | U115: 0 | V115: 0 | W115: 0 | X115: 0 | Y115: 0 | Z115: 0 | AA115: 0 | AB115: 0 | AC115: 0 | AD115: 0 | AE115: 0 | AF115: 0 | AG115: 0 | AH115: 0 | AI115: 0 | AJ115: 0 | AK115: 0 | AL115: 0 | AM115: 0 | AN115: 0 | AO115: 0 | AP115: 0 | AQ115: 0 | AR115: 0 | AS115: 0 | AT115: 0 | AU115: 0 | AV115: 0 | AW115: 0
A116: BD103000 | B116: Bonds | C116: 0 | D116: 0 | E116: 0 | F116: 0 | G116: 0 | H116: 0 | I116: 0 | J116: 0 | K116: 0 | L116: 0 | M116: 0 | N116: 0 | O116: 0 | P116: 0 | Q116: 0 | R116: 0 | S116: 0 | T116: 0 | U116: 0 | V116: 0 | W116: 0 | X116: 0 | Y116: 0 | Z116: 0 | AA116: 0 | AB116: 0 | AC116: 0 | AD116: 0 | AE116: 0 | AF116: 0 | AG116: 0 | AH116: 0 | AI116: 0 | AJ116: 0 | AK116: 0 | AL116: 0 | AM116: 0 | AN116: 0 | AO116: 0 | AP116: 0 | AQ116: 0 | AR116: 0 | AS116: 0 | AT116: 0 | AU116: 0 | AV116: 0 | AW116: 0
A117: BD103010 | B117: Bond : Convertible | C117: 0 | D117: 0 | E117: 0 | F117: 0 | G117: 0 | H117: 0 | I117: 0 | J117: 0 | K117: 0 | L117: 0 | M117: 0 | N117: 0 | O117: 0 | P117: 0 | Q117: 0 | R117: 0 | S117: 0 | T117: 0 | U117: 0 | V117: 0 | W117: 0 | X117: 0 | Y117: 0 | Z117: 0 | AA117: 0 | AB117: 0 | AC117: 0 | AD117: 0 | AE117: 0 | AF117: 0 | AG117: 0 | AH117: 0 | AI117: 0 | AJ117: 0 | AK117: 0 | AL117: 0 | AM117: 0 | AN117: 0 | AO117: 0 | AP117: 0 | AQ117: 0 | AR117: 0 | AS117: 0 | AT117: 0 | AU117: 0 | AV117: 0 | AW117: 0
A118: BD300000 | B118: Deferred tax | C118: -5690691099 | D118: -29375801 | E118: 0 | F118: 0 | G118: -846627277.6 | H118: -170148447 | I118: 0 | J118: 0 | K118: -1.62 | L118: -3031489244 | M118: -1170495368 | N118: 0 | O118: 0 | P118: 0 | Q118: 0 | R118: 0 | S118: 0 | T118: 0 | U118: 0 | V118: 0 | W118: 0 | X118: 0 | Y118: 0 | Z118: 0 | AA118: 0 | AB118: 0 | AC118: 0 | AD118: -13575547 | AE118: -428979413 | AF118: 0 | AG118: 0 | AH118: 0 | AI118: 0 | AJ118: 0 | AK118: 0 | AL118: -846627277.6 | AM118: 0 | AN118: 0 | AO118: -170148447 | AP118: 0 | AQ118: 0 | AR118: 0 | AS118: 0 | AT118: 0 | AU118: -1893766244 | AV118: 0 | AW118: 0
A119: BD500000 | B119: Provisions for other liabilities and charges | C119: -1978593067 | D119: 0 | E119: 0 | F119: -107822937.2 | G119: -106986254.1 | H119: -145218428.5 | I119: -115991 | J119: 0 | K119: -72030571.79 | L119: -871988104.4 | M119: -113849538.8 | N119: 0 | O119: 0 | P119: 0 | Q119: 0 | R119: 0 | S119: 0 | T119: 0 | U119: 0 | V119: 0 | W119: 0 | X119: 0 | Y119: 0 | Z119: 0 | AA119: 0 | AB119: 0 | AC119: 0 | AD119: -19637616.88 | AE119: -540943623.9 | AF119: 0 | AG119: -107822937.2 | AH119: 0 | AI119: 0 | AJ119: 0 | AK119: 0 | AL119: -106986254.1 | AM119: 0 | AN119: 0 | AO119: -145218428.5 | AP119: 0 | AQ119: 0 | AR119: 0 | AS119: 0 | AT119: 0 | AU119: -871988104.4 | AV119: 0 | AW119: 0
A120: BD501000 | B120: Environmental | C120: -1799018747 | D120: 0 | E120: 0 | F120: -99696073.99 | G120: -106986254.1 | H120: -144267047 | I120: -115991 | J120: 0 | K120: -72030571.79 | L120: -735435101.5 | M120: -113849541.6 | N120: 0 | O120: 0 | P120: 0 | Q120: 0 | R120: 0 | S120: 0 | T120: 0 | U120: 0 | V120: 0 | W120: 0 | X120: 0 | Y120: 0 | Z120: 0 | AA120: 0 | AB120: 0 | AC120: 0 | AD120: -19637616.88 | AE120: -507000549.4 | AF120: 0 | AG120: -99696073.99 | AH120: 0 | AI120: 0 | AJ120: 0 | AK120: 0 | AL120: -106986254.1 | AM120: 0 | AN120: 0 | AO120: -144267047 | AP120: 0 | AQ120: 0 | AR120: 0 | AS120: 0 | AT120: 0 | AU120: -735435101.5 | AV120: 0 | AW120: 0
A121: BD502000 | B121: CAWMS | C121: -161308945.7 | D121: 0 | E121: 0 | F121: -8126863.19 | G121: 0 | H121: -951381.53 | I121: 0 | J121: 0 | K121: 0 | L121: -136553002.9 | M121: 0 | N121: 0 | O121: 0 | P121: 0 | Q121: 0 | R121: 0 | S121: 0 | T121: 0 | U121: 0 | V121: 0 | W121: 0 | X121: 0 | Y121: 0 | Z121: 0 | AA121: 0 | AB121: 0 | AC121: 0 | AD121: 0 | AE121: -15677698.08 | AF121: 0 | AG121: -8126863.19 | AH121: 0 | AI121: 0 | AJ121: 0 | AK121: 0 | AL121: 0 | AM121: 0 | AN121: 0 | AO121: -951381.53 | AP121: 0 | AQ121: 0 | AR121: 0 | AS121: 0 | AT121: 0 | AU121: -136553002.9 | AV121: 0 | AW121: 0
A122: BD503000 | B122: Social plan | C122: -18265376.42 | D122: 0 | E122: 0 | F122: 0 | G122: 0 | H122: 0 | I122: 0 | J122: 0 | K122: 0 | L122: 0 | M122: 0 | N122: 0 | O122: 0 | P122: 0 | Q122: 0 | R122: 0 | S122: 0 | T122: 0 | U122: 0 | V122: 0 | W122: 0 | X122: 0 | Y122: 0 | Z122: 0 | AA122: 0 | AB122: 0 | AC122: 0 | AD122: 0 | AE122: -18265376.42 | AF122: 0 | AG122: 0 | AH122: 0 | AI122: 0 | AJ122: 0 | AK122: 0 | AL122: 0 | AM122: 0 | AN122: 0 | AO122: 0 | AP122: 0 | AQ122: 0 | AR122: 0 | AS122: 0 | AT122: 0 | AU122: 0 | AV122: 0 | AW122: 0
A123: BD509000 | B123: Other : provision and liabilities | C123: 0 | D123: 0 | E123: 0 | F123: 0 | G123: 0 | H123: 0 | I123: 0 | J123: 0 | K123: 0 | L123: 0 | M123: 0 | N123: 0 | O123: 0 | P123: 0 | Q123: 0 | R123: 0 | S123: 0 | T123: 0 | U123: 0 | V123: 0 | W123: 0 | X123: 0 | Y123: 0 | Z123: 0 | AA123: 0 | AB123: 0 | AC123: 0 | AD123: 0 | AE123: 0 | AF123: 0 | AG123: 0 | AH123: 0 | AI123: 0 | AJ123: 0 | AK123: 0 | AL123: 0 | AM123: 0 | AN123: 0 | AO123: 0 | AP123: 0 | AQ123: 0 | AR123: 0 | AS123: 0 | AT123: 0 | AU123: 0 | AV123: 0 | AW123: 0
A124: BE000000 | B124: Current liabilities | C124: -1987767862 | D124: 0 | E124: -1330084.79 | F124: -145189890.9 | G124: -307179698.9 | H124: -93147793.33 | I124: -1211667.89 | J124: -941086.32 | K124: -205668.12 | L124: -373704300.6 | M124: -307248971.2 | N124: 0 | O124: 0 | P124: 0 | Q124: 0 | R124: -19048.57 | S124: -159060.14 | T124: 0 | U124: -318988.52 | V124: 0 | W124: 0 | X124: 0 | Y124: 0 | Z124: -5527103.13 | AA124: 0 | AB124: 0 | AC124: 0 | AD124: -27536886.59 | AE124: -724047612.7 | AF124: 0 | AG124: -1135436635 | AH124: 0 | AI124: 0 | AJ124: 0 | AK124: -5812.9 | AL124: -1818342733 | AM124: 0 | AN124: -36961.04 | AO124: -349336130.5 | AP124: -221425.62 | AQ124: -52.63 | AR124: 0 | AS124: 0 | AT124: 0 | AU124: -1907675997 | AV124: -354482449.6 | AW124: 0
A125: BE110000 | B125: Trade and other payables | C125: -1638922086 | D125: 0 | E125: -100 | F125: -131557879.3 | G125: -307179698.9 | H125: -93146471.7 | I125: 0 | J125: 0 | K125: -205668.12 | L125: -373704300.6 | M125: -276129696.2 | N125: 0 | O125: 0 | P125: 0 | Q125: 0 | R125: 0 | S125: -159060.14 | T125: 0 | U125: 0 | V125: 0 | W125: 0 | X125: 0 | Y125: 0 | Z125: -5527103.13 | AA125: 0 | AB125: 0 | AC125: 0 | AD125: -27536886.59 | AE125: -423775221.7 | AF125: 0 | AG125: -131557879.3 | AH125: 0 | AI125: 0 | AJ125: 0 | AK125: -5812.9 | AL125: -307173886 | AM125: 0 | AN125: 0 | AO125: -93141804.28 | AP125: -4667.42 | AQ125: 0 | AR125: 0 | AS125: 0 | AT125: 0 | AU125: -365975438.4 | AV125: -7728862.18 | AW125: 0
A126: BE110100 | B126: Trade | C126: -432439747.4 | D126: 0 | E126: 0 | F126: -59210181.14 | G126: -129252501.7 | H126: -37369163.3 | I126: 0 | J126: 0 | K126: 161321.55 | L126: -148875949.5 | M126: -199335404.2 | N126: 0 | O126: 0 | P126: 0 | Q126: 0 | R126: 0 | S126: -159060.14 | T126: 0 | U126: 0 | V126: 0 | W126: 0 | X126: 0 | Y126: 0 | Z126: -3009629.03 | AA126: 0 | AB126: 0 | AC126: 0 | AD126: -17676717.63 | AE126: 162287537.7 | AF126: 0 | AG126: -59210181.14 | AH126: 0 | AI126: 0 | AJ126: 0 | AK126: 0 | AL126: -129252501.7 | AM126: 0 | AN126: 0 | AO126: -37364495.88 | AP126: -4667.42 | AQ126: 0 | AR126: 0 | AS126: 0 | AT126: 0 | AU126: -146885290.5 | AV126: -1990659.02 | AW126: 0
A127: BE110200 | B127: Payroll | C127: -159421424.6 | D127: 0 | E127: 0 | F127: 0 | G127: -10783.98 | H127: 0 | I127: 0 | J127: 0 | K127: 0 | L127: 0 | M127: -26661438.31 | N127: 0 | O127: 0 | P127: 0 | Q127: 0 | R127: 0 | S127: 0 | T127: 0 | U127: 0 | V127: 0 | W127: 0 | X127: 0 | Y127: 0 | Z127: 0 | AA127: 0 | AB127: 0 | AC127: 0 | AD127: -5451.17 | AE127: -132743751.1 | AF127: 0 | AG127: 0 | AH127: 0 | AI127: 0 | AJ127: 0 | AK127: 0 | AL127: -10783.98 | AM127: 0 | AN127: 0 | AO127: 0 | AP127: 0 | AQ127: 0 | AR127: 0 | AS127: 0 | AT127: 0 | AU127: 0 | AV127: 0 | AW127: 0
A128: BE110210 | B128: Pension and provident funds | C128: -62629416.71 | D128: 0 | E128: 0 | F128: 0 | G128: 0 | H128: 0 | I128: 0 | J128: 0 | K128: 0 | L128: 0 | M128: -769864.483 | N128: 0 | O128: 0 | P128: 0 | Q128: 0 | R128: 0 | S128: 0 | T128: 0 | U128: 0 | V128: 0 | W128: 0 | X128: 0 | Y128: 0 | Z128: 0 | AA128: 0 | AB128: 0 | AC128: 0 | AD128: 0 | AE128: -61859552.23 | AF128: 0 | AG128: 0 | AH128: 0 | AI128: 0 | AJ128: 0 | AK128: 0 | AL128: 0 | AM128: 0 | AN128: 0 | AO128: 0 | AP128: 0 | AQ128: 0 | AR128: 0 | AS128: 0 | AT128: 0 | AU128: 0 | AV128: 0 | AW128: 0
A129: BE110220 | B129: Medical aids | C129: 5710.79 | D129: 0 | E129: 0 | F129: 0 | G129: 0 | H129: 0 | I129: 0 | J129: 0 | K129: 0 | L129: 0 | M129: 0 | N129: 0 | O129: 0 | P129: 0 | Q129: 0 | R129: 0 | S129: 0 | T129: 0 | U129: 0 | V129: 0 | W129: 0 | X129: 0 | Y129: 0 | Z129: 0 | AA129: 0 | AB129: 0 | AC129: 0 | AD129: 0 | AE129: 5710.79 | AF129: 0 | AG129: 0 | AH129: 0 | AI129: 0 | AJ129: 0 | AK129: 0 | AL129: 0 | AM129: 0 | AN129: 0 | AO129: 0 | AP129: 0 | AQ129: 0 | AR129: 0 | AS129: 0 | AT129: 0 | AU129: 0 | AV129: 0 | AW129: 0
A130: BE110230 | B130: SARS PAYE | C130: -59063850.02 | D130: 0 | E130: 0 | F130: 0 | G130: 0 | H130: 0 | I130: 0 | J130: 0 | K130: 0 | L130: 0 | M130: -3891233.519 | N130: 0 | O130: 0 | P130: 0 | Q130: 0 | R130: 0 | S130: 0 | T130: 0 | U130: 0 | V130: 0 | W130: 0 | X130: 0 | Y130: 0 | Z130: 0 | AA130: 0 | AB130: 0 | AC130: 0 | AD130: 0 | AE130: -55172616.5 | AF130: 0 | AG130: 0 | AH130: 0 | AI130: 0 | AJ130: 0 | AK130: 0 | AL130: 0 | AM130: 0 | AN130: 0 | AO130: 0 | AP130: 0 | AQ130: 0 | AR130: 0 | AS130: 0 | AT130: 0 | AU130: 0 | AV130: 0 | AW130: 0
A131: BE110290 | B131: Other : Payroll creditors | C131: -37733868.62 | D131: 0 | E131: 0 | F131: 0 | G131: -10783.98 | H131: 0 | I131: 0 | J131: 0 | K131: 0 | L131: 0 | M131: -22000340.31 | N131: 0 | O131: 0 | P131: 0 | Q131: 0 | R131: 0 | S131: 0 | T131: 0 | U131: 0 | V131: 0 | W131: 0 | X131: 0 | Y131: 0 | Z131: 0 | AA131: 0 | AB131: 0 | AC131: 0 | AD131: -5451.17 | AE131: -15717293.16 | AF131: 0 | AG131: 0 | AH131: 0 | AI131: 0 | AJ131: 0 | AK131: 0 | AL131: -10783.98 | AM131: 0 | AN131: 0 | AO131: 0 | AP131: 0 | AQ131: 0 | AR131: 0 | AS131: 0 | AT131: 0 | AU131: 0 | AV131: 0 | AW131: 0
A132: BE110300 | B132: Leave | C132: -425974409.4 | D132: 0 | E132: 0 | F132: -41512444.3 | G132: -75956104.31 | H132: -27900316.31 | I132: 0 | J132: 0 | K132: 0 | L132: -142173922.1 | M132: -26288458.66 | N132: 0 | O132: 0 | P132: 0 | Q132: 0 | R132: 0 | S132: 0 | T132: 0 | U132: 0 | V132: 0 | W132: 0 | X132: 0 | Y132: 0 | Z132: -1238922.75 | AA132: 0 | AB132: 0 | AC132: 0 | AD132: -4095692.52 | AE132: -106808548.5 | AF132: 0 | AG132: -41512444.3 | AH132: 0 | AI132: 0 | AJ132: 0 | AK132: 0 | AL132: -75956104.31 | AM132: 0 | AN132: 0 | AO132: -27900316.31 | AP132: 0 | AQ132: 0 | AR132: 0 | AS132: 0 | AT132: 0 | AU132: -142173922.1 | AV132: 0 | AW132: 0
A133: BE110400 | B133: VAT | C133: -78498733.05 | D133: 0 | E133: 0 | F133: 0 | G133: -5812.9 | H133: 0 | I133: 0 | J133: 0 | K133: 0 | L133: 0 | M133: -446092.379 | N133: 0 | O133: 0 | P133: 0 | Q133: 0 | R133: 0 | S133: 0 | T133: 0 | U133: 0 | V133: 0 | W133: 0 | X133: 0 | Y133: 0 | Z133: 0 | AA133: 0 | AB133: 0 | AC133: 0 | AD133: 0 | AE133: -78046827.77 | AF133: 0 | AG133: 0 | AH133: 0 | AI133: 0 | AJ133: 0 | AK133: -5812.9 | AL133: 0 | AM133: 0 | AN133: 0 | AO133: 0 | AP133: 0 | AQ133: 0 | AR133: 0 | AS133: 0 | AT133: 0 | AU133: 0 | AV133: 0 | AW133: 0
A134: BE110500 | B134: Shaft accruals | C134: -136223609.8 | D134: 0 | E134: 0 | F134: -16946715.93 | G134: -25358450.77 | H134: -13300783.64 | I134: 0 | J134: 0 | K134: 0 | L134: -42672410.62 | M134: 0 | N134: 0 | O134: 0 | P134: 0 | Q134: 0 | R134: 0 | S134: 0 | T134: 0 | U134: 0 | V134: 0 | W134: 0 | X134: 0 | Y134: 0 | Z134: 0 | AA134: 0 | AB134: 0 | AC134: 0 | AD134: -1749134.79 | AE134: -36196114.08 | AF134: 0 | AG134: -16946715.93 | AH134: 0 | AI134: 0 | AJ134: 0 | AK134: 0 | AL134: -25358450.77 | AM134: 0 | AN134: 0 | AO134: -13300783.64 | AP134: 0 | AQ134: 0 | AR134: 0 | AS134: 0 | AT134: 0 | AU134: -42672410.62 | AV134: 0 | AW134: 0
A135: BE110600 | B135: Power accrual | C135: -79849344.5 | D135: 0 | E135: 0 | F135: -10146437.72 | G135: -40600228.71 | H135: -8853418.28 | I135: 0 | J135: 0 | K135: -238195.22 | L135: -99440.6 | M135: 0 | N135: 0 | O135: 0 | P135: 0 | Q135: 0 | R135: 0 | S135: 0 | T135: 0 | U135: 0 | V135: 0 | W135: 0 | X135: 0 | Y135: 0 | Z135: 0 | AA135: 0 | AB135: 0 | AC135: 0 | AD135: 0 | AE135: -19911623.97 | AF135: 0 | AG135: -10146437.72 | AH135: 0 | AI135: 0 | AJ135: 0 | AK135: 0 | AL135: -40600228.71 | AM135: 0 | AN135: 0 | AO135: -8853418.28 | AP135: 0 | AQ135: 0 | AR135: 0 | AS135: 0 | AT135: 0 | AU135: -99440.6 | AV135: 0 | AW135: 0
A136: BE110900 | B136: Other : Trade and other payables | C136: -326514817.7 | D136: 0 | E136: -100 | F136: -3742100.19 | G136: -35995816.59 | H136: -5722790.17 | I136: 0 | J136: 0 | K136: -128794.45 | L136: -39882577.82 | M136: -23398302.61 | N136: 0 | O136: 0 | P136: 0 | Q136: 0 | R136: 0 | S136: 0 | T136: 0 | U136: 0 | V136: 0 | W136: 0 | X136: 0 | Y136: 0 | Z136: -1278551.35 | AA136: 0 | AB136: 0 | AC136: 0 | AD136: -4009890.48 | AE136: -212355894 | AF136: 0 | AG136: -3742100.19 | AH136: 0 | AI136: 0 | AJ136: 0 | AK136: 0 | AL136: -35995816.59 | AM136: 0 | AN136: 0 | AO136: -5722790.17 | AP136: 0 | AQ136: 0 | AR136: 0 | AS136: 0 | AT136: 0 | AU136: -34144374.66 | AV136: -5738203.16 | AW136: 0
A137: BE120000 | B137: Income tax | C137: -17454109.31 | D137: 0 | E137: -1329984.79 | F137: -13632011.59 | G137: 0 | H137: -1321.63 | I137: -1211667.89 | J137: -941086.32 | K137: 0 | L137: 0 | M137: 0 | N137: 0 | O137: 0 | P137: 0 | Q137: 0 | R137: -19048.57 | S137: 0 | T137: 0 | U137: -318988.52 | V137: 0 | W137: 0 | X137: 0 | Y137: 0 | Z137: 0 | AA137: 0 | AB137: 0 | AC137: 0 | AD137: 0 | AE137: 0 | AF137: 0 | AG137: -13632011.59 | AH137: 0 | AI137: 0 | AJ137: 0 | AK137: 0 | AL137: 0 | AM137: 0 | AN137: -1321.63 | AO137: 0 | AP137: 0 | AQ137: 0 | AR137: 0 | AS137: 0 | AT137: 0 | AU137: 0 | AV137: 0 | AW137: 0
A138: BE201000 | B138: Loans from subsidiaries | C138: 0.001 | D138: 0 | E138: 0 | F138: 0 | G138: 0 | H138: 0 | I138: 0 | J138: 0 | K138: 0 | L138: 0 | M138: 0.001 | N138: 0 | O138: 0 | P138: 0 | Q138: 0 | R138: 0 | S138: 0 | T138: 0 | U138: 0 | V138: 0 | W138: 0 | X138: 0 | Y138: 0 | Z138: 0 | AA138: 0 | AB138: 0 | AC138: 0 | AD138: 0 | AE138: 1e-06 | AF138: 0 | AG138: -990246744 | AH138: 0 | AI138: 0 | AJ138: 0 | AK138: 0 | AL138: -1511168847 | AM138: 0 | AN138: -35639.41 | AO138: -256194326.2 | AP138: -216758.2 | AQ138: -52.63 | AR138: 0 | AS138: 0 | AT138: 0 | AU138: -1541700558 | AV138: -346753587.4 | AW138: 0
A139: BE202000 | B139: Borrowings | C139: -331391666.1 | D139: 0 | E139: 0 | F139: 0 | G139: 0 | H139: 0 | I139: 0 | J139: 0 | K139: 0 | L139: 0 | M139: -31119275.07 | N139: 0 | O139: 0 | P139: 0 | Q139: 0 | R139: 0 | S139: 0 | T139: 0 | U139: 0 | V139: 0 | W139: 0 | X139: 0 | Y139: 0 | Z139: 0 | AA139: 0 | AB139: 0 | AC139: 0 | AD139: 0 | AE139: -300272391 | AF139: 0 | AG139: 0 | AH139: 0 | AI139: 0 | AJ139: 0 | AK139: 0 | AL139: 0 | AM139: 0 | AN139: 0 | AO139: 0 | AP139: 0 | AQ139: 0 | AR139: 0 | AS139: 0 | AT139: 0 | AU139: 0 | AV139: 0 | AW139: 0
A140: BE500000 | B140: Liabilities classified as held-for-sale | C140: 0 | D140: 0 | E140: 0 | F140: 0 | G140: 0 | H140: 0 | I140: 0 | J140: 0 | K140: 0 | L140: 0 | M140: 0 | N140: 0 | O140: 0 | P140: 0 | Q140: 0 | R140: 0 | S140: 0 | T140: 0 | U140: 0 | V140: 0 | W140: 0 | X140: 0 | Y140: 0 | Z140: 0 | AA140: 0 | AB140: 0 | AC140: 0 | AD140: 0 | AE140: 0 | AF140: 0 | AG140: 0 | AH140: 0 | AI140: 0 | AJ140: 0 | AK140: 0 | AL140: 0 | AM140: 0 | AN140: 0 | AO140: 0 | AP140: 0 | AQ140: 0 | AR140: 0 | AS140: 0 | AT140: 0 | AU140: 0 | AV140: 0 | AW140: 0
A141: CA100000 | B141: Revenue | C141: -1.010640035e+10 | D141: -101426288 | E141: 0 | F141: -851555321.4 | G141: -2048587847 | H141: -654104123 | I141: 0 | J141: 0 | K141: 0 | L141: -3236884523 | M141: -756289547.3 | N141: 0 | O141: 0 | P141: 0 | Q141: 0 | R141: 0 | S141: 0 | T141: 0 | U141: 0 | V141: 0 | W141: 0 | X141: 0 | Y141: 0 | Z141: 0 | AA141: 0 | AB141: 0 | AC141: 0 | AD141: -312089293.2 | AE141: -2145463409 | AF141: 0 | AG141: -851555321.4 | AH141: 0 | AI141: 0 | AJ141: 0 | AK141: 0 | AL141: -2048587847 | AM141: 0 | AN141: 0 | AO141: -654104123 | AP141: 0 | AQ141: 0 | AR141: 0 | AS141: 0 | AT141: 0 | AU141: -3236884523 | AV141: 0 | AW141: 0
A142: CA101000 | B142: Revenue : Gold sales | C142: -1.010640035e+10 | D142: -101426288 | E142: 0 | F142: -851555321.4 | G142: -2048587847 | H142: -654104123 | I142: 0 | J142: 0 | K142: 0 | L142: -3236884523 | M142: -756289547.3 | N142: 0 | O142: 0 | P142: 0 | Q142: 0 | R142: 0 | S142: 0 | T142: 0 | U142: 0 | V142: 0 | W142: 0 | X142: 0 | Y142: 0 | Z142: 0 | AA142: 0 | AB142: 0 | AC142: 0 | AD142: -312089293.2 | AE142: -2145463409 | AF142: 0 | AG142: -851555321.4 | AH142: 0 | AI142: 0 | AJ142: 0 | AK142: 0 | AL142: -2048587847 | AM142: 0 | AN142: 0 | AO142: -654104123 | AP142: 0 | AQ142: 0 | AR142: 0 | AS142: 0 | AT142: 0 | AU142: -3236884523 | AV142: 0 | AW142: 0
A143: CA102000 | B143: Revenue : Co-products | C143: 0 | D143: 0 | E143: 0 | F143: 0 | G143: 0 | H143: 0 | I143: 0 | J143: 0 | K143: 0 | L143: 0 | M143: 0 | N143: 0 | O143: 0 | P143: 0 | Q143: 0 | R143: 0 | S143: 0 | T143: 0 | U143: 0 | V143: 0 | W143: 0 | X143: 0 | Y143: 0 | Z143: 0 | AA143: 0 | AB143: 0 | AC143: 0 | AD143: 0 | AE143: 0 | AF143: 0 | AG143: 0 | AH143: 0 | AI143: 0 | AJ143: 0 | AK143: 0 | AL143: 0 | AM143: 0 | AN143: 0 | AO143: 0 | AP143: 0 | AQ143: 0 | AR143: 0 | AS143: 0 | AT143: 0 | AU143: 0 | AV143: 0 | AW143: 0
A144: DA100000 | B144: Production cost | C144: 7521508568 | D144: 83220653 | E144: 0 | F144: 635614276.9 | G144: 1597613518 | H144: 558654976.9 | I144: 0 | J144: 0 | K144: 0 | L144: 2388147196 | M144: 555368837 | N144: 0 | O144: 0 | P144: 0 | Q144: 0 | R144: 0 | S144: 0 | T144: 0 | U144: 0 | V144: 0 | W144: 0 | X144: 0 | Y144: 0 | Z144: 0 | AA144: 0 | AB144: 0 | AC144: 0 | AD144: 249149671.1 | AE144: 1453739439 | AF144: 0 | AG144: 635614276.9 | AH144: 0 | AI144: 0 | AJ144: 0 | AK144: 0 | AL144: 1597613518 | AM144: 0 | AN144: 0 | AO144: 558654976.9 | AP144: 0 | AQ144: 0 | AR144: 0 | AS144: 0 | AT144: 0 | AU144: 2388147196 | AV144: 0 | AW144: 0
A145: DA101000 | B145: Labour | C145: 3657964739 | D145: 0 | E145: 0 | F145: 399432541.9 | G145: 747439651.2 | H145: 306165519.4 | I145: 0 | J145: 0 | K145: 0 | L145: 1333125322 | M145: 95331969.44 | N145: 0 | O145: 0 | P145: 0 | Q145: 0 | R145: 0 | S145: 0 | T145: 0 | U145: 0 | V145: 0 | W145: 0 | X145: 0 | Y145: 0 | Z145: 0 | AA145: 0 | AB145: 0 | AC145: 0 | AD145: 43082328.8 | AE145: 733387406.2 | AF145: 0 | AG145: 399432541.9 | AH145: 0 | AI145: 0 | AJ145: 0 | AK145: 0 | AL145: 747439651.2 | AM145: 0 | AN145: 0 | AO145: 306165519.4 | AP145: 0 | AQ145: 0 | AR145: 0 | AS145: 0 | AT145: 0 | AU145: 1333125322 | AV145: 0 | AW145: 0
A146: DA101100 | B146: Payroll 1 Cost | C146: 1626235918 | D146: 0 | E146: 0 | F146: 258384301.9 | G146: 290370248.6 | H146: 120894107.4 | I146: 0 | J146: 0 | K146: 0 | L146: 534318111.4 | M146: 95331969.44 | N146: 0 | O146: 0 | P146: 0 | Q146: 0 | R146: 0 | S146: 0 | T146: 0 | U146: 0 | V146: 0 | W146: 0 | X146: 0 | Y146: 0 | Z146: 0 | AA146: 0 | AB146: 0 | AC146: 0 | AD146: 29180915.74 | AE146: 297756263.5 | AF146: 0 | AG146: 258384301.9 | AH146: 0 | AI146: 0 | AJ146: 0 | AK146: 0 | AL146: 290370248.6 | AM146: 0 | AN146: 0 | AO146: 120894107.4 | AP146: 0 | AQ146: 0 | AR146: 0 | AS146: 0 | AT146: 0 | AU146: 534318111.4 | AV146: 0 | AW146: 0
A147: DA101101 | B147: Payroll 1 : Cost to company | C147: 1418238978 | D147: 0 | E147: 0 | F147: 228764511.6 | G147: 252851065 | H147: 108491579.5 | I147: 0 | J147: 0 | K147: 0 | L147: 453556824.3 | M147: 89098967.49 | N147: 0 | O147: 0 | P147: 0 | Q147: 0 | R147: 0 | S147: 0 | T147: 0 | U147: 0 | V147: 0 | W147: 0 | X147: 0 | Y147: 0 | Z147: 0 | AA147: 0 | AB147: 0 | AC147: 0 | AD147: 25774927.97 | AE147: 259701101.9 | AF147: 0 | AG147: 228764511.6 | AH147: 0 | AI147: 0 | AJ147: 0 | AK147: 0 | AL147: 252851065 | AM147: 0 | AN147: 0 | AO147: 108491579.5 | AP147: 0 | AQ147: 0 | AR147: 0 | AS147: 0 | AT147: 0 | AU147: 453556824.3 | AV147: 0 | AW147: 0
A148: DA101105 | B148: Payroll 1 : Bonus | C148: 138456378.6 | D148: 0 | E148: 0 | F148: 19182037.35 | G148: 20911593.39 | H148: 12813958.56 | I148: 0 | J148: 0 | K148: 0 | L148: 51484473.31 | M148: 6233001.951 | N148: 0 | O148: 0 | P148: 0 | Q148: 0 | R148: 0 | S148: 0 | T148: 0 | U148: 0 | V148: 0 | W148: 0 | X148: 0 | Y148: 0 | Z148: 0 | AA148: 0 | AB148: 0 | AC148: 0 | AD148: 1671356.68 | AE148: 26159957.32 | AF148: 0 | AG148: 19182037.35 | AH148: 0 | AI148: 0 | AJ148: 0 | AK148: 0 | AL148: 20911593.39 | AM148: 0 | AN148: 0 | AO148: 12813958.56 | AP148: 0 | AQ148: 0 | AR148: 0 | AS148: 0 | AT148: 0 | AU148: 51484473.31 | AV148: 0 | AW148: 0
A149: DA101110 | B149: Payroll 1 : Overtime | C149: 71936067.28 | D149: 0 | E149: 0 | F149: 10322252.2 | G149: 16201112.69 | H149: 4805562.45 | I149: 0 | J149: 0 | K149: 0 | L149: 27565748.19 | M149: 0 | N149: 0 | O149: 0 | P149: 0 | Q149: 0 | R149: 0 | S149: 0 | T149: 0 | U149: 0 | V149: 0 | W149: 0 | X149: 0 | Y149: 0 | Z149: 0 | AA149: 0 | AB149: 0 | AC149: 0 | AD149: 1734631.09 | AE149: 11306760.66 | AF149: 0 | AG149: 10322252.2 | AH149: 0 | AI149: 0 | AJ149: 0 | AK149: 0 | AL149: 16201112.69 | AM149: 0 | AN149: 0 | AO149: 4805562.45 | AP149: 0 | AQ149: 0 | AR149: 0 | AS149: 0 | AT149: 0 | AU149: 27565748.19 | AV149: 0 | AW149: 0
A150: DA101115 | B150: Payroll 1 : Retrenchment | C150: -2395505.62 | D150: 0 | E150: 0 | F150: 115500.71 | G150: 406477.52 | H150: -5216993.07 | I150: 0 | J150: 0 | K150: 0 | L150: 1711065.59 | M150: 0 | N150: 0 | O150: 0 | P150: 0 | Q150: 0 | R150: 0 | S150: 0 | T150: 0 | U150: 0 | V150: 0 | W150: 0 | X150: 0 | Y150: 0 | Z150: 0 | AA150: 0 | AB150: 0 | AC150: 0 | AD150: 0 | AE150: 588443.63 | AF150: 0 | AG150: 115500.71 | AH150: 0 | AI150: 0 | AJ150: 0 | AK150: 0 | AL150: 406477.52 | AM150: 0 | AN150: 0 | AO150: -5216993.07 | AP150: 0 | AQ150: 0 | AR150: 0 | AS150: 0 | AT150: 0 | AU150: 1711065.59 | AV150: 0 | AW150: 0
A151: DA101200 | B151: Payroll 2 Cost | C151: 2031728821 | D151: 0 | E151: 0 | F151: 141048240 | G151: 457069402.6 | H151: 185271412.1 | I151: 0 | J151: 0 | K151: 0 | L151: 798807210.2 | M151: 0 | N151: 0 | O151: 0 | P151: 0 | Q151: 0 | R151: 0 | S151: 0 | T151: 0 | U151: 0 | V151: 0 | W151: 0 | X151: 0 | Y151: 0 | Z151: 0 | AA151: 0 | AB151: 0 | AC151: 0 | AD151: 13901413.06 | AE151: 435631142.7 | AF151: 0 | AG151: 141048240 | AH151: 0 | AI151: 0 | AJ151: 0 | AK151: 0 | AL151: 457069402.6 | AM151: 0 | AN151: 0 | AO151: 185271412.1 | AP151: 0 | AQ151: 0 | AR151: 0 | AS151: 0 | AT151: 0 | AU151: 798807210.2 | AV151: 0 | AW151: 0
A152: DA101201 | B152: Payroll 2 : Cost to company | C152: 1805062179 | D152: 0 | E152: 0 | F152: 126672334.5 | G152: 393889348.2 | H152: 167672811.3 | I152: 0 | J152: 0 | K152: 0 | L152: 711849568.7 | M152: 0 | N152: 0 | O152: 0 | P152: 0 | Q152: 0 | R152: 0 | S152: 0 | T152: 0 | U152: 0 | V152: 0 | W152: 0 | X152: 0 | Y152: 0 | Z152: 0 | AA152: 0 | AB152: 0 | AC152: 0 | AD152: 11969304.59 | AE152: 393008811.2 | AF152: 0 | AG152: 126672334.5 | AH152: 0 | AI152: 0 | AJ152: 0 | AK152: 0 | AL152: 393889348.2 | AM152: 0 | AN152: 0 | AO152: 167672811.3 | AP152: 0 | AQ152: 0 | AR152: 0 | AS152: 0 | AT152: 0 | AU152: 711849568.7 | AV152: 0 | AW152: 0
A153: DA101205 | B153: Payroll 2 : Bonus | C153: 134591286.6 | D153: 0 | E153: 0 | F153: 6242298.64 | G153: 37309601.34 | H153: 8996746.55 | I153: 0 | J153: 0 | K153: 0 | L153: 55721857.33 | M153: 0 | N153: 0 | O153: 0 | P153: 0 | Q153: 0 | R153: 0 | S153: 0 | T153: 0 | U153: 0 | V153: 0 | W153: 0 | X153: 0 | Y153: 0 | Z153: 0 | AA153: 0 | AB153: 0 | AC153: 0 | AD153: 845457.94 | AE153: 25475324.84 | AF153: 0 | AG153: 6242298.64 | AH153: 0 | AI153: 0 | AJ153: 0 | AK153: 0 | AL153: 37309601.34 | AM153: 0 | AN153: 0 | AO153: 8996746.55 | AP153: 0 | AQ153: 0 | AR153: 0 | AS153: 0 | AT153: 0 | AU153: 55721857.33 | AV153: 0 | AW153: 0
A154: DA101210 | B154: Payroll 2 : Overtime | C154: 71231860.79 | D154: 0 | E154: 0 | F154: 7052360.46 | G154: 16822610.86 | H154: 11005485.72 | I154: 0 | J154: 0 | K154: 0 | L154: 22674591.96 | M154: 0 | N154: 0 | O154: 0 | P154: 0 | Q154: 0 | R154: 0 | S154: 0 | T154: 0 | U154: 0 | V154: 0 | W154: 0 | X154: 0 | Y154: 0 | Z154: 0 | AA154: 0 | AB154: 0 | AC154: 0 | AD154: 988276.5 | AE154: 12688535.29 | AF154: 0 | AG154: 7052360.46 | AH154: 0 | AI154: 0 | AJ154: 0 | AK154: 0 | AL154: 16822610.86 | AM154: 0 | AN154: 0 | AO154: 11005485.72 | AP154: 0 | AQ154: 0 | AR154: 0 | AS154: 0 | AT154: 0 | AU154: 22674591.96 | AV154: 0 | AW154: 0
A155: DA101215 | B155: Payroll 2 : Retrenchment | C155: 20843494.65 | D155: 0 | E155: 0 | F155: 1081246.42 | G155: 9047842.16 | H155: -2403631.48 | I155: 0 | J155: 0 | K155: 0 | L155: 8561192.15 | M155: 0 | N155: 0 | O155: 0 | P155: 0 | Q155: 0 | R155: 0 | S155: 0 | T155: 0 | U155: 0 | V155: 0 | W155: 0 | X155: 0 | Y155: 0 | Z155: 0 | AA155: 0 | AB155: 0 | AC155: 0 | AD155: 98374.03 | AE155: 4458471.37 | AF155: 0 | AG155: 1081246.42 | AH155: 0 | AI155: 0 | AJ155: 0 | AK155: 0 | AL155: 9047842.16 | AM155: 0 | AN155: 0 | AO155: -2403631.48 | AP155: 0 | AQ155: 0 | AR155: 0 | AS155: 0 | AT155: 0 | AU155: 8561192.15 | AV155: 0 | AW155: 0
A156: DA102000 | B156: Stores | C156: 1871220118 | D156: 0 | E156: 0 | F156: 222653085 | G156: 343992142.5 | H156: 83221133.66 | I156: 0 | J156: 0 | K156: 0 | L156: 520943999 | M156: 308024300.8 | N156: 0 | O156: 0 | P156: 0 | Q156: 0 | R156: 0 | S156: 0 | T156: 0 | U156: 0 | V156: 0 | W156: 0 | X156: 0 | Y156: 0 | Z156: 0 | AA156: 0 | AB156: 0 | AC156: 0 | AD156: 78475034.51 | AE156: 313910422.5 | AF156: 0 | AG156: 222653085 | AH156: 0 | AI156: 0 | AJ156: 0 | AK156: 0 | AL156: 343992142.5 | AM156: 0 | AN156: 0 | AO156: 83221133.66 | AP156: 0 | AQ156: 0 | AR156: 0 | AS156: 0 | AT156: 0 | AU156: 520943999 | AV156: 0 | AW156: 0
A157: DA102010 | B157: Provision for obsolete cost | C157: 105768.71 | D157: 0 | E157: 0 | F157: -798.82 | G157: 84947.74 | H157: 0 | I157: 0 | J157: 0 | K157: 0 | L157: 0 | M157: 0 | N157: 0 | O157: 0 | P157: 0 | Q157: 0 | R157: 0 | S157: 0 | T157: 0 | U157: 0 | V157: 0 | W157: 0 | X157: 0 | Y157: 0 | Z157: 0 | AA157: 0 | AB157: 0 | AC157: 0 | AD157: 0 | AE157: 21619.79 | AF157: 0 | AG157: -798.82 | AH157: 0 | AI157: 0 | AJ157: 0 | AK157: 0 | AL157: 84947.74 | AM157: 0 | AN157: 0 | AO157: 0 | AP157: 0 | AQ157: 0 | AR157: 0 | AS157: 0 | AT157: 0 | AU157: 0 | AV157: 0 | AW157: 0
A158: DA102020 | B158: Drilling and consumables | C158: 36852229.22 | D158: 0 | E158: 0 | F158: 877519.92 | G158: 7689623.68 | H158: 1435038.16 | I158: 0 | J158: 0 | K158: 0 | L158: 10891489.5 | M158: 9438671.686 | N158: 0 | O158: 0 | P158: 0 | Q158: 0 | R158: 0 | S158: 0 | T158: 0 | U158: 0 | V158: 0 | W158: 0 | X158: 0 | Y158: 0 | Z158: 0 | AA158: 0 | AB158: 0 | AC158: 0 | AD158: 0 | AE158: 6519886.27 | AF158: 0 | AG158: 877519.92 | AH158: 0 | AI158: 0 | AJ158: 0 | AK158: 0 | AL158: 7689623.68 | AM158: 0 | AN158: 0 | AO158: 1435038.16 | AP158: 0 | AQ158: 0 | AR158: 0 | AS158: 0 | AT158: 0 | AU158: 10891489.5 | AV158: 0 | AW158: 0
A159: DA102030 | B159: Blasting | C159: 33209551.74 | D159: 0 | E159: 0 | F159: 5283212.5 | G159: 9086264.39 | H159: 2205888.81 | I159: 0 | J159: 0 | K159: 0 | L159: 5215179.11 | M159: 0 | N159: 0 | O159: 0 | P159: 0 | Q159: 0 | R159: 0 | S159: 0 | T159: 0 | U159: 0 | V159: 0 | W159: 0 | X159: 0 | Y159: 0 | Z159: 0 | AA159: 0 | AB159: 0 | AC159: 0 | AD159: 8563836.97 | AE159: 2855169.96 | AF159: 0 | AG159: 5283212.5 | AH159: 0 | AI159: 0 | AJ159: 0 | AK159: 0 | AL159: 9086264.39 | AM159: 0 | AN159: 0 | AO159: 2205888.81 | AP159: 0 | AQ159: 0 | AR159: 0 | AS159: 0 | AT159: 0 | AU159: 5215179.11 | AV159: 0 | AW159: 0
A160: DA102040 | B160: Explosive accessories | C160: 80500407.38 | D160: 0 | E160: 0 | F160: 3436534.52 | G160: 15100250.04 | H160: 2125452.96 | I160: 0 | J160: 0 | K160: 0 | L160: 29952437.81 | M160: 13787506.8 | N160: 0 | O160: 0 | P160: 0 | Q160: 0 | R160: 0 | S160: 0 | T160: 0 | U160: 0 | V160: 0 | W160: 0 | X160: 0 | Y160: 0 | Z160: 0 | AA160: 0 | AB160: 0 | AC160: 0 | AD160: 0 | AE160: 16098225.25 | AF160: 0 | AG160: 3436534.52 | AH160: 0 | AI160: 0 | AJ160: 0 | AK160: 0 | AL160: 15100250.04 | AM160: 0 | AN160: 0 | AO160: 2125452.96 | AP160: 0 | AQ160: 0 | AR160: 0 | AS160: 0 | AT160: 0 | AU160: 29952437.81 | AV160: 0 | AW160: 0
A161: DA102050 | B161: Stores and materials | C161: 908469345.6 | D161: 0 | E161: 0 | F161: 84077729.7 | G161: 212601198.7 | H161: 55789385.96 | I161: 0 | J161: 0 | K161: 0 | L161: 331632930.8 | M161: 0 | N161: 0 | O161: 0 | P161: 0 | Q161: 0 | R161: 0 | S161: 0 | T161: 0 | U161: 0 | V161: 0 | W161: 0 | X161: 0 | Y161: 0 | Z161: 0 | AA161: 0 | AB161: 0 | AC161: 0 | AD161: 32184423.71 | AE161: 192183676.7 | AF161: 0 | AG161: 84077729.7 | AH161: 0 | AI161: 0 | AJ161: 0 | AK161: 0 | AL161: 212601198.7 | AM161: 0 | AN161: 0 | AO161: 55789385.96 | AP161: 0 | AQ161: 0 | AR161: 0 | AS161: 0 | AT161: 0 | AU161: 331632930.8 | AV161: 0 | AW161: 0
A162: DA102060 | B162: Support | C162: 185190688.8 | D162: 0 | E162: 0 | F162: 8806554.17 | G162: 45157795.29 | H162: 5997974.04 | I162: 0 | J162: 0 | K162: 0 | L162: 84267431.19 | M162: 0 | N162: 0 | O162: 0 | P162: 0 | Q162: 0 | R162: 0 | S162: 0 | T162: 0 | U162: 0 | V162: 0 | W162: 0 | X162: 0 | Y162: 0 | Z162: 0 | AA162: 0 | AB162: 0 | AC162: 0 | AD162: 0 | AE162: 40960934.1 | AF162: 0 | AG162: 8806554.17 | AH162: 0 | AI162: 0 | AJ162: 0 | AK162: 0 | AL162: 45157795.29 | AM162: 0 | AN162: 0 | AO162: 5997974.04 | AP162: 0 | AQ162: 0 | AR162: 0 | AS162: 0 | AT162: 0 | AU162: 84267431.19 | AV162: 0 | AW162: 0
A163: DA102070 | B163: Electrical | C163: 30981048.44 | D163: 0 | E163: 0 | F163: 11485657.29 | G163: 982236.51 | H163: 494.72 | I163: 0 | J163: 0 | K163: 0 | L163: 4144636.66 | M163: 1120395.027 | N163: 0 | O163: 0 | P163: 0 | Q163: 0 | R163: 0 | S163: 0 | T163: 0 | U163: 0 | V163: 0 | W163: 0 | X163: 0 | Y163: 0 | Z163: 0 | AA163: 0 | AB163: 0 | AC163: 0 | AD163: 1569392.39 | AE163: 11678235.84 | AF163: 0 | AG163: 11485657.29 | AH163: 0 | AI163: 0 | AJ163: 0 | AK163: 0 | AL163: 982236.51 | AM163: 0 | AN163: 0 | AO163: 494.72 | AP163: 0 | AQ163: 0 | AR163: 0 | AS163: 0 | AT163: 0 | AU163: 4144636.66 | AV163: 0 | AW163: 0
A164: DA102080 | B164: Mechanical | C164: 26824142.16 | D164: 0 | E164: 0 | F164: 13697842 | G164: 2012470.8 | H164: 271522.2 | I164: 0 | J164: 0 | K164: 0 | L164: 2499485.33 | M164: 143305.075 | N164: 0 | O164: 0 | P164: 0 | Q164: 0 | R164: 0 | S164: 0 | T164: 0 | U164: 0 | V164: 0 | W164: 0 | X164: 0 | Y164: 0 | Z164: 0 | AA164: 0 | AB164: 0 | AC164: 0 | AD164: 0 | AE164: 8199516.75 | AF164: 0 | AG164: 13697842 | AH164: 0 | AI164: 0 | AJ164: 0 | AK164: 0 | AL164: 2012470.8 | AM164: 0 | AN164: 0 | AO164: 271522.2 | AP164: 0 | AQ164: 0 | AR164: 0 | AS164: 0 | AT164: 0 | AU164: 2499485.33 | AV164: 0 | AW164: 0
A165: DA102090 | B165: Workshop recovery | C165: 47455002.8 | D165: 0 | E165: 0 | F165: 7076532.66 | G165: 937895.54 | H165: -1349044.74 | I165: 0 | J165: 0 | K165: 0 | L165: 18096124.98 | M165: 0 | N165: 0 | O165: 0 | P165: 0 | Q165: 0 | R165: 0 | S165: 0 | T165: 0 | U165: 0 | V165: 0 | W165: 0 | X165: 0 | Y165: 0 | Z165: 0 | AA165: 0 | AB165: 0 | AC165: 0 | AD165: 8063 | AE165: 22685431.36 | AF165: 0 | AG165: 7076532.66 | AH165: 0 | AI165: 0 | AJ165: 0 | AK165: 0 | AL165: 937895.54 | AM165: 0 | AN165: 0 | AO165: -1349044.74 | AP165: 0 | AQ165: 0 | AR165: 0 | AS165: 0 | AT165: 0 | AU165: 18096124.98 | AV165: 0 | AW165: 0
A166: DA102100 | B166: Tyres | C166: 22408537.59 | D166: 0 | E166: 0 | F166: 9842778.6 | G166: 22700 | H166: 0 | I166: 0 | J166: 0 | K166: 0 | L166: 60122.25 | M166: 12444824.2 | N166: 0 | O166: 0 | P166: 0 | Q166: 0 | R166: 0 | S166: 0 | T166: 0 | U166: 0 | V166: 0 | W166: 0 | X166: 0 | Y166: 0 | Z166: 0 | AA166: 0 | AB166: 0 | AC166: 0 | AD166: 38112.54 | AE166: 0 | AF166: 0 | AG166: 9842778.6 | AH166: 0 | AI166: 0 | AJ166: 0 | AK166: 0 | AL166: 22700 | AM166: 0 | AN166: 0 | AO166: 0 | AP166: 0 | AQ166: 0 | AR166: 0 | AS166: 0 | AT166: 0 | AU166: 60122.25 | AV166: 0 | AW166: 0
A167: DA102110 | B167: Diesel | C167: 150261748.5 | D167: 0 | E167: 0 | F167: 9215616.66 | G167: 6472417.6 | H167: 2780945.55 | I167: 0 | J167: 0 | K167: 0 | L167: 1796329.62 | M167: 127608077.8 | N167: 0 | O167: 0 | P167: 0 | Q167: 0 | R167: 0 | S167: 0 | T167: 0 | U167: 0 | V167: 0 | W167: 0 | X167: 0 | Y167: 0 | Z167: 0 | AA167: 0 | AB167: 0 | AC167: 0 | AD167: 591.17 | AE167: 2387770.01 | AF167: 0 | AG167: 9215616.66 | AH167: 0 | AI167: 0 | AJ167: 0 | AK167: 0 | AL167: 6472417.6 | AM167: 0 | AN167: 0 | AO167: 2780945.55 | AP167: 0 | AQ167: 0 | AR167: 0 | AS167: 0 | AT167: 0 | AU167: 1796329.62 | AV167: 0 | AW167: 0
A168: DA102120 | B168: Pumps sumps and valves | C168: 18177729.18 | D168: 0 | E168: 0 | F168: 6802291.99 | G168: 3724989.58 | H168: 0 | I168: 0 | J168: 0 | K168: 0 | L168: 3325784.21 | M168: 3148517.408 | N168: 0 | O168: 0 | P168: 0 | Q168: 0 | R168: 0 | S168: 0 | T168: 0 | U168: 0 | V168: 0 | W168: 0 | X168: 0 | Y168: 0 | Z168: 0 | AA168: 0 | AB168: 0 | AC168: 0 | AD168: 894706.15 | AE168: 281439.84 | AF168: 0 | AG168: 6802291.99 | AH168: 0 | AI168: 0 | AJ168: 0 | AK168: 0 | AL168: 3724989.58 | AM168: 0 | AN168: 0 | AO168: 0 | AP168: 0 | AQ168: 0 | AR168: 0 | AS168: 0 | AT168: 0 | AU168: 3325784.21 | AV168: 0 | AW168: 0
A169: DA102130 | B169: Maintenance | C169: 53052946.44 | D169: 0 | E169: 0 | F169: 4338310.32 | G169: 210195 | H169: 5738467.53 | I169: 0 | J169: 0 | K169: 0 | L169: 5191924.67 | M169: 32253729.86 | N169: 0 | O169: 0 | P169: 0 | Q169: 0 | R169: 0 | S169: 0 | T169: 0 | U169: 0 | V169: 0 | W169: 0 | X169: 0 | Y169: 0 | Z169: 0 | AA169: 0 | AB169: 0 | AC169: 0 | AD169: 4046874.58 | AE169: 1273444.48 | AF169: 0 | AG169: 4338310.32 | AH169: 0 | AI169: 0 | AJ169: 0 | AK169: 0 | AL169: 210195 | AM169: 0 | AN169: 0 | AO169: 5738467.53 | AP169: 0 | AQ169: 0 | AR169: 0 | AS169: 0 | AT169: 0 | AU169: 5191924.67 | AV169: 0 | AW169: 0
A170: DA102140 | B170: Major repairs | C170: 46281093.61 | D170: 0 | E170: 0 | F170: 3479758.52 | G170: 20749518.12 | H170: 1294102.94 | I170: 0 | J170: 0 | K170: 0 | L170: 17489262.62 | M170: 0 | N170: 0 | O170: 0 | P170: 0 | Q170: 0 | R170: 0 | S170: 0 | T170: 0 | U170: 0 | V170: 0 | W170: 0 | X170: 0 | Y170: 0 | Z170: 0 | AA170: 0 | AB170: 0 | AC170: 0 | AD170: 1829897.38 | AE170: 1438554.03 | AF170: 0 | AG170: 3479758.52 | AH170: 0 | AI170: 0 | AJ170: 0 | AK170: 0 | AL170: 20749518.12 | AM170: 0 | AN170: 0 | AO170: 1294102.94 | AP170: 0 | AQ170: 0 | AR170: 0 | AS170: 0 | AT170: 0 | AU170: 17489262.62 | AV170: 0 | AW170: 0
A171: DA102990 | B171: Other stores cost | C171: 231449877.9 | D171: 0 | E171: 0 | F171: 54233544.93 | G171: 19159639.53 | H171: 6930905.53 | I171: 0 | J171: 0 | K171: 0 | L171: 6380860.3 | M171: 108079272.9 | N171: 0 | O171: 0 | P171: 0 | Q171: 0 | R171: 0 | S171: 0 | T171: 0 | U171: 0 | V171: 0 | W171: 0 | X171: 0 | Y171: 0 | Z171: 0 | AA171: 0 | AB171: 0 | AC171: 0 | AD171: 29339136.62 | AE171: 7326518.07 | AF171: 0 | AG171: 54233544.93 | AH171: 0 | AI171: 0 | AJ171: 0 | AK171: 0 | AL171: 19159639.53 | AM171: 0 | AN171: 0 | AO171: 6930905.53 | AP171: 0 | AQ171: 0 | AR171: 0 | AS171: 0 | AT171: 0 | AU171: 6380860.3 | AV171: 0 | AW171: 0
A172: DA103000 | B172: Services | C172: 1153847767 | D172: 0 | E172: 0 | F172: 103272952.3 | G172: 306834191.5 | H172: 94802693.7 | I172: 0 | J172: 0 | K172: 0 | L172: 433063179.9 | M172: -25497462.57 | N172: 0 | O172: 0 | P172: 0 | Q172: 0 | R172: 0 | S172: 0 | T172: 0 | U172: 0 | V172: 0 | W172: 0 | X172: 0 | Y172: 0 | Z172: 0 | AA172: 0 | AB172: 0 | AC172: 0 | AD172: 14992241.49 | AE172: 226379970.3 | AF172: 0 | AG172: 103272952.3 | AH172: 0 | AI172: 0 | AJ172: 0 | AK172: 0 | AL172: 306834191.5 | AM172: 0 | AN172: 0 | AO172: 94802693.7 | AP172: 0 | AQ172: 0 | AR172: 0 | AS172: 0 | AT172: 0 | AU172: 433063179.9 | AV172: 0 | AW172: 0
A173: DA103010 | B173: Power : Services | C173: 1069614109 | D173: 0 | E173: 0 | F173: 98784275.34 | G173: 282454896.3 | H173: 90493443.99 | I173: 0 | J173: 0 | K173: 0 | L173: 403315453.7 | M173: -25542381.45 | N173: 0 | O173: 0 | P173: 0 | Q173: 0 | R173: 0 | S173: 0 | T173: 0 | U173: 0 | V173: 0 | W173: 0 | X173: 0 | Y173: 0 | Z173: 0 | AA173: 0 | AB173: 0 | AC173: 0 | AD173: 14988167.49 | AE173: 205120253.7 | AF173: 0 | AG173: 98784275.34 | AH173: 0 | AI173: 0 | AJ173: 0 | AK173: 0 | AL173: 282454896.3 | AM173: 0 | AN173: 0 | AO173: 90493443.99 | AP173: 0 | AQ173: 0 | AR173: 0 | AS173: 0 | AT173: 0 | AU173: 403315453.7 | AV173: 0 | AW173: 0
A174: DA103020 | B174: Water : Service | C174: 84233657.5 | D174: 0 | E174: 0 | F174: 4488677 | G174: 24379295.22 | H174: 4309249.71 | I174: 0 | J174: 0 | K174: 0 | L174: 29747726.15 | M174: 44918.888 | N174: 0 | O174: 0 | P174: 0 | Q174: 0 | R174: 0 | S174: 0 | T174: 0 | U174: 0 | V174: 0 | W174: 0 | X174: 0 | Y174: 0 | Z174: 0 | AA174: 0 | AB174: 0 | AC174: 0 | AD174: 4074 | AE174: 21259716.53 | AF174: 0 | AG174: 4488677 | AH174: 0 | AI174: 0 | AJ174: 0 | AK174: 0 | AL174: 24379295.22 | AM174: 0 | AN174: 0 | AO174: 4309249.71 | AP174: 0 | AQ174: 0 | AR174: 0 | AS174: 0 | AT174: 0 | AU174: 29747726.15 | AV174: 0 | AW174: 0
A175: DA104000 | B175: Outside contractors | C175: 776804032 | D175: 0 | E175: 0 | F175: 77277535.95 | G175: 103928869 | H175: 39936756.48 | I175: 0 | J175: 0 | K175: 0 | L175: 113342787.2 | M175: 202137674.1 | N175: 0 | O175: 0 | P175: 0 | Q175: 0 | R175: 0 | S175: 0 | T175: 0 | U175: 0 | V175: 0 | W175: 0 | X175: 0 | Y175: 0 | Z175: 0 | AA175: 0 | AB175: 0 | AC175: 0 | AD175: 110915173.8 | AE175: 129265235.5 | AF175: 0 | AG175: 77277535.95 | AH175: 0 | AI175: 0 | AJ175: 0 | AK175: 0 | AL175: 103928869 | AM175: 0 | AN175: 0 | AO175: 39936756.48 | AP175: 0 | AQ175: 0 | AR175: 0 | AS175: 0 | AT175: 0 | AU175: 113342787.2 | AV175: 0 | AW175: 0
A176: DA104010 | B176: Labour hire | C176: 45139873.17 | D176: 0 | E176: 0 | F176: 6577603.24 | G176: 23320734.01 | H176: 689548.42 | I176: 0 | J176: 0 | K176: 0 | L176: 5754584.12 | M176: 1337901.278 | N176: 0 | O176: 0 | P176: 0 | Q176: 0 | R176: 0 | S176: 0 | T176: 0 | U176: 0 | V176: 0 | W176: 0 | X176: 0 | Y176: 0 | Z176: 0 | AA176: 0 | AB176: 0 | AC176: 0 | AD176: 1307556.37 | AE176: 6151945.73 | AF176: 0 | AG176: 6577603.24 | AH176: 0 | AI176: 0 | AJ176: 0 | AK176: 0 | AL176: 23320734.01 | AM176: 0 | AN176: 0 | AO176: 689548.42 | AP176: 0 | AQ176: 0 | AR176: 0 | AS176: 0 | AT176: 0 | AU176: 5754584.12 | AV176: 0 | AW176: 0
A177: DA104020 | B177: Drilling | C177: 13541955.61 | D177: 0 | E177: 0 | F177: 10496968.8 | G177: 863179.18 | H177: 1047105 | I177: 0 | J177: 0 | K177: 0 | L177: 208299.88 | M177: 0 | N177: 0 | O177: 0 | P177: 0 | Q177: 0 | R177: 0 | S177: 0 | T177: 0 | U177: 0 | V177: 0 | W177: 0 | X177: 0 | Y177: 0 | Z177: 0 | AA177: 0 | AB177: 0 | AC177: 0 | AD177: 0 | AE177: 926402.75 | AF177: 0 | AG177: 10496968.8 | AH177: 0 | AI177: 0 | AJ177: 0 | AK177: 0 | AL177: 863179.18 | AM177: 0 | AN177: 0 | AO177: 1047105 | AP177: 0 | AQ177: 0 | AR177: 0 | AS177: 0 | AT177: 0 | AU177: 208299.88 | AV177: 0 | AW177: 0
A178: DA104030 | B178: Rock transport | C178: 128467624.4 | D178: 0 | E178: 0 | F178: 10690945.05 | G178: 8078184.43 | H178: 8974752.3 | I178: 0 | J178: 0 | K178: 0 | L178: 45533262.22 | M178: 0 | N178: 0 | O178: 0 | P178: 0 | Q178: 0 | R178: 0 | S178: 0 | T178: 0 | U178: 0 | V178: 0 | W178: 0 | X178: 0 | Y178: 0 | Z178: 0 | AA178: 0 | AB178: 0 | AC178: 0 | AD178: 0 | AE178: 55190480.39 | AF178: 0 | AG178: 10690945.05 | AH178: 0 | AI178: 0 | AJ178: 0 | AK178: 0 | AL178: 8078184.43 | AM178: 0 | AN178: 0 | AO178: 8974752.3 | AP178: 0 | AQ178: 0 | AR178: 0 | AS178: 0 | AT178: 0 | AU178: 45533262.22 | AV178: 0 | AW178: 0
A179: DA104040 | B179: Security | C179: 60818441.55 | D179: 0 | E179: 0 | F179: 6721132.09 | G179: 15751300.87 | H179: 8295956.06 | I179: 0 | J179: 0 | K179: 0 | L179: 4975001.8 | M179: 0 | N179: 0 | O179: 0 | P179: 0 | Q179: 0 | R179: 0 | S179: 0 | T179: 0 | U179: 0 | V179: 0 | W179: 0 | X179: 0 | Y179: 0 | Z179: 0 | AA179: 0 | AB179: 0 | AC179: 0 | AD179: 2696262.63 | AE179: 22378788.1 | AF179: 0 | AG179: 6721132.09 | AH179: 0 | AI179: 0 | AJ179: 0 | AK179: 0 | AL179: 15751300.87 | AM179: 0 | AN179: 0 | AO179: 8295956.06 | AP179: 0 | AQ179: 0 | AR179: 0 | AS179: 0 | AT179: 0 | AU179: 4975001.8 | AV179: 0 | AW179: 0
A180: DA104050 | B180: Production contractors | C180: 84878071.91 | D180: 0 | E180: 0 | F180: 10000 | G180: 746783.59 | H180: 2932856.48 | I180: 0 | J180: 0 | K180: 0 | L180: 0 | M180: 0 | N180: 0 | O180: 0 | P180: 0 | Q180: 0 | R180: 0 | S180: 0 | T180: 0 | U180: 0 | V180: 0 | W180: 0 | X180: 0 | Y180: 0 | Z180: 0 | AA180: 0 | AB180: 0 | AC180: 0 | AD180: 80483753.26 | AE180: 704678.58 | AF180: 0 | AG180: 10000 | AH180: 0 | AI180: 0 | AJ180: 0 | AK180: 0 | AL180: 746783.59 | AM180: 0 | AN180: 0 | AO180: 2932856.48 | AP180: 0 | AQ180: 0 | AR180: 0 | AS180: 0 | AT180: 0 | AU180: 0 | AV180: 0 | AW180: 0
A181: DA104060 | B181: Other as per Oracle | C181: 521783.7 | D181: 0 | E181: 0 | F181: 44423.2 | G181: 0 | H181: 80723.61 | I181: 0 | J181: 0 | K181: 0 | L181: 22381.74 | M181: 0 | N181: 0 | O181: 0 | P181: 0 | Q181: 0 | R181: 0 | S181: 0 | T181: 0 | U181: 0 | V181: 0 | W181: 0 | X181: 0 | Y181: 0 | Z181: 0 | AA181: 0 | AB181: 0 | AC181: 0 | AD181: 372753.4 | AE181: 1501.75 | AF181: 0 | AG181: 44423.2 | AH181: 0 | AI181: 0 | AJ181: 0 | AK181: 0 | AL181: 0 | AM181: 0 | AN181: 0 | AO181: 80723.61 | AP181: 0 | AQ181: 0 | AR181: 0 | AS181: 0 | AT181: 0 | AU181: 22381.74 | AV181: 0 | AW181: 0
A182: DA104990 | B182: Other : Outside contractors | C182: 443436281.7 | D182: 0 | E182: 0 | F182: 42736463.57 | G182: 55168686.9 | H182: 17915814.61 | I182: 0 | J182: 0 | K182: 0 | L182: 56849257.42 | M182: 200799772.8 | N182: 0 | O182: 0 | P182: 0 | Q182: 0 | R182: 0 | S182: 0 | T182: 0 | U182: 0 | V182: 0 | W182: 0 | X182: 0 | Y182: 0 | Z182: 0 | AA182: 0 | AB182: 0 | AC182: 0 | AD182: 26054848.15 | AE182: 43911438.23 | AF182: 0 | AG182: 42736463.57 | AH182: 0 | AI182: 0 | AJ182: 0 | AK182: 0 | AL182: 55168686.9 | AM182: 0 | AN182: 0 | AO182: 17915814.61 | AP182: 0 | AQ182: 0 | AR182: 0 | AS182: 0 | AT182: 0 | AU182: 56849257.42 | AV182: 0 | AW182: 0
A183: DA105000 | B183: Other distributable cost | C183: 327659833.8 | D183: 0 | E183: 0 | F183: 22871356.21 | G183: 51370753.9 | H183: 18409027.91 | I183: 0 | J183: 0 | K183: 0 | L183: 69012544.43 | M183: 128353907.6 | N183: 0 | O183: 0 | P183: 0 | Q183: 0 | R183: 0 | S183: 0 | T183: 0 | U183: 0 | V183: 0 | W183: 0 | X183: 0 | Y183: 0 | Z183: 0 | AA183: 0 | AB183: 0 | AC183: 0 | AD183: 7594742.32 | AE183: 30047501.46 | AF183: 0 | AG183: 22871356.21 | AH183: 0 | AI183: 0 | AJ183: 0 | AK183: 0 | AL183: 51370753.9 | AM183: 0 | AN183: 0 | AO183: 18409027.91 | AP183: 0 | AQ183: 0 | AR183: 0 | AS183: 0 | AT183: 0 | AU183: 69012544.43 | AV183: 0 | AW183: 0
A184: DA106000 | B184: Non-distributable | C184: 267826081.5 | D184: 0 | E184: 0 | F184: 32571244.8 | G184: 42067590.82 | H184: 10544055.16 | I184: 0 | J184: 0 | K184: 0 | L184: 113834397.4 | M184: 3656528.729 | N184: 0 | O184: 0 | P184: 0 | Q184: 0 | R184: 0 | S184: 0 | T184: 0 | U184: 0 | V184: 0 | W184: 0 | X184: 0 | Y184: 0 | Z184: 0 | AA184: 0 | AB184: 0 | AC184: 0 | AD184: -2862507.05 | AE184: 68014771.61 | AF184: 0 | AG184: 32571244.8 | AH184: 0 | AI184: 0 | AJ184: 0 | AK184: 0 | AL184: 42067590.82 | AM184: 0 | AN184: 0 | AO184: 10544055.16 | AP184: 0 | AQ184: 0 | AR184: 0 | AS184: 0 | AT184: 0 | AU184: 113834397.4 | AV184: 0 | AW184: 0
A185: DA107000 | B185: Allocations | C185: -574155167.3 | D185: 0 | E185: 0 | F185: -213837649.8 | G185: -52502607.61 | H185: -1836851.15 | I185: 0 | J185: 0 | K185: 0 | L185: -169074448.2 | M185: -55555526 | N185: 0 | O185: 0 | P185: 0 | Q185: 0 | R185: 0 | S185: 0 | T185: 0 | U185: 0 | V185: 0 | W185: 0 | X185: 0 | Y185: 0 | Z185: 0 | AA185: 0 | AB185: 0 | AC185: 0 | AD185: 162873.24 | AE185: -81510957.79 | AF185: 0 | AG185: -213837649.8 | AH185: 0 | AI185: 0 | AJ185: 0 | AK185: 0 | AL185: -52502607.61 | AM185: 0 | AN185: 0 | AO185: -1836851.15 | AP185: 0 | AQ185: 0 | AR185: 0 | AS185: 0 | AT185: 0 | AU185: -169074448.2 | AV185: 0 | AW185: 0
A186: DA108000 | B186: Ongoing development allocation | C186: -26902716.02 | D186: 0 | E186: 0 | F186: -26902716.02 | G186: 0 | H186: 0 | I186: 0 | J186: 0 | K186: 0 | L186: 0 | M186: 0 | N186: 0 | O186: 0 | P186: 0 | Q186: 0 | R186: 0 | S186: 0 | T186: 0 | U186: 0 | V186: 0 | W186: 0 | X186: 0 | Y186: 0 | Z186: 0 | AA186: 0 | AB186: 0 | AC186: 0 | AD186: 0 | AE186: 0 | AF186: 0 | AG186: -26902716.02 | AH186: 0 | AI186: 0 | AJ186: 0 | AK186: 0 | AL186: 0 | AM186: 0 | AN186: 0 | AO186: 0 | AP186: 0 | AQ186: 0 | AR186: 0 | AS186: 0 | AT186: 0 | AU186: 0 | AV186: 0 | AW186: 0
A187: DA109000 | B187: Stock revaluation | C187: 122184775.5 | D187: 83220653 | E187: 0 | F187: 16625879.51 | G187: 47008893.14 | H187: 11051617.15 | I187: 0 | J187: 0 | K187: 0 | L187: -37309447.88 | M187: 0 | N187: 0 | O187: 0 | P187: 0 | Q187: 0 | R187: 0 | S187: 0 | T187: 0 | U187: 0 | V187: 0 | W187: 0 | X187: 0 | Y187: 0 | Z187: 0 | AA187: 0 | AB187: 0 | AC187: 0 | AD187: -7799077.79 | AE187: 9386258.35 | AF187: 0 | AG187: 16625879.51 | AH187: 0 | AI187: 0 | AJ187: 0 | AK187: 0 | AL187: 47008893.14 | AM187: 0 | AN187: 0 | AO187: 11051617.15 | AP187: 0 | AQ187: 0 | AR187: 0 | AS187: 0 | AT187: 0 | AU187: -37309447.88 | AV187: 0 | AW187: 0
A188: DA109010 | B188: Gold stock | C188: 127192545.1 | D188: 83220653 | E188: 0 | F188: 16625879.51 | G188: 59517893.14 | H188: 11051617.15 | I188: 0 | J188: 0 | K188: 0 | L188: -37309447.88 | M188: 0 | N188: 0 | O188: 0 | P188: 0 | Q188: 0 | R188: 0 | S188: 0 | T188: 0 | U188: 0 | V188: 0 | W188: 0 | X188: 0 | Y188: 0 | Z188: 0 | AA188: 0 | AB188: 0 | AC188: 0 | AD188: -15300308.15 | AE188: 9386258.35 | AF188: 0 | AG188: 16625879.51 | AH188: 0 | AI188: 0 | AJ188: 0 | AK188: 0 | AL188: 59517893.14 | AM188: 0 | AN188: 0 | AO188: 11051617.15 | AP188: 0 | AQ188: 0 | AR188: 0 | AS188: 0 | AT188: 0 | AU188: -37309447.88 | AV188: 0 | AW188: 0
A189: DA109020 | B189: ROM | C189: -5007769.64 | D189: 0 | E189: 0 | F189: 0 | G189: -12509000 | H189: 0 | I189: 0 | J189: 0 | K189: 0 | L189: 0 | M189: 0 | N189: 0 | O189: 0 | P189: 0 | Q189: 0 | R189: 0 | S189: 0 | T189: 0 | U189: 0 | V189: 0 | W189: 0 | X189: 0 | Y189: 0 | Z189: 0 | AA189: 0 | AB189: 0 | AC189: 0 | AD189: 7501230.36 | AE189: 0 | AF189: 0 | AG189: 0 | AH189: 0 | AI189: 0 | AJ189: 0 | AK189: 0 | AL189: -12509000 | AM189: 0 | AN189: 0 | AO189: 0 | AP189: 0 | AQ189: 0 | AR189: 0 | AS189: 0 | AT189: 0 | AU189: 0 | AV189: 0 | AW189: 0
A190: DA110000 | B190: Deferred stripping costs | C190: -25937608.05 | D190: 0 | E190: 0 | F190: 0 | G190: 0 | H190: 0 | I190: 0 | J190: 0 | K190: 0 | L190: 0 | M190: -25937608.05 | N190: 0 | O190: 0 | P190: 0 | Q190: 0 | R190: 0 | S190: 0 | T190: 0 | U190: 0 | V190: 0 | W190: 0 | X190: 0 | Y190: 0 | Z190: 0 | AA190: 0 | AB190: 0 | AC190: 0 | AD190: 0 | AE190: 0 | AF190: 0 | AG190: 0 | AH190: 0 | AI190: 0 | AJ190: 0 | AK190: 0 | AL190: 0 | AM190: 0 | AN190: 0 | AO190: 0 | AP190: 0 | AQ190: 0 | AR190: 0 | AS190: 0 | AT190: 0 | AU190: 0 | AV190: 0 | AW190: 0
A191: DA111000 | B191: Byproduct credits | C191: -123210919.1 | D191: 0 | E191: 0 | F191: -2618753.89 | G191: -3670638.72 | H191: -7291523.71 | I191: 0 | J191: 0 | K191: 0 | L191: -12468181.11 | M191: -95620751.04 | N191: 0 | O191: 0 | P191: 0 | Q191: 0 | R191: 0 | S191: 0 | T191: 0 | U191: 0 | V191: 0 | W191: 0 | X191: 0 | Y191: 0 | Z191: 0 | AA191: 0 | AB191: 0 | AC191: 0 | AD191: -837041.87 | AE191: -704028.79 | AF191: 0 | AG191: -2618753.89 | AH191: 0 | AI191: 0 | AJ191: 0 | AK191: 0 | AL191: -3670638.72 | AM191: 0 | AN191: 0 | AO191: -7291523.71 | AP191: 0 | AQ191: 0 | AR191: 0 | AS191: 0 | AT191: 0 | AU191: -12468181.11 | AV191: 0 | AW191: 0
A192: DA112000 | B192: Royalty tax | C192: 94207632.9 | D192: 0 | E192: 0 | F192: 4268800.88 | G192: 11144672.69 | H192: 3652548.27 | I192: 0 | J192: 0 | K192: 0 | L192: 23677044.08 | M192: 20475804.04 | N192: 0 | O192: 0 | P192: 0 | Q192: 0 | R192: 0 | S192: 0 | T192: 0 | U192: 0 | V192: 0 | W192: 0 | X192: 0 | Y192: 0 | Z192: 0 | AA192: 0 | AB192: 0 | AC192: 0 | AD192: 5425903.61 | AE192: 25562859.33 | AF192: 0 | AG192: 4268800.88 | AH192: 0 | AI192: 0 | AJ192: 0 | AK192: 0 | AL192: 11144672.69 | AM192: 0 | AN192: 0 | AO192: 3652548.27 | AP192: 0 | AQ192: 0 | AR192: 0 | AS192: 0 | AT192: 0 | AU192: 23677044.08 | AV192: 0 | AW192: 0
A193: DA211000 | B193: Amortisation | C193: 1431752044 | D193: 30897230.64 | E193: 0 | F193: 194949601.2 | G193: 161879457.3 | H193: 141244845.7 | I193: 0 | J193: 0 | K193: 0 | L193: 457303687.2 | M193: 214392158.4 | N193: 0 | O193: 0 | P193: 0 | Q193: 0 | R193: 0 | S193: 0 | T193: 0 | U193: 0 | V193: 0 | W193: 0 | X193: 0 | Y193: 0 | Z193: 0 | AA193: 0 | AB193: 0 | AC193: 0 | AD193: 10915784.13 | AE193: 220169279.8 | AF193: 0 | AG193: 194949601.2 | AH193: 0 | AI193: 0 | AJ193: 0 | AK193: 0 | AL193: 161879457.3 | AM193: 0 | AN193: 0 | AO193: 141244845.7 | AP193: 0 | AQ193: 0 | AR193: 0 | AS193: 0 | AT193: 0 | AU193: 457303687.2 | AV193: 0 | AW193: 0
A194: DA211100 | B194: Depreciation : Mining assets | C194: 836661216.8 | D194: 30897230.64 | E194: 0 | F194: 170099189.2 | G194: 84621185.97 | H194: 57861247.44 | I194: 0 | J194: 0 | K194: 0 | L194: 226260279.8 | M194: 167342578.4 | N194: 0 | O194: 0 | P194: 0 | Q194: 0 | R194: 0 | S194: 0 | T194: 0 | U194: 0 | V194: 0 | W194: 0 | X194: 0 | Y194: 0 | Z194: 0 | AA194: 0 | AB194: 0 | AC194: 0 | AD194: 10774117.46 | AE194: 88805387.86 | AF194: 0 | AG194: 170099189.2 | AH194: 0 | AI194: 0 | AJ194: 0 | AK194: 0 | AL194: 84621185.97 | AM194: 0 | AN194: 0 | AO194: 57861247.44 | AP194: 0 | AQ194: 0 | AR194: 0 | AS194: 0 | AT194: 0 | AU194: 226260279.8 | AV194: 0 | AW194: 0
A195: DA211200 | B195: Depreciation : Non-mining assets | C195: 21635717.16 | D195: 0 | E195: 0 | F195: 40397.86 | G195: 13963132.26 | H195: 0 | I195: 0 | J195: 0 | K195: 0 | L195: 658315.73 | M195: 1979109.815 | N195: 0 | O195: 0 | P195: 0 | Q195: 0 | R195: 0 | S195: 0 | T195: 0 | U195: 0 | V195: 0 | W195: 0 | X195: 0 | Y195: 0 | Z195: 0 | AA195: 0 | AB195: 0 | AC195: 0 | AD195: 141666.67 | AE195: 4853094.82 | AF195: 0 | AG195: 40397.86 | AH195: 0 | AI195: 0 | AJ195: 0 | AK195: 0 | AL195: 13963132.26 | AM195: 0 | AN195: 0 | AO195: 0 | AP195: 0 | AQ195: 0 | AR195: 0 | AS195: 0 | AT195: 0 | AU195: 658315.73 | AV195: 0 | AW195: 0
A196: DA211300 | B196: Depreciation : Capital Development | C196: 534190438.4 | D196: 0 | E196: 0 | F196: 24810014.16 | G196: 63295139.03 | H196: 83383598.3 | I196: 0 | J196: 0 | K196: 0 | L196: 230385091.6 | M196: 45070470.12 | N196: 0 | O196: 0 | P196: 0 | Q196: 0 | R196: 0 | S196: 0 | T196: 0 | U196: 0 | V196: 0 | W196: 0 | X196: 0 | Y196: 0 | Z196: 0 | AA196: 0 | AB196: 0 | AC196: 0 | AD196: 0 | AE196: 87246125.19 | AF196: 0 | AG196: 24810014.16 | AH196: 0 | AI196: 0 | AJ196: 0 | AK196: 0 | AL196: 63295139.03 | AM196: 0 | AN196: 0 | AO196: 83383598.3 | AP196: 0 | AQ196: 0 | AR196: 0 | AS196: 0 | AT196: 0 | AU196: 230385091.6 | AV196: 0 | AW196: 0
A197: DA211400 | B197: Depreciation : Intangible assets | C197: 39264671.88 | D197: 0 | E197: 0 | F197: 0 | G197: 0 | H197: 0 | I197: 0 | J197: 0 | K197: 0 | L197: 0 | M197: 0 | N197: 0 | O197: 0 | P197: 0 | Q197: 0 | R197: 0 | S197: 0 | T197: 0 | U197: 0 | V197: 0 | W197: 0 | X197: 0 | Y197: 0 | Z197: 0 | AA197: 0 | AB197: 0 | AC197: 0 | AD197: 0 | AE197: 39264671.88 | AF197: 0 | AG197: 0 | AH197: 0 | AI197: 0 | AJ197: 0 | AK197: 0 | AL197: 0 | AM197: 0 | AN197: 0 | AO197: 0 | AP197: 0 | AQ197: 0 | AR197: 0 | AS197: 0 | AT197: 0 | AU197: 0 | AV197: 0 | AW197: 0
A198: DA211900 | B198: Deferred depreciation expense | C198: 0 | D198: 0 | E198: 0 | F198: 0 | G198: 0 | H198: 0 | I198: 0 | J198: 0 | K198: 0 | L198: 0 | M198: 0 | N198: 0 | O198: 0 | P198: 0 | Q198: 0 | R198: 0 | S198: 0 | T198: 0 | U198: 0 | V198: 0 | W198: 0 | X198: 0 | Y198: 0 | Z198: 0 | AA198: 0 | AB198: 0 | AC198: 0 | AD198: 0 | AE198: 0 | AF198: 0 | AG198: 0 | AH198: 0 | AI198: 0 | AJ198: 0 | AK198: 0 | AL198: 0 | AM198: 0 | AN198: 0 | AO198: 0 | AP198: 0 | AQ198: 0 | AR198: 0 | AS198: 0 | AT198: 0 | AU198: 0 | AV198: 0 | AW198: 0
A199: DA212000 | B199: Impairment of property plant and equipment | C199: 0 | D199: 0 | E199: 0 | F199: 0 | G199: 0 | H199: 0 | I199: 0 | J199: 0 | K199: 0 | L199: 0 | M199: 0 | N199: 0 | O199: 0 | P199: 0 | Q199: 0 | R199: 0 | S199: 0 | T199: 0 | U199: 0 | V199: 0 | W199: 0 | X199: 0 | Y199: 0 | Z199: 0 | AA199: 0 | AB199: 0 | AC199: 0 | AD199: 0 | AE199: 0 | AF199: 0 | AG199: 0 | AH199: 0 | AI199: 0 | AJ199: 0 | AK199: 0 | AL199: 0 | AM199: 0 | AN199: 0 | AO199: 0 | AP199: 0 | AQ199: 0 | AR199: 0 | AS199: 0 | AT199: 0 | AU199: 0 | AV199: 0 | AW199: 0
A200: DA212100 | B200: Impairment of property plant and equipment | C200: 0 | D200: 0 | E200: 0 | F200: 0 | G200: 0 | H200: 0 | I200: 0 | J200: 0 | K200: 0 | L200: 0 | M200: 0 | N200: 0 | O200: 0 | P200: 0 | Q200: 0 | R200: 0 | S200: 0 | T200: 0 | U200: 0 | V200: 0 | W200: 0 | X200: 0 | Y200: 0 | Z200: 0 | AA200: 0 | AB200: 0 | AC200: 0 | AD200: 0 | AE200: 0 | AF200: 0 | AG200: 0 | AH200: 0 | AI200: 0 | AJ200: 0 | AK200: 0 | AL200: 0 | AM200: 0 | AN200: 0 | AO200: 0 | AP200: 0 | AQ200: 0 | AR200: 0 | AS200: 0 | AT200: 0 | AU200: 0 | AV200: 0 | AW200: 0
... 83 more rows

Sheet JSE Handbook info (hidden)
C2: Re-calculated the rations based on the formulas given and got a different answer to the database data given
C4: PREPARED BY HARMONY
A7: Formulas | C7: Financial Statistics
C8: (R million) | E8: Current | F8: Dec 11 | G8: Jun 11 | H8: Jun 10 | I8: Jun 09 | J8: June 08 | K8: Jun 07
F9: 6 months | G9: Final | H9: Final | I9: Final | J9: Final | K9: Final
C11: I01 | D11: Revenue | E11: =+'Publish IS (R)'!#REF! ->  | F11: 8749 | G11: 12445 | H11: 11284 | I11: 11496 | J11: 9210 | K11: 8037
C12: I02 | D12: Not in use | E12: 0 | F12: 0 | G12: 0 | H12: 0 | I12: 0 | J12: 0 | K12: 0
C13: I03 | D13: Not in use | E13: 0 | F13: 0 | G13: 0 | H13: 0 | I13: 0 | J13: 0 | K13: 0
A14: I04 = I05 + I06 + I07 + I08 + I09 + I10 + I11 + I12 + I13 + I15 + I16 + I17 + I18 + I19 | C14: I04 | D14: Cost of sales | E14: =SUM(E15:E27) ->  | F14: =SUM(F15:F27) -> 6529 | G14: 11615 | H14: 10484 | I14: 9659 | J14: 8184 | K14: 6687
C15: I05 | D15: Production costs (includes royalties) | E15: =-'Publish IS (R)'!#REF!-'Publish IS (R)'!#REF! ->  | F15: 5366 | G15: =9074+96 -> 9170 | H15: 8358 | I15: 7657 | J15: 6673 | K15: 6021
C16: I06 | D16: Amortisation and depreciation | E16: =-'Publish IS (R)'!#REF! ->  | F16: 1003 | G16: 1776 | H16: =1326+49 -> 1375 | I16: =1176+77 -> 1253 | J16: 846 | K16: =734+29 -> 763
C17: I07 | D17: Impairment of assets | E17: =-'Publish IS (R)'!#REF! ->  | F17: 0 | G17: 264 | H17: 331 | I17: 546 | J17: 316 | K17: -134
C18: I08 | D18: Employment termination and restructuring costs | E18: =-'Publish IS (R)'!#REF! ->  | F18: 51 | G18: 158 | H18: 205 | I18: 39 | J18: 212 | K18: 0
C19: I09 | D19: Care and maintenance cost | E19: =-'Publish IS (R)'!#REF! ->  | F19: 54 | G19: 124 | H19: 57 | I19: 44 | J19: 74 | K19: 56
C20: I11 | D20: Provision for post retirement benefits | E20: =-'Publish IS (R)'!#REF! ->  | F20: 0 | G20: 0 | H20: -19 | I20: 2 | J20: 9 | K20: -13
C21: I12 | D21: Share based cost | E21: =-'Publish IS (R)'!#REF! ->  | F21: 49 | G21: 136 | H21: 148 | I21: 113 | J21: 42 | K21: 41
C22: I14 | D22: Rehabilitation expenditure | E22: =-'Publish IS (R)'!#REF! ->  | F22: 6 | G22: 74 | H22: 29 | I22: 5 | J22: 12 | K22: -47
C23: I15 | D23: Other items | E23: =-'Publish IS (R)'!#REF!-'Publish IS (R)'!#REF! ->  | F23: 0 | G23: -87 | H23: 0 | I23: 0 | J23: 0 | K23: 0
C24: I16 | D24: ? | E24: 0 | F24: 0 | G24: 0 | H24: 0 | I24: 0 | J24: 0 | K24: 0
C25: I17 | D25: ? | E25: 0 | F25: 0 | G25: 0 | H25: 0 | I25: 0 | J25: 0 | K25: 0
C26: I18 | D26: ? | E26: 0 | F26: 0 | G26: 0 | H26: 0 | I26: 0 | J26: 0 | K26: 0
C27: I19 | D27: ? | E27: 0 | F27: 0 | G27: 0 | H27: 0 | I27: 0 | J27: 0 | K27: 0
A28: I20 = I01 - I04 | C28: I20 | D28: Gross profit/(loss) | E28: =+E11-E14 ->  | F28: =+F11-F14 -> 2220 | G28: 830 | H28: 800 | I28: 1837 | J28: 1026 | K28: 1350
C29: I21 | D29: Corporate, administration and other expenditure (includes social investment expenditure) | E29: =-'Publish IS (R)'!#REF!-'Publish IS (R)'!#REF! ->  | F29: 203 | G29: =354+84 -> 438 | H29: =382+81 -> 463 | I29: =329+33 -> 362 | J29: 228 | K29: 226
C30: I22 | D30: (Profit)/loss on sale of property, plant and equipment | E30: =-'Publish IS (R)'!#REF! ->  | F30: -30 | G30: -29 | H30: -104 | I30: -947 | J30: -4 | K30: -182
C31: I23 | D31: Exploration expenditure | E31: =-'Publish IS (R)'!#REF! ->  | F31: 196 | G31: 353 | H31: 219 | I31: 259 | J31: 205 | K31: 194
C32: I24 | D32: ? | E32: 0 | F32: 0 | G32: 0 | H32: 0 | I32: 0 | J32: 0 | K32: 0
C33: I25 | D33: ? | E33: 0 | F33: 0 | G33: 0 | H33: 0 | I33: 0 | J33: 0 | K33: 0
C34: I26 | D34: ? | E34: 0 | F34: 0 | G34: 0 | H34: 0 | I34: 0 | J34: 0 | K34: 0
C35: I27 | D35: ? | E35: 0 | F35: 0 | G35: 0 | H35: 0 | I35: 0 | J35: 0 | K35: 0
C36: I28 | D36: ? | E36: 0 | F36: 0 | G36: 0 | H36: 0 | I36: 0 | J36: 0 | K36: 0
C37: I29 | D37: Other items | E37: =-'Publish IS (R)'!#REF! ->  | F37: -42 | G37: 24 | H37: 58 | I37: 101 | J37: =90+4 -> 94 | K37: =-175+182 -> 7
A38: I30 = I20 - I21 - I22 - I23 - I24 - I25 - I26 - I27 - I28 - I29 | C38: I30 | D38: Operating profit/(loss) | E38: =+E28-E29-E30-E31-E32-E33-E34-E35-E36-E37 ->  | F38: =+F28-F29-F30-F31-F32-F33-F34-F35-F36-F37 -> 1893 | G38: 44 | H38: 164 | I38: 2062 | J38: 503 | K38: 1105
C39: I31 | D39: Profit/(loss) on sale of investments | E39: 0 | F39: 0 | G39: 0 | H39: -24 | I39: 1 | J39: =-2-459 -> -461 | K39: =236-35 -> 201
C40: I32 | D40: Impairment of investments | E40: ='Publish IS (R)'!#REF! ->  | F40: 50 | G40: -142 | H40: 0 | I40: -112 | J40: =-95-1 -> -96 | K40: 0
C41: I33 | D41: Net gain/(loss) on financial instruments | E41: ='Publish IS (R)'!#REF! ->  | F41: 41 | G41: 414 | H41: 38 | I41: -101 | J41: 33 | K41: 111
C42: I34 | D42: ? | E42: 0 | F42: 0 | G42: 0 | H42: 0 | I42: 0 | J42: 0 | K42: 0
C43: I35 | D43: ? | E43: 0 | F43: 0 | G43: 0 | H43: 0 | I43: 0 | J43: 0 | K43: 0
C44: I36 | D44: ? | E44: 0 | F44: 0 | G44: 0 | H44: 0 | I44: 0 | J44: 0 | K44: 0
C45: I37 | D45: Other items | E45: 0 | F45: 0 | G45: 0 | H45: 0 | I45: 0 | J45: 0 | K45: 0
A46: I38 = I30 + I31 + I32 + I33 + I34 + I35 + I36 + I37 | C46: I38 | D46: Profit before exceptionsal items, interest, associate income and tax | E46: =+E38+E39+E40+E41+E42+E43+E44+E45 ->  | F46: =+F38+F39+F40+F41+F42+F43+F44+F45 -> 1984 | G46: 316 | H46: 178 | I46: 1850 | J46: -21 | K46: 1417
A47: I40 = I38 + I39 | C47: I40 | D47: Profit before interest, associate income and tax | E47: =+E46 ->  | F47: =+F46 -> 1984 | G47: 316 | H47: 178 | I47: 1850 | J47: -21 | K47: 1417
C48: I13 | D48: Interest received | E48: =+'Publish IS (R)'!#REF! ->  | F48: 38 | G48: 140 | H48: 187 | I48: 443 | J48: 282 | K48: 188
C49: I10 | D49: Interest paid | E49: =-'Publish IS (R)'!#REF! ->  | F49: 156 | G49: 288 | H49: 246 | I49: 212 | J49: 514 | K49: 454
A50: I42 = I13 + I10 | C50: I42 | D50: Net interest paid/(reveived) | E50: =+E49-E48 ->  | F50: =+F49-F48 -> 118 | G50: 148 | H50: 59 | I50: -231 | J50: 232 | K50: 266
C51: I43 | D51: Profit/(loss) from Associates | E51: =-'Publish IS (R)'!#REF! ->  | F51: 0 | G51: -51 | H51: 56 | I51: 12 | J51: -78 | K51: -19
A52: I44 = I40 - I42 + I43 | C52: I44 | D52: Pre-tax profit | E52: =+E47-E50+E51 ->  | F52: =+F47-F50+F51 -> 1866 | G52: 117 | H52: 175 | I52: 2093 | J52: -331 | K52: 1132
C53: I46 | D53: Taxation | E53: =-'Publish IS (R)'!#REF! ->  | F53: 342 | G53: -480 | H53: 335 | I53: 188 | J53: 465 | K53: 277
A54: I48 = I44 - I46 | C54: I48 | D54: Profit for the period from continued operations | E54: =+E52-E53 ->  | F54: =+F52-F53 -> 1524 | G54: 597 | H54: -160 | I54: 1905 | J54: -796 | K54: 855
C55: I49 | D55: Profit/(loss) from discontinued operations | E55: =+'Publish IS (R)'!#REF! ->  | F55: 0 | G55: 20 | H55: -32 | I55: 1022 | J55: 551 | K55: -473
C56: I50 | D56: Income from associates after tax | E56: 0 | F56: 0 | G56: 0 | H56: 0 | I56: 0 | J56: 0 | K56: 0
C57: I52 | D57: Income attributable to minority interest | E57: 0 | F57: 0 | G57: 0 | H57: 0 | I57: 0 | J57: 0 | K57: 0
C58: I54 | D58: Preference dividends | E58: 0 | F58: 0 | G58: 0 | H58: 0 | I58: 0 | J58: 0 | K58: 0
A59: I56 = I48 +I49 + I50 + I52 + I54 | C59: I56 | D59: Net profit for the period | E59: =+E54+E56+E57+E58+E55 ->  | F59: =+F54+F56+F57+F58+F55 -> 1524 | G59: 617 | H59: -192 | I59: 2927 | J59: -245 | K59: 382
C60: I58 | D60: Extraordinary Loss/(Profit) | E60: 0 | F60: 0 | G60: 0 | H60: 0 | I60: 0 | J60: 0 | K60: 0
A61: I60 = I56 + I58 | C61: I60 | D61: Income attributable to equity holders | E61: =+E59+E60 ->  | F61: =+F59+F60 -> 1524 | G61: 617 | H61: -192 | I61: 2927 | J61: -245 | K61: 382
C62: I62 | D62: ? | E62: 0 | F62: 0 | G62: 0 | H62: 0 | I62: 0 | J62: 0 | K62: 0
C63: I64 | D63: ? | E63: 0 | F63: 0 | G63: 0 | H63: 0 | I63: 0 | J63: 0 | K63: 0
C64: I66 | D64: Distrubution to share holders | E64: =-'Publish CIE (R)'!G16 ->  | F64: 258 | G64: 214 | H64: 213 | I64: 0 | J64: 0 | K64: 0
A65: I67 = I60 - I62 - I64 - I66 | C65: I67 | D65: Profit before capex | E65: =+E61-E62-E63-E64 ->  | F65: =+F61-F62-F63-F64 -> 1266 | G65: 403 | H65: -405 | I65: 2927 | J65: -245 | K65: 382
C66: I68 | D66: Capex | E66: 0 | F66: 0 | G66: 0 | H66: 0 | I66: 0 | J66: 0 | K66: 0
A67: I69 = I67 - I68 | C67: I69 | D67: Profit after capex | E67: =+E65-E66 ->  | F67: =+F65-F66 -> 1266 | G67: 403 | H67: -405 | I67: 2927 | J67: -245 | K67: 382
C68: I73 | D68: Headline earnings (continuing operations) | E68: =+#REF! ->  | F68: 1452 | G68: 957 | H68: 4 | I68: 1260 | J68: 74 | K68: 419
C70: B01 | D70: Ordinary share capital and premium | E70: =+'Publish BS (R)'!F50 -> 28336 | F70: 28326 | G70: 28305 | H70: 28261 | I70: 28091 | J70: 25895 | K70: 25636
C71: B02 | D71: Treasury shares | E71: 0 | F71: 0 | G71: 0 | H71: 0 | I71: 0 | J71: 0 | K71: 0
C72: B03 | D72: Distributable reserves | E72: =+'Publish BS (R)'!F52 -> -4486 | F72: 2359 | G72: 1093 | H72: 690 | I72: 1095 | J72: -1832 | K72: -1581
C73: B05 | D73: Non-distributable reserves | E73: =+'Publish BS (R)'!F51 -> 5441 | F73: 1945 | G73: 762 | H73: =258 -> 258 | I73: =339 -> 339 | J73: =676 -> 676 | K73: =-349 -> -349
C74: B06 | D74: Translation reserves | E74: 0 | F74: 0 | G74: 0 | H74: 0 | I74: 0 | J74: 0 | K74: 0
C75: B08 | D75: Other capital | E75: 0 | F75: 0 | G75: 0 | H75: 0 | I75: 0 | J75: 0 | K75: 0
A76: B09 = B01 + B02 + B03 + B04 + B05 + B06 + B07 + B08 | C76: B09 | D76: Ordinary shareholders interest | E76: =SUM(E70:E75) -> 29291 | F76: =SUM(F70:F75) -> 32630 | G76: 30160 | H76: 29209 | I76: 29525 | J76: 24739 | K76: 23706
C77: B11 | D77: Preference shareholders | E77: 0 | F77: 0 | G77: 0 | H77: 0 | I77: 0 | J77: 0 | K77: 0
C78: B12 | D78: Debentures | E78: 0 | F78: 0 | G78: 0 | H78: 0 | I78: 0 | J78: 0 | K78: 0
C79: B13 | D79: Minority interest | E79: 0 | F79: 0 | G79: 0 | H79: 0 | I79: 0 | J79: 0 | K79: 0
A80: B15 = B09 + B11 + B12 + B13 + B14 | C80: B15 | D80: Total shareholders interest | E80: =SUM(E76:E79) -> 29291 | F80: =SUM(F76:F79) -> 32630 | G80: 30160 | H80: 29209 | I80: 29525 | J80: 24739 | K80: 23706
C81: B17 | D81: Near equities | E81: 0 | F81: 0 | G81: 0 | H81: 0 | I81: 0 | J81: 0 | K81: 0
C82: B19 | D82: Non-interest bearing loans | E82: 0 | F82: 0 | G82: 0 | H82: 0 | I82: 0 | J82: 0 | K82: 0
C83: B21 | D83: Interest bearing loans | E83: =+'Publish BS (R)'!F66 -> 299 | F83: 991 | G83: 1229 | H83: 981 | I83: 110 | J83: 242 | K83: 1743
C84: B23 | D84: Other long-term liabilities | E84: =+'Publish BS (R)'!F62+'Publish BS (R)'!F64 -> 2817 | F84: 2269 | G84: =1971+174 -> 2145 | H84: =1692+169 -> 1861 | I84: 1696 | J84: 1273 | K84: =1092+124 -> 1216
A85: B27 = B17 + B19 + B21 + B23 | C85: B27 | D85: Long-term liabilities | E85: =SUM(E81:E84) -> 3116 | F85: =SUM(F81:F84) -> 3260 | G85: 3374 | H85: 2842 | I85: 1806 | J85: 1515 | K85: 2959
C86: B29 | D86: Deferred tax liabilities | E86: =+'Publish BS (R)'!F61 -> 1702 | F86: 4452 | G86: 5613 | H86: 5409 | I86: 4963 | J86: 4475 | K86: 4240
C87: B31 | D87: Other capital | E87: 0 | F87: 0 | G87: 0 | H87: 0 | I87: 0 | J87: 0 | K87: 0
A88: B33 = B27 + B29 + B31 | C88: B33 | D88: Total capital employeed | E88: =+E80+E85+E86+E87 -> 34109 | F88: =+F80+F85+F86+F87 -> 40342 | G88: 39147 | H88: 37460 | I88: 36294 | J88: 30729 | K88: 30905
C90: B37 | D90: Mining assets | E90: =+'Publish BS (R)'!F14 -> 30044 | F90: 32830 | G90: 31221 | H90: 29556 | I90: 27912 | J90: 27556 | K90: 24538
C91: B39 | D91: Investments in associates | E91: 0 | F91: 0 | G91: 0 | H91: 385 | I91: 329 | J91: 145 | K91: 7
C92: B41 | D92: Investments and loans | E92: =+'Publish BS (R)'!F17+'Publish BS (R)'!F19+'Publish BS (R)'!F16 -> 2726 | F92: 2143 | G92: =31+1883+185 -> 2099 | H92: 1900 | I92: 1858 | J92: 1610 | K92: 1433
C93: B43 | D93: Goodwill | E93: 0 | F93: 0 | G93: 0 | H93: 0 | I93: 0 | J93: 0 | K93: 0
C94: B45 | D94: Intangible assets | E94: =+'Publish BS (R)'!F15 -> 603 | F94: 2185 | G94: 2170 | H94: 2210 | I94: 2224 | J94: 2209 | K94: 2307
C95: B46 | D95: Deferred tax assets | E95: =+'Publish BS (R)'!#REF! ->  | F95: 1179 | G95: 2546 | H95: 1875 | I95: 1712 | J95: 1485 | K95: 1521
C96: B47 | D96: Other assets | E96: =+'Publish BS (R)'!#REF!+'Publish BS (R)'!F20 ->  | F96: 197 | G96: =172+23 -> 195 | H96: 289 | I96: 75 | J96: 137 | K96: 54
C97: B51 | D97: Stores | E97: =+'Publish BS (R)'!F31 -> 1127 | F97: 990 | G97: 837 | H97: 987 | I97: 1035 | J97: 693 | K97: 742
C98: B52 | D98: Minerals on hand/in transit | E98: 0 | F98: 0 | G98: 0 | H98: 0 | I98: 0 | J98: 0 | K98: 0
C99: B53 | D99: Debtors and pmts in advance | E99: =+'Publish BS (R)'!F33 -> 1003 | F99: 1131 | G99: 1073 | H99: 932 | I99: 885 | J99: 875 | K99: 918
C100: B55 | D100: Cash | E100: =+'Publish BS (R)'!F35 -> 1246 | F100: 1205 | G100: 693 | H100: 770 | I100: 1950 | J100: 413 | K100: 985
C101: B59 | D101: Other current assets | E101: =SUM(E102:E106) ->  | F101: =SUM(F102:F106) -> 509 | G101: 407 | H101: 319 | I101: 45 | J101: 1619 | K101: 3834
E102: 0 | F102: 0 | G102: 0 | H102: 0 | I102: 0 | J102: 0 | K102: 0
D103: - Assets held for sale | E103: =+'Publish BS (R)'!#REF! ->  | F103: 315 | G103: 268 | H103: 245 | I103: 0 | J103: 1537 | K103: 1284
D104: - Income and mining taxes | E104: =+'Publish BS (R)'!#REF! ->  | F104: 194 | G104: 139 | H104: 74 | I104: 45 | J104: 82 | K104: 66
D105: - Investments in financial assets | E105: 0 | F105: 0 | G105: 0 | H105: 0 | I105: 0 | J105: 0 | K105: 2484
A107: B61 = B51 + B52 + B53 + B55 + B59 | C107: B61 | D107: Current assets | E107: =SUM(E97:E101) ->  | F107: =SUM(F97:F101) -> 3835 | G107: 3010 | H107: 3008 | I107: 3915 | J107: 3600 | K107: 6479
A108: B63 = B37 + B39 + B41 + B43 + B45 + B46 + B47 + B61 | C108: B63 | D108: Total assets | E108: =SUM(E90:E101) ->  | F108: =SUM(F90:F101) -> 42369 | G108: 41241 | H108: 39223 | I108: 38025 | J108: 36742 | K108: 36339
C110: B65 | D110: Creditors and provisions | E110: =+'Publish BS (R)'!F76+'Publish BS (R)'!#REF! ->  | F110: 1687 | G110: 1748 | H110: 1419 | I110: 1479 | J110: 1659 | K110: 1812
C111: B69 | D111: Dividends | E111: 0 | F111: 0 | G111: 0 | H111: 0 | I111: 0 | J111: 0 | K111: 0
C112: B71 | D112: Tax | E112: 0 | F112: 0 | G112: 0 | H112: 0 | I112: 0 | J112: 0 | K112: 0
C113: B73 | D113: Bank overdraft / short term loans | E113: =+'Publish BS (R)'!F75 -> 1834 | F113: 323 | G113: 330 | H113: 209 | I113: 252 | J113: 3857 | K113: =2855+220 -> 3075
C114: B77 | D114: Other current liabilities | E114: =+'Publish BS (R)'!F81 ->  | F114: 17 | G114: 16 | H114: 135 | I114: 0 | J114: 497 | K114: 547
A115: B79 = B65 + B69 + B71 + B73 + B77 | C115: B79 | D115: Current liabilities | E115: =SUM(E110:E114) ->  | F115: =SUM(F110:F114) -> 2027 | G115: 2094 | H115: 1763 | I115: 1731 | J115: 6013 | K115: 5434
A116: B81 = B61 - B79 | C116: B81 | D116: Net current assets | E116: =+E107-E115 ->  | F116: =+F107-F115 -> 1808 | G116: 916 | H116: 1245 | I116: 2184 | J116: -2413 | K116: 1045
A117: B83 = B33 - B63 + B79 | C117: B83 | D117: Employment of capital | E117: =+E88-E108+E115 ->  | F117: =+F88-F108+F115 -> 0 | G117: 0 | H117: 0 | I117: 0 | J117: 0 | K117: 0
C120: D02 | D120: Number of shares in issue | E120: =+'WS- Weighted ave share - Serame'!#REF! ->  | F120: 431312677 | G120: 430084628 | H120: 428654779 | I120: 425986836 | J120: 403253756 | K120: 399608384
C121: D03 | D121: Treasury shares | E121: 0 | F121: 0 | G121: 0 | H121: 0 | I121: 0 | J121: 0 | K121: 0
C122: D04 | D122: Weighted average number of shares | E122: =+'WS- Weighted ave share - Serame'!#REF! ->  | F122: 430249780.1 | G122: 430000000 | H122: 426400000 | I122: 414100000 | J122: 400800000 | K122: 397911000
C123: D07 | D123: Fully diluted weighted average shares | E123: =+'WS- Weighted ave share - Serame'!#REF! ->  | F123: 431901283.5 | G123: 431400000 | H123: 427800000 | I123: 416000000 | J123: 402900000 | K123: 402382000
A124: D06 = D02 * S20 / 100000 | C124: D06 | D124: JSE Market Capitalisation (R'000) | E124: =(+E120*E147)/100000 ->  | F124: =(+F120*F147)/100000 -> 40974704.31 | G124: 38686112 | H124: =+H120*H147/100000 -> 34892499.01 | I124: =+I120*I147/100000 -> 34078946.88 | J124: =+J120*J147/100000 -> 38309106.82 | K124: =+K120*K147/100000 -> 40068732.66
C125: D10 | D125: Number of months | E125: 6 | F125: 6 | G125: 12 | H125: 12 | I125: 12 | J125: 12 | K125: 12
C126: D11 | D126: Employees | E126: 39440 | F126: 39440 | G126: 39440 | H126: 42597 | I126: 45685 | J126: 47000 | K126: 47000
A129: S02 = (I56 * 1000000 / D04) * 100 | C129: S02 | D129: Earnings per share (ZARc) | E129: =ROUND(+E59*1000000/E122*100,0) ->  | F129: =ROUND(+F59*1000000/F122*100,0) -> 354 | G129: =ROUNDUP(+G59*1000000/G122*100,0) -> 144 | H129: =ROUNDUP(+H59*1000000/H122*100,0) -> -46 | I129: =+I59*1000000/I122*100 -> 706.834098 | J129: =ROUNDUP(+J59*1000000/J122*100,0) -> -62 | K129: =+K59*1000000/K122*100 -> 96.00136714
A130: S05 = (I56 * 1000000 / D07) * 100 | C130: S05 | D130: Diluted earnings per share (ZARc) | E130: =ROUNDUP(+E59*1000000/E123*100,0) ->  | F130: =ROUNDUP(+F59*1000000/F123*100,0) -> 353 | G130: =ROUNDUP(+G59*1000000/G123*100,0) -> 144 | H130: =ROUNDUP(+H59*1000000/H123*100,0)-1 -> -46 | I130: =+I59*1000000/I123*100 -> 703.6057692 | J130: =ROUNDUP(+J59*1000000/J123*100,0)-1 -> -62 | K130: =+K59*1000000/K123*100-2 -> 92.93466408
A131: S03 = (I73 * 1000000 / D04) * 100 | C131: S03 | D131: Headline earnings per share (ZARc) | E131: =+E68*1000000/E122*100 ->  | F131: =+F68*1000000/F122*100 -> 337.4783828 | G131: 222.5581395 | H131: 0.9380863039 | I131: 304.2743299 | J131: 18.46307385 | K131: 105.2999289
A132: S07 = (I73 * 1000000 / D07) * 100 | C132: S07 | D132: Diluted headline earnings per share (ZARc) | E132: =+E68*1000000/E123*100 ->  | F132: =+F68*1000000/F123*100 -> 336.1879336 | G132: 221.8358832 | H132: 0.9350163628 | I132: 302.8846154 | J132: 18.36684041 | K132: 104.1299064
A133: S04 = (I66 * 1000000 / D02) * 100 | C133: S04 | D133: Distributions per share (ZARc) | E133: =ROUND(+E64*1000000/E120*100,0) ->  | F133: =ROUND(+F64*1000000/F120*100,0) -> 60 | G133: =ROUND(+G64*1000000/G120*100,0) -> 50 | H133: =ROUND(+H64*1000000/H120*100,0) -> 50 | I133: =+I64*1000000/I120*100 -> 0 | J133: =+J64*1000000/J120*100 -> 0 | K133: =+K64*1000000/K120*100 -> 0
A134: S06 = (B09 * 1000000 / D02) * 100 | C134: S06 | D134: Net asset value per share (ZARc) | E134: =+E76*1000000/E120*100 ->  | F134: =+F76*1000000/F120*100 -> 7565.27729 | G134: 7012.573349 | H134: 6814.108096 | I134: 6930.96535 | J134: 6134.846764 | K134: 5932.307967
C135: S09 | D135: 3 Year beta | E135: -0.13 | F135: -0.13 | G135: -0.2 | H135: 0.09 | I135: 0.32 | J135: 1.98 | K135: 2.77
A136: S12 = (C07 * 1000000 / D02) * 100 | C136: S12 | D136: Cash generated per share | E136: =+E164*1000000/E120*100 ->  | F136: =+F164*1000000/F120*100 -> 570.3518888 | G136: 553.1469495 | H136: 369.2948446 | I136: 536.6363011 | J136: 430.9941257 | K136: 296.7905698
C145: S18 | D145: Net asset value per share (base currency) | E145: =+E134 ->  | F145: =+F134 -> 7565.27729 | G145: 7012.573349 | H145: 6814.108096 | I145: 6930.96535 | J145: 6134.846764 | K145: 5932.307967
C146: S025 | D146: Price at period end | E146: =+E147 -> 9500 | F146: =+F147 -> 9500 | G146: 8995 | H146: =+H147 -> 8140 | I146: =+I147 -> 8000 | J146: =+J147 -> 9500 | K146: =+K147 -> 10027
C147: S20 | D147: JSE market price at period end (ZARc) | E147: 9500 | F147: 9500 | G147: 8995 | H147: 8140 | I147: 8000 | J147: 9500 | K147: 10027
C148: S21 | D148: JSE market price high (ZARc) | E148: 11609 | F148: 11609 | G148: 10325 | H148: 8751 | I148: 12950 | J148: 11850 | K148: 12300
C149: S22 | D149: JSE market price low (ZARc) | E149: 8547 | F149: 8547 | G149: 7050 | H149: 6865 | I149: 5499 | J149: 6175 | K149: 8610
C150: S23 | D150: JSE volume traded | E150: 149560102 | F150: 149560102 | G150: 306869110 | H150: 435070882 | I150: 528328503 | J150: 367285632 | K150: 323183737
C151: S24 | D151: JSE value traded | E151: 14814108960 | F151: 14814108960 | G151: 25913118555 | H151: 33435131162 | I151: 48142117544 | J151: 30952045568 | K151: 33549096588
C152: S41 | D152: 12 Month HEPS (Continuing operations) | E152: 459 | F152: 459 | G152: =ROUND(+G131,0) -> 223 | H152: =ROUND(+H131,0) -> 1 | I152: =ROUND(+I131,0) -> 304 | J152: =ROUND(+J131,0) -> 18 | K152: =ROUND(+K131,0) -> 105
C153: S42 | D153: 12 Month dividend | E153: 100 | F153: 100 | G153: 50 | H153: 50 | I153: 0 | J153: 0 | K153: 0
C154: S37 | D154: Dividend per share | E154: 100 | F154: 100 | G154: 50 | H154: 50 | I154: 0 | J154: 0 | K154: 0
C157: R50 | D157: Working revenue per share | E157: =+E11*1000000/E122*100*(12/E125) ->  | F157: =+F11*1000000/F122*100*(12/F125) -> 4066.939905 | G157: 2894.186047 | H157: 2646.341463 | I157: 2776.141029 | J157: 2297.904192 | K157: 2019.798397
C158: R51 | D158: Price/Sales per share | E158: =+E146/E157 ->  | F158: =+F146/F157 -> 2.335908625 | G158: 3.107955002 | H158: 3.0759447 | I158: 2.881697982 | J158: 4.134201954 | K158: 4.964356846
C159: R52 | D159: Price/Net asset value | E159: =+E146/E145 ->  | F159: =+F146/F145 -> 1.255737184 | G159: 1.282696031 | H159: 1.194580404 | I159: 1.154240369 | J159: 1.548530936 | K159: 1.690235918
C160: R53 | D160: Price/Cash flow | E160: =+(E146/E136)*(12/E125) ->  | F160: =+(F146/F136)*(12/F125) -> 33.31276774 | G160: 16.26150159 | H160: 22.04200822 | I160: 14.9076758 | J160: 22.04206376 | K160: 33.78476616
C164: C07 | D164: Net cash flow from operating activities | E164: =ROUND(+#REF!,0) ->  | F164: 2460 | G164: 2379 | H164: 1583 | I164: 2286 | J164: 1738 | K164: 1186
C165: C15 | D165: Net cash flow from investing activities | E165: =ROUND(+#REF!,0) ->  | F165: -1444 | G165: -2654 | H165: -3416 | I165: 817 | J165: -2373 | K165: -2228
C166: C40 | D166: Net cash flow from financing activities | E166: =ROUND(+#REF!,0) ->  | F166: -509 | G166: 209 | H166: 650 | I166: -1785 | J166: 495 | K166: 933
A169: R01 = ((I60 + I52) / B33) * 100 * (12 / D10) | C169: R01 | D169: Return on capital employed | E169: =+((E61+E57)/E88)*100*(12/E125) ->  | F169: =+((F61+F57)/F88)*100*(12/F125) -> 7.555401319 | G169: 1.576110558 | H169: -0.5125467165 | I169: 8.064693889 | J169: -0.7972924599 | K169: 1.236045947
A170: R02 = ((I60 + I52) / B15) * 100 * (12 / D10) | C170: R02 | D170: Return on shareholder funds | E170: =+((E61+E57)/E80)*100*(12/E125) ->  | F170: =+((F61+F57)/F80)*100*(12/F125) -> 9.34109715 | G170: 2.045755968 | H170: -0.6573316444 | I170: 9.913632515 | J170: -0.9903391406 | K170: 1.611406395
A171: R03 = (I44 + I50) / (B63 - B45 - B43) * 100 * (12 / D10) | C171: R03 | D171: Return on total assets | E171: =+(E52+E56)/(E108-E94-E93)*100*(12/E125) ->  | F171: =+(F52+F56)/(F108-F94-F93)*100*(12/F125) -> 9.287278519 | G171: 0.2994548386 | H171: 0.4728068516 | I171: 5.846205413 | J171: -0.9585034605 | K171: 3.326281147
A172: R04 = (I30 / I01) * 100 | C172: R04 | D172: Operating profit margin | E172: =+(E38/E11)*100 ->  | F172: =+(F38/F11)*100 -> 21.63675849 | G172: 0.3535556448 | H172: 1.453385324 | I172: 17.93667363 | J172: 5.46145494 | K172: 13.74891129
A173: R05 = (I60 / I01) * 100 | C173: R05 | D173: Net profit margin | E173: =+(E61/E11)*100 ->  | F173: =+(F61/F11)*100 -> 17.41913362 | G173: 4.957814383 | H173: -1.701524282 | I173: 25.46102992 | J173: -2.660152009 | K173: 4.753017295
A174: R06 = (B27 - B19 + B73) / B15 | C174: R06 | D174: Debt:Equity | E174: =+(E85-E82+E113)/E80 -> 0.1689938889 | F174: =+(F85-F82+F113)/F80 -> 0.1098069261 | G174: 0.1228116711 | H174: 0.1044541066 | I174: 0.06970364098 | J174: 0.2171470148 | K174: 0.2545347169
A175: R07 = I40 / I42 | C175: R07 | D175: Interest cover | E175: =+E47/E50 ->  | F175: =+F47/F50 -> 16.81355932 | G175: 2.135135135 | H175: 3.016949153 | I175: -8.008658009 | J175: -0.09051724138 | K175: 5.327067669
A176: R09 = B61 / B79 | C176: R09 | D176: Current ratio | E176: =+E107/E115 ->  | F176: =+F107/F115 -> 1.891958559 | G176: 1.437440306 | H176: 1.706182643 | I176: 2.26169844 | J176: 0.5987028106 | K176: 1.192307692
A177: R10 = S02 / S04 | C177: R10 | D177: Dividend cover | E177: =+E129/E133 ->  | F177: =+F129/F133 -> 5.9 | G177: 2.88 | H177: -0.92
C178: R13 | D178: Yield (g/ton) | E178: 2.22 | F178: 2.22 | G178: 2.07 | H178: 2.39 | I178: 2.54 | J178: 2.68 | K178: 3.67
C179: R14 | D179: Tons milled ('000) | E179: =4542+4870 -> 9412 | F179: =4542+4870 -> 9412 | G179: 19280 | H179: 17963 | I179: 17888 | J179: 17686 | K179: 14781
C180: R15 | D180: Output (kg) | E180: =10207+10718 -> 20925 | F180: =10207+10718 -> 20925 | G180: 40535 | H180: 44433 | I180: 45437 | J180: 47419 | K180: 54291
C181: R16 | D181: Price received (R/kg) | E181: 418381 | F181: 418381 | G181: 307875 | H181: 266009 | I181: 250826 | J181: 190951 | K181: 147927
C182: R17 | D182: Working cost (R/kg) | E182: 257114 | F182: 257114 | G182: 226667 | H182: 195162 | I182: 168661 | J182: 140093 | K182: 112062
A183: R18 = (S06 / S20) * 100 | C183: R18 | D183: NAV%Price | E183: =+E134/E147*100 ->  | F183: =+F134/F147*100 -> 79.63449778 | G183: 77.9607932 | H183: 83.71140167 | I183: 86.63706688 | J183: 64.57733436 | K183: 59.16333865
A184: R19 = S20 / S41 | C184: R19 | D184: Price : Earnings | E184: =+E147/E152 -> 20.69716776 | F184: =+F147/F152 -> 20.69716776 | G184: 40.33632287 | H184: 8140 | I184: 26.31578947 | J184: 527.7777778 | K184: 95.4952381
A185: R36 = (I38 * 12 / D10) / B63 * 100 | C185: R36 | D185: Profitability % | E185: =+(E46*12/E125)/E108*100 ->  | F185: =+(F46*12/F125)/F108*100 -> 9.365337865 | G185: 0.766227783 | H185: 0.4538153634 | I185: 4.86522025 | J185: -0.05715529911 | K185: 3.899391838
A186: R37 = (B63 / (B12 + B27 + B29 + B79)) * 100 | C186: R37 | D186: Solvency % | E186: =+(E108/(E78+E85+E86+E115))*100 ->  | F186: =+(F108/(F78+F85+F86+F115))*100 -> 435.0446658 | G186: 372.1776013 | H186: 391.6816457 | I186: 447.3529412 | J186: 306.1068066 | K186: 287.6513892
A187: R38 = (B012+B027-B017-B019-B023+B073)/B063 | C187: R38 | D187: Int Bearing Debt : Total assets | E187: =+(E78+E85-E81-E82-E84+E113)/E108 ->  | F187: =+(F78+F85-F81-F82-F84+F113)/F108 -> 0.03101324081 | G187: 0.03780218714 | H187: 0.03033934171 | I187: 0.009520052597 | J187: 0.1115617005 | K187: 0.1325848262
A188: R39 = (C07 * 12 / D10) / (B12 + B27 + B29 + B79) * 100 | C188: R39 | D188: Liquidity % | E188: =+(E164*12/E125)/(E78+E81+E86+E115)*100 ->  | F188: =+(F164*12/F125)/(F78+F81+F86+F115)*100 -> 75.9376447 | G188: 30.86804204 | H188: 22.07194646 | I188: 34.14998506 | J188: 16.5713196 | K188: 12.25966508
A189: R40 = (C07 / (I56 - I39)) * 12 / D10 | C189: R40 | D189: Cash flow : Attributable profit | E189: =+(E164/(E59))*12/E125 ->  | F189: =+(F164/(F59))*12/F125 -> 3.228346457 | G189: 3.855753647 | H189: -8.244791667 | I189: 0.7810044414 | J189: -7.093877551 | K189: 3.104712042

Sheet Analysis BS (hidden)
F1: ZAR | L1: ZAR
C3: CONDENSED CONSOLIDATED BALANCE SHEET | E3: Group | F3: Evander | G3: Continuing | H3: SA | I3: Australia | J3: Continuing | K3: Group | L3: Evander | M3: Continuing | N3: SA | O3: Australia | T3: SA | U3: Australia | V3: Contributions
E6: =#REF! ->  | F6: =E6 ->  | G6: =E6 ->  | H6: =G6 ->  | I6: =H6 ->  | K6: =#REF! ->  | L6: At | M6: =K6 ->  | N6: =M6 ->  | T6: At | U6: At
C7: Company: | D7: Harmony Company (Consolidated) C001 | E7: =#REF! ->  | F7: =E7 ->  | G7: =E7 ->  | H7: =G7 ->  | K7: =#REF! ->  | L7: June | M7: =K7 ->  | T7: June | U7: June
E8: =#REF! ->  | F8: =E8 ->  | G8: =E8 ->  | K8: =#REF! ->  | L8: 2012 | M8: =K8 ->  | T8: 2012 | U8: 2012
E9: =#REF! ->  | F9: =E9 ->  | G9: =E9 ->  | K9: =#REF! ->  | L9: (Unaudited) | M9: =K9 ->  | T9: (Unaudited) | U9: (Unaudited)
E10: =#REF! ->  | F10: =E10 ->  | G10: =E10 ->  | K10: =#REF! ->  | L10: R million | M10: =K10 ->  | T10: R million | U10: R million
C13: TOTAL ASSETS
A15: AB100000 | B15: Property, plant and equipment | C15: Property, plant and equipment | E15: =#REF! ->  | F15: =#REF! ->  | G15: =E15-F15 ->  | H15: =G15-I15 ->  | I15: =#REF! ->  | K15: =#REF! ->  | L15: =#REF! ->  | M15: =K15-L15 ->  | N15: =M15-O15 ->  | O15: =#REF! ->  | S15: Property, plant and equipment | T15: =N15 ->  | U15: =O15 ->  | V15: =+U15+T15 -> 
A16: AB110000 | B16: PPE : Cost | C16: PPE : Cost | E16: =#REF! ->  | F16: =#REF! ->  | G16: =E16-F16 ->  | H16: =G16-I16 ->  | I16: =#REF! ->  | K16: =#REF! ->  | L16: =#REF! ->  | M16: =K16-L16 ->  | N16: =M16-O16 ->  | O16: =#REF! ->  | S16: PPE : Cost | T16: =N16 ->  | U16: =O16 ->  | V16: =+U16+T16 -> 
A17: AB110100 | B17: Cost : Mining assets | C17: Cost : Mining assets | E17: =#REF! ->  | F17: =#REF! ->  | I17: =#REF! ->  | K17: =#REF! ->  | L17: =#REF! ->  | M17: =K17-L17 ->  | N17: =M17-O17 ->  | O17: =#REF! ->  | S17: Cost : Mining assets
A18: AB110110 | B18: Cost : Mine assets | C18: Cost : Mine assets | E18: =#REF! ->  | F18: =#REF! ->  | I18: =#REF! ->  | K18: =#REF! ->  | L18: =#REF! ->  | O18: =#REF! ->  | S18: Cost : Mine assets
A19: AB110120 | B19: Cost : Rehab assets | C19: Cost : Rehab assets | E19: =#REF! ->  | F19: =#REF! ->  | I19: =#REF! ->  | K19: =#REF! ->  | L19: =#REF! ->  | O19: =#REF! ->  | S19: Cost : Rehab assets
A20: AB110130 | B20: Cost : Capital development and AE's | C20: Cost : Capital development and AE's | E20: =#REF! ->  | F20: =#REF! ->  | I20: =#REF! ->  | K20: =#REF! ->  | L20: =#REF! ->  | O20: =#REF! ->  | S20: Cost : Capital development and AE's
A21: AB110190 | B21: Cost : Other | C21: Cost : Other mining assets | E21: =#REF! ->  | F21: =#REF! ->  | I21: =#REF! ->  | K21: =#REF! ->  | L21: =#REF! ->  | O21: =#REF! ->  | S21: Cost : Other mining assets
A22: AB110200 | B22: Cost : Mining assets under construction | C22: Cost : Mining assets under construction | E22: =#REF! ->  | F22: =#REF! ->  | I22: =#REF! ->  | K22: =#REF! ->  | L22: =#REF! ->  | O22: =#REF! ->  | S22: Cost : Mining assets under construction
A23: AB110300 | B23: Cost : Undeveloped property | C23: Cost : Undeveloped property | E23: =#REF! ->  | F23: =#REF! ->  | I23: =#REF! ->  | K23: =#REF! ->  | L23: =#REF! ->  | O23: =#REF! ->  | S23: Cost : Undeveloped property
A24: AB110400 | B24: Cost : Deferred stripping | C24: Cost : Deferred stripping | E24: =#REF! ->  | F24: =#REF! ->  | I24: =#REF! ->  | K24: =#REF! ->  | L24: =#REF! ->  | O24: =#REF! ->  | S24: Cost : Deferred stripping
A25: AB110800 | B25: Cost : Other non-mining | C25: Cost : Other non-mining | E25: =#REF! ->  | F25: =#REF! ->  | I25: =#REF! ->  | K25: =#REF! ->  | L25: =#REF! ->  | O25: =#REF! ->  | S25: Cost : Other non-mining
A26: AB110900 | B26: Clearing accounts | C26: Clearing accounts | E26: =#REF! ->  | F26: =#REF! ->  | I26: =#REF! ->  | K26: =#REF! ->  | L26: =#REF! ->  | O26: =#REF! ->  | S26: Clearing accounts
A27: AB120000 | B27: PPE : Accumulated depreciation | C27: PPE : Accumulated depreciation | E27: =#REF! ->  | F27: =#REF! ->  | I27: =#REF! ->  | K27: =#REF! ->  | L27: =#REF! ->  | O27: =#REF! ->  | S27: PPE : Accumulated depreciation
A28: AB120100 | B28: Acc depr : Mining assets | C28: Acc depr : Mining assets | E28: =#REF! ->  | F28: =#REF! ->  | I28: =#REF! ->  | K28: =#REF! ->  | L28: =#REF! ->  | O28: =#REF! ->  | S28: Acc depr : Mining assets
A29: AB120110 | B29: Acc depr : Mine assets | C29: Acc depr : Mine assets | E29: =#REF! ->  | F29: =#REF! ->  | I29: =#REF! ->  | K29: =#REF! ->  | L29: =#REF! ->  | O29: =#REF! ->  | S29: Acc depr : Mine assets
A30: AB120120 | B30: Acc depr : Rehab assets | C30: Acc depr : Rehab assets | E30: =#REF! ->  | F30: =#REF! ->  | I30: =#REF! ->  | K30: =#REF! ->  | L30: =#REF! ->  | O30: =#REF! ->  | S30: Acc depr : Rehab assets
A31: AB120130 | B31: Acc depr : Capital development | C31: Acc depr : Capital development | E31: =#REF! ->  | F31: =#REF! ->  | I31: =#REF! ->  | K31: =#REF! ->  | L31: =#REF! ->  | O31: =#REF! ->  | S31: Acc depr : Capital development
A32: AB120190 | B32: Acc depr : Other | C32: Acc depr : Other | E32: =#REF! ->  | F32: =#REF! ->  | I32: =#REF! ->  | K32: =#REF! ->  | L32: =#REF! ->  | O32: =#REF! ->  | S32: Acc depr : Other
A33: AB120200 | B33: Acc depr : Mining assets under construction | C33: Acc depr : Mining assets under construction | E33: =#REF! ->  | F33: =#REF! ->  | I33: =#REF! ->  | K33: =#REF! ->  | L33: =#REF! ->  | O33: =#REF! ->  | S33: Acc depr : Mining assets under construction
A34: AB120300 | B34: Acc depr : Undeveloped property | C34: Acc depr : Undeveloped property | E34: =#REF! ->  | F34: =#REF! ->  | I34: =#REF! ->  | K34: =#REF! ->  | L34: =#REF! ->  | O34: =#REF! ->  | S34: Acc depr : Undeveloped property
A35: AB120400 | B35: Acc depr : Deferred stripping | C35: Acc depr : Deferred stripping | E35: =#REF! ->  | F35: =#REF! ->  | I35: =#REF! ->  | K35: =#REF! ->  | L35: =#REF! ->  | O35: =#REF! ->  | S35: Acc depr : Deferred stripping
A36: AB120800 | B36: Acc depr : Other non-mining | C36: Acc depr : Other non-mining | E36: =#REF! ->  | F36: =#REF! ->  | I36: =#REF! ->  | K36: =#REF! ->  | L36: =#REF! ->  | O36: =#REF! ->  | S36: Acc depr : Other non-mining
A37: AB200000 | B37: Intangible assets | C37: Intangible assets | E37: =#REF! ->  | F37: =#REF! ->  | I37: =#REF! ->  | K37: =#REF! ->  | L37: =#REF! ->  | O37: =#REF! -> 
A38: AB210000 | B38: Intangible Assets : Cost | C38: Intangible Assets : Cost | E38: =#REF! ->  | F38: =#REF! ->  | I38: =#REF! ->  | K38: =#REF! ->  | L38: =#REF! ->  | O38: =#REF! -> 
A39: AB210100 | B39: Cost : Goodwill | C39: Cost : Goodwill | E39: =#REF! ->  | F39: =#REF! ->  | I39: =#REF! ->  | K39: =#REF! ->  | L39: =#REF! ->  | O39: =#REF! -> 
A40: AB210900 | B40: Cost : Other | C40: Cost : Other | E40: =#REF! ->  | F40: =#REF! ->  | I40: =#REF! ->  | K40: =#REF! ->  | L40: =#REF! ->  | O40: =#REF! -> 
A41: AB220000 | B41: Intangible Assets : Acccumulated depreciation | C41: Intangible Assets : Acccumulated depreciation | E41: =#REF! ->  | F41: =#REF! ->  | I41: =#REF! ->  | K41: =#REF! ->  | L41: =#REF! ->  | O41: =#REF! -> 
A42: AB220100 | B42: Acc depr : Goodwill | C42: Acc depr : Goodwill | E42: =#REF! ->  | F42: =#REF! ->  | I42: =#REF! ->  | K42: =#REF! ->  | L42: =#REF! ->  | O42: =#REF! -> 
A43: AB220900 | B43: Acc depr : Other | C43: Acc depr : Other | E43: =#REF! ->  | F43: =#REF! ->  | I43: =#REF! ->  | K43: =#REF! ->  | L43: =#REF! ->  | O43: =#REF! -> 
A44: AB310000 | B44: Restricted cash | C44: Restricted cash | E44: =#REF! ->  | F44: =#REF! ->  | I44: =#REF! ->  | K44: =#REF! ->  | L44: =#REF! ->  | O44: =#REF! -> 
A45: AB320000 | B45: Restricted investments | C45: Restricted investments | E45: =#REF! ->  | F45: =#REF! ->  | I45: =#REF! ->  | K45: =#REF! ->  | L45: =#REF! ->  | O45: =#REF! -> 
A46: AB320100 | B46: Environmental trust | C46: Environmental trust | E46: =#REF! ->  | F46: =#REF! ->  | I46: =#REF! ->  | K46: =#REF! ->  | L46: =#REF! ->  | O46: =#REF! -> 
A47: AB320900 | B47: Other : Restricted investments | C47: Other : Restricted investments | E47: =#REF! ->  | F47: =#REF! ->  | I47: =#REF! ->  | K47: =#REF! ->  | L47: =#REF! ->  | O47: =#REF! -> 
A48: AB511000 | B48: Investments in financial assets | C48: Investments in financial assets | E48: =#REF! ->  | F48: =#REF! ->  | I48: =#REF! ->  | K48: =#REF! ->  | L48: =#REF! ->  | O48: =#REF! -> 
A49: AB511100 | B49: Listed investments | C49: Listed investments | E49: =#REF! ->  | F49: =#REF! ->  | I49: =#REF! ->  | K49: =#REF! ->  | L49: =#REF! ->  | O49: =#REF! -> 
A50: AB511200 | B50: Unlisted investments | C50: Unlisted investments | E50: =#REF! ->  | F50: =#REF! ->  | I50: =#REF! ->  | K50: =#REF! ->  | L50: =#REF! ->  | O50: =#REF! -> 
A51: AB512000 | B51: Investments in associates - other | C51: Investments in associates - other | E51: =#REF! ->  | F51: =#REF! ->  | I51: =#REF! ->  | K51: =#REF! ->  | L51: =#REF! ->  | O51: =#REF! -> 
A52: AB512010 | B52: Rand Uranium | C52: Rand Uranium | E52: =#REF! ->  | F52: =#REF! ->  | I52: =#REF! ->  | K52: =#REF! ->  | L52: =#REF! ->  | O52: =#REF! -> 
A53: AB512990 | B53: Other : Investment in associates | C53: Other : Investment in associates | E53: =#REF! ->  | F53: =#REF! ->  | I53: =#REF! ->  | K53: =#REF! ->  | L53: =#REF! ->  | O53: =#REF! -> 
A54: AB513000 | B54: Investments in joint ventures - other | C54: Investments in joint ventures - other | E54: =#REF! ->  | F54: =#REF! ->  | I54: =#REF! ->  | K54: =#REF! ->  | L54: =#REF! ->  | O54: =#REF! -> 
A55: AB514000 | B55: Investment in subsidiaries | C55: Investment in subsidiaries | E55: =#REF! ->  | F55: =#REF! ->  | I55: =#REF! ->  | K55: =#REF! ->  | L55: =#REF! ->  | O55: =#REF! -> 
A56: AB521000 | B56: Loans to subsidiaries | C56: Loans to subsidiaries | E56: =#REF! ->  | F56: =#REF! ->  | I56: =#REF! ->  | K56: =#REF! ->  | L56: =#REF! ->  | O56: =#REF! -> 
A57: AB711000 | B57: Deferred income tax | C57: Deferred income tax | E57: =#REF! ->  | F57: =#REF! ->  | I57: =#REF! ->  | K57: =#REF! ->  | L57: =#REF! ->  | O57: =#REF! -> 
A58: AB911000 | B58: Trade and other receivables | C58: Trade and other receivables | E58: =#REF! ->  | F58: =#REF! ->  | I58: =#REF! ->  | K58: =#REF! ->  | L58: =#REF! ->  | O58: =#REF! -> 
A59: AB911100 | B59: Sub-ordinated loan Rand Uranium | C59: Sub-ordinated loan Rand Uranium | E59: =#REF! ->  | F59: =#REF! ->  | I59: =#REF! ->  | K59: =#REF! ->  | L59: =#REF! ->  | O59: =#REF! -> 
A60: AB911200 | B60: Provisions for irrecoverable loans | C60: Provisions for irrecoverable loans | E60: =#REF! ->  | F60: =#REF! ->  | I60: =#REF! ->  | K60: =#REF! ->  | L60: =#REF! ->  | O60: =#REF! -> 
A61: AB911900 | B61: Other : Trade and receivables | C61: Other : Trade and receivables | E61: =#REF! ->  | F61: =#REF! ->  | I61: =#REF! ->  | K61: =#REF! ->  | L61: =#REF! ->  | O61: =#REF! -> 
A62: AB921000 | B62: Inventories | C62: Inventories | E62: =#REF! ->  | F62: =#REF! ->  | I62: =#REF! ->  | K62: =#REF! ->  | L62: =#REF! ->  | O62: =#REF! -> 
A63: AB921900 | B63: Other : Inventories | C63: Other : Inventories | E63: =#REF! ->  | F63: =#REF! ->  | I63: =#REF! ->  | K63: =#REF! ->  | L63: =#REF! ->  | O63: =#REF! -> 
E64: =#REF! ->  | F64: =#REF! ->  | I64: =#REF! ->  | K64: =#REF! ->  | L64: =#REF! ->  | O64: =#REF! -> 
E65: =#REF! ->  | F65: =#REF! ->  | I65: =#REF! ->  | K65: =#REF! ->  | L65: =#REF! ->  | O65: =#REF! -> 
A66: AB000000 | B66: Non-current assets | C66: Total non-current assets | E66: =#REF! ->  | F66: =#REF! ->  | I66: =#REF! ->  | K66: =#REF! ->  | L66: =#REF! ->  | O66: =#REF! -> 
E67: =#REF! ->  | F67: =#REF! ->  | I67: =#REF! ->  | K67: =#REF! ->  | L67: =#REF! ->  | O67: =#REF! -> 
E68: =#REF! ->  | F68: =#REF! ->  | I68: =#REF! ->  | K68: =#REF! ->  | L68: =#REF! ->  | O68: =#REF! -> 
C69: Current assets | E69: =#REF! ->  | F69: =#REF! ->  | I69: =#REF! ->  | K69: =#REF! ->  | L69: =#REF! ->  | O69: =#REF! -> 
A70: AC100000 | B70: Inventories | C70: Inventories | E70: =#REF! ->  | F70: =#REF! ->  | I70: =#REF! ->  | K70: =#REF! ->  | L70: =#REF! ->  | O70: =#REF! -> 
A71: AC110000 | B71: Gold stock | C71: Gold stock | E71: =#REF! ->  | F71: =#REF! ->  | I71: =#REF! ->  | K71: =#REF! ->  | L71: =#REF! ->  | O71: =#REF! -> 
A72: AC110100 | B72: Gold in lockup | C72: Gold in lockup | E72: =#REF! ->  | F72: =#REF! ->  | I72: =#REF! ->  | K72: =#REF! ->  | L72: =#REF! ->  | O72: =#REF! -> 
A73: AC110200 | B73: Gold in process | C73: Gold in process | E73: =#REF! ->  | F73: =#REF! ->  | I73: =#REF! ->  | K73: =#REF! ->  | L73: =#REF! ->  | O73: =#REF! -> 
A74: AC110300 | B74: Bullion on hand | C74: Bullion on hand | E74: =#REF! ->  | F74: =#REF! ->  | I74: =#REF! ->  | K74: =#REF! ->  | L74: =#REF! ->  | O74: =#REF! -> 
A75: AC110400 | B75: ROM Stockpiles | C75: ROM Stockpiles | E75: =#REF! ->  | F75: =#REF! ->  | I75: =#REF! ->  | K75: =#REF! ->  | L75: =#REF! ->  | O75: =#REF! -> 
A76: AC120000 | B76: Byproducts stock | C76: Byproducts stock | E76: =#REF! ->  | F76: =#REF! ->  | I76: =#REF! ->  | K76: =#REF! ->  | L76: =#REF! ->  | O76: =#REF! -> 
A77: AC120100 | B77: Silver stock | C77: Silver stock | E77: =#REF! ->  | F77: =#REF! ->  | I77: =#REF! ->  | K77: =#REF! ->  | L77: =#REF! ->  | O77: =#REF! -> 
A78: AC120200 | B78: Copper stock | C78: Copper stock | E78: =#REF! ->  | F78: =#REF! ->  | I78: =#REF! ->  | K78: =#REF! ->  | L78: =#REF! ->  | O78: =#REF! -> 
A79: AC120300 | B79: Uranium stock | C79: Uranium stock | E79: =#REF! ->  | F79: =#REF! ->  | I79: =#REF! ->  | K79: =#REF! ->  | L79: =#REF! ->  | O79: =#REF! -> 
A80: AC130000 | B80: Stores | C80: Stores | E80: =#REF! ->  | F80: =#REF! ->  | G80: =E80-F80 ->  | H80: =G80-I80 ->  | I80: =#REF! ->  | K80: =#REF! ->  | L80: =#REF! ->  | O80: =#REF! -> 
A81: AC130100 | B81: Stores : cost | C81: Stores : cost | E81: =#REF! ->  | F81: =#REF! ->  | I81: =#REF! ->  | K81: =#REF! ->  | L81: =#REF! ->  | M81: =K81-L81 ->  | N81: =M81-O81 ->  | O81: =#REF! -> 
A82: AC130200 | B82: Provisions of obsolete stock | C82: Provisions of obsolete stock | E82: =#REF! ->  | F82: =#REF! ->  | I82: =#REF! ->  | K82: =#REF! ->  | L82: =#REF! ->  | O82: =#REF! -> 
A83: AC310000 | B83: Trade and other receivables | C83: Trade and other receivables | E83: =#REF! ->  | F83: =#REF! ->  | I83: =#REF! ->  | K83: =#REF! ->  | L83: =#REF! ->  | O83: =#REF! -> 
A84: AC310100 | B84: Metals | C84: Metals | E84: =#REF! ->  | F84: =#REF! ->  | I84: =#REF! ->  | K84: =#REF! ->  | L84: =#REF! ->  | O84: =#REF! -> 
A85: AC310110 | B85: Gold debtor | C85: Gold debtor | E85: =#REF! ->  | F85: =#REF! ->  | I85: =#REF! ->  | K85: =#REF! ->  | L85: =#REF! ->  | O85: =#REF! -> 
A86: AC310120 | B86: Silver debtor | C86: Silver debtor | E86: =#REF! ->  | F86: =#REF! ->  | I86: =#REF! ->  | K86: =#REF! ->  | L86: =#REF! ->  | O86: =#REF! -> 
A87: AC310130 | B87: Copper debtor | C87: Copper debtor | E87: =#REF! ->  | F87: =#REF! ->  | I87: =#REF! ->  | K87: =#REF! ->  | L87: =#REF! ->  | O87: =#REF! -> 
A88: AC310140 | B88: Osmiridium debtors | C88: Osmiridium debtors | E88: =#REF! ->  | F88: =#REF! ->  | I88: =#REF! ->  | K88: =#REF! ->  | L88: =#REF! ->  | O88: =#REF! -> 
A89: AC310200 | B89: VAT | C89: VAT | E89: =#REF! ->  | F89: =#REF! ->  | I89: =#REF! ->  | K89: =#REF! ->  | L89: =#REF! ->  | O89: =#REF! -> 
A90: AC310300 | B90: Other trade | C90: Other trade | E90: =#REF! ->  | F90: =#REF! ->  | I90: =#REF! ->  | K90: =#REF! ->  | L90: =#REF! ->  | O90: =#REF! -> 
A91: AC310400 | B91: Provision for bad debt | C91: Provision for bad debt | E91: =#REF! ->  | F91: =#REF! ->  | I91: =#REF! ->  | K91: =#REF! ->  | L91: =#REF! ->  | O91: =#REF! -> 
A92: AC310500 | B92: Prepayments | C92: Prepayments | E92: =#REF! ->  | F92: =#REF! ->  | I92: =#REF! ->  | K92: =#REF! ->  | L92: =#REF! ->  | O92: =#REF! -> 
A93: AC310600 | B93: Interest receivable | C93: Interest receivable | E93: =#REF! ->  | F93: =#REF! ->  | I93: =#REF! ->  | K93: =#REF! ->  | L93: =#REF! ->  | O93: =#REF! -> 
A94: AC310700 | B94: Self-insurance funds | C94: Self-insurance funds | E94: =#REF! ->  | F94: =#REF! ->  | I94: =#REF! ->  | K94: =#REF! ->  | L94: =#REF! ->  | O94: =#REF! -> 
A95: AC310980 | B95: Other : Trade and other receivables | C95: Other : Trade and other receivables | E95: =#REF! ->  | F95: =#REF! ->  | I95: =#REF! ->  | K95: =#REF! ->  | L95: =#REF! ->  | O95: =#REF! -> 
A96: AC310990 | B96: Project controle accounts | C96: Project controle accounts | E96: =#REF! ->  | F96: =#REF! ->  | I96: =#REF! ->  | K96: =#REF! ->  | L96: =#REF! ->  | O96: =#REF! -> 
A97: AC310995 | B97: Intercompany Differences | C97: Intercompany Differences | E97: =#REF! ->  | F97: =#REF! ->  | I97: =#REF! ->  | K97: =#REF! ->  | L97: =#REF! ->  | O97: =#REF! -> 
A98: AC320000 | B98: Income and mining tax | C98: Income and mining tax | E98: =#REF! ->  | F98: =#REF! ->  | I98: =#REF! ->  | K98: =#REF! ->  | L98: =#REF! ->  | O98: =#REF! -> 
A99: AC510000 | B99: Restricted cash | C99: Restricted cash | E99: =#REF! ->  | F99: =#REF! ->  | I99: =#REF! ->  | K99: =#REF! ->  | L99: =#REF! ->  | O99: =#REF! -> 
A100: AC710000 | B100: Cash and cash equivalents | C100: Cash and cash equivalents | E100: =#REF! ->  | F100: =#REF! ->  | I100: =#REF! ->  | K100: =#REF! ->  | L100: =#REF! ->  | O100: =#REF! -> 
E101: =#REF! ->  | F101: =#REF! ->  | I101: =#REF! ->  | K101: =#REF! ->  | L101: =#REF! ->  | O101: =#REF! -> 
E102: =#REF! ->  | F102: =#REF! ->  | I102: =#REF! ->  | K102: =#REF! ->  | L102: =#REF! ->  | O102: =#REF! -> 
E103: =#REF! ->  | F103: =#REF! ->  | I103: =#REF! ->  | K103: =#REF! ->  | L103: =#REF! ->  | O103: =#REF! -> 
A104: AC910000 | B104: Non-current assets classified as held-for-sale | C104: Assets of disposal groups classified as held-for-sale | E104: =#REF! ->  | F104: =#REF! ->  | I104: =#REF! ->  | K104: =#REF! ->  | L104: =#REF! ->  | O104: =#REF! -> 
E105: =#REF! ->  | F105: =#REF! ->  | I105: =#REF! ->  | K105: =#REF! ->  | L105: =#REF! ->  | O105: =#REF! -> 
E106: =#REF! ->  | F106: =#REF! ->  | I106: =#REF! ->  | K106: =#REF! ->  | L106: =#REF! ->  | O106: =#REF! -> 
A107: AC000000 | B107: Current assets | C107: Total current assets | E107: =#REF! ->  | F107: =#REF! ->  | I107: =#REF! ->  | K107: =#REF! ->  | L107: =#REF! ->  | O107: =#REF! -> 
E108: =#REF! ->  | F108: =#REF! ->  | I108: =#REF! ->  | K108: =#REF! ->  | L108: =#REF! ->  | O108: =#REF! -> 
E109: =#REF! ->  | F109: =#REF! ->  | I109: =#REF! ->  | K109: =#REF! ->  | L109: =#REF! ->  | O109: =#REF! -> 
A110: AA000000 | B110: TOTAL ASSETS | C110: TOTAL ASSETS | E110: =#REF! ->  | F110: =#REF! ->  | I110: =#REF! ->  | K110: =#REF! ->  | L110: =#REF! ->  | O110: =#REF! -> 
E111: =#REF! ->  | F111: =#REF! ->  | I111: =#REF! ->  | K111: =#REF! ->  | L111: =#REF! ->  | O111: =#REF! -> 
E112: =#REF! ->  | F112: =#REF! ->  | I112: =#REF! ->  | K112: =#REF! ->  | L112: =#REF! ->  | O112: =#REF! -> 
C113: TOTAL EQUITY AND LIABILITIES | E113: =#REF! ->  | F113: =#REF! ->  | I113: =#REF! ->  | K113: =#REF! ->  | L113: =#REF! ->  | O113: =#REF! -> 
E114: =#REF! ->  | F114: =#REF! ->  | I114: =#REF! ->  | K114: =#REF! ->  | L114: =#REF! ->  | O114: =#REF! -> 
C115: Share capital and reserves | E115: =#REF! ->  | F115: =#REF! ->  | I115: =#REF! ->  | K115: =#REF! ->  | L115: =#REF! ->  | O115: =#REF! -> 
A116: BB100000 | B116: Share capital | C116: Share capital | E116: =#REF! ->  | F116: =#REF! ->  | G116: =E116 ->  | I116: =#REF! ->  | K116: =#REF! ->  | L116: =#REF! ->  | O116: =#REF! -> 
A117: BB110000 | B117: Share capital | C117: Share capital | E117: =#REF! ->  | F117: =#REF! ->  | G117: =E117 ->  | I117: =#REF! ->  | K117: =#REF! ->  | L117: =#REF! ->  | O117: =#REF! -> 
A118: BB150000 | B118: Share premium | C118: Share premium | E118: =#REF! ->  | F118: =#REF! ->  | I118: =#REF! ->  | K118: =#REF! ->  | L118: =#REF! ->  | O118: =#REF! -> 
A119: BB210000 | B119: Other reserves | C119: Other reserves | E119: =#REF! ->  | F119: =#REF! ->  | I119: =#REF! ->  | K119: =#REF! ->  | L119: =#REF! ->  | O119: =#REF! -> 
A120: BB210100 | B120: Translation reserve | C120: Translation reserve | E120: =#REF! ->  | F120: =#REF! ->  | I120: =#REF! ->  | K120: =#REF! ->  | L120: =#REF! ->  | O120: =#REF! -> 
A121: BB210200 | B121: Mark to market reserve | C121: Mark to market reserve | E121: =#REF! ->  | F121: =#REF! ->  | I121: =#REF! ->  | K121: =#REF! ->  | L121: =#REF! ->  | O121: =#REF! -> 
A122: BB210300 | B122: Equity portion of bond | C122: Equity portion of bond | E122: =#REF! ->  | F122: =#REF! ->  | H122: =G122-I122 ->  | I122: =#REF! ->  | K122: =#REF! ->  | L122: =#REF! ->  | O122: =#REF! -> 
A123: BB210400 | B123: Revaluation reserve | C123: Revaluation reserve | E123: =#REF! ->  | F123: =#REF! ->  | I123: =#REF! ->  | K123: =#REF! ->  | L123: =#REF! ->  | O123: =#REF! -> 
A124: BB210500 | B124: Deferred share based compensation reserve | C124: Deferred share based compensation reserve | E124: =#REF! ->  | F124: =#REF! ->  | I124: =#REF! ->  | K124: =#REF! ->  | L124: =#REF! ->  | O124: =#REF! -> 
A125: BB210600 | B125: Captalisation issue reserve | C125: Captalisation issue reserve | E125: =#REF! ->  | F125: =#REF! ->  | I125: =#REF! ->  | K125: =#REF! ->  | L125: =#REF! ->  | O125: =#REF! -> 
A126: BB210900 | B126: Other fair value reserves | C126: Other fair value reserves | E126: =#REF! ->  | F126: =#REF! ->  | I126: =#REF! ->  | K126: =#REF! ->  | L126: =#REF! ->  | O126: =#REF! -> 
A127: BB210998 | B127: Offset account - Intercompany loans | C127: Offset account - Intercompany loans | E127: =#REF! ->  | F127: =#REF! ->  | I127: =#REF! ->  | K127: =#REF! ->  | L127: =#REF! ->  | O127: =#REF! -> 
A128: BB210999 | B128: Offset account - Acquisition Logic | C128: Offset account - Acquisition Logic | E128: =#REF! ->  | F128: =#REF! ->  | I128: =#REF! ->  | K128: =#REF! ->  | L128: =#REF! ->  | O128: =#REF! -> 
A129: BB500000 | B129: Retained earnings/(accumulated loss) | C129: Retained earnings/(accumulated loss) | E129: =#REF! ->  | F129: =#REF! ->  | I129: =#REF! ->  | K129: =#REF! ->  | L129: =#REF! ->  | O129: =#REF! -> 
A130: BB510000 | B130: Opening retained earnings - Total | C130: Opening retained earnings - Total | E130: =#REF! ->  | F130: =#REF! ->  | I130: =#REF! ->  | K130: =#REF! ->  | L130: =#REF! ->  | O130: =#REF! -> 
A131: BB510100 | B131: Opening retained earnings from repo and g/journals | C131: Opening retained earnings from repo and g/journals | E131: =#REF! ->  | F131: =#REF! ->  | I131: =#REF! ->  | K131: =#REF! ->  | L131: =#REF! ->  | O131: =#REF! -> 
A132: BB510200 | B132: Opening retained earnings from acquisition jnls | C132: Opening retained earnings from acquisition jnls | E132: =#REF! ->  | F132: =#REF! ->  | I132: =#REF! ->  | K132: =#REF! ->  | L132: =#REF! ->  | O132: =#REF! -> 
A133: BB510300 | B133: Opening retained earnings - prior year adjustment | C133: Opening retained earnings - prior year adjustment | E133: =#REF! ->  | F133: =#REF! ->  | I133: =#REF! ->  | K133: =#REF! ->  | L133: =#REF! ->  | O133: =#REF! -> 
A134: BB530000 | B134: Current year retained earnings | C134: Current year retained earnings | E134: =#REF! ->  | F134: =#REF! ->  | I134: =#REF! ->  | K134: =#REF! ->  | L134: =#REF! ->  | O134: =#REF! -> 
A135: BB550000 | B135: Dividends declared and paid | C135: Dividends declared and paid | E135: =#REF! ->  | F135: =#REF! ->  | I135: =#REF! ->  | K135: =#REF! ->  | L135: =#REF! ->  | O135: =#REF! -> 
E136: =#REF! ->  | F136: =#REF! ->  | I136: =#REF! ->  | K136: =#REF! ->  | L136: =#REF! ->  | O136: =#REF! -> 
E137: =#REF! ->  | F137: =#REF! ->  | I137: =#REF! ->  | K137: =#REF! ->  | L137: =#REF! ->  | O137: =#REF! -> 
A138: BB000000 | B138: Share capital and reserves | C138: Total share capital and reserves | E138: =#REF! ->  | F138: =#REF! ->  | I138: =#REF! ->  | K138: =#REF! ->  | L138: =#REF! ->  | O138: =#REF! -> 
E139: =#REF! ->  | F139: =#REF! ->  | I139: =#REF! ->  | K139: =#REF! ->  | L139: =#REF! ->  | O139: =#REF! -> 
E140: =#REF! ->  | F140: =#REF! ->  | I140: =#REF! ->  | K140: =#REF! ->  | L140: =#REF! ->  | O140: =#REF! -> 
A141: BC100000 | B141: Minority Interest | C141: Minority Interest | E141: =#REF! ->  | F141: =#REF! ->  | I141: =#REF! ->  | K141: =#REF! ->  | L141: =#REF! ->  | O141: =#REF! -> 
E142: =#REF! ->  | F142: =#REF! ->  | I142: =#REF! ->  | K142: =#REF! ->  | L142: =#REF! ->  | O142: =#REF! -> 
A143: BD000000 | B143: Non-current liabilities | C143: Non-current liabilities | E143: =#REF! ->  | F143: =#REF! ->  | I143: =#REF! ->  | K143: =#REF! ->  | L143: =#REF! ->  | O143: =#REF! -> 
A144: BD300000 | B144: Deferred tax | C144: Deferred tax | E144: =#REF! ->  | F144: =#REF! ->  | G144: =E144-F144 ->  | H144: =G144-I144 ->  | I144: =#REF! ->  | K144: =#REF! ->  | L144: =#REF! ->  | O144: =#REF! -> 
A145: BD500000 | B145: Provisions for other liabilities and charges | C145: Provisions for other liabilities and charges | E145: =#REF! ->  | F145: =#REF! ->  | I145: =#REF! ->  | K145: =#REF! ->  | L145: =#REF! ->  | M145: =K145-L145 ->  | N145: =M145-O145 ->  | O145: =#REF! -> 
A146: BD501000 | B146: Environmental | C146: Environmental | E146: =#REF! ->  | F146: =#REF! ->  | I146: =#REF! ->  | K146: =#REF! ->  | L146: =#REF! ->  | O146: =#REF! -> 
C147: Retirement benefit obligation and other provisions | E147: =#REF! ->  | F147: =#REF! ->  | I147: =#REF! ->  | K147: =#REF! ->  | L147: =#REF! ->  | O147: =#REF! -> 
A148: BD502000 | B148: CAWMS | C148: CAWMS | E148: =#REF! ->  | F148: =#REF! ->  | I148: =#REF! ->  | K148: =#REF! ->  | L148: =#REF! ->  | O148: =#REF! -> 
A149: BD503000 | B149: Social plan | C149: Social plan | E149: =#REF! ->  | F149: =#REF! ->  | I149: =#REF! ->  | K149: =#REF! ->  | L149: =#REF! ->  | O149: =#REF! -> 
A150: BD504000 | B150: Non - current leave liability | C150: Non - current leave liability | E150: =#REF! ->  | F150: =#REF! ->  | I150: =#REF! ->  | K150: =#REF! ->  | L150: =#REF! ->  | O150: =#REF! -> 
A151: BD509000 | B151: Other : provision and liabilities | C151: Other : provision and liabilities | E151: =#REF! ->  | F151: =#REF! ->  | I151: =#REF! ->  | K151: =#REF! ->  | L151: =#REF! ->  | O151: =#REF! -> 
A152: BD100000 | B152: Borrowings | C152: Borrowings | E152: =#REF! ->  | F152: =#REF! ->  | I152: =#REF! ->  | K152: =#REF! ->  | L152: =#REF! ->  | O152: =#REF! -> 
A153: BD101000 | B153: Secured loans | C153: Secured loans | E153: =#REF! ->  | F153: =#REF! ->  | I153: =#REF! ->  | K153: =#REF! ->  | L153: =#REF! ->  | O153: =#REF! -> 
A154: BD101010 | B154: Secured loans : USD denominated | C154: Secured loans : USD denominated | E154: =#REF! ->  | F154: =#REF! ->  | I154: =#REF! ->  | K154: =#REF! ->  | L154: =#REF! ->  | O154: =#REF! -> 
A155: BD101020 | B155: Secured loans : ZAR denominated | C155: Secured loans : ZAR denominated | E155: =#REF! ->  | F155: =#REF! ->  | I155: =#REF! ->  | K155: =#REF! ->  | L155: =#REF! ->  | O155: =#REF! -> 
A156: BD101990 | B156: Secured loans : Other | C156: Secured loans : Other | E156: =#REF! ->  | F156: =#REF! ->  | I156: =#REF! ->  | K156: =#REF! ->  | L156: =#REF! ->  | O156: =#REF! -> 
A157: BD102000 | B157: Unsecured loans | C157: Unsecured loans | E157: =#REF! ->  | F157: =#REF! ->  | I157: =#REF! ->  | K157: =#REF! ->  | L157: =#REF! ->  | O157: =#REF! -> 
A158: BD102990 | B158: Unsecured Loans : Other | C158: Unsecured Loans : Other | E158: =#REF! ->  | F158: =#REF! ->  | I158: =#REF! ->  | K158: =#REF! ->  | L158: =#REF! ->  | O158: =#REF! -> 
A159: BD103000 | B159: Bonds | C159: Bonds | E159: =#REF! ->  | F159: =#REF! ->  | I159: =#REF! ->  | K159: =#REF! ->  | L159: =#REF! ->  | O159: =#REF! -> 
A160: BD103010 | B160: Bond : Convertible | C160: Bond : Convertible | E160: =#REF! ->  | F160: =#REF! ->  | I160: =#REF! ->  | K160: =#REF! ->  | L160: =#REF! ->  | O160: =#REF! -> 
E161: =#REF! ->  | F161: =#REF! ->  | I161: =#REF! ->  | K161: =#REF! ->  | L161: =#REF! ->  | O161: =#REF! -> 
E162: =#REF! ->  | F162: =#REF! ->  | I162: =#REF! ->  | K162: =#REF! ->  | L162: =#REF! ->  | O162: =#REF! -> 
A163: BD000000 | B163: Non-current liabilities | C163: Total non-current liabilities | E163: =#REF! ->  | F163: =#REF! ->  | I163: =#REF! ->  | K163: =#REF! ->  | L163: =#REF! ->  | O163: =#REF! -> 
E164: =#REF! ->  | F164: =#REF! ->  | I164: =#REF! ->  | K164: =#REF! ->  | L164: =#REF! ->  | O164: =#REF! -> 
E165: =#REF! ->  | F165: =#REF! ->  | I165: =#REF! ->  | K165: =#REF! ->  | L165: =#REF! ->  | O165: =#REF! -> 
A166: BE000000 | B166: Current liabilities | C166: Current liabilities | E166: =#REF! ->  | F166: =#REF! ->  | I166: =#REF! ->  | K166: =#REF! ->  | L166: =#REF! ->  | O166: =#REF! ->  | U166: June 12 | V166: Sep 12 | W166: Movement
A167: BE202000 | B167: Borrowings | C167: Borrowings | E167: =#REF! ->  | F167: =#REF! ->  | I167: =#REF! ->  | K167: =#REF! ->  | L167: =#REF! ->  | O167: =#REF! ->  | U167: =H167 ->  | V167: =N167 ->  | W167: =U167-V167 -> 
A168: BE120000 | B168: Income tax | C168: Income tax | E168: =#REF! ->  | F168: =#REF! ->  | I168: =#REF! ->  | K168: =#REF! ->  | L168: =#REF! ->  | O168: =#REF! -> 
A169: BE110000 | B169: Trade and other payables | C169: Trade and other payables | E169: =#REF! ->  | F169: =#REF! ->  | I169: =#REF! ->  | K169: =#REF! ->  | L169: =#REF! ->  | O169: =#REF! ->  | T169: Trade and other payables
A170: BE110100 | B170: Trade | C170: Trade | E170: =#REF! ->  | F170: =#REF! ->  | I170: =#REF! ->  | K170: =#REF! ->  | L170: =#REF! ->  | O170: =#REF! ->  | T170: Trade
A171: BE110200 | B171: Payroll | C171: Payroll | E171: =#REF! ->  | F171: =#REF! ->  | I171: =#REF! ->  | K171: =#REF! ->  | L171: =#REF! ->  | O171: =#REF! ->  | T171: Payroll
A172: BE110210 | B172: Pension and provident funds | C172: Pension and provident funds | E172: =#REF! ->  | F172: =#REF! ->  | I172: =#REF! ->  | K172: =#REF! ->  | L172: =#REF! ->  | O172: =#REF! ->  | T172: Pension and provident funds
A173: BE110220 | B173: Medical aids | C173: Medical aids | E173: =#REF! ->  | F173: =#REF! ->  | I173: =#REF! ->  | K173: =#REF! ->  | L173: =#REF! ->  | O173: =#REF! ->  | T173: Medical aids | U173: =H173 ->  | V173: =N173 -> 
A174: BE110230 | B174: SARS PAYE | C174: SARS PAYE | E174: =#REF! ->  | F174: =#REF! ->  | I174: =#REF! ->  | K174: =#REF! ->  | L174: =#REF! ->  | O174: =#REF! ->  | T174: SARS PAYE | W174: =U174-V174 -> 
A175: BE110290 | B175: Other : Payroll creditors | C175: Other : Payroll creditors | E175: =#REF! ->  | F175: =#REF! ->  | I175: =#REF! ->  | K175: =#REF! ->  | L175: =#REF! ->  | O175: =#REF! ->  | T175: Other : Payroll creditors
A176: BE110300 | B176: Leave | C176: Leave | E176: =#REF! ->  | F176: =#REF! ->  | I176: =#REF! ->  | K176: =#REF! ->  | L176: =#REF! ->  | O176: =#REF! ->  | T176: Leave
A177: BE110400 | B177: VAT | C177: VAT | E177: =#REF! ->  | F177: =#REF! ->  | I177: =#REF! ->  | K177: =#REF! ->  | L177: =#REF! ->  | O177: =#REF! ->  | T177: VAT
A178: BE110500 | B178: Shaft accruals | C178: Shaft accruals | E178: =#REF! ->  | F178: =#REF! ->  | I178: =#REF! ->  | K178: =#REF! ->  | L178: =#REF! ->  | O178: =#REF! ->  | T178: Shaft accruals
A179: BE110600 | B179: Power accrual | C179: Power accrual | E179: =#REF! ->  | F179: =#REF! ->  | I179: =#REF! ->  | K179: =#REF! ->  | L179: =#REF! ->  | O179: =#REF! ->  | T179: Power accrual
A180: BE110800 | B180: Derivative financial liabilities | C180: Derivative financial liabilities | E180: =#REF! ->  | F180: =#REF! ->  | I180: =#REF! ->  | K180: =#REF! ->  | L180: =#REF! ->  | O180: =#REF! ->  | T180: Derivative financial liabilities
A181: BE110900 | B181: Other : Trade and other payables | C181: Other : Trade and other payables | E181: =#REF! ->  | F181: =#REF! ->  | I181: =#REF! ->  | K181: =#REF! ->  | L181: =#REF! ->  | O181: =#REF! ->  | T181: Other : Trade and other payables
A182: BE201000 | B182: Loans from subsidiaries | C182: Loans from subsidiaries | E182: =#REF! ->  | F182: =#REF! ->  | I182: =#REF! ->  | K182: =#REF! ->  | L182: =#REF! ->  | O182: =#REF! ->  | T182: Loans from subsidiaries
E183: =#REF! ->  | F183: =#REF! ->  | I183: =#REF! ->  | K183: =#REF! ->  | L183: =#REF! ->  | O183: =#REF! ->  | W183: 0
E184: =#REF! ->  | F184: =#REF! ->  | I184: =#REF! ->  | K184: =#REF! ->  | L184: =#REF! ->  | O184: =#REF! -> 
A185: BE000000 | B185: Current liabilities | E185: =#REF! ->  | F185: =#REF! ->  | I185: =#REF! ->  | K185: =#REF! ->  | L185: =#REF! ->  | O185: =#REF! -> 
A186: BE500000 | B186: Liabilities classified as held-for-sale | C186: Liabilities of disposal groups classified as held for sale | E186: =#REF! ->  | F186: =#REF! ->  | I186: =#REF! ->  | K186: =#REF! ->  | L186: =#REF! ->  | O186: =#REF! -> 
E187: =#REF! ->  | F187: =#REF! ->  | I187: =#REF! ->  | K187: =#REF! ->  | L187: =#REF! ->  | O187: =#REF! -> 
E188: =#REF! ->  | F188: =#REF! ->  | I188: =#REF! ->  | K188: =#REF! ->  | L188: =#REF! ->  | O188: =#REF! -> 
C189: Total current liabilities | E189: =#REF! ->  | F189: =#REF! ->  | I189: =#REF! ->  | K189: =#REF! ->  | L189: =#REF! ->  | O189: =#REF! -> 
E190: =#REF! ->  | F190: =#REF! ->  | I190: =#REF! ->  | K190: =#REF! ->  | L190: =#REF! ->  | O190: =#REF! -> 
E191: =#REF! ->  | F191: =#REF! ->  | I191: =#REF! ->  | K191: =#REF! ->  | L191: =#REF! ->  | O191: =#REF! -> 
A192: BA000000 | B192: TOTAL EQUITY AND LIABILITIES | C192: TOTAL EQUITY AND LIABILITIES | E192: =#REF! ->  | F192: =#REF! ->  | I192: =#REF! ->  | K192: =#REF! ->  | L192: =#REF! ->  | O192: =#REF! -> 
F193: =#REF! ->  | I193: =#REF! ->  | L193: =#REF! ->  | O193: =#REF! -> 
F194: =#REF! ->  | I194: =#REF! ->  | L194: =#REF! ->  | O194: =#REF! -> 
F195: =#REF! ->  | I195: =#REF! ->  | L195: =#REF! ->  | O195: =#REF! -> 
A196: ST100900 | B196: Share issued | C196: Number of ordinary shares issued | E196: 0 | F196: =#REF! ->  | I196: =#REF! ->  | K196: 1 | L196: =#REF! ->  | O196: =#REF! -> 
C197: Net Asset Value per share (cents) | F197: =#REF! ->  | I197: =#REF! ->  | L197: =#REF! ->  | O197: =#REF! -> 
G198: 0 | I198: =#REF! ->  | M198: 0 | O198: =#REF! -> 
G199: 0 | I199: =#REF! ->  | M199: 0 | O199: =#REF! -> 
E200: =E192-E110 ->  | F200: =F192-F110 ->  | I200: =#REF! ->  | K200: =K192-K110 ->  | L200: =L192-L110 -> 
I201: =#REF! -> 
I202: =#REF! -> 
I203: =#REF! -> 
I204: =#REF! -> 

Sheet Publish IS (R)
A1: CONDENSED CONSOLIDATED INCOME STATEMENTS (RAND)
G6: Year ended | I6: Year ended
G7: 30 June | H7: 30 June | I7: 30 June
G8: 2017 | H8: 2016
A9: Figures in million | C9: Note | F9: Notes | G9: (Reviewed) | H9: (Audited) | I9: (Audited)
A13: Revenue | F13: 10 | G13: 19264 | H13: 18334
A14: Cost of sales | C14: 2 | F14: 2 | G14: -19639 | H14: -15786
A15: Production costs | G15: -14812 | H15: -13250
A16: (Impairment)/Reversal of impairment of assets | F16: 8 | G16: -1718 | H16: 43
A17: Amortisation and depreciation | G17: -2519 | H17: -2170
A18: Other items | G18: -590 | H18: -409
A21: Gross profit/(loss) | G21: -375 | H21: 2548
A22: Corporate, administration and other expenditure | G22: -517 | H22: -409
A23: Exploration expenditure | G23: -241 | H23: -191
A24: Gains on derivatives | F24: 3 | G24: 1024.892552 | H24: 446 | I24: -42
A25: Other operating expenses | F25: 4 | G25: -885.8364917 | H25: -802
A28: Operating profit/(loss) | G28: -993.94394 | H28: 1592 | I28: 1592
A29: (Profit)/loss on sale of investments | C29: 4 | F29: 0 | G29: -15 | H29: 0
A30: Gain on bargain purchase | C30: 4 | F30: 5 | G30: 848 | H30: 0
A31: Loss on liquidation of subsidiaries | G31: -14.05606001 | H31: 0
A32: Profit/(loss) from associates | C32: 0 | F32: 9 | G32: -22 | H32: 7
A33: Profit on disposal of investments | G33: 0 | H33: 0
A34: Investment income | G34: 268 | H34: 256
A35: Finance cost | G35: -234 | H35: -274
A38: Profit/(loss) before taxation | G38: -148 | H38: 1581
A39: Taxation | F39: 6 | G39: 510 | H39: -632
A40: Current taxation | G40: -488 | H40: -123
A41: Deferred taxation | G41: 998 | H41: -509
A44: Net profit for the year | G44: 362 | H44: 949 | I44: 949
A47: Attributable to:
A48: Owners of the parent | G48: 362 | H48: 949 | I48: 949
A51: Earnings per ordinary share (cents) | C51: 7 | F51: 7
A53: Basic earnings | G53: 82.57277491 | H53: 218
A54: Diluted earnings | G54: 78.82926466 | H54: 213 | I54: -293
A58: The accompanying notes are an integral part of these condensed consolidated financial statements.
A62: The condensed consolidated provisional financial statements (condensed consolidated financial statements) for the year ended 30 June 2017 have been prepared by Harmony Gold Mining Company Limited’s corporate reporting team headed by Herman Perry CA(SA). This process was supervised by the financial director, Frank Abbott CA(SA) and approved by the board of Harmony Gold Mining Company Limited on 15 August 2017. These condensed consolidated financials have been reviewed by the group's external auditors, PricewaterhouseCoopers Incorporated (see note 20).

Sheet Publish SOCI and SOCE (R)
A1: CONDENSED CONSOLIDATED STATEMENTS OF COMPREHENSIVE INCOME (RAND)
F7: Year ended
F8: 30 June | G8: 30 June
F9: 2017 | G9: 2016
A10: Figures in million | E10: Notes | F10: (Reviewed) | G10: (Audited)
A13: Net profit for the year | F13: 362 | G13: 949
A14: Other comprehensive income for the year, net of income tax | F14: 817.659997 | G14: 143
A17: Items that may be reclassified subsequently to profit or loss: | F17: 820.659997 | G17: 139
A19: Foreign exchange translation gain/(loss) | F19: -322 | G19: 139
A20: Remeasurement of Rand gold contracts | E20: 10
A21: Unrealised gain on Rand gold contracts | F21: 2171.659997 | G21: 0
A22: Released to revenue | F22: -728 | G22: 0
A23: Released to gains on derivatives | F23: -16 | G23: 0
A24: Deferred taxation thereon | F24: -285 | G24: 0
A26: Items that will not be reclassified to profit or loss: | F26: -3 | G26: 4
A27: Remeasurement of retirement benefit obligation
A28: Actuarial gain/(loss) recognised during the period | F28: -1 | G28: 3
A29: Deferred taxation thereon | F29: -2 | G29: 1
A32: Total comprehensive income for the year | F32: 1179.659997 | G32: 1092
A36: Attributable to:
A37: Owners of the parent | F37: 1179.659997 | G37: 1092
A39: The accompanying notes are an integral part of these condensed consolidated financial statements.
A43: CONDENSED CONSOLIDATED STATEMENTS OF CHANGES IN EQUITY (RAND)
A46: for the year ended 30 June 2017
A51: Figures in million | D51: Share capital | E51: Other reserves | F51: Accumulated loss | G51: Total
A54: Balance - 30 June 2016 | D54: 28336 | E54: 4252 | F54: -4409 | G54: 28179
A55: Share-based payments | D55: 0 | E55: 371 | F55: 0 | G55: 371
A56: Net profit for the year | D56: 0 | E56: 0 | F56: 362 | G56: 362
A57: Other comprehensive income for the year | D57: 0 | E57: 818 | F57: 0 | G57: 818
A58: Dividends paid1 | D58: 0 | E58: 0 | F58: -439 | G58: -439
A61: Balance - 30 June 2017 (Reviewed) | D61: 28336 | E61: 5441 | F61: -4486 | G61: 29291
A64: Balance - 30 June 2015 | D64: 28324 | E64: 3787 | F64: -5358 | G64: 26753
A65: Share-based payments | D65: 0 | E65: 322 | F65: 0 | G65: 322
A66: Reversal of provision for odd lot repurchases | D66: 12 | E66: 0 | F66: 0 | G66: 12
A67: Net profit for the year | D67: 0 | E67: 0 | F67: 949 | G67: 949
A68: Other comprehensive income for the year | D68: 0 | E68: 143 | F68: 0 | G68: 143
A71: Balance - 30 June 2016 (Audited) | D71: 28336 | E71: 4252 | F71: -4409 | G71: 28179
A72: 1 Dividend of 50 SA cents declared on 15 August 2016 and dividend of 50 SA cents declared on 31 January 2017.
A74: The accompanying notes are an integral part of these condensed consolidated financial statements.
D105: 1

Sheet Publish BS (R)
A1: CONDENSED CONSOLIDATED BALANCE SHEETS (RAND)
F4: At | G4: At | H4: At
F5: 30 June | G5: 30 June | H5: 31 March
F6: 2017 | G6: 2016 | H6: 0
A7: Figures in million | D7: Notes | E7: Note | F7: (Reviewed) | G7: (Audited) | H7: 0
A10: ASSETS
A12: Non-current assets
A14: Property, plant and equipment | D14: 8 | E14: 4 | F14: 30044 | G14: 29919 | H14: 0
A15: Intangible assets | D15: 8 | F15: 603 | G15: 870 | H15: 0
A16: Restricted cash | F16: 64 | G16: 62 | H16: 0
A17: Restricted investments | F17: 2658 | G17: 2496 | H17: 0
A18: Investments in associates | D18: 9 | F18: 46 | G18: 0 | H18: 0
A19: Investments in financial assets | F19: 4 | G19: 5 | H19: 0
A20: Inventories | E20: 7 | F20: 38 | G20: 37 | H20: 0
A21: Trade and other receivables | F21: 185 | G21: 172 | H21: 0
A22: Derivative financial assets | D22: 10 | F22: 306 | G22: 0 | H22: 0
G23: 5299 | H23: 0
G24: 5299 | H24: 0
A25: Total non-current assets | F25: 33948 | G25: 33561 | H25: 0
G26: 5299 | H26: 0
G27: 5299 | H27: 0
A29: Current assets
A31: Inventories | D31: 5 | E31: 4 | F31: 1127 | G31: 1167 | H31: 0
A32: Restricted cash | F32: 18 | G32: 17 | H32: 0
A33: Trade and other receivables | E33: 0 | F33: 1003 | G33: 660 | H33: 0
A34: Derivative financial assets | D34: 10 | E34: 7 | F34: 1541 | G34: 369 | H34: 0
A35: Cash and cash equivalents | E35: 4 | F35: 1246 | G35: 1256 | H35: 0
A36: Non-current assets and assets of disposal groups classified as held for sale | F36: 0 | G36: 0 | H36: 0
G37: 5299 | H37: 0
A39: Total current assets | F39: 4935 | G39: 3469 | H39: 0
G41: 5299 | H41: 0
A42: Total assets | F42: 38883 | G42: 37030 | H42: 0
G43: 5299 | H43: 0
A46: EQUITY AND LIABILITIES
A48: Share capital and reserves
A50: Share capital | F50: 28336 | G50: 28336 | H50: 0
A51: Other reserves | F51: 5441 | G51: 4252 | H51: 0
A52: Accumulated loss | F52: -4486 | G52: -4409 | H52: 0
G53: 5299 | H53: 0
G54: 5299 | H54: 0
A55: Total equity | F55: 29291 | G55: 28179 | H55: 0
G56: 5299 | H56: 0
G57: 5299 | H57: 0
A59: Non-current liabilities
A61: Deferred tax liabilities | D61: 6 | F61: 1702 | G61: 2413 | H61: 0
A62: Provision for environmental rehabilitation | D62: 5 | E62: 4 | F62: 2638 | G62: 2183 | H62: 1
A63: Provision for silicosis settlement | D63: 11 | F63: 917 | G63: 0
A64: Retirement benefit obligation | F64: 179 | G64: 169 | H64: 0
A65: Other non-current liabilities | F65: 13 | G65: 16 | H65: 1
A66: Borrowings | D66: 12 | F66: 299 | G66: 2039 | H66: 0
G67: 5299 | H67: 0
G68: 5299 | H68: 0
A69: Total non-current liabilities | F69: 5748 | G69: 6820 | H69: 2
G70: 5299 | H70: 0
G71: 5299 | H71: 0
A73: Current liabilities
A75: Borrowings | D75: 12 | F75: 1834 | G75: 300 | H75: 0
A76: Trade and other payables | E76: 4 | F76: 2010 | G76: 1731 | H76: 0
A77: Loans from subsidiaries | F77: 0 | G77: 0 | H77: 0
H78: 0
H79: 0
F80: 3844 | H80: 0
A81: Liabilities of disposal groups classified as held for sale | H81: 0
H82: 0
H83: 0
A84: Total current liabilities | F84: 3844 | G84: 2031 | H84: 0
G85: 5299 | H85: 0
G86: 5299 | H86: 0
A87: Total equity and liabilities | F87: 38883 | G87: 37030 | H87: 2
A91: The accompanying notes are an integral part of these condensed consolidated financial statements.

Sheet Cash Flow Statement (R)
A1: CONDENSED CONSOLIDATED CASH FLOW STATEMENTS (RAND)
H5: Year ended
H6: 30 June | I6: 30 June
H7: 2017 | I7: 2016
A8: Figures in million | G8: Notes | H8: (Reviewed) | I8: (Audited)
A12: Cash flow from operating activities
A13: Cash generated by operations | H13: 4346 | I13: 4659
A14: Interest and dividends received | H14: 75 | I14: 74
A15: Interest paid | H15: -79 | I15: -155
A16: Income and mining taxes paid | H16: -538 | I16: -65
A19: Cash generated by operating activities | H19: 3804 | I19: 4513
A22: Cash flow from investing activities
A23: Increase in restricted cash | H23: -1 | I23: -12
A24: Decrease in amounts invested in restricted investments | H24: 7 | I24: 39
A25: Loan to associate repaid | H25: 0 | I25: 7
A26: Loan to ARM BBEE Trust | H26: 0 | I26: -200
A27: Cash on acquisition of Hidden Valley | G27: 5 | H27: 459 | I27: 0
A28: Net additions to property, plant and equipment | G28: 14 | H28: -3924 | I28: -2433
A31: Cash utilised by investing activities | H31: -3459 | I31: -2599
A34: Cash flow from financing activities
A35: Borrowings raised | G35: 12 | H35: 699 | I35: 300
A36: Borrowings repaid | G36: 12 | H36: -710 | I36: -2045
A37: Dividends paid | H37: -439 | I37: 0
A40: Cash utilised by financing activities | H40: -450 | I40: -1745
A43: Foreign currency translation adjustments | H43: 95 | I43: 20
A46: Net increase/(decrease) in cash and cash equivalents | H46: -10 | I46: 189
A47: Cash and cash equivalents - beginning of year | H47: 1256 | I47: 1067
A49: Cash and cash equivalents - end of year | H49: 1246 | I49: 1256
A53: The accompanying notes are an integral part of these condensed consolidated financial statements.

Sheet Publish - Notes to result
A1: NOTES TO THE CONDENSED CONSOLIDATED FINANCIAL STATEMENTS
A4: for the year ended 30 June 2017 (Rand)
A6: 1 | B6: Accounting policies
B8: Basis of accounting
B9: The condensed consolidated financial statements for the year ended 30 June 2017 are prepared in accordance with the requirements of the JSE Limited Listings Requirements for provisional reports and the requirements of the Companies Act no. 71 of 2008 of South Africa. The Listings Requirements require provisional reports to be prepared in accordance with the framework concepts and the measurement and recognition requirements of International Financial Reporting Standards (IFRS) as issued by the International Accounting Standards Board (IASB) and the SAICA Financial Reporting Guides as issued by the Accounting Practices Committee and Financial Pronouncements as issued by the Financial Reporting Standards Council and to also, as a minimum, contain the information required by IAS 34 Interim Financial Reporting. The accounting policies applied in the preparation of the condensed consolidated financial statements are in terms of IFRS and are consistent with those applied in the previous consolidated annual financial statements, with the exception of the policy for hedge accounting, which was only applicable during 2017.
B21: The following standards, amendments to standards and new interpretations have been adopted with effect 1 July 2016 and had no impact on the results of the group (other than disclosure where relevant):
B24: IFRSs | H24: Annual Improvements 2012-2014 cycle
B25: IAS 1 (Amendments) | H25: Presentation of Financial Statements
B27: New amendments to standards which had an effect on the condensed consolidated financial statements:
B28: IFRS 11 (Amendments) | H28: Joint Arrangements - Acquisitions of interests in joint operations
B30: The principles and disclosure requirements of IFRS 3 Business Combinations were applied to the acquisition of an additional interest in a joint operation which related to Harmony's acquisition of Newcrest Mining Limited's (Newcrest) 50% interest in the Hidden Valley operation in Papua New Guinea (PNG). Refer to note 5 for further details.
B34: Management is continuing with its assessment of the new standards that are effective from 1 July 2018, the most prominent being IFRS 9 Financial Instruments, and IFRS 15 Revenue from Contracts with Customers. Further analysis of the potential impact of the standards still indicates that they will not have a significant impact on the financial statements.
B38: The line items “Social investment expenditure”, “Loss on scrapping of property, plant and equipment” and “Foreign exchange translation” were presented separately in the income statement for 2016. These line items have been included within “Other operating expenses” for 2017.
A42: 2 | B42: Cost of sales
L44: Year ended
L45: 30 June | M45: 30 June
L46: 2017 | M46: 2016
B47: Figures in million | L47: (Reviewed) | M47: (Audited)
B50: Production costs - excluding royalty1 | L50: 14597.00765 | M50: 13079
B51: Royalty expense | L51: 214.9923479 | M51: 171
B52: Amortisation and depreciation | L52: 2519 | M52: 2170
B53: Impairment/(Reversal of impairment) of assets2 | L53: 1718 | M53: -43
B54: Rehabilitation expenditure/(credit)3 | L54: 23 | M54: -41
B55: Care and maintenance cost of restructured shafts | L55: 109 | M55: 114
B56: Employment termination and restructuring costs4 | L56: 74 | M56: 16
B57: Share-based payments | L57: 391 | M57: 329
B58: Other | L58: -7 | M58: -9
C59: Insurance adjustment/(credit) | L59: 0 | M59: 0
C60: Provision for post-retirement benefits | L60: -9 | M60: -8
C61: Other cost of sales adjustments | L61: 2 | M61: -1
B64: Total cost of sales | L64: 19639 | M64: 15786
B67: 1 Production costs increased for 2017 as a result of increases in labour costs (annual increases and bonuses) and consumables together with the inclusion of 100% of Hidden Valley from November 2016.
B69: 2 The impairment of the long-lived assets in 2017 consist of: Kusasalethu shaft (R678 million), Tshepong Operations (R255 million) and Target 1 shaft (R785 million). The net reversal of impairment in 2016 consists of a reversal of impairment of R738 million on Doornkop, offset by an impairment of R466 million on Hidden Valley and R229 million on Masimong. There were no reversals recognised in 2017. Refer to note 8 for further details.
B73: 3 Included in the total for 2017 is a credit of R109 million (2016: R110 million) relating to the change in estimate following the annual reassessment of the provision for environmental rehabilitation.
B75: 4 Included in the total for 2017 is R61 million relating to consulting and contractor fees for the optimisation of the Hidden Valley operation.
A80: 3 | B80: Gains on derivatives
B82: Gains on derivatives include the fair value movements of derivatives which have not been designated as hedging instruments for hedge accounting purposes, the amortisation of day one gains and losses for hedging instruments and the hedging ineffectiveness.
L86: Year ended
L87: 30 June | M87: 30 June
L88: 2017 | M88: 2016
B89: Figures in million | L89: (Reviewed) | M89: (Audited)
B92: Unrealised derivative gain/(loss)1 | L92: 99.519939 | M92: 369
B93: Realised derivative gain1 | L93: 1019.341939 | M93: 77
B94: Day one loss amortisation | L94: -94.10744831 | M94: 0
B97: Total gains on derivatives | L97: 1024.75443 | M97: 446
B99: 1Relates primarily to the foreign exchange hedging contracts. Refer to note 10.
A101: 4 | B101: Other operating expenses
L103: Year ended
L104: 30 June | M104: 30 June
L105: 2017 | M105: 2016
B106: Figures in million | L106: (Reviewed) | M106: (Audited)
B107: Social investment expenditure | L107: 74 | M107: 58
B108: Loss on scrapping of property, plant and equipment (refer to note 8) | L108: 140 | M108: 64
B109: Foreign exchange translation1 (refer to note 12) | L109: -194 | M109: 638
B110: Silicosis settlement provision (refer to note 11) | L110: 917 | M110: 0
B111: Profit on sale of property, plant and equipment | L111: -42 | M111: -7
B112: Other | L112: -9.16350832 | M112: 49
B115: Total other operating expenses | L115: 885.8364917 | M115: 802
B118: 1The gains arising from the foreign exchange hedging contracts were previously included as part of the foreign exchange translation gain/loss line. The derivative gains and losses are now included in the gains from derivatives (refer to note 3). As a result, the foreign exchange translation gain/loss has been re-presented for 2016 to exclude the gains on derivatives.
A122: 5 | B122: Acquisition of full ownership of Hidden Valley
B124: Background prior to the transaction
B126: The group had a 50% interest in the mining and exploration assets located in the Morobe province, PNG. Newcrest owned the remaining 50% interest in these assets. The assets include the Hidden Valley mine and the Wafi-Golpu projects. This partnership was formed during the 2009 financial year through a range of transactions, and was completed by 30 June 2009. This partnership was considered a joint arrangement and was accounted for as a joint operation.
B131: Hidden Valley transaction
B133: On 19 September 2016 Harmony announced the agreement to purchase Newcrest PNG 1 Ltd, the wholly owned subsidiary of Newcrest which holds Newcrest's 50% interest in the Hidden Valley joint venture, for a cash consideration of US$1. As part of the transaction, Newcrest made a once-off contribution of US$22.5 million (R309 million) towards Hidden Valley’s future estimated environmental liability. The transaction was conditional upon certain regulatory approvals which were obtained on 25 October 2016 and Harmony gained control over Hidden Valley from this date.
B139: The completion of the transaction gives Harmony 100% ownership of the Hidden Valley mine and surrounding exploration tenements. The acquisition of the additional 50% interest in the Hidden Valley mine is aligned with the group's growth aspirations. The Hidden Valley operation is an open-pit gold and silver mining operation which includes the processing plant. The mine reached commercial levels of production in the 2009 financial year. There is an established quality management team that have good relationships with key stakeholders including the community and a stable workforce. Full ownership of the mine has enabled management to commit to the re-investment of capital at the operation (previously delayed by the joint venture partners) and commence the stripping of stages 5 and 6 which is expected to extend the life of mine of the operation.
B147: Since the close of the transaction, the additional 50% interest in Hidden Valley contributed revenue of R583 million and R52 million profit to the group. If the acquisition had occurred on 1 July 2016, the group’s unaudited consolidated revenue would have increased by R533 million and profit would have decreased by R34 million.
B151: IFRS does not currently provide guidance how to account for step-up transactions from joint operations to control and the group has elected to apply the principles of IFRS 3 to such transactions. The purchase price allocation was initially prepared on a provisional basis in accordance with IFRS 3.
A156: 5 | B156: Acquisition of full ownership of Hidden Valley (continued)
B158: No new information has been obtained since the acquisition date about facts and circumstances that existed at the acquisition date requiring adjustments to the below amounts, or any additional provisions that existed at the date of acquisition, and therefore accounting for the acquisition has been concluded.
B162: Consideration transferred
B164: The cash consideration paid to acquire Newcrest's 50% interest in Hidden Valley amounted to US$1. The group acquired a cash balance of R459 million which is presented within the cash flow statement as a net inflow of cash from investing activities. The cash paid by Newcrest as a once-off contribution to the rehabilitation liability is included in the cash balance presented as part of the net assets acquired in the transaction.
B169: Acquisition related costs
B171: The Group incurred acquisition related costs of R4 million on advisory and legal fees. These costs are recognised as transaction costs as part of corporate and administrative expenses.
B174: Identifiable assets acquired and liabilities assumed
B176: The fair value of the identifiable net assets acquired was determined on the expected discounted cash flows based on the life-of-mine plan of Hidden Valley at a post-tax real discount rate of 12.53%, exchange rate of PGK/US$3.17, gold price of US$1 189/oz and silver price of US$17.80/oz. The valuation was performed at 26 October 2016. The fair values are as follows:
K180: Previously held interest | L180: Acquired interest1 | M180: Total (100%)
B181: Figures in million
B184: Fair value of identifiable net assets acquired
B185: Property, plant and equipment | K185: 636 | L185: 636 | M185: 1272
B186: Inventories (current) | K186: 491 | L186: 491 | M186: 982
B187: Trade and other receivables (current) | K187: 22 | L187: 19 | M187: 41
B188: Cash and cash equivalents | K188: 54 | L188: 459 | M188: 513
B189: Provision for environmental rehabilitation | K189: -483 | L189: -483 | M189: -966
B190: Trade and other payables (current) | K190: -114 | L190: -274 | M190: -388
K192: 606 | L192: 848 | M192: 1454
B194: Less fair value of previously held interest 2 | M194: -606
B197: Net fair value of identifiable net assets acquired | M197: 848
B200: 1Harmony acquired the legal entity which held Newcrest’s interest in Hidden Valley. This subsidiary contained certain assets and liabilities which were different to those held by Harmony with respect to its interest in Hidden Valley.
B202: 2The fair value of the previously held interest equalled the carrying amount of the assets and liabilities recognised by Harmony relating to the previously held interest at the date of acquisition and no gain or loss was recognised with respect to the deemed disposal of the previously held interest.
B206: The fair value of the previously held interest at 30 June 2016 was R615 million which consisted of Harmony's long term assets and related rehabilitation provision for its interest in Hidden Valley totalling R319 million and the working capital relating to Harmony's interest in Hidden Valley totalling R296 million.
B210: On the date of acquisition, the fair value of the previously held interest does not equal 50% of the fair value of the total identifiable assets and liabilities assumed primarily because the acquired legal entity which held Newcrest’s interest in Hidden Valley included the cash paid by Newcrest (R309 million or US$22.5 million) and other assets and liabilities which differed from the assets and liabilities held in Harmony’s previously held interest.
B215: Gain on bargain purchase
B217: A gain on bargain purchase arising from the acquisition has been determined as follows:
B220: Figures in million
B223: Consideration paid | M223: 0
B224: Fair value of identifiable net assets acquired | M224: 848
B227: Gain on bargain purchase | M227: 848
B230: Since Harmony only paid US$1 for the 50% share a gain on bargain purchase results. A strategic review of the Hidden Valley operation conducted by Newcrest resulted in their decision to exit the operation as it represented a non-core asset.
A234: 6 | B234: Taxation
B236: Current taxation expense increased for the year ended 30 June 2017 compared to the previous year, due to the utilisation of assessed losses and unredeemed capital at most of the South African operations in the prior year as well as the inclusion of derivative gains in determining taxable income.
B240: The weighted average deferred tax rates for most South African companies decreased as a result of decreased forecast profitability of these operations. The deferred tax rate for Freegold decreased from 20.0% to 12.5% and for Randfontein (consisting of Doornkop and Kusasalethu) decreased from 10.1% to 3.8%. The effect of these decreases resulted in the credit to the income statement in 2017.
A245: 7 | B245: Earnings per ordinary share
L248: Year ended
L249: 30 June | M249: 30 June
L250: 2017 | M250: 2016
L251: (Reviewed) | M251: (Audited)
B253: Weighted average number of shares (million) | L253: 438.4011563 | M253: 435.7
B254: Weighted average number of diluted shares (million) | L254: 459.2203182 | M254: 446.4
B256: Total earnings per share (cents):
B258: Basic earnings | L258: 82.57277491 | M258: 218
B259: Diluted earnings | L259: 78.82926466 | M259: 213
B260: Headline earnings | L260: 297.8369895 | M260: 221.3387491
B261: Diluted headline earnings | L261: 284.3342845 | M261: 216.0333624
B264: Figures in million
B266: Reconciliation of headline earnings:
B268: Net profit | L268: 362 | M268: 949
B269: Adjusted for:
B270: Gain on bargain purchase1 | L270: -848.473 | M270: 0
B271: Loss on liquidation of subsidiary1 | L271: 14.05606 | M271: 0
B272: Impairment/(Reversal of impairment) of assets | L272: 1717.82189 | M272: -42.633681
B273: Taxation effect on impairment/reversal of impairment of assets | L273: -25.7613039 | M273: 12.00661079
B274: Profit on sale of property, plant and equipment | L274: -41.767748 | M274: -7
B275: Taxation effect on profit on sale of property, plant and equipment | L275: 6.72975824 | M275: 1
B276: Loss on scrapping of property, plant and equipment | L276: 139.804178 | M276: 64
B277: Taxation effect on loss on scrapping of property, plant and equipment | L277: -18.68902825 | M277: -12
B281: Headline earnings | L281: 1305.720806 | M281: 964.3729298
B284: 1 There is no taxation effect on this item.
A286: 8 | B286: Property, plant and equipment and Intangible assets
B288: (a) | C288: Acquisition of Hidden Valley
C289: Refer to note 5 for details of the property, plant and equipment acquired as part of the Hidden Valley transaction.
B291: (b) | C291: Impairment/reversal of impairment of property, plant and equipment and goodwill
C292: The recoverable amount of mining assets is generally determined utilising real discounted future cash flows. One of the most significant assumptions that influence the group's operations' life-of-mine plans, and therefore impairment, is the expected gold price. During this year's planning and testing, commodity price and exchange rate assumptions as per the table below were used. Post-tax real discount rates ranging between 8.98% and 11.92% (2016: 8.43% and 11.77%), depending on the asset, were used to determine the recoverable amounts (fair value less costs to sell).
M298: 2018 onwards
C301: US$ gold price ($/ounce) | M301: 1200
C302: US$ silver price ($/ounce) | M302: 17
C303: Exchange rate (R/US$) | M303: 13.61
C304: Exchange rate (PGK/US$) | M304: 3.157894737
C305: Rand gold price (R/kg) | M305: 525000
A309: 8 | B309: Property, plant and equipment and Intangible assets (continued)
B311: (b) | C311: Impairment/reversal of impairment of property, plant and equipment and goodwill (continued)
C312: For South African operations, values of US$32.69, US$18.68 and US$4.67 per ounce were used for measured, indicated and inferred resources, respectively. For Hidden Valley, US$5.84 per ounce was used for indicated and inferred resources.
C315: The impairment assessment performed resulted in an impairment loss of R1.7 billion for the 2017 financial year. The slight decrease in the gold price used in the life-of-mine plans, together with cost inflation, impacted negatively on margins. This, as well as increases in the discount rates used, contributed to the lower recoverable amounts.
B319: • | C319: An impairment of R785 million was recorded for Target 1, resulting in a recoverable amount of R2.0 billion. Information gained from the underground drilling during the year indicated that some areas of the bottom reef of the Dreyerskuil are highly channelised, which negatively impacted on the overall grade for the operation. These areas were subsequently excluded from the life-of-mine plan. This, together with the general pressure on margins, reduced the profitability of the operation over its life and contributed to the decrease in the recoverable amount.
B325: • | C325: An impairment of R678 million was recorded for Kusasalethu mainly following a reduction in the additional attributable resource value as a result of a decrease in the ounces. The company investigated the viability of a decline to extend the life. The business case showed that the option was not feasible and therefore the resource ounces were reduced. The recoverable amount of the operation is R 2.8 billion.
B330: • | C330: An impairment of R255 million was recorded for Tshepong Operations resulting in a recoverable amount of R7.8 billion. Due to the integration of Tshepong and Phakisa as of 1 July 2017, the two cash generating units (CGUs) were combined for impairment testing for the first time. The carrying amount of the combined CGU included goodwill of R581 million. The planned improvement to the environmental conditions at the operation resulted in additional capital expenditure, which impacted on the recoverable amount. The impairment has been allocated to the CGU's goodwill, which is included in intangible assets.
C337: The recoverable amounts for these assets were determined on a fair value less costs to sell basis using the assumptions above in discounted cash flow models and attributable resource values. These are fair value measurements classified as level 3.
C341: The sensitivity scenario of a 10% decrease in the commodity price used in the discounted cash flow models and the resource values used (with all other variables held constant) would have resulted in additional impairments as follows:
C344: Figures in million
C345: Tshepong Operations | M345: 3439.45428
C346: Kusasalethu | M346: 1374.47173
C347: Hidden Valley | M347: 1041
C348: Target 1 | M348: 1006.1036
C349: Doornkop | M349: 934.46882
C350: Masimong | M350: 394.82457
C351: Other surface operations | M351: 257.12057
C352: Unisel | M352: 221.28878
C353: Bambanani | M353: 128
B356: (c) | C356: Loss on scrapping of property, plant and equipment
C357: An amount of R140 million was recorded for various operations as a result of the abandonment of individual surface assets that are no longer core to the business or in use.
A360: 9 | B360: Investments in associate
B362: Harmony’s gross portion of the subordinated shareholders’ loan extended to Rand Refinery Proprietary Limited (Rand Refinery) in December 2014 amounted to R120 million. The loan formed part of the net investment in associate and was included in Trade and other receivables. On 5 June 2017, the loan was converted into redeemable preference shares. The fair value of the loan on the date of the conversion was R71 million, resulting in a loss of R15 million being recognised. The fair value was determined using a discounted cash flow model which included expected dividends and redemption amounts at a discount rate of 17.6%. The fair value measurement is classified as a level 3 model and is non-recurring.
B369: Harmony’s share of losses from associates amounted to R7 million for the year, which have been accounted for as part of the investment in associates. The cumulative losses of R25 million result in the net investment balance of R46 million at 30 June 2017.
A373: 10 | B373: Derivative financial assets
L377: At 30 June 2017 | M377: At 30 June 2016
B380: Figures in million | L380: (Reviewed) | M380: (Audited)
B382: Non-current | L382: 306 | M382: 0
B384: Rand gold contracts (a) | L384: 298 | M384: 0
B385: US$ commodity contracts (b) | L385: 8 | M385: 0
B387: Current | L387: 1541 | M387: 369
B389: Rand gold contracts (a) | L389: 1080 | M389: 0
B390: US$ commodity contracts (b) | L390: 12 | M390: 0
B391: Foreign exchange hedging contracts (c) | L391: 449 | M391: 369
B394: (a) | C394: During the year Harmony started a hedging programme and entered into Rand gold forward sale derivative contracts (Rand gold contracts). At 30 June 2017, the volume of open contracts is 10 077 kg (324 000 oz) spread over 21 months at an average forward sale price of R693 437/kg. Cash flow hedge accounting is applied to these contracts, resulting in the effective portion of the unrealised gains and losses being recorded in other comprehensive income (other reserves). During the year ended 30 June 2017, the contracts that matured realised a gain of R744 million, of which R728 million has been included in revenue and the ineffective portion of R16 million in gains on derivatives. The unamortised portion of the day one gain or loss amounted to R34 million on 30 June 2017.
B402: (b) | C402: During May 2017, Harmony began a hedging programme for Hidden Valley by entering into commodity hedging contracts. The contracts comprise US$ gold forward sale derivative contracts as well as silver zero cost collars which establish a minimum (floor) and maximum (cap) silver sales price. At 30 June 2017, the volume of open contracts is 1 991 kg (64 000 oz) for the gold contracts at an average of US$1 276/oz and 30 170 kg (970 000 oz) for the silver contracts, spread over 18 months. The weighted average prices for the silver contracts are as follows: cap US$18.10/oz and floor US$17.10/oz. Hedge accounting is not applied and the resulting gains and losses are recorded in gains on derivatives in the income statement.
B410: (c) | C410: Harmony has entered into foreign exchange hedging contracts (forex hedging contracts) in the form of zero cost collars, which establish a floor and cap US$/Rand exchange rate at which to convert US dollars to Rands. The nominal value of open forex hedging contracts at 30 June 2017 is US$422 million (30 June 2016: US$500 million). The hedging contracts are spread over a 12-month period with a weighted average cap price of US$1=R 15.53 (30 June 2016: US$1=R18.27) and weighted average floor price of US$1=R14.41 (30 June 2016: US$1=R15.55). As hedge accounting is not applied, the resulting gains and losses have been recorded in gains on derivatives in the income statement (refer to note 3).
A417: 11 | B417: Provision for silicosis settlement
B419: Harmony and certain of its subsidiaries (Harmony group), together with other mining companies, are named in a class action for silicosis and tuberculosis which was certified by the Johannesburg High Court in May 2016. The companies requested leave to appeal to the Supreme Court of Appeal, which was granted on 13 September 2016 and is scheduled to be heard from 19 – 23 March 2018.
B424: A gold mining industry working group consisting of African Rainbow Minerals Limited, Anglo American South Africa Limited, AngloGold Ashanti Limited, Gold Fields Limited, Sibanye Gold Limited and Harmony (collectively the working group) was formed in November 2014 to address issues relating to the compensation and medical care for occupational lung diseases in the gold mining industry in South Africa. Essentially, the companies are seeking a comprehensive and sustainable solution which deals with both the legacy compensation issues and future legal frameworks which, while being fair to employees, also ensures the future sustainability of companies in the industry. The working group has engaged all stakeholders on these matters, including government, organised labour, other mining companies and legal representatives of claimants who have filed legal suits against the companies. The Working Group believes that achieving a comprehensive settlement which is fair to past, present and future employees and sustainable for the sector is preferable to protracted litigation.
B435: The facts of the matter have previously been disclosed as a contingent liability. As a result of the progress made by the working group and the status of negotiations with affected stakeholders, management is now in a position to reasonably estimate Harmony’s share of a possible settlement of the class action claims and related costs within an acceptable range. A pre-tax charge of R917 million has been recognised in the results for the year ending 30 June 2017.
A441: 11 | B441: Provision for silicosis settlement (continued)
B443: The assumptions that were made in the determination of the provision amount include:
B445: • | C445: Silicosis prevalence rates;
B446: • | C446: Estimated settlement per claimant;
B447: • | C447: Benefit take-up rates;
B448: • | C448: The contributions to fund the benefit payments and administration costs;
B449: • | C449: An appropriate discount rate; and
B450: • | C450: Inflation.
B452: There is uncertainty with regard to the rate at which potential claims would be reported as well as the benefit take-up rates.
B454: The ultimate outcome of these matters remains uncertain, with a possible failure to reach a settlement or to obtain the requisite court approval of the settlement. The provision recorded in the financial statements is consequently subject to adjustment or reversal in the future, depending on the progress of the working group discussions and stakeholder consultations, and the ongoing legal proceedings.
A459: 12 | B459: Borrowings
B461: During the year ended 30 June 2017:
B463: • | C463: R300 million was repaid on the R1.3 billion Nedbank revolving credit facility (RCF) in July 2016. The facility matured during February 2017 and was replaced with a new R1 billion Nedbank RCF with similar terms to the previous facility. During March 2017, R300 million was drawn down on the new facility.
B467: • | C467: US$30 million (R410 million) was repaid on the US$ RCF between August and November 2016. US$30 million (R399 million) was drawn down on the facility during April 2017.
L470: US$ facility | M470: Rand facility
B471: Figures in million | L471: US dollar | M471: SA rand
B473: Borrowings summary at 30 June 2017
B474: Facility | L474: 250 | M474: 1000
B475: Drawn down | L475: 140 | M475: 300
B476: Undrawn committed borrowing facilities | L476: 110 | M476: 700
B477: Maturity | L477: February | M477: February
... 109 more rows

Sheet Segment Report (R)
A1: Segment report (Rand/Metric)
A2: For the year ended 30 June 2017
B8: Revenue 30 June | D8: Production cost 30 June | F8: Production profit 30 June | H8: Mining assets 30 June | J8: Capital expenditure# 30 June | L8: Kilograms produced* 30 June | N8: Tonnes milled* 30 June
B9: 2017 | C9: 2016 | D9: 2017 | E9: 2016 | F9: 2017 | G9: 2016 | H9: 2017 | I9: 2016 | J9: 2017 | K9: 2016 | L9: 2017 | M9: 2016 | N9: 2017 | O9: 2016
B10: R million | D10: R million | F10: R million | H10: R million | J10: R million | L10: kg | N10: t'000
A14: South Africa
A15: Underground
A16: Tshepong(a) | B16: 2760 | C16: 2756 | D16: 2029 | E16: 1844 | F16: 731 | G16: 912 | H16: 4332 | I16: 4161 | J16: 387 | K16: 307 | L16: 4819 | M16: 5031 | N16: 1027 | O16: 1088
A17: Phakisa(a) | B17: 2302 | C17: 2186 | D17: 1642 | E17: 1375 | F17: 660 | G17: 811 | H17: 4134 | I17: 4246 | J17: 330 | K17: 323 | L17: 4009 | M17: 3988 | N17: 668 | O17: 686
A18: Bambanani | B18: 1576 | C18: 1617 | D18: 871 | E18: 811 | F18: 705 | G18: 806 | H18: 745 | I18: 807 | J18: 77 | K18: 106 | L18: 2750 | M18: 3013 | N18: 231 | O18: 232
A19: Joel | B19: 1309 | C19: 1220 | D19: 936 | E19: 831 | F19: 373 | G19: 389 | H19: 909 | I19: 728 | J19: 243 | K19: 215 | L19: 2246 | M19: 2278 | N19: 514 | O19: 542
A20: Doornkop | B20: 1553 | C20: 1480 | D20: 1241 | E20: 1047 | F20: 312 | G20: 433 | H20: 2979 | I20: 2984 | J20: 243 | K20: 208 | L20: 2673 | M20: 2730 | N20: 641 | O20: 630
A21: Target 1 | B21: 1506 | C21: 1833 | D21: 1345 | E21: 1250 | F21: 161 | G21: 583 | H21: 2020.869131 | I21: 2826 | J21: 324 | K21: 322 | L21: 2669 | M21: 3387 | N21: 745 | O21: 739
A22: Kusasalethu | B22: 2575 | C22: 2078 | D22: 2080 | E22: 1816 | F22: 495 | G22: 262 | H22: 2846 | I22: 3766 | J22: 289 | K22: 360 | L22: 4394 | M22: 3863 | N22: 607 | O22: 668
A23: Masimong | B23: 1452 | C23: 1318 | D23: 1113 | E23: 1038 | F23: 339 | G23: 280 | H23: 433 | I23: 485 | J23: 119 | K23: 110 | L23: 2538 | M23: 2432 | N23: 640 | O23: 650
A24: Unisel | B24: 915 | C24: 925 | D24: 838 | E24: 754 | F24: 77 | G24: 171 | H24: 529 | I24: 543 | J24: 78 | K24: 62 | L24: 1595 | M24: 1704 | N24: 394 | O24: 424
A25: Target 3(b) | B25: 0 | C25: 0 | D25: 0 | E25: 0 | F25: 0 | G25: 0 | H25: 521.1703806 | I25: 526 | J25: 0 | K25: 0 | L25: 0 | M25: 0 | N25: 0 | O25: 0
A27: Surface
A28: All other surface operations | B28: 1816 | C28: 1601 | D28: 1404 | E28: 1272 | F28: 412 | G28: 329 | H28: 486 | I28: 448 | J28: 261 | K28: 59 | L28: 3178 | M28: 2972 | N28: 11045 | O28: 10985
A31: Total South Africa | B31: 17764 | C31: 17014 | D31: 13499 | E31: 12038 | F31: 4265 | G31: 4976 | H31: 19935.03951 | I31: 21520 | J31: 2351 | K31: 2072 | L31: 30871 | M31: 31398 | N31: 16512 | O31: 16644
A34: International
A35: Hidden Valley | B35: 1500 | C35: 1320 | D35: 1313 | E35: 1212 | F35: 187 | G35: 108 | H35: 2290 | I35: 650 | J35: 1335 | K35: 79 | L35: 2965 | M35: 2257 | N35: 2889 | O35: 1729
A36: Other | B36: 0 | C36: 0 | D36: 0 | E36: 0 | F36: 0 | G36: 0 | I36: 0 | J36: 0 | K36: 0 | L36: 0 | M36: 0 | N36: 0 | O36: 0
A39: Total international | B39: 1500 | C39: 1320 | D39: 1313 | E39: 1212 | F39: 187 | G39: 108 | H39: 2290 | I39: 650 | J39: 1335 | K39: 79 | L39: 2965 | M39: 2257 | N39: 2889 | O39: 1729
A42: Total operations | B42: 19264 | C42: 18334 | D42: 14812 | E42: 13250 | F42: 4452 | G42: 5084 | H42: 22225.03951 | I42: 22170 | J42: 3686 | K42: 2151 | L42: 33836 | M42: 33655 | N42: 19401 | O42: 18373
A45: Discontinued operations
A46: Evander | F46: 0 | G46: 0
A47: Evander surface | F47: 0 | G47: 0 | K47: 0
A50: Total discontinued operations | B50: 0 | C50: 0 | D50: 0 | E50: 0 | F50: 0 | G50: 0 | H50: 0 | I50: 0 | J50: 0 | K50: 0 | L50: 0 | M50: 0 | N50: 0 | O50: 0
A53: Reconciliation of the segment information to the consolidated income statement and balance sheet (refer to note 19) | H53: 7818.935119
I56: 7749
C57: 0 | E57: 0
B60: 19264 | C60: 18334 | D60: 14812 | E60: 13250 | F60: 4452 | G60: 5084 | H60: 30043.97463 | I60: 29919 | J60: 3686 | K60: 2151 | L60: 33836 | M60: 33655 | N60: 19401 | O60: 18373
A63: # Capital expenditure for international operations excludes expenditure spend on Wafi-Golpu of R197 million (2016: R240 million).
A64: (a)Tshepong and Phakisa are two separate segments for the 2017 year. As of 1 July 2017, they have been integrated into Tshepong Operations and will be treated as one segment for the 2018 year.
A65: (b)Target 3 was placed on care and maintenance in October 2014.
A66: *Production statistics are unaudited and not reviewed.
A68: The segment report for the year ended 30 June 2016 has been audited. The segment report for the year ended 30 June 2017 has been reviewed.

Sheet Publish IS (US$)
A1: CONDENSED CONSOLIDATED INCOME STATEMENTS (US$)
A2: (Convenience translation)
F7: Year ended
F8: 30 June | G8: 30 June
F9: 2017 | G9: 2016
A10: Figures in million | F10: (Unaudited) | G10: (Audited)
A13: Revenue | F13: 1417 | G13: 1264
A14: Cost of sales | F14: -1449 | G14: -1088
A16: Production costs | F16: -1090 | G16: -914
A17: (Impairment)/Reversal of impairment of assets | F17: -131 | G17: 3
A18: Amortisation and depreciation | F18: -185 | G18: -149
A19: Other items | F19: -43 | G19: -28
F21: 0 | G21: 0
A22: Gross profit/(loss) | F22: -32 | G22: 176
A23: Corporate, administration and other expenditure | F23: -38 | G23: -28
A24: Exploration expenditure | F24: -18 | G24: -13
A25: Profit on sale of property, plant and equipment | F25: 0 | G25: 0
A26: Gains on derivatives | F26: 75 | G26: 31
A27: Other operating expenses | F27: -64.6870678 | G27: -55
A30: Operating profit/(loss) | F30: -77.6870678 | G30: 111
A31: Gain on bargain purchase | F31: 61 | G31: 0
A32: Loss on liquidation of subsidiaries | F32: -1 | G32: 0
A33: Profit/(loss) from associates | F33: -2 | G33: 0
A34: Investment income | F34: 20 | G34: 17
A35: Net gain/(loss) on financial instruments | F35: 0 | G35: 1
A36: Finance cost | F36: -17 | G36: -19
G37: 0
G38: 0
A39: Profit/(loss) before taxation | F39: -16.6870678 | G39: 109
A40: Taxation | F40: 37 | G40: -43
A41: Current taxation | F41: -36 | G41: -8
A42: Deferred taxation | F42: 73 | G42: -35
G44: 0
A45: Net profit for the year | F45: 20.3129322 | G45: 66
F46: 27 | G46: 0
F47: 0 | G47: 0
A48: Attributable to: | G48: 0
A49: Owners of the parent | F49: 20.3129322 | G49: 66
A51: Earnings per ordinary share (cents)
G52: 0
A53: Basic earnings | F53: 5.073684771 | G53: 15
A54: Diluted earnings | F54: 5 | G54: 15
F55: 6 | G55: 0
F56: 0 | G56: 0
A59: The currency conversion average rates for the year ended 30 June 2017: US$1 = R13.60 (30 June 2016: US$1 = R14.50).
A64: Note on convenience translations
A66: Except where specific statements have been extracted from the 2016 annual financial statements, the requirements of IAS 21, The Effects of the Changes in Foreign Exchange Rates, have not necessarily been applied in the translation of the US Dollar financial statements presented on page 31 to 35.

Sheet Publish Com IS (US$)
A1: CONDENSED CONSOLIDATED STATEMENTS OF COMPREHENSIVE INCOME (US$)
A3: (Convenience translation)
F8: Year ended
F9: 30 June | G9: 30 June
F10: 2017 | G10: 2016
A11: Figures in million | F11: (Unaudited) | G11: (Audited)
A14: Net profit for the year | F14: 20.3129322 | G14: 66
A15: Other comprehensive income/(loss) for the year, net of income tax | F15: 60 | G15: -375
A18: Items that may be reclassified subsequently to profit or loss: | F18: 60.36408649 | G18: -375
A20: Foreign exchange translation gain/(loss) | F20: -23.6848828 | G20: -375
A21: Remeasurement of derivative instruments
A22: Unrealised gain on Rand gold contracts | F22: 159.7376165 | G22: 0
A23: Released to revenue | F23: -53.54843068 | G23: 0
A24: Released to gains on derivatives | F24: -1.176888586 | G24: 0
A25: Deferred taxation thereon | F25: -20.96332795 | G25: 0
A27: Items that will not be reclassified to profit or loss: | F27: 0 | G27: 0
A28: Remeasurement of retirement benefit obligation
A29: Acturial gain recognised during the year | F29: 0 | G29: 0
A30: Deferred taxation thereon | F30: 0 | G30: 0
A33: Total comprehensive income/(loss) for the year | F33: 80.3129322 | G33: -309
A36: Attributable to:
A37: Owners of the parent | F37: 80.3129322 | G37: -309
A38: Non-controlling interest | F38: 0 | G38: 0
A42: The currency conversion average rates for the year ended 30 June 2017: US$1 = R13.60 (30 June 2016: US$1 = R14.50).
A47: CONDENSED CONSOLIDATED STATEMENTS OF CHANGES IN EQUITY (US$)
A51: for the year ended 30 June 2017 (Convenience translation)
A54: Figures in million | D54: Share capital | E54: Other reserves | F54: Accumulated loss | G54: Total
A57: Balance - 30 June 2016 | D57: 2161.106789 | E57: 324 | F57: -336 | G57: 2149.106789
A58: Share-based payments | D58: 0 | E58: 28.2891041 | F58: 0 | G58: 28.2891041
A59: Net profit for the year | D59: 0 | E59: 0 | F59: 27.60871886 | G59: 27.60871886
A60: Other comprehensive income for the year | D60: 0 | E60: 62 | F60: 0 | G60: 62
A61: Dividends paid1 | D61: 0 | E61: 0 | F61: -33 | G61: -33
A64: Balance - 30 June 2017 (Unaudited) | D64: 2161.106789 | E64: 414.2891041 | F64: -341 | G64: 2234
A67: Balance - 30 June 2015 | D67: 4035 | E67: -1238 | F67: -597 | G67: 2200
A68: Share-based payments | D68: 0 | E68: 22 | F68: 0 | G68: 22
A69: Reversal of provision for odd lot repurchases | D69: 1 | E69: 0 | F69: 0 | G69: 1
A70: Net profit for the year | D70: 0 | E70: 0 | F70: 66 | G70: 66
A71: Other comprehensive loss for the year | D71: 0 | E71: -375 | F71: 0 | G71: -375
A73: Balance - 30 June 2016 (Audited) | D73: 4036 | E73: -1591 | F73: -531 | G73: 1914
D74: 1925 | F74: -300 | G74: 1914
A75: 1 Dividend of 50 SA cents declared on 15 August 2016 and dividend of 50 cents declared on 31 January 2017
A77: The currency conversion closing rates for the year ended 30 June 2017: US$1 = R13.11 (30 June 2016: US$1 = R14.72).

Sheet Publish BS (US$)
A1: CONDENSED CONSOLIDATED BALANCE SHEETS (US$)
A2: (Convenience translation)
E7: At | F7: At
E8: 30 June | F8: 30 June
E9: 2017 | F9: 2016
A10: Figures in million | E10: (Unaudited) | F10: (Audited)
A13: ASSETS
A15: Non-current assets
A17: Property, plant and equipment | E17: 2292 | F17: 2033
A18: Intangible assets | E18: 46 | F18: 59
A19: Restricted cash | E19: 5 | F19: 4
A20: Restricted investments | E20: 203 | F20: 170
A21: Investments in associates | E21: 4 | F21: 0
A22: Inventories | E22: 3 | F22: 3
A23: Trade and other receivables | E23: 14 | F23: 12
A24: Derivative financial assets | E24: 23 | F24: 0
E25: 0
E26: 0
A27: Total non-current assets | E27: 2590 | F27: 2281
E28: 0
E29: 0
A31: Current assets
A33: Inventories | E33: 86 | F33: 79
A34: Restricted cash | E34: 1 | F34: 1
A35: Trade and other receivables | E35: 76 | F35: 44
A36: Derivative financial assets | E36: 118 | F36: 25
A37: Cash and cash equivalents | E37: 95 | F37: 85
E38: 0 | F38: 0
E39: 0
A40: Total current assets | E40: 376 | F40: 234
E41: 376 | F41: 236
E42: 0 | F42: 0
A43: Total assets | E43: 2966 | F43: 2515
E44: 2965 | F44: 2516
E46: 0 | F46: 0
A47: EQUITY AND LIABILITIES
A49: Share capital and reserves
A51: Share capital | E51: 2161 | F51: 4036
A52: Other reserves | E52: 414.2891041 | F52: -1591
A53: Accumulated loss | E53: -341 | F53: -531
E54: 0
E55: 0
A56: Total equity | E56: 2234.289104 | F56: 1914
A60: Non-current liabilities
A62: Deferred tax liabilities | E62: 130 | F62: 164
A63: Provision for environmental rehabilitation | E63: 201 | F63: 148
A64: Provision for silicosis settlement | E64: 70 | F64: 0
A65: Retirement benefit obligation | E65: 14 | F65: 11
A66: Other non-current liabilities | E66: 1 | F66: 1
A67: Derivative financial liabilities | E67: 70 | F67: 0
A68: Borrowings | E68: 23 | F68: 139
E69: 0 | F69: 360
E70: 0 | F70: 360
A71: Total non-current liabilities | E71: 439 | F71: 463
A75: Current liabilities
A77: Borrowings | E77: 140 | F77: 20
A78: Trade and other payables | E78: 153 | F78: 118
A79: Loans from subsidiaries | E79: 0 | F79: 0
E80: 0 | F80: 0
E81: 293 | F81: 0
A82: Total current liabilities | E82: 293 | F82: 138
A85: Total equity and liabilities | E85: 2966 | F85: 2515
A89: The balance sheet for 30 June 2017 converted at a conversion rate of US$1 = R13.11 (30 June 2016: US$1 = R14.72).

Sheet Publish - Cash flow (US$)
A1: CONDENSED CONSOLIDATED CASH FLOW STATEMENTS (US$)
A2: (Convenience translation)
H7: Year ended
H8: 30 June | I8: 30 June
H9: 2017 | I9: 2016
A10: Figures in million | H10: (Unaudited) | I10: (Audited)
A14: Cash flow from operating activities
A15: Cash generated by operations | H15: 319.6723623 | I15: 322
A16: Interest and dividends received | H16: 5.516665249 | I16: 5
A17: Interest paid | H17: -5.810887396 | I17: -11
A18: Income and mining taxes paid | H18: -39.57287872 | I18: -4
H19: 0
H20: 0
A21: Cash generated by operating activities | H21: 279.8052614 | I21: 312
H22: 0
A24: Cash flow from investing activities
A25: (Increase)/decrease in restricted cash | H25: 0 | I25: -1
A26: Decrease in amounts invested in restricted investments | H26: 1 | I26: 3
A27: Loan to associate repaid | H27: 0 | I27: 0
A28: Loan to ARM BBEE Trust | H28: 0 | I28: -14
A29: Cash on acquisition of Hidden Valley | H29: 34 | I29: 0
A30: Net additions to property, plant and equipment | H30: -289 | I30: -168
H32: 0
A33: Cash utilised by investing activities | H33: -254 | I33: -180
H34: 0
A36: Cash flow from financing activities
A37: Borrowings raised | H37: 51.41532012 | I37: 24
A38: Borrowings repaid | H38: -52.22443103 | I38: -138
A39: Dividends paid | H39: -32.29088059 | I39: 0
H40: 0
A41: Option premium on BEE transaction | H41: 0
A44: Cash utilised by financing activities | H44: -33.09999149 | I44: -114
H45: 6.987775982
A47: Foreign currency translation adjustments | H47: 17 | I47: -21
A50: Net increase/(decrease) in cash and cash equivalents | H50: 9.705269941 | I50: -3
A51: Cash and cash equivalents - beginning of year | H51: 85 | I51: 88
H52: 0
H53: 0
A54: Cash and cash equivalents - end of year | H54: 95.02890526 | I54: 85
A58: The currency conversion average rates for the year ended 30 June 2017: US$1 = R13.60 (30 June 2016: US$1 = R14.50).
A60: Closing balance translated at closing rates of US$1 = R13.11 (30 June 2016: US$1 = R14.72).
A62: The cash flow statement for the year ended 30 June 2016 has been extracted from the 2016 annual financial statements.

Sheet Segment Report (US$)
A1: Segment report (US$/Imperial)
A2: For the year ended 30 June 2017 (convenience translation)
B8: Revenue 30 June | D8: Production cost 30 June | F8: Production profit 30 June | H8: Mining assets 30 June | J8: Capital expenditure# 30 June | L8: Ounces produced* 30 June | N8: Tons milled* 30 June
B9: 2017 | C9: 2016 | D9: 2017 | E9: 2016 | F9: 2017 | G9: 2016 | H9: 2017 | I9: 2016 | J9: 2017 | K9: 2016 | L9: 2017 | M9: 2016 | N9: 2017 | O9: 2016
B10: US$ million | D10: US$ million | F10: US$ million | H10: US$ million | J10: US$ million | L10: oz | N10: t'000
A14: South Africa
A15: Underground
A16: Tshepong(a) | B16: 203 | C16: 190 | D16: 149 | E16: 127 | F16: 54 | G16: 63 | H16: 330 | I16: 282.7284896 | J16: 28 | K16: 21 | L16: 154934 | M16: 161751 | N16: 1132 | O16: 1200
A17: Phakisa(a) | B17: 169 | C17: 151 | D17: 121 | E17: 95 | F17: 48 | G17: 56 | H17: 315 | I17: 288 | J17: 24 | K17: 22 | L17: 128893 | M17: 128217 | N17: 737 | O17: 756
A18: Bambanani | B18: 116 | C18: 112 | D18: 64 | E18: 56 | F18: 52 | G18: 56 | H18: 57 | I18: 54.83342733 | J18: 6 | K18: 7 | L18: 88415 | M18: 96870 | N18: 254 | O18: 256
A19: Joel | B19: 96 | C19: 84 | D19: 69 | E19: 57 | F19: 27 | G19: 27 | H19: 69 | I19: 49.46559491 | J19: 18 | K19: 15 | L19: 72211 | M19: 73239 | N19: 567 | O19: 597
A20: Doornkop | B20: 114 | C20: 102 | D20: 91 | E20: 72 | F20: 23 | G20: 30 | H20: 227 | I20: 202.7545813 | J20: 18 | K20: 14 | L20: 85939 | M20: 87772 | N20: 706 | O20: 695
A21: Target 1 | B21: 111 | C21: 126 | D21: 99 | E21: 86 | F21: 12 | G21: 40 | H21: 154 | I21: 192.0189165 | J21: 24 | K21: 22 | L21: 85809 | M21: 108895 | N21: 822 | O21: 814
A22: Kusasalethu | B22: 189 | C22: 143 | D22: 153 | E22: 125 | F22: 36 | G22: 18 | H22: 217 | I22: 255.8893275 | J22: 21 | K22: 25 | L22: 141270 | M22: 124198 | N22: 670 | O22: 736
A23: Masimong | B23: 107 | C23: 91 | D23: 82 | E23: 72 | F23: 25 | G23: 19 | H23: 33 | I23: 32.95441419 | J23: 9 | K23: 8 | L23: 81599 | M23: 78190 | N23: 706 | O23: 716
A24: Unisel | B24: 67 | C24: 64 | D24: 62 | E24: 52 | F24: 5 | G24: 12 | H24: 40 | I24: 36.89535445 | J24: 6 | K24: 4 | L24: 51280 | M24: 54785 | N24: 436 | O24: 467
A25: Target 3(b) | B25: 0 | C25: 0 | D25: 0 | E25: 0 | F25: 0 | G25: 0 | H25: 40 | I25: 35.74025127 | J25: 0 | K25: 0 | L25: 0 | M25: 0 | N25: 0 | O25: 0
H26: 0
A27: Surface
A28: All other surface operations | B28: 135 | C28: 110 | D28: 103 | E28: 88 | F28: 32 | G28: 22 | H28: 37.06584908 | I28: 30.4403661 | J28: 19 | K28: 4 | L28: 102175 | M28: 95553 | N28: 12179 | O28: 12112
H29: 0
H30: 0
A31: Total South Africa | B31: 1307 | C31: 1173 | D31: 993 | E31: 830 | F31: 314 | G31: 343 | H31: 1519.065849 | I31: 1462.224729 | J31: 173 | K31: 142 | L31: 992525 | M31: 1009470 | N31: 18209 | O31: 18349
A34: International
A35: Hidden Valley | B35: 110 | C35: 91 | D35: 97 | E35: 84 | F35: 13 | G35: 7 | H35: 174.6518403 | I35: 44.16570974 | J35: 98 | K35: 5 | L35: 95327 | M35: 72565 | N35: 3186 | O35: 1906
A36: Other | B36: 0 | C36: 0 | D36: 0 | E36: 0 | F36: 0 | G36: 0 | H36: 0 | I36: 0 | K36: 0 | L36: 0 | M36: 0 | N36: 0 | O36: 0
H37: 0
H38: 0
A39: Total international | B39: 110 | C39: 91 | D39: 97 | E39: 84 | F39: 13 | G39: 7 | H39: 174.6518403 | I39: 44.16570974 | J39: 98 | K39: 5 | L39: 95327 | M39: 72565 | N39: 3186 | O39: 1906
A42: Total operations | B42: 1417 | C42: 1264 | D42: 1090 | E42: 914 | F42: 327 | G42: 350 | H42: 1693.717689 | I42: 1506.390438 | J42: 271 | K42: 147 | L42: 1087852 | M42: 1082035 | N42: 21395 | O42: 20255
H43: 0
H44: 0
A45: Discontinued operations | H45: 0
A46: Evander | F46: 0 | H46: 0
A47: Evander surface | F47: 0 | G47: 0 | H47: 0
H48: 0
H49: 0
A50: Total discontinued operations | B50: 0 | C50: 0 | D50: 0 | E50: 0 | F50: 0 | G50: 0 | H50: 0 | I50: 0 | J50: 0 | K50: 0 | L50: 0 | M50: 0 | N50: 0 | O50: 0
H51: 0
H52: 0
A53: Total operations | B53: 1417 | C53: 1264 | D53: 1090 | E53: 914 | F53: 327 | G53: 350 | H53: 596.3281257 | I53: 0 | J53: 271 | K53: 147 | L53: 1087852 | M53: 1082035 | N53: 21395 | O53: 20255
H54: 0
H55: 0
A56: Reconciliation of the segment information to the consolidated income statement and balance sheet (refer to note 41) | H56: 0
H57: 0
H58: 0
B59: 0 | C59: 0 | D59: 0 | E59: 0 | H59: 0 | I59: 0
H60: 2291.369196
B61: 0 | D61: 0 | H61: 0
A62: #Capital expenditure for international operations excludes expenditure spend on Wafi-Golpu of US$15 million (2016: US$16 million).
A63: (a)Tshepong and Phakisa are two separate segments for the 2017 year. As of 1 July 2017, they have been integrated into Tshepong Operations and will be treated as one segment for the 2018 year.
A64: (b)Target 3 was placed on care and maintenance in October 2014.
A65: *Production statistics are unaudited and not reviewed.
A67: The segment report for the year ended 30 June 2016 has been audited. The segment report for the year ended 30 June 2017 has not been audited.
E993: A 10% decrease in the gold price at the reporting date would have resulted in the following additional impairments being recognised in the 2010 and 2009 financial year. This analysis assumes that all other variables remain constant. The analysis is performed on the same basis for 2009.
I1001: 9 | M1001: President Steyn 2
I1002: 140 | M1002: Evander 8
I1008: 149

Sheet Sheet 5 (hidden)
K1: ZAR | L1: The Company Code is invalid. | Y1: ZAR | Z1: The Company Code is invalid.
C2: CONDENSED CONSOLIDATED BALANCE SHEET | K2: R | L2: R | Q2: CONDENSED CONSOLIDATED BALANCE SHEET | Y2: R | Z2: R
H5: At | I5: At | J5: At | K5: At | L5: At | V5: At | W5: At | X5: At | Y5: At | Z5: At
C6: Company: | D6: Harmony Company (Consolidated) C001 | H6: March | I6: December | J6: June | K6: July | L6: March | Q6: Company: | R6: Harmony Company (Consolidated) C001 | V6: March | W6: December | X6: June | Y6: July | Z6: March
F7: Variance | H7: 2017 | I7: 2016 | J7: 2016 | K7: 2016 | L7: 2016 | T7: Variance | V7: 2017 | W7: 2016 | X7: 2016 | Y7: 2016 | Z7: 2016
F8: % | H8: R million | I8: R million | J8: R million | K8: R million | L8: R million | T8: % | V8: R million | W8: R million | X8: R million | Y8: R million | Z8: R million
H10: 3 | I10: 4 | J10: 5 | K10: 6 | L10: 7 | V10: 3 | W10: 4 | X10: 5 | Y10: 6 | Z10: 7
C11: TOTAL ASSETS | Q11: TOTAL ASSETS
A12: AB000000 | B12: Non-current assets | C12: Non-current assets | O12: AB000000 | P12: Non-current assets | Q12: Non-current assets
A13: AB100000 | B13: Property, plant and equipment | C13: Property, plant and equipment | F13: 0.00770260126 | H13: 30875 | I13: 30639 | J13: 29919 | K13: 29778 | L13: 29969 | O13: AB100000 | P13: Property, plant and equipment | Q13: Property, plant and equipment | T13: 0.00770260126 | V13: =H13*1000000 -> 30875000000 | W13: =I13*1000000 -> 30639000000 | X13: 29919000000 | Y13: 29778000000 | Z13: 29969000000
A14: AB110000 | B14: PPE : Cost | C14: PPE : Cost | F14: 0.01263817377 | H14: 56248 | I14: 55546 | J14: 54424 | K14: 54003 | L14: 55215 | O14: AB110000 | P14: PPE : Cost | Q14: PPE : Cost | T14: 0.01263817377 | V14: =H14*1000000 -> 56248000000 | W14: =I14*1000000 -> 55546000000 | X14: =J14*1000000 -> 54424000000 | Y14: =K14*1000000 -> 54003000000 | Z14: =L14*1000000 -> 55215000000
A15: AB110100 | B15: Cost : Mining assets | C15: Cost : Mining assets | F15: 0.01234060058 | H15: 49220 | I15: 48620 | J15: 47230 | K15: 46827 | L15: 47271 | O15: AB110100 | P15: Cost : Mining assets | Q15: Cost : Mining assets | T15: 0.01234060058 | V15: 49220000000 | W15: 48620000000 | X15: 47230000000 | Y15: 46827000000 | Z15: 47271000000
A16: AB110110 | B16: Cost : Mine assets | C16: Cost : Mine assets | F16: -0.003703930452 | H16: 32547 | I16: 32668 | J16: 32494 | K16: 32011 | L16: 32623 | O16: AB110110 | P16: Cost : Mine assets | Q16: Cost : Mine assets | T16: -0.003703930452 | V16: 32547000000 | W16: 32668000000 | X16: 32494000000 | Y16: 32011000000 | Z16: 32623000000
A17: AB110120 | B17: Cost : Rehab assets | C17: Cost : Rehab assets | F17: -0.01550387597 | H17: 635 | I17: 645 | J17: 670 | K17: 646 | L17: 799 | O17: AB110120 | P17: Cost : Rehab assets | Q17: Cost : Rehab assets | T17: -0.01550387597 | V17: 635000000 | W17: 645000000 | X17: 670000000 | Y17: 646000000 | Z17: 799000000
A18: AB110130 | B18: Cost : Capital development and AE's | C18: Cost : Capital development and AE's | F18: 0.04788971645 | H18: 16039 | I18: 15306 | J18: 14066 | K18: 14170 | L18: 13849 | O18: AB110130 | P18: Cost : Capital development and AE's | Q18: Cost : Capital development and AE's | T18: 0.04788971645 | V18: 16039000000 | W18: 15306000000 | X18: 14066000000 | Y18: 14170000000 | Z18: 13849000000
A19: AB110190 | B19: Cost : Other | C19: Cost : Other mining assets | F19: -2 | H19: -1 | I19: 1 | J19: 0 | K19: 0 | L19: 0 | O19: AB110190 | P19: Cost : Other | Q19: Cost : Other mining assets | T19: -2 | V19: -1000000 | W19: 1000000 | X19: 0 | Y19: 0 | Z19: 0
A20: AB110200 | B20: Cost : Mining assets under construction | C20: Cost : Mining assets under construction | F20: 0.05588235294 | H20: 1077 | I20: 1020 | J20: 909 | K20: 925 | L20: 827 | O20: AB110200 | P20: Cost : Mining assets under construction | Q20: Cost : Mining assets under construction | T20: 0.05588235294 | V20: 1077000000 | W20: 1020000000 | X20: 909000000 | Y20: 925000000 | Z20: 827000000
A21: AB110300 | B21: Cost : Undeveloped property | C21: Cost : Undeveloped property | F21: 0.001470858614 | H21: 5447 | I21: 5439 | J21: 5469 | K21: 5457 | L21: 5479 | O21: AB110300 | P21: Cost : Undeveloped property | Q21: Cost : Undeveloped property | T21: 0.001470858614 | V21: 5447000000 | W21: 5439000000 | X21: 5469000000 | Y21: 5457000000 | Z21: 5479000000
A22: AB110400 | B22: Cost : Deferred stripping | C22: Cost : Deferred stripping | F22: 0.8611111111 | H22: 67 | I22: 36 | J22: 395 | K22: 373 | L22: 1168 | O22: AB110400 | P22: Cost : Deferred stripping | Q22: Cost : Deferred stripping | T22: 0.8611111111 | V22: 67000000 | W22: 36000000 | X22: 395000000 | Y22: 373000000 | Z22: 1168000000
A23: AB110800 | B23: Cost : Other non-mining | C23: Cost : Other non-mining | F23: 0.01392111369 | H23: 437 | I23: 431 | J23: 421 | K23: 421 | L23: 470 | O23: AB110800 | P23: Cost : Other non-mining | Q23: Cost : Other non-mining | T23: 0.01392111369 | V23: 437000000 | W23: 431000000 | X23: 421000000 | Y23: 421000000 | Z23: 470000000
A24: AB110900 | B24: Clearing accounts | C24: Clearing accounts | F24: - | H24: 0 | I24: 0 | J24: 0 | K24: 0 | L24: 0 | O24: AB110900 | P24: Clearing accounts | Q24: Clearing accounts | T24: - | V24: 0 | W24: 0 | X24: 0 | Y24: 0 | Z24: 0
A25: AB120000 | B25: PPE : Accumulated depreciation | C25: PPE : Accumulated depreciation | F25: 0.01870959971 | H25: -25373 | I25: -24907 | J25: -24505 | K25: -24225 | L25: -25246 | O25: AB120000 | P25: PPE : Accumulated depreciation | Q25: PPE : Accumulated depreciation | T25: 0.01870959971 | V25: -25373000000 | W25: -24907000000 | X25: -24505000000 | Y25: -24225000000 | Z25: -25246000000
A26: AB120100 | B26: Acc depr : Mining assets | C26: Acc depr : Mining assets | F26: 0.01842308161 | H26: -25097 | I26: -24643 | J26: -23902 | K26: -23641 | L26: -23861 | O26: AB120100 | P26: Acc depr : Mining assets | Q26: Acc depr : Mining assets | T26: 0.01842308161 | V26: -25097000000 | W26: -24643000000 | X26: -23902000000 | Y26: -23641000000 | Z26: -23861000000
A27: AB120110 | B27: Acc depr : Mine assets | C27: Acc depr : Mine assets | F27: 0.01372022419 | H27: -17363 | I27: -17128 | J27: -16864 | K27: -16549 | L27: -17094 | O27: AB120110 | P27: Acc depr : Mine assets | Q27: Acc depr : Mine assets | T27: 0.01372022419 | V27: -17363000000 | W27: -17128000000 | X27: -16864000000 | Y27: -16549000000 | Z27: -17094000000
A28: AB120120 | B28: Acc depr : Rehab assets | C28: Acc depr : Rehab assets | F28: -0.01619433198 | H28: -486 | I28: -494 | J28: -514 | K28: -491 | L28: -516 | O28: AB120120 | P28: Acc depr : Rehab assets | Q28: Acc depr : Rehab assets | T28: -0.01619433198 | V28: -486000000 | W28: -494000000 | X28: -514000000 | Y28: -491000000 | Z28: -516000000
A29: AB120130 | B29: Acc depr : Capital development | C29: Acc depr : Capital development | F29: 0.03262108262 | H29: -7249 | I29: -7020 | J29: -6524 | K29: -6601 | L29: -6252 | O29: AB120130 | P29: Acc depr : Capital development | Q29: Acc depr : Capital development | T29: 0.03262108262 | V29: -7249000000 | W29: -7020000000 | X29: -6524000000 | Y29: -6601000000 | Z29: -6252000000
A30: AB120190 | B30: Acc depr : Other | C30: Acc depr : Other | F30: -2 | H30: 1 | I30: -1 | J30: 0 | K30: 0 | L30: 1 | O30: AB120190 | P30: Acc depr : Other | Q30: Acc depr : Other | T30: -2 | V30: 1000000 | W30: -1000000 | X30: 0 | Y30: 0 | Z30: 1000000
A31: AB120200 | B31: Acc depr : Mining assets under construction | C31: Acc depr : Mining assets under construction | F31: - | H31: 0 | I31: 0 | J31: 0 | K31: 0 | L31: 0 | O31: AB120200 | P31: Acc depr : Mining assets under construction | Q31: Acc depr : Mining assets under construction | T31: - | V31: 0 | W31: 0 | X31: 0 | Y31: 0 | Z31: 0
A32: AB120300 | B32: Acc depr : Undeveloped property | C32: Acc depr : Undeveloped property | F32: 0 | H32: -14 | I32: -14 | J32: -15 | K32: -15 | L32: -16 | O32: AB120300 | P32: Acc depr : Undeveloped property | Q32: Acc depr : Undeveloped property | T32: 0 | V32: -14000000 | W32: -14000000 | X32: -15000000 | Y32: -15000000 | Z32: -16000000
A33: AB120400 | B33: Acc depr : Deferred stripping | C33: Acc depr : Deferred stripping | F33: -0.125 | H33: -14 | I33: -16 | J33: -372 | K33: -350 | L33: -1114 | O33: AB120400 | P33: Acc depr : Deferred stripping | Q33: Acc depr : Deferred stripping | T33: -0.125 | V33: -14000000 | W33: -16000000 | X33: -372000000 | Y33: -350000000 | Z33: -1114000000
A34: AB120800 | B34: Acc depr : Other non-mining | C34: Acc depr : Other non-mining | F34: 0.05982905983 | H34: -248 | I34: -234 | J34: -216 | K34: -219 | L34: -255 | O34: AB120800 | P34: Acc depr : Other non-mining | Q34: Acc depr : Other non-mining | T34: 0.05982905983 | V34: -248000000 | W34: -234000000 | X34: -216000000 | Y34: -219000000 | Z34: -255000000
A35: AB200000 | B35: Intangible assets | C35: Intangible assets | F35: -0.004634994206 | H35: 859 | I35: 863 | J35: 870 | K35: 868 | L35: 874 | O35: AB200000 | P35: Intangible assets | Q35: Intangible assets | T35: -0.004634994206 | V35: 859000000 | W35: 863000000 | X35: 870000000 | Y35: 868000000 | Z35: 874000000
A36: AB210000 | B36: Intangible Assets : Cost | C36: Intangible Assets : Cost | F36: 0 | H36: 2571 | I36: 2571 | J36: 2571 | K36: 2571 | L36: 2571 | O36: AB210000 | P36: Intangible Assets : Cost | Q36: Intangible Assets : Cost | T36: 0 | V36: 2571000000 | W36: 2571000000 | X36: 2571000000 | Y36: 2571000000 | Z36: 2571000000
A37: AB210100 | B37: Cost : Goodwill | C37: Cost : Goodwill | F37: 0 | H37: 2372 | I37: 2372 | J37: 2372 | K37: 2372 | L37: 2372 | O37: AB210100 | P37: Cost : Goodwill | Q37: Cost : Goodwill | T37: 0 | V37: 2372000000 | W37: 2372000000 | X37: 2372000000 | Y37: 2372000000 | Z37: 2372000000
A38: AB210900 | B38: Cost : Other | C38: Cost : Other | F38: 0 | H38: 199 | I38: 199 | J38: 199 | K38: 199 | L38: 199 | O38: AB210900 | P38: Cost : Other | Q38: Cost : Other | T38: 0 | V38: 199000000 | W38: 199000000 | X38: 199000000 | Y38: 199000000 | Z38: 199000000
A39: AB220000 | B39: Intangible Assets : Acccumulated depreciation | C39: Intangible Assets : Acccumulated depreciation | F39: 0.002341920375 | H39: -1712 | I39: -1708 | J39: -1701 | K39: -1703 | L39: -1697 | O39: AB220000 | P39: Intangible Assets : Acccumulated depreciation | Q39: Intangible Assets : Acccumulated depreciation | T39: 0.002341920375 | V39: -1712000000 | W39: -1708000000 | X39: -1701000000 | Y39: -1703000000 | Z39: -1697000000
A40: AB220100 | B40: Acc depr : Goodwill | C40: Acc depr : Goodwill | F40: 0 | H40: -1526 | I40: -1526 | J40: -1526 | K40: -1526 | L40: -1526 | O40: AB220100 | P40: Acc depr : Goodwill | Q40: Acc depr : Goodwill | T40: 0 | V40: -1526000000 | W40: -1526000000 | X40: -1526000000 | Y40: -1526000000 | Z40: -1526000000
A41: AB220900 | B41: Acc depr : Other | C41: Acc depr : Other | F41: 0.02197802198 | H41: -186 | I41: -182 | J41: -175 | K41: -177 | L41: -171 | O41: AB220900 | P41: Acc depr : Other | Q41: Acc depr : Other | T41: 0.02197802198 | V41: -186000000 | W41: -182000000 | X41: -175000000 | Y41: -177000000 | Z41: -171000000
A42: AB310000 | B42: Restricted cash | C42: Restricted cash | F42: 0.05172413793 | H42: 61 | I42: 58 | J42: 62 | K42: 62 | L42: 58 | O42: AB310000 | P42: Restricted cash | Q42: Restricted cash | T42: 0.05172413793 | V42: 61000000 | W42: 58000000 | X42: 62000000 | Y42: 62000000 | Z42: 58000000
A43: AB320000 | B43: Restricted investments | C43: Restricted investments | F43: 0.0193498452 | H43: 2634 | I43: 2584 | J43: 2496 | K43: 2512 | L43: 2478 | O43: AB320000 | P43: Restricted investments | Q43: Restricted investments | T43: 0.0193498452 | V43: 2634000000 | W43: 2584000000 | X43: 2496000000 | Y43: 2512000000 | Z43: 2478000000
A44: AB320100 | B44: Environmental trust | C44: Environmental trust | F44: 0.01965408805 | H44: 2594 | I44: 2544 | J44: 2454 | K44: 2469 | L44: 2435 | O44: AB320100 | P44: Environmental trust | Q44: Environmental trust | T44: 0.01965408805 | V44: 2594000000 | W44: 2544000000 | X44: 2454000000 | Y44: 2469000000 | Z44: 2435000000
A45: AB320900 | B45: Other : Restricted investments | C45: Other : Restricted investments | F45: 0 | H45: 40 | I45: 40 | J45: 42 | K45: 43 | L45: 43 | O45: AB320900 | P45: Other : Restricted investments | Q45: Other : Restricted investments | T45: 0 | V45: 40000000 | W45: 40000000 | X45: 42000000 | Y45: 43000000 | Z45: 43000000
A46: AB511000 | B46: Investments in financial assets | C46: Investments in financial assets | F46: 0 | H46: 5 | I46: 5 | J46: 5 | K46: 5 | L46: 5 | O46: AB511000 | P46: Investments in financial assets | Q46: Investments in financial assets | T46: 0 | V46: 5000000 | W46: 5000000 | X46: 5000000 | Y46: 5000000 | Z46: 5000000
A47: AB511100 | B47: Listed investments | C47: Listed investments | F47: - | H47: 0 | I47: 0 | J47: 0 | K47: 0 | L47: 0 | O47: AB511100 | P47: Listed investments | Q47: Listed investments | T47: - | V47: 0 | W47: 0 | X47: 0 | Y47: 0 | Z47: 0
A48: AB511200 | B48: Unlisted investments | C48: Unlisted investments | F48: 0 | H48: 5 | I48: 5 | J48: 5 | K48: 5 | L48: 5 | O48: AB511200 | P48: Unlisted investments | Q48: Unlisted investments | T48: 0 | V48: 5000000 | W48: 5000000 | X48: 5000000 | Y48: 5000000 | Z48: 5000000
A49: AB512000 | B49: Investments in associates - other | C49: Investments in associates - other | F49: - | H49: 0 | I49: 0 | J49: 0 | K49: 0 | L49: 8 | O49: AB512000 | P49: Investments in associates - other | Q49: Investments in associates - other | T49: - | V49: 0 | W49: 0 | X49: 0 | Y49: 0 | Z49: 8000000
A50: AB512010 | B50: Rand Uranium | C50: Rand Uranium | F50: - | H50: 0 | I50: 0 | J50: 0 | K50: 0 | L50: 0 | O50: AB512010 | P50: Rand Uranium | Q50: Rand Uranium | T50: - | V50: 0 | W50: 0 | X50: 0 | Y50: 0 | Z50: 0
A51: AB512020 | B51: Rand Refinery | C51: Rand Refinery | F51: - | H51: 0 | I51: 0 | J51: 0 | K51: 0 | L51: 8 | O51: AB512020 | P51: Rand Refinery | Q51: Rand Refinery | T51: - | V51: 0 | W51: 0 | X51: 0 | Y51: 0 | Z51: 8000000
A52: AB512990 | B52: Other : Investment in associates | C52: Other : Investment in associates | F52: - | H52: 0 | I52: 0 | J52: 0 | K52: 0 | L52: 0 | O52: AB512990 | P52: Other : Investment in associates | Q52: Other : Investment in associates | T52: - | V52: 0 | W52: 0 | X52: 0 | Y52: 0 | Z52: 0
A53: AB513000 | B53: Investments in joint ventures - other | C53: Investments in joint ventures - other | F53: - | H53: 0 | I53: 0 | J53: 0 | K53: 0 | L53: 0 | O53: AB513000 | P53: Investments in joint ventures - other | Q53: Investments in joint ventures - other | T53: - | V53: 0 | W53: 0 | X53: 0 | Y53: 0 | Z53: 0
A54: AB514000 | B54: Investment in subsidiaries | C54: Investment in subsidiaries | F54: - | H54: 0 | I54: 0 | J54: 0 | K54: 0 | L54: 0 | O54: AB514000 | P54: Investment in subsidiaries | Q54: Investment in subsidiaries | T54: - | V54: 0 | W54: 0 | X54: 0 | Y54: 0 | Z54: 0
A55: AB515000 | B55: Loans to associates | C55: Loans to associates | F55: - | H55: 0 | I55: 0 | J55: 0 | K55: 0 | O55: AB515000 | P55: Loans to associates | Q55: Loans to associates | T55: - | V55: 0 | W55: 0 | X55: 0 | Y55: 0 | Z55: 0
A56: AB521000 | B56: Loans to subsidiaries | C56: Loans to subsidiaries | F56: - | H56: 0 | I56: 0 | J56: 0 | K56: 0 | L56: 0 | O56: AB521000 | P56: Loans to subsidiaries | Q56: Loans to subsidiaries | T56: - | V56: 0 | W56: 0 | X56: 0 | Y56: 0 | Z56: 0
A57: AB711000 | B57: Deferred income tax | C57: Deferred income tax | F57: - | H57: 0 | I57: 0 | J57: 0 | K57: 1 | L57: 0 | O57: AB711000 | P57: Deferred income tax | Q57: Deferred income tax | T57: - | V57: 0 | W57: 0 | X57: 0 | Y57: 1000000 | Z57: 0
A58: AB921000 | B58: Inventories | C58: Inventories | F58: 0 | H58: 38 | I58: 38 | J58: 38 | K58: 38 | L58: 36 | O58: AB921000 | P58: Inventories | Q58: Inventories | T58: 0 | V58: 38000000 | W58: 38000000 | X58: 38000000 | Y58: 38000000 | Z58: 36000000
A59: AB921900 | B59: Other : Inventories | C59: Other : Inventories | F59: 0 | H59: 38 | I59: 38 | J59: 38 | K59: 38 | L59: 36 | O59: AB921900 | P59: Other : Inventories | Q59: Other : Inventories | T59: 0 | V59: 38000000 | W59: 38000000 | X59: 38000000 | Y59: 38000000 | Z59: 36000000
A60: AB911000 | B60: Trade and other receivables | C60: Trade and other receivables | F60: 0.3043478261 | H60: 240 | I60: 184 | J60: 171 | K60: 236 | L60: 77 | O60: AB911000 | P60: Trade and other receivables | Q60: Trade and other receivables | T60: 0.3043478261 | V60: 240000000 | W60: 184000000 | X60: 171000000 | Y60: 236000000 | Z60: 77000000
A61: AB911100 | B61: Sub-ordinated loan Rand Uranium | C61: Sub-ordinated loan Rand Uranium | F61: - | H61: 0 | I61: 0 | J61: 0 | K61: 0 | L61: 0 | O61: AB911100 | P61: Sub-ordinated loan Rand Uranium | Q61: Sub-ordinated loan Rand Uranium | T61: - | V61: 0 | W61: 0 | X61: 0 | Y61: 0 | Z61: 0
A62: AB911200 | B62: Provisions for irrecoverable loans | C62: Provisions for irrecoverable loans | F62: -0.005586592179 | H62: -178 | I62: -179 | J62: -166 | K62: -166 | L62: -116 | O62: AB911200 | P62: Provisions for irrecoverable loans | Q62: Provisions for irrecoverable loans | T62: -0.005586592179 | V62: -178000000 | W62: -179000000 | X62: -166000000 | Y62: -166000000 | Z62: -116000000
A63: AB911900 | B63: Other : Trade and receivables | C63: Other : Trade and receivables | F63: 0.1515151515 | H63: 418 | I63: 363 | J63: 337 | K63: 402 | L63: 193 | O63: AB911900 | P63: Other : Trade and receivables | Q63: Other : Trade and receivables | T63: 0.1515151515 | V63: 418000000 | W63: 363000000 | X63: 337000000 | Y63: 402000000 | Z63: 193000000
A64: AB911300 | B64: Derivative assets - Non-current | C64: Derivative financial assets | F64: -0.4062015504 | H64: 383 | I64: 645 | J64: 0 | K64: 0 | L64: 0 | O64: AB911300 | P64: Derivative assets - Non-current | Q64: Derivative financial assets | T64: -0.4062015504 | V64: 383000000 | W64: 645000000 | X64: 0 | Y64: 0 | Z64: 0
V65: 0 | W65: 0 | X65: 0 | Y65: 0 | Z65: 0
V66: 0 | W66: 0 | X66: 0 | Y66: 0 | Z66: 0
A67: AB000000 | B67: Non-current assets | C67: Total non-current assets | F67: 0.002256111492 | H67: 35095 | I67: 35016 | J67: 33561 | K67: 33500 | L67: 33505 | O67: AB000000 | P67: Non-current assets | Q67: Total non-current assets | T67: 0.002256111492 | V67: 35095000000 | W67: 35016000000 | X67: 33561000000 | Y67: 33500000000 | Z67: 33505000000
V68: 0 | W68: 0 | X68: 0 | Y68: 0 | Z68: 0
V69: 0 | W69: 0 | X69: 0 | Y69: 0 | Z69: 0
C70: Current assets | Q70: Current assets | V70: 0 | W70: 0 | X70: 0 | Y70: 0 | Z70: 0
A71: AC100000 | B71: Inventories | C71: Inventories | F71: -0.1089108911 | H71: 1440 | I71: 1616 | J71: 1167 | K71: 1140 | L71: 1231 | O71: AC100000 | P71: Inventories | Q71: Inventories | T71: -0.1089108911 | V71: 1440000000 | W71: 1616000000 | X71: 1167000000 | Y71: 1140000000 | Z71: 1231000000
A72: AC110000 | B72: Gold stock | C72: Gold stock | F72: -0.2466165414 | H72: 501 | I72: 665 | J72: 526 | K72: 525 | L72: 565 | O72: AC110000 | P72: Gold stock | Q72: Gold stock | T72: -0.2466165414 | V72: 501000000 | W72: 665000000 | X72: 526000000 | Y72: 525000000 | Z72: 565000000
A73: AC110100 | B73: Gold in lockup | C73: Gold in lockup | F73: - | H73: 0 | I73: 0 | J73: 1 | K73: 0 | L73: 1 | O73: AC110100 | P73: Gold in lockup | Q73: Gold in lockup | T73: - | V73: 0 | W73: 0 | X73: 1000000 | Y73: 0 | Z73: 1000000
A74: AC110200 | B74: Gold in process | C74: Gold in process | F74: -0.3080357143 | H74: 310 | I74: 448 | J74: 298 | K74: 314 | L74: 295 | O74: AC110200 | P74: Gold in process | Q74: Gold in process | T74: -0.3080357143 | V74: 310000000 | W74: 448000000 | X74: 298000000 | Y74: 314000000 | Z74: 295000000
A75: AC110300 | B75: Bullion on hand | C75: Bullion on hand | F75: 0.1927710843 | H75: 99 | I75: 83 | J75: 26 | K75: 38 | L75: 36 | O75: AC110300 | P75: Bullion on hand | Q75: Bullion on hand | T75: 0.1927710843 | V75: 99000000 | W75: 83000000 | X75: 26000000 | Y75: 38000000 | Z75: 36000000
A76: AC110400 | B76: ROM Stockpiles | C76: ROM Stockpiles | F76: -0.3134328358 | H76: 92 | I76: 134 | J76: 201 | K76: 173 | L76: 233 | O76: AC110400 | P76: ROM Stockpiles | Q76: ROM Stockpiles | T76: -0.3134328358 | V76: 92000000 | W76: 134000000 | X76: 201000000 | Y76: 173000000 | Z76: 233000000
A77: AC120000 | B77: Byproducts stock | C77: Byproducts stock | F77: - | H77: 0 | I77: 0 | J77: 0 | K77: 0 | L77: 0 | O77: AC120000 | P77: Byproducts stock | Q77: Byproducts stock | T77: - | V77: 0 | W77: 0 | X77: 0 | Y77: 0 | Z77: 0
A78: AC120100 | B78: Silver stock | C78: Silver stock | F78: - | H78: 0 | I78: 0 | J78: 0 | K78: 0 | L78: 0 | O78: AC120100 | P78: Silver stock | Q78: Silver stock | T78: - | V78: =H78*1000000 -> 0 | W78: =I78*1000000 -> 0 | X78: =J78*1000000 -> 0 | Y78: =K78*1000000 -> 0 | Z78: =L78*1000000 -> 0
A79: AC120200 | B79: Copper stock | C79: Copper stock | F79: - | H79: 0 | I79: 0 | J79: 0 | K79: 0 | L79: 0 | O79: AC120200 | P79: Copper stock | Q79: Copper stock | T79: - | V79: 0 | W79: 0 | X79: 0 | Y79: 0 | Z79: 0
A80: AC120300 | B80: Uranium stock | C80: Uranium stock | F80: - | H80: 0 | I80: 0 | J80: 0 | K80: 0 | L80: 0 | O80: AC120300 | P80: Uranium stock | Q80: Uranium stock | T80: - | V80: 0 | W80: 0 | X80: 0 | Y80: 0 | Z80: 0
A81: AC130000 | B81: Stores | C81: Stores | F81: -0.01261829653 | H81: 939 | I81: 951 | J81: 641 | K81: 615 | L81: 666 | O81: AC130000 | P81: Stores | Q81: Stores | T81: -0.01261829653 | V81: 939000000 | W81: 951000000 | X81: 641000000 | Y81: 615000000 | Z81: 666000000
A82: AC130100 | B82: Stores : cost | C82: Stores : cost | F82: -0.0008583690987 | H82: 1164 | I82: 1165 | J82: 763 | K82: 733 | L82: 838 | O82: AC130100 | P82: Stores : cost | Q82: Stores : cost | T82: -0.0008583690987 | V82: 1164000000 | W82: 1165000000 | X82: 763000000 | Y82: 733000000 | Z82: 838000000
A83: AC130200 | B83: Provisions of obsolete stock | C83: Provisions of obsolete stock | F83: 0.05140186916 | H83: -225 | I83: -214 | J83: -122 | K83: -118 | L83: -172 | O83: AC130200 | P83: Provisions of obsolete stock | Q83: Provisions of obsolete stock | T83: 0.05140186916 | V83: -225000000 | W83: -214000000 | X83: -122000000 | Y83: -118000000 | Z83: -172000000
A84: AC510000 | B84: Restricted cash | C84: Restricted cash | F84: 0.05882352941 | H84: 18 | I84: 17 | J84: 17 | K84: 17 | L84: 16 | O84: AC510000 | P84: Restricted cash | Q84: Restricted cash | T84: 0.05882352941 | V84: 18000000 | W84: 17000000 | X84: 17000000 | Y84: 17000000 | Z84: 16000000
A85: AC310000 | B85: Trade and other receivables | C85: Trade and other receivables | F85: -0.0512195122 | H85: 778 | I85: 820 | J85: 654 | K85: 1349 | L85: 724 | O85: AC310000 | P85: Trade and other receivables | Q85: Trade and other receivables | T85: -0.0512195122 | V85: 778000000 | W85: 820000000 | X85: 654000000 | Y85: 1349000000 | Z85: 724000000
A86: AC310100 | B86: Metals | C86: Metals | F86: 0.843537415 | H86: 271 | I86: 147 | J86: 164 | K86: 497 | L86: 186 | O86: AC310100 | P86: Metals | Q86: Metals | T86: 0.843537415 | V86: 271000000 | W86: 147000000 | X86: 164000000 | Y86: 497000000 | Z86: 186000000
A87: AC310110 | B87: Gold debtor | C87: Gold debtor | F87: 0.8287671233 | H87: 267 | I87: 146 | J87: 163 | K87: 496 | L87: 176 | O87: AC310110 | P87: Gold debtor | Q87: Gold debtor | T87: 0.8287671233 | V87: 267000000 | W87: 146000000 | X87: 163000000 | Y87: 496000000 | Z87: 176000000
A88: AC310120 | B88: Silver debtor | C88: Silver debtor | F88: 2 | H88: 3 | I88: 1 | J88: 1 | K88: 1 | L88: 10 | O88: AC310120 | P88: Silver debtor | Q88: Silver debtor | T88: 2 | V88: 3000000 | W88: 1000000 | X88: 1000000 | Y88: 1000000 | Z88: 10000000
A89: AC310130 | B89: Copper debtor | C89: Copper debtor | F89: - | H89: 0 | I89: 0 | J89: 0 | K89: 0 | L89: 0 | O89: AC310130 | P89: Copper debtor | Q89: Copper debtor | T89: - | V89: 0 | W89: 0 | X89: 0 | Y89: 0 | Z89: 0
A90: AC310140 | B90: Osmiridium debtors | C90: Osmiridium debtors | F90: - | H90: 0 | I90: 0 | J90: 0 | K90: 0 | L90: 0 | O90: AC310140 | P90: Osmiridium debtors | Q90: Osmiridium debtors | T90: - | V90: 0 | W90: 0 | X90: 0 | Y90: 0 | Z90: 0
A91: AC310200 | B91: VAT | C91: VAT | F91: -0.07911392405 | H91: 291 | I91: 316 | J91: 241 | K91: 300 | L91: 271 | O91: AC310200 | P91: VAT | Q91: VAT | T91: -0.07911392405 | V91: 291000000 | W91: 316000000 | X91: 241000000 | Y91: 300000000 | Z91: 271000000
A92: AC310300 | B92: Other trade | C92: Other trade | F92: 0.1888888889 | H92: 107 | I92: 90 | J92: 112 | K92: 118 | L92: 138 | O92: AC310300 | P92: Other trade | Q92: Other trade | T92: 0.1888888889 | V92: 107000000 | W92: 90000000 | X92: 112000000 | Y92: 118000000 | Z92: 138000000
A93: AC310400 | B93: Provision for bad debt | C93: Provision for bad debt | F93: -0.02083333333 | H93: -47 | I93: -48 | J93: -36 | K93: -35 | L93: -42 | O93: AC310400 | P93: Provision for bad debt | Q93: Provision for bad debt | T93: -0.02083333333 | V93: -47000000 | W93: -48000000 | X93: -36000000 | Y93: -35000000 | Z93: -42000000
A94: AC310500 | B94: Prepayments | C94: Prepayments | F94: 0.01052631579 | H94: 96 | I94: 95 | J94: 35 | K94: 74 | L94: 80 | O94: AC310500 | P94: Prepayments | Q94: Prepayments | T94: 0.01052631579 | V94: 96000000 | W94: 95000000 | X94: 35000000 | Y94: 74000000 | Z94: 80000000
A95: AC310600 | B95: Interest receivable | C95: Interest receivable | F95: -0.4 | H95: 3 | I95: 5 | J95: 5 | K95: 5 | L95: 4 | O95: AC310600 | P95: Interest receivable | Q95: Interest receivable | T95: -0.4 | V95: 3000000 | W95: 5000000 | X95: 5000000 | Y95: 5000000 | Z95: 4000000
A96: AC310700 | B96: Self-insurance funds | C96: Self-insurance funds | F96: - | H96: 0 | I96: 0 | J96: 0 | K96: 0 | L96: 0 | O96: AC310700 | P96: Self-insurance funds | Q96: Self-insurance funds | T96: - | V96: 0 | W96: 0 | X96: 0 | Y96: 0 | Z96: 0
A97: AC310980 | B97: Other : Trade and other receivables | C97: Other : Trade and other receivables | F97: -0.7289719626 | H97: 58 | I97: 214 | J97: 134 | K97: 20 | L97: 86 | O97: AC310980 | P97: Other : Trade and other receivables | Q97: Other : Trade and other receivables | T97: -0.7289719626 | V97: 58000000 | W97: 214000000 | X97: 134000000 | Y97: 20000000 | Z97: 86000000
A98: AC310990 | B98: Project controle accounts | C98: Project controle accounts | F98: - | H98: 0 | I98: 0 | J98: 0 | K98: 0 | L98: 0 | O98: AC310990 | P98: Project controle accounts | Q98: Project controle accounts | T98: - | V98: 0 | W98: 0 | X98: 0 | Y98: 0 | Z98: 0
A99: AC320000 | B99: Income and mining tax | C99: Income and mining tax | F99: - | H99: 4 | I99: 0 | J99: 6 | K99: 6 | L99: 0 | O99: AC320000 | P99: Income and mining tax | Q99: Income and mining tax | T99: - | V99: 4000000 | W99: 0 | X99: 6000000 | Y99: 6000000 | Z99: 0
A100: AC310800 | B100: Derivative financial assets | C100: Derivative financial assets | F100: -0.05217965654 | H100: 1435 | I100: 1514 | J100: 369 | K100: 369 | L100: 359 | O100: AC310800 | P100: Derivative financial assets | Q100: Derivative financial assets | T100: -0.05217965654 | V100: 1435000000 | W100: 1514000000 | X100: 369000000 | Y100: 369000000 | Z100: 359000000
A101: AC710000 | B101: Cash and cash equivalents | C101: Cash and cash equivalents | F101: -0.1794238683 | H101: 997 | I101: 1215 | J101: 1256 | K101: 1166 | L101: 1344 | O101: AC710000 | P101: Cash and cash equivalents | Q101: Cash and cash equivalents | T101: -0.1794238683 | V101: 997000000 | W101: 1215000000 | X101: 1256000000 | Y101: 1166000000 | Z101: 1344000000
V102: 0 | W102: 0 | X102: 0 | Y102: 0 | Z102: 0
V103: 0 | W103: 0 | X103: 0 | Y103: 0 | Z103: 0
A104: AC000000 | B104: Current assets | H104: 4672 | I104: 5182 | J104: 3469 | K104: 3678 | L104: 3674 | O104: AC000000 | P104: Current assets | V104: 4672000000 | W104: 5182000000 | X104: 3469000000 | Y104: 3678000000 | Z104: 3674000000
A105: AC910000 | B105: Non-current assets classified as held-for-sale | C105: Assets of disposal groups classified as held-for-sale | F105: - | H105: 0 | I105: 0 | J105: 0 | K105: 0 | L105: 0 | O105: AC910000 | P105: Non-current assets classified as held-for-sale | Q105: Assets of disposal groups classified as held-for-sale | T105: - | V105: 0 | W105: 0 | X105: 0 | Y105: 0 | Z105: 0
V106: 0 | W106: 0 | X106: 0 | Y106: 0 | Z106: 0
V107: 0 | W107: 0 | X107: 0 | Y107: 0 | Z107: 0
C108: Total current assets | F108: -0.09841759938 | H108: 4672 | I108: 5182 | J108: 3469 | K108: 3678 | L108: 3674 | Q108: Total current assets | T108: -0.09841759938 | V108: 4672000000 | W108: 5182000000 | X108: 3469000000 | Y108: 3678000000 | Z108: 3674000000
V109: 0 | W109: 0 | X109: 0 | Y109: 0 | Z109: 0
V110: 0 | W110: 0 | X110: 0 | Y110: 0 | Z110: 0
A111: AA000000 | B111: TOTAL ASSETS | C111: TOTAL ASSETS | F111: -0.01072192646 | H111: 39767 | I111: 40198 | J111: 37030 | K111: 37178 | L111: 37179 | O111: AA000000 | P111: TOTAL ASSETS | Q111: TOTAL ASSETS | T111: -0.01072192646 | V111: 39767000000 | W111: 40198000000 | X111: 37030000000 | Y111: 37178000000 | Z111: 37179000000
V112: 0 | W112: 0 | X112: 0 | Y112: 0 | Z112: 0
V113: 0 | W113: 0 | X113: 0 | Y113: 0 | Z113: 0
C114: Share capital and reserves | Q114: Share capital and reserves | V114: 0 | W114: 0 | X114: 0 | Y114: 0 | Z114: 0
A115: BB100000 | B115: Share capital | C115: Share capital | F115: 3.529079616e-05 | H115: 28337 | I115: 28336 | J115: 28336 | K115: 28336 | L115: 28324 | O115: BB100000 | P115: Share capital | Q115: Share capital | T115: 3.529079616e-05 | V115: 28337000000 | W115: 28336000000 | X115: 28336000000 | Y115: 28336000000 | Z115: 28324000000
A116: BB110000 | B116: Share capital | C116: Share capital | F116: 0.004545454545 | H116: 221 | I116: 220 | J116: 218 | K116: 218 | L116: 218 | O116: BB110000 | P116: Share capital | Q116: Share capital | T116: 0.004545454545 | V116: 221000000 | W116: 220000000 | X116: 218000000 | Y116: 218000000 | Z116: 218000000
A117: BB150000 | B117: Share premium | C117: Share premium | F117: 0 | H117: 28116 | I117: 28116 | J117: 28118 | K117: 28118 | L117: 28106 | O117: BB150000 | P117: Share premium | Q117: Share premium | T117: 0 | V117: 28116000000 | W117: 28116000000 | X117: 28118000000 | Y117: 28118000000 | Z117: 28106000000
A118: BB210000 | B118: Other reserves | C118: Other reserves | F118: -0.04336780983 | H118: 5272 | I118: 5511 | J118: 4252 | K118: 4095 | L118: 4175 | O118: BB210000 | P118: Other reserves | Q118: Other reserves | T118: -0.04336780983 | V118: 5272000000 | W118: 5511000000 | X118: 4252000000 | Y118: 4095000000 | Z118: 4175000000
A119: BB210100 | B119: Translation reserve | C119: Translation reserve | F119: -0.03281929616 | H119: 2446 | I119: 2529 | J119: 2717 | K119: 2559 | L119: 2814 | O119: BB210100 | P119: Translation reserve | Q119: Translation reserve | T119: -0.03281929616 | V119: 2446000000 | W119: 2529000000 | X119: 2717000000 | Y119: 2559000000 | Z119: 2814000000
A120: BB210200 | B120: Mark to market reserve | C120: Mark to market reserve | F120: 0 | H120: -2 | I120: -2 | J120: -2 | K120: -2 | L120: -1 | O120: BB210200 | P120: Mark to market reserve | Q120: Mark to market reserve | T120: 0 | V120: -2000000 | W120: -2000000 | X120: -2000000 | Y120: -2000000 | Z120: -1000000
A121: BB210300 | B121: Equity portion of bond | C121: Equity portion of bond | F121: 0 | H121: 277 | I121: 277 | J121: 277 | K121: 277 | L121: 277 | O121: BB210300 | P121: Equity portion of bond | Q121: Equity portion of bond | T121: 0 | V121: 277000000 | W121: 277000000 | X121: 277000000 | Y121: 277000000 | Z121: 277000000
A122: BB210400 | B122: Revaluation reserve | C122: Revaluation reserve | F122: 0 | H122: -381 | I122: -381 | J122: -381 | K122: -381 | L122: -381 | O122: BB210400 | P122: Revaluation reserve | Q122: Revaluation reserve | T122: 0 | V122: -381000000 | W122: -381000000 | X122: -381000000 | Y122: -381000000 | Z122: -381000000
A123: BB210500 | B123: Deferred share based compensation reserve | C123: Deferred share based compensation reserve | F123: 0.04822335025 | H123: 2065 | I123: 1970 | J123: 1789 | K123: 1789 | L123: 1619 | O123: BB210500 | P123: Deferred share based compensation reserve | Q123: Deferred share based compensation reserve | T123: 0.04822335025 | V123: 2065000000 | W123: 1970000000 | X123: 1789000000 | Y123: 1789000000 | Z123: 1619000000
A124: BB210600 | B124: Captalisation issue reserve | C124: Captalisation issue reserve | F124: -1 | H124: 0 | I124: -325 | J124: 0 | K124: 0 | L124: 0 | O124: BB210600 | P124: Captalisation issue reserve | Q124: Captalisation issue reserve | T124: -1 | V124: 0 | W124: -325000000 | X124: 0 | Y124: 0 | Z124: 0
A125: BB210900 | B125: Other fair value reserves | C125: Other fair value reserves | F125: -0.3991683992 | H125: 867 | I125: 1443 | J125: -148 | K125: -147 | L125: -153 | O125: BB210900 | P125: Other fair value reserves | Q125: Other fair value reserves | T125: -0.3991683992 | V125: 867000000 | W125: 1443000000 | X125: -148000000 | Y125: -147000000 | Z125: -153000000
A126: BB210998 | B126: Offset account - Intercompany loans | C126: Offset account - Intercompany loans | F126: - | H126: -1 | I126: 0 | J126: 0 | K126: 0 | L126: 0 | O126: BB210998 | P126: Offset account - Intercompany loans | Q126: Offset account - Intercompany loans | T126: - | V126: -1000000 | W126: 0 | X126: 0 | Y126: 0 | Z126: 0
A127: BB210999 | B127: Offset account - Acquisition Logic | C127: Offset account - Acquisition Logic | F127: - | H127: 1 | I127: 0 | J127: 0 | K127: 0 | L127: 0 | O127: BB210999 | P127: Offset account - Acquisition Logic | Q127: Offset account - Acquisition Logic | T127: - | V127: 1000000 | W127: 0 | X127: 0 | Y127: 0 | Z127: 0
A128: BB500000 | B128: Retained earnings/(accumulated loss) | C128: Retained earnings/(accumulated loss) | F128: 0.06347150259 | H128: -3284 | I128: -3088 | J128: -4409 | K128: -4110 | L128: -4615 | O128: BB500000 | P128: Retained earnings/(accumulated loss) | Q128: Retained earnings/(accumulated loss) | T128: 0.06347150259 | V128: -3284000000 | W128: -3088000000 | X128: -4409000000 | Y128: -4110000000 | Z128: -4615000000
A129: BB510000 | B129: Opening retained earnings - Total | C129: Opening retained earnings - Total | F129: 0.0004536176004 | H129: -4411 | I129: -4409 | J129: -5358 | K129: -4409 | L129: -5358 | O129: BB510000 | P129: Opening retained earnings - Total | Q129: Opening retained earnings - Total | T129: 0.0004536176004 | V129: -4411000000 | W129: -4409000000 | X129: -5358000000 | Y129: -4409000000 | Z129: -5358000000
A130: BB510100 | B130: Opening retained earnings from repo and g/journals | C130: Opening retained earnings from repo and g/journals | F130: -0.01949165757 | H130: -18864 | I130: -19239 | J130: -7994 | K130: -7045 | L130: -7994 | O130: BB510100 | P130: Opening retained earnings from repo and g/journals | Q130: Opening retained earnings from repo and g/journals | T130: -0.01949165757 | V130: -18864000000 | W130: -19239000000 | X130: -7994000000 | Y130: -7045000000 | Z130: -7994000000
A131: BB510200 | B131: Opening retained earnings from acquisition jnls | C131: Opening retained earnings from acquisition jnls | F131: -0.02542144302 | H131: 14453 | I131: 14830 | J131: 2636 | K131: 2636 | L131: 2636 | O131: BB510200 | P131: Opening retained earnings from acquisition jnls | Q131: Opening retained earnings from acquisition jnls | T131: -0.02542144302 | V131: 14453000000 | W131: 14830000000 | X131: 2636000000 | Y131: 2636000000 | Z131: 2636000000
A132: BB510300 | B132: Opening retained earnings - prior year adjustment | C132: Opening retained earnings - prior year adjustment | F132: - | H132: 0 | I132: 0 | J132: 0 | K132: 0 | L132: 0 | O132: BB510300 | P132: Opening retained earnings - prior year adjustment | Q132: Opening retained earnings - prior year adjustment | T132: - | V132: 0 | W132: 0 | X132: 0 | Y132: 0 | Z132: 0
A133: BB530000 | B133: Current year retained earnings | C133: Current year retained earnings | F133: 0.01623376623 | H133: 1565 | I133: 1540 | J133: 949 | K133: 299 | L133: 743 | O133: BB530000 | P133: Current year retained earnings | Q133: Current year retained earnings | T133: 0.01623376623 | V133: 1565000000 | W133: 1540000000 | X133: 949000000 | Y133: 299000000 | Z133: 743000000
A134: BB550000 | B134: Dividends declared and paid | C134: Dividends declared and paid | F134: 1.009174312 | H134: -438 | I134: -218 | J134: 0 | K134: 0 | L134: 0 | O134: BB550000 | P134: Dividends declared and paid | Q134: Dividends declared and paid | T134: 1.009174312 | V134: -438000000 | W134: -218000000 | X134: 0 | Y134: 0 | Z134: 0
V135: 0 | W135: 0 | X135: 0 | Y135: 0 | Z135: 0
V136: 0 | W136: 0 | X136: 0 | Y136: 0 | Z136: 0
A137: BB000000 | B137: Share capital and reserves | C137: Total share capital and reserves | F137: -0.01410969147 | H137: 30325 | I137: 30759 | J137: 28179 | K137: 28321 | L137: 27884 | O137: BB000000 | P137: Share capital and reserves | Q137: Total share capital and reserves | T137: -0.01410969147 | V137: 30325000000 | W137: 30759000000 | X137: 28179000000 | Y137: 28321000000 | Z137: 27884000000
V138: 0 | W138: 0 | X138: 0 | Y138: 0 | Z138: 0
V139: 0 | W139: 0 | X139: 0 | Y139: 0 | Z139: 0
A140: BC100000 | B140: Minority Interest | C140: Minority Interest | H140: 0 | I140: 0 | J140: 0 | K140: 5 | L140: 0 | O140: BC100000 | P140: Minority Interest | Q140: Minority Interest | V140: 0 | W140: 0 | X140: 0 | Y140: 5000000 | Z140: 0
V141: 0 | W141: 0 | X141: 0 | Y141: 0 | Z141: 0
A142: BD000000 | B142: Non-current liabilities | C142: Non-current liabilities | O142: BD000000 | P142: Non-current liabilities | Q142: Non-current liabilities | V142: =H142*1000000 -> 0 | W142: =I142*1000000 -> 0 | X142: =J142*1000000 -> 0 | Y142: =K142*1000000 -> 0 | Z142: =L142*1000000 -> 0
A143: BD300000 | B143: Deferred tax | C143: Deferred tax | F143: -0.01158301158 | H143: 2816 | I143: 2849 | J143: 2413 | K143: 2414 | L143: 2095 | O143: BD300000 | P143: Deferred tax | Q143: Deferred tax | T143: -0.01158301158 | V143: 2816000000 | W143: 2849000000 | X143: 2413000000 | Y143: 2414000000 | Z143: 2095000000
A144: BD500000 | B144: Provisions for other liabilities and charges | C144: Provisions for other liabilities and charges | F144: 0.00687049124 | H144: 2931 | I144: 2911 | J144: 2368 | K144: 2348 | L144: 2577 | O144: BD500000 | P144: Provisions for other liabilities and charges | Q144: Provisions for other liabilities and charges | T144: 0.00687049124 | V144: 2931000000 | W144: 2911000000 | X144: 2368000000 | Y144: 2348000000 | Z144: 2577000000
A145: BD501000 | B145: Environmental | C145: Environmental | F145: 0.00624770305 | H145: 2738 | I145: 2721 | J145: 2183 | K145: 2164 | L145: 2403 | O145: BD501000 | P145: Environmental | Q145: Environmental | T145: 0.00624770305 | V145: 2738000000 | W145: 2721000000 | X145: 2183000000 | Y145: 2164000000 | Z145: 2403000000
C146: Retirement benefit obligation and other provisions | F146: 0.01578947368 | H146: 193 | I146: 190 | J146: 185 | K146: 185 | L146: 174 | Q146: Retirement benefit obligation and other provisions | T146: 0.01578947368 | V146: 193000000 | W146: 190000000 | X146: 185000000 | Y146: 185000000 | Z146: 174000000
A147: BD502000 | B147: CAWMS | C147: CAWMS | F147: 0.01734104046 | H147: 176 | I147: 173 | J147: 169 | K147: 169 | L147: 174 | O147: BD502000 | P147: CAWMS | Q147: CAWMS | T147: 0.01734104046 | V147: 176000000 | W147: 173000000 | X147: 169000000 | Y147: 169000000 | Z147: 174000000
A148: BD503000 | B148: Social plan | C148: Social plan | F148: - | H148: 0 | I148: 0 | J148: 0 | K148: 0 | L148: 0 | O148: BD503000 | P148: Social plan | Q148: Social plan | T148: - | V148: 0 | W148: 0 | X148: 0 | Y148: 0 | Z148: 0
A149: BD504000 | B149: Non - current leave liability | C149: Non - current leave liability | F149: - | H149: 0 | I149: 0 | J149: 0 | K149: 0 | L149: 0 | O149: BD504000 | P149: Non - current leave liability | Q149: Non - current leave liability | T149: - | V149: 0 | W149: 0 | X149: 0 | Y149: 0 | Z149: 0
A150: BD505000 | B150: Education Benefit Fund provision | C150: Education Benefit Fund provision | F150: 0 | H150: 2 | I150: 2 | J150: 2 | K150: 2 | L150: 1 | O150: BD505000 | P150: Education Benefit Fund provision | Q150: Education Benefit Fund provision | T150: 0 | V150: 2000000 | W150: 2000000 | X150: 2000000 | Y150: 2000000 | Z150: 1000000
A151: BD509000 | B151: Other : provision and liabilities | C151: Other : provision and liabilities | F151: 0 | H151: 15 | I151: 15 | J151: 14 | K151: 14 | L151: 28 | O151: BD509000 | P151: Other : provision and liabilities | Q151: Other : provision and liabilities | T151: 0 | V151: 15000000 | W151: 15000000 | X151: 14000000 | Y151: 14000000 | Z151: 28000000
A152: BD400000 | B152: Non-current cash-settled share based payments | C152: Non-current cash-settled share based payments | F152: - | H152: 0 | I152: 0 | J152: 0 | K152: 0 | L152: 0 | O152: BD400000 | P152: Non-current cash-settled share based payments | Q152: Non-current cash-settled share based payments | T152: - | V152: 0 | W152: 0 | X152: 0 | Y152: 0 | Z152: 0
A153: BD100000 | B153: Borrowings | C153: Borrowings | F153: -0.8005319149 | H153: 300 | I153: 1504 | J153: 2039 | K153: 1634 | L153: 2617 | O153: BD100000 | P153: Borrowings | Q153: Borrowings | T153: -0.8005319149 | V153: 300000000 | W153: 1504000000 | X153: 2039000000 | Y153: 1634000000 | Z153: 2617000000
A154: BD101000 | B154: Secured loans | C154: Secured loans | F154: -0.8005319149 | H154: 300 | I154: 1504 | J154: 2039 | K154: 1634 | L154: 2617 | O154: BD101000 | P154: Secured loans | Q154: Secured loans | T154: -0.8005319149 | V154: 300000000 | W154: 1504000000 | X154: 2039000000 | Y154: 1634000000 | Z154: 2617000000
A155: BD101010 | B155: Secured loans : USD denominated | C155: Secured loans : USD denominated | F155: -1 | H155: 0 | I155: 1500 | J155: 2036 | K155: 1928 | L155: 2615 | O155: BD101010 | P155: Secured loans : USD denominated | Q155: Secured loans : USD denominated | T155: -1 | V155: 0 | W155: 1500000000 | X155: 2036000000 | Y155: 1928000000 | Z155: 2615000000
A156: BD101020 | B156: Secured loans : ZAR denominated | C156: Secured loans : ZAR denominated | F156: 74 | H156: 300 | I156: 4 | J156: 3 | K156: -294 | L156: 2 | O156: BD101020 | P156: Secured loans : ZAR denominated | Q156: Secured loans : ZAR denominated | T156: 74 | V156: 300000000 | W156: 4000000 | X156: 3000000 | Y156: -294000000 | Z156: 2000000
A157: BD101990 | B157: Secured loans : Other | C157: Secured loans : Other | F157: - | H157: 0 | I157: 0 | J157: 0 | K157: 0 | L157: 0 | O157: BD101990 | P157: Secured loans : Other | Q157: Secured loans : Other | T157: - | V157: 0 | W157: 0 | X157: 0 | Y157: 0 | Z157: 0
A158: BD102000 | B158: Unsecured loans | C158: Unsecured loans | F158: - | H158: 0 | I158: 0 | J158: 0 | K158: 0 | L158: 0 | O158: BD102000 | P158: Unsecured loans | Q158: Unsecured loans | T158: - | V158: 0 | W158: 0 | X158: 0 | Y158: 0 | Z158: 0
A159: BD102990 | B159: Unsecured Loans : Other | C159: Unsecured Loans : Other | F159: - | H159: 0 | I159: 0 | J159: 0 | K159: 0 | L159: 0 | O159: BD102990 | P159: Unsecured Loans : Other | Q159: Unsecured Loans : Other | T159: - | V159: 0 | W159: 0 | X159: 0 | Y159: 0 | Z159: 0
A160: BD103000 | B160: Bonds | C160: Bonds | F160: - | H160: 0 | I160: 0 | J160: 0 | K160: 0 | L160: 0 | O160: BD103000 | P160: Bonds | Q160: Bonds | T160: - | V160: 0 | W160: 0 | X160: 0 | Y160: 0 | Z160: 0
A161: BD103010 | B161: Bond : Convertible | C161: Bond : Convertible | F161: - | H161: 0 | I161: 0 | J161: 0 | K161: 0 | L161: 0 | O161: BD103010 | P161: Bond : Convertible | Q161: Bond : Convertible | T161: - | V161: 0 | W161: 0 | X161: 0 | Y161: 0 | Z161: 0
V162: 0 | W162: 0 | X162: 0 | Y162: 0 | Z162: 0
A163: BD601000 | B163: Derivative liability - Non-current | C163: Derivative financial liabilities | F163: - | H163: 0 | I163: 0 | J163: 0 | K163: 0 | L163: 0 | O163: BD601000 | P163: Derivative liability - Non-current | Q163: Derivative financial liabilities | T163: - | V163: 0 | W163: 0 | X163: 0 | Y163: 0 | Z163: 0
V164: 0 | W164: 0 | X164: 0 | Y164: 0 | Z164: 0
A165: BD000000 | B165: Non-current liabilities | C165: Total non-current liabilities | H165: 6047 | I165: 7264 | J165: 6820 | K165: 6396 | L165: 7289 | O165: BD000000 | P165: Non-current liabilities | Q165: Total non-current liabilities | V165: 6047000000 | W165: 7264000000 | X165: 6820000000 | Y165: 6396000000 | Z165: 7289000000
V166: 0 | W166: 0 | X166: 0 | Y166: 0 | Z166: 0
V167: 0 | W167: 0 | X167: 0 | Y167: 0 | Z167: 0
A168: BE000000 | B168: Current liabilities | C168: Current liabilities | O168: BE000000 | P168: Current liabilities | Q168: Current liabilities | V168: 0 | W168: 0 | X168: 0 | Y168: 0 | Z168: 0
A169: BE202000 | B169: Borrowings | C169: Borrowings | F169: - | H169: 1462 | I169: 0 | J169: 300 | K169: 300 | L169: 299 | O169: BE202000 | P169: Borrowings | Q169: Borrowings | T169: - | V169: 1462000000 | W169: 0 | X169: 300000000 | Y169: 300000000 | Z169: 299000000
A170: BE120000 | B170: Income tax | C170: Income tax | F170: 0.5606060606 | H170: 103 | I170: 66 | J170: 40 | K170: 40 | L170: 74 | O170: BE120000 | P170: Income tax | Q170: Income tax | T170: 0.5606060606 | V170: 103000000 | W170: 66000000 | X170: 40000000 | Y170: 40000000 | Z170: 74000000
A171: BE130000 | B171: Cash-settled share-based payments | C171: Cash-settled share-based payments | F171: 0.0625 | H171: 17 | I171: 16 | J171: 14 | K171: 14 | L171: 30 | O171: BE130000 | P171: Cash-settled share-based payments | Q171: Cash-settled share-based payments | T171: 0.0625 | V171: 17000000 | W171: 16000000 | X171: 14000000 | Y171: 14000000 | Z171: 30000000
A172: BE110000 | B172: Trade and other payables | C172: Trade and other payables | F172: -0.1337792642 | H172: 1813 | I172: 2093 | J172: 1677 | K172: 2107 | L172: 1633 | O172: BE110000 | P172: Trade and other payables | Q172: Trade and other payables | T172: -0.1337792642 | V172: 1813000000 | W172: 2093000000 | X172: 1677000000 | Y172: 2107000000 | Z172: 1633000000
A173: BE110100 | B173: Trade | C173: Trade | F173: -0.3571428571 | H173: 432 | I173: 672 | J173: 353 | K173: 645 | L173: 326 | O173: BE110100 | P173: Trade | Q173: Trade | T173: -0.3571428571 | V173: 432000000 | W173: 672000000 | X173: 353000000 | Y173: 645000000 | Z173: 326000000
A174: BE110200 | B174: Payroll | C174: Payroll | F174: 0.2932330827 | H174: 344 | I174: 266 | J174: 377 | K174: 534 | L174: 284 | O174: BE110200 | P174: Payroll | Q174: Payroll | T174: 0.2932330827 | V174: 344000000 | W174: 266000000 | X174: 377000000 | Y174: 534000000 | Z174: 284000000
A175: BE110210 | B175: Pension and provident funds | C175: Pension and provident funds | F175: 5.833333333 | H175: 82 | I175: 12 | J175: 74 | K175: 77 | L175: 73 | O175: BE110210 | P175: Pension and provident funds | Q175: Pension and provident funds | T175: 5.833333333 | V175: 82000000 | W175: 12000000 | X175: 74000000 | Y175: 77000000 | Z175: 73000000
A176: BE110220 | B176: Medical aids | C176: Medical aids | F176: 30 | H176: 31 | I176: 1 | J176: 27 | K176: 27 | L176: 27 | O176: BE110220 | P176: Medical aids | Q176: Medical aids | T176: 30 | V176: 31000000 | W176: 1000000 | X176: 27000000 | Y176: 27000000 | Z176: 27000000
A177: BE110230 | B177: SARS PAYE | C177: SARS PAYE | F177: 0.2112676056 | H177: 86 | I177: 71 | J177: 78 | K177: 95 | L177: 68 | O177: BE110230 | P177: SARS PAYE | Q177: SARS PAYE | T177: 0.2112676056 | V177: 86000000 | W177: 71000000 | X177: 78000000 | Y177: 95000000 | Z177: 68000000
A178: BE110290 | B178: Other : Payroll creditors | C178: Other : Payroll creditors | F178: -0.2032967033 | H178: 145 | I178: 182 | J178: 198 | K178: 335 | L178: 116 | O178: BE110290 | P178: Other : Payroll creditors | Q178: Other : Payroll creditors | T178: -0.2032967033 | V178: 145000000 | W178: 182000000 | X178: 198000000 | Y178: 335000000 | Z178: 116000000
A179: BE110300 | B179: Leave | C179: Leave | F179: -0.04679802956 | H179: 387 | I179: 406 | J179: 341 | K179: 350 | L179: 330 | O179: BE110300 | P179: Leave | Q179: Leave | T179: -0.04679802956 | V179: 387000000 | W179: 406000000 | X179: 341000000 | Y179: 350000000 | Z179: 330000000
A180: BE110400 | B180: VAT | C180: VAT | F180: -0.06666666667 | H180: 56 | I180: 60 | J180: 55 | K180: 55 | L180: 50 | O180: BE110400 | P180: VAT | Q180: VAT | T180: -0.06666666667 | V180: 56000000 | W180: 60000000 | X180: 55000000 | Y180: 55000000 | Z180: 50000000
A181: BE110500 | B181: Shaft accruals | C181: Shaft accruals | F181: -0.1252796421 | H181: 391 | I181: 447 | J181: 357 | K181: 322 | L181: 360 | O181: BE110500 | P181: Shaft accruals | Q181: Shaft accruals | T181: -0.1252796421 | V181: 391000000 | W181: 447000000 | X181: 357000000 | Y181: 322000000 | Z181: 360000000
A182: BE110600 | B182: Power accrual | C182: Power accrual | F182: - | H182: 0 | I182: 0 | J182: 0 | K182: 0 | L182: 33 | O182: BE110600 | P182: Power accrual | Q182: Power accrual | T182: - | V182: 0 | W182: 0 | X182: 0 | Y182: 0 | Z182: 33000000
A183: BE110800 | B183: Derivative liabilities | C183: Derivative liabilities | F183: - | H183: 0 | I183: 0 | J183: 0 | K183: 0 | L183: 0 | O183: BE110800 | P183: Derivative liabilities | Q183: Derivative liabilities | T183: - | V183: 0 | W183: 0 | X183: 0 | Y183: 0 | Z183: 0
A184: BE110900 | B184: Other : Trade and other payables | C184: Other : Trade and other payables | F184: -0.1611570248 | H184: 203 | I184: 242 | J184: 194 | K184: 201 | L184: 250 | O184: BE110900 | P184: Other : Trade and other payables | Q184: Other : Trade and other payables | T184: -0.1611570248 | V184: 203000000 | W184: 242000000 | X184: 194000000 | Y184: 201000000 | Z184: 250000000
A185: BE201000 | B185: Loans from subsidiaries | C185: Loans from subsidiaries | F185: - | H185: 0 | I185: 0 | J185: 0 | K185: 0 | L185: 0 | O185: BE201000 | P185: Loans from subsidiaries | Q185: Loans from subsidiaries | T185: - | V185: 0 | W185: 0 | X185: 0 | Y185: 0 | Z185: 0
V186: 0 | W186: 0 | X186: 0 | Y186: 0 | Z186: 0
V187: 0 | W187: 0 | X187: 0 | Y187: 0 | Z187: 0
A188: BE000000 | B188: Current liabilities | F188: 0.5609195402 | H188: 3395 | I188: 2175 | J188: 2031 | K188: 2461 | L188: 2006 | O188: BE000000 | P188: Current liabilities | T188: 0.5609195402 | V188: 3395000000 | W188: 2175000000 | X188: 2031000000 | Y188: 2461000000 | Z188: 2006000000
A189: BE500000 | B189: Liabilities classified as held-for-sale | C189: Liabilities of disposal groups classified as held for sale | F189: - | H189: 0 | I189: 0 | J189: 0 | K189: 0 | L189: 0 | O189: BE500000 | P189: Liabilities classified as held-for-sale | Q189: Liabilities of disposal groups classified as held for sale | T189: - | V189: 0 | W189: 0 | X189: 0 | Y189: 0 | Z189: 0
V190: 0 | W190: 0 | X190: 0 | Y190: 0 | Z190: 0
V191: 0 | W191: 0 | X191: 0 | Y191: 0 | Z191: 0
C192: Total current liabilities | F192: 0.5609195402 | H192: 3395 | I192: 2175 | J192: 2031 | K192: 2461 | L192: 2006 | Q192: Total current liabilities | T192: 0.5609195402 | V192: 3395000000 | W192: 2175000000 | X192: 2031000000 | Y192: 2461000000 | Z192: 2006000000
V193: 0 | W193: 0 | X193: 0 | Y193: 0 | Z193: 0
V194: 0 | W194: 0 | X194: 0 | Y194: 0 | Z194: 0
A195: BA000000 | B195: TOTAL EQUITY AND LIABILITIES | C195: TOTAL EQUITY AND LIABILITIES | F195: -0.01072192646 | H195: 39767 | I195: 40198 | J195: 37030 | K195: 37178 | L195: 37179 | O195: BA000000 | P195: TOTAL EQUITY AND LIABILITIES | Q195: TOTAL EQUITY AND LIABILITIES | T195: -0.01072192646 | V195: 39767000000 | W195: 40198000000 | X195: 37030000000 | Y195: 37178000000 | Z195: 37179000000
V196: 0 | W196: 0 | X196: 0 | Y196: 0 | Z196: 0
V197: 0 | W197: 0 | X197: 0 | Y197: 0 | Z197: 0
V198: 0 | W198: 0 | X198: 0 | Y198: 0 | Z198: 0
A199: ST100900 | B199: Share issued | C199: Number of ordinary shares issued | H199: 0 | I199: 0 | J199: 0 | K199: 0 | L199: 0 | O199: ST100900 | P199: Share issued | Q199: Number of ordinary shares issued | V199: 0 | W199: 0 | X199: 0 | Y199: 0 | Z199: 0
C200: Net Asset Value per share (cents) | Q200: Net Asset Value per share (cents)
V201: 0 | W201: 0 | X201: 0 | Y201: 0 | Z201: 0
V202: 0 | W202: 0 | X202: 0 | Y202: 0 | Z202: 0

Sheet December Quarter IS (hidden)
D2: Condensed Consolidated Income Statement (ZAR)
E3: Agreed to pubished interim results | F3: Agreed to September Final QFS workbook
F5: 3
E6: [AGREED TO PRIOR PERIOD NUMBERS] | G6: [FORMULA]
E7: Six months ended | F7: Quarter ended | G7: Quarter ended
E8: December | F8: September | G8: December
E9: 2016 | F9: 2016 | G9: 2016
E10: ZAR | F10: ZAR | G10: ZAR
D13: Continuing operations
A15: CA100000 | B15: Revenue | C15: TRUE | D15: Revenue | E15: 9867853413 | F15: 5253952154 | G15: =E15-F15 -> 4613901260
A16: CA101000 | B16: Revenue : Gold sales | C16: TRUE | D16: Revenue : Gold sales | E16: 9867853413 | F16: 5253952154 | G16: =E16-F16 -> 4613901260
A17: CA102000 | B17: Revenue : Co-products | C17: TRUE | D17: Revenue : Co-products | E17: 0 | F17: 0 | G17: 0
D18: Cost of Sales | E18: -9066416491 | F18: -4663172003 | G18: -4403244488
G19: 0
G20: 0
A21: DA100000 | B21: Production cost | C21: TRUE | D21: Production cost | E21: -7394437407 | F21: -3885300809 | G21: -3509136598
A22: DA101000 | B22: Labour | C22: TRUE | D22: Labour | E22: -3251950757 | F22: -1652402474 | G22: -1599548282
A23: DA101100 | B23: Payroll 1 Cost | C23: TRUE | D23: Payroll 1 Cost | E23: -1487396317 | F23: -736097229.3 | G23: -751299087.2
A24: DA101101 | B24: Payroll 1 : Cost to company | C24: TRUE | D24: Payroll 1 : Cost to company | E24: -1207254533 | F24: -594403926.8 | G24: -612850605.8
A25: DA101105 | B25: Payroll 1 : Bonus | C25: TRUE | D25: Payroll 1 : Bonus | E25: -156602047.3 | F25: -79236431.97 | G25: -77365615.36
A26: DA101110 | B26: Payroll 1 : Overtime | C26: TRUE | D26: Payroll 1 : Overtime | E26: -119649480.9 | F26: -60069060.67 | G26: -59580420.24
A27: DA101115 | B27: Payroll 1 : Retrenchment | C27: TRUE | D27: Payroll 1 : Retrenchment | E27: -3890255.64 | F27: -2387809.87 | G27: -1502445.77
A28: DA101200 | B28: Payroll 2 Cost | C28: TRUE | D28: Payroll 2 Cost | E28: -1764554440 | F28: -916305244.8 | G28: -848249195.3
A29: DA101201 | B29: Payroll 2 : Cost to company | C29: TRUE | D29: Payroll 2 : Cost to company | E29: -1388670573 | F29: -725537744.4 | G29: -663132828.4
A30: DA101205 | B30: Payroll 2 : Bonus | C30: TRUE | D30: Payroll 2 : Bonus | E30: -195736000.2 | F30: -102933593.1 | G30: -92802407.17
A31: DA101210 | B31: Payroll 2 : Overtime | C31: TRUE | D31: Payroll 2 : Overtime | E31: -141745369.6 | F31: -68611275.53 | G31: -73134094.03
A32: DA101215 | B32: Payroll 2 : Retrenchment | C32: TRUE | D32: Payroll 2 : Retrenchment | E32: -38402497.47 | F32: -19222631.82 | G32: -19179865.65
A33: DA102000 | B33: Stores | C33: TRUE | D33: Stores | E33: -1769025766 | F33: -822004844.8 | G33: -947020921.6
A34: DA102010 | B34: Provision for obsolete cost | C34: TRUE | D34: Provision for obsolete cost | E34: -6532641.42 | F34: -4972258.451 | G34: -1560382.969
A35: DA102020 | B35: Drilling and consumables | C35: TRUE | D35: Drilling and consumables | E35: -32303163.35 | F35: -14747569.15 | G35: -17555594.2
A36: DA102030 | B36: Blasting | C36: TRUE | D36: Blasting | E36: -25613824.05 | F36: -12422410.88 | G36: -13191413.17
A37: DA102040 | B37: Explosive accessories | C37: TRUE | D37: Explosive accessories | E37: -58514644 | F37: -29776769.9 | G37: -28737874.1
A38: DA102050 | B38: Stores and materials | C38: TRUE | D38: Stores and materials | E38: -653635936.6 | F38: -308566503.5 | G38: -345069433.1
A39: DA102060 | B39: Support | C39: TRUE | D39: Support | E39: -198980357.7 | F39: -101011884.2 | G39: -97968473.44
A40: DA102070 | B40: Electrical | C40: TRUE | D40: Electrical | E40: -42427838.37 | F40: -21093753.29 | G40: -21334085.07
A41: DA102080 | B41: Mechanical | C41: TRUE | D41: Mechanical | E41: -35023194.6 | F41: -18640665.23 | G41: -16382529.37
A42: DA102090 | B42: Workshop recovery | C42: TRUE | D42: Workshop recovery | E42: -23146576.43 | F42: -12747902.35 | G42: -10398674.08
A43: DA102100 | B43: Tyres | C43: TRUE | D43: Tyres | E43: -29384210.05 | F43: -9112877.36 | G43: -20271332.7
A44: DA102110 | B44: Diesel | C44: TRUE | D44: Diesel | E44: -119332122.9 | F44: -41092706.68 | G44: -78239416.26
A45: DA102120 | B45: Pumps sumps and valves | C45: TRUE | D45: Pumps sumps and valves | E45: -7390304.626 | F45: -3805194.472 | G45: -3585110.154
A46: DA102130 | B46: Maintenance | C46: TRUE | D46: Maintenance | E46: -110716561.1 | F46: -39088413.99 | G46: -71628147.14
A47: DA102140 | B47: Major repairs | C47: TRUE | D47: Major repairs | E47: -47062958.77 | F47: -20545260.78 | G47: -26517697.99
A48: DA102990 | B48: Other stores cost | C48: TRUE | D48: Other stores cost | E48: -378961432.4 | F48: -184380674.5 | G48: -194580757.8
A49: DA103000 | B49: Services | C49: TRUE | D49: Services | E49: -1242450151 | F49: -719523988.8 | G49: -522926161.7
A50: DA103010 | B50: Power : Services | C50: TRUE | D50: Power : Services | E50: -1172183355 | F50: -684533319.7 | G50: -487650035.7
A51: DA103020 | B51: Water : Service | C51: TRUE | D51: Water : Service | E51: -70266795.04 | F51: -34990669.08 | G51: -35276125.96
A52: DA104000 | B52: Outside contractors | C52: TRUE | D52: Outside contractors | E52: -882150855.9 | F52: -404685989.9 | G52: -477464866
A53: DA104010 | B53: Labour hire | C53: TRUE | D53: Labour hire | E53: -28568707.94 | F53: -14107087.96 | G53: -14461619.98
A54: DA104020 | B54: Drilling | C54: TRUE | D54: Drilling | E54: -8869816.33 | F54: -4575430.23 | G54: -4294386.1
A55: DA104030 | B55: Rock transport | C55: TRUE | D55: Rock transport | E55: -87484353.6 | F55: -43964950.99 | G55: -43519402.61
A56: DA104040 | B56: Security | C56: TRUE | D56: Security | E56: -85739071.63 | F56: -42791016.33 | G56: -42948055.3
A57: DA104050 | B57: Production contractors | C57: TRUE | D57: Production contractors | E57: -131707518.2 | F57: -68141952.6 | G57: -63565565.64
A58: DA104060 | B58: Other as per Oracle | C58: TRUE | D58: Other as per Oracle | E58: 0 | F58: 0 | G58: 0
A59: DA104990 | B59: Other : Outside contractors | C59: TRUE | D59: Other : Outside contractors | E59: -539781388.2 | F59: -231105551.8 | G59: -308675836.4
A60: DA105000 | B60: Other distributable cost | C60: TRUE | D60: Other distributable cost | E60: -241257439.5 | F60: -100844951.8 | G60: -140412487.7
A61: DA106000 | B61: Non-distributable | C61: TRUE | D61: Non-distributable | E61: -249396790.5 | F61: -127778526.7 | G61: -121618263.7
A62: DA107000 | B62: Allocations | C62: TRUE | D62: Allocations | E62: 9285867.886 | F62: 4763366.649 | G62: 4522501.237
A63: DA108000 | B63: Ongoing development allocation | C63: TRUE | D63: Ongoing development allocation | E63: 18095870.5 | F63: 13212096.12 | G63: 4883774.378
A64: DA109000 | B64: Stock revaluation | C64: TRUE | D64: Stock revaluation | E64: 6502337.629 | F64: -65367467.74 | G64: 71869805.37
A65: DA109010 | B65: Gold stock | C65: TRUE | D65: Gold stock | E65: 163704866.5 | F65: -9635280.726 | G65: 173340147.2
A66: DA109020 | B66: ROM | C66: TRUE | D66: ROM | E66: -157202528.8 | F66: -55732187.01 | G66: -101470341.8
A67: DA110000 | B67: Deferred stripping costs | C67: TRUE | D67: Deferred stripping costs | E67: -64408.353 | F67: 19717460.46 | G67: -19781868.81
A68: DA120000 | B68: Pre-stripping development | C68: TRUE | D68: Pre-Stripping development | E68: 223173961.1 | G68: 223173961.1
A69: DA111000 | B69: Byproduct credits | C69: TRUE | D69: Byproduct credits | E69: 133271850.3 | F69: 66111757.57 | G69: 67160092.7
A70: DA112000 | B70: Royalty tax | C70: TRUE | D70: Royalty tax | E70: -148471127 | F70: -96497245.83 | G70: -51973881.19
A71: DA211000 | B71: Amortisation | C71: TRUE | D71: Amortisation | E71: -1273773270 | F71: -628717612.8 | G71: -645055657.2
A72: DA211100 | B72: Depreciation : Mining assets | C72: TRUE | D72: Depreciation : Mining assets | E72: -858406254.9 | F72: -427191562 | G72: -431214693
A73: DA211200 | B73: Depreciation : Non-mining assets | C73: TRUE | D73: Depreciation : Non-mining assets | E73: -30086254.96 | F73: -14970773.43 | G73: -15115481.52
A74: DA211300 | B74: Depreciation : Capital Development | C74: TRUE | D74: Depreciation : Capital Development | E74: -378065743 | F74: -182623053.9 | G74: -195442689.1
A75: DA211400 | B75: Depreciation : Intangible assets | C75: TRUE | D75: Depreciation : Intangible assets | E75: -7215017.07 | F75: -3932223.46 | G75: -3282793.61
A76: DA211900 | B76: Deferred depreciation expense | C76: TRUE | D76: Deferred depreciation expense | E76: 0 | F76: 0 | G76: 0
A77: DA212000 | B77: Impairment of property plant and equipment | C77: TRUE | D77: Impairment of property plant and equipment | E77: -0.484 | F77: 0 | G77: -0.484
A78: DA212100 | B78: Impairment of property plant and equipment | C78: TRUE | D78: Impairment of property plant and equipment | E78: -0.484 | F78: 0 | G78: -0.484
A79: DA212200 | B79: Impairment written back | C79: TRUE | D79: Impairment written back | E79: 0 | F79: 0 | G79: 0
A80: DA220000 | B80: Employment termination and restructuring cost | C80: TRUE | D80: Employment termination and restructuring cost | E80: -61377841.7 | F80: -184077.754 | G80: =E80-F80 -> -61193763.95
A81: DA231000 | B81: Share based compensation | C81: TRUE | D81: Share based compensation | E81: -201258934.3 | F81: -97479966.38 | G81: -103778967.9
A82: DA232000 | B82: Post retirement benefits | C82: TRUE | D82: Post retirement benefits | E82: 3274500 | F82: 1637250 | G82: 1637250
